Workbook

Sheet Open
E18: =Development!B3&" Version "&Development!B4 -> Home Energy Assessment Version 1.0

Sheet Instructions
B8: Instructions
B10: The PSEG Long Island Home Energy Assessment Tool gathers a customer's energy usage data (including their existing appliances, heating and cooling equipment, lighting, and building envolope) in order to supply them with a comprehensive report on their home and how to make it more energy efficient.
B13: Cells requiring input are shaded with a gray background. Cells with white background are locked and will auto populate.
B15: 1. Navigate to "Home Data" tab and complete all customer inputs
B17: 2. Click the "Next" arrow, or tab name, to move to the next tab(s) and complete the applicable tabs during the Home Energy Assessment
B19: 3. Conduct the Health & Safety checks by using the "Health&Safety_Data" tab, after the data collection tabs are complete
B21: 4. Input any other appliances/equipment not captured on the data collection tabs on the "Other Data Collection" tab
B23: 5. Upon finishing the data collection tabs, click the "Results" button on the "Other Data Collection" tab to generate the Report for the customer
B25: 6. On the "Executive Summary" tab of the "Results", Customer and Auditor must sign the signature block on document, certifying assessment was conducted at listed address
B27: 7. After the Home Energy Assessment is completed, provide the customer with a copy of the HEA Report
C28: - The HEA Report can be printed and given to the customer or e-mailed to the customer as a PDF
B30: 8. To print the report, click on the "Cover" tab of the HEA Report and click the "CTRL" key on the keyboard
C31: - Continue to hold the "CTRL" key and click on the remaining, purple tabs of the HEA Report; this will "Group" the sheets for print
D32: - To "ungroup" the sheets, right click on any of the selected tabs and click "Ungroup Sheets"
C33: - After all HEA Report tabs have been clicked, navigate to the "File" button on the top left of the Excel screen and click "Print"
C34: - Under "Printer" select the "Print to PDF" option and save the document to a folder
B36: 9. Send the HEA Report PDF to the customer or print a copy to give to the customer
C37: - The customer should receive the HEA Report (from the purple tabs) only and not the entire Home Energy Assessment excel document
C38: - Enure the copy of the HEA Report the customer receives is a PDF version only
B40: 10. Once the customer receives the HEA Report, navigate to the Lead Partner Portal and click the "Online Application" link and then the "Approved" link
B42: 11. Select the Home Energy Assessment Online Application ID that is associated with the completed Home Energy Assessment and click the "Document Upload" button
C44: - Please upload the entire Home Energy Assessment Tool excel document
C45: - If unable to access the Lead Partner Portal, the Home Energy Assessment Tool may be e-mailed to HomePerformanceLI@pseg.com
B47: ***Under no circumstances should the homeowner be emailed the excel version of the modeling tool.

Sheet Menu
C8: Click to Enter Home Data | H8: Click to Enter Duct Sealing Data
C10: Click to Enter HVAC Data | H10: Click to Enter Thermostat Data
C12: Click to Enter DHW Data | H12: Click to Enter Lighting Data
C14: Click to Enter Insulation Data | H14: Click to Enter Appliances Data
C16: Click to Enter Air Sealing Data | H16: Click to Enter Other Data

Sheet Home Data
A1: =Development!B3 -> Home Energy Assessment | AO1: College – Cafeteria
B2: Home Data
B5: Customer Information
B7: Account Name : | G7: Application ID :
B9: Home Address : | G9: Account # :
B11: City, State, Zip : | G11: Rate Code:
B13: Alternate Contact Name : | G13: Phone :
B15: E-mail : | G15: Fax :
B18: HPwES Partner Information
B20: Home Energy Audit Date: | G20: Phone:
B22: HPwES Partner: | G22: Email:
B24: Property Details
B26: Home Orientation: | G26: Foundation Type:
B28: Year Built: | G28: Condtioned Area:
C30: =H34 -> 0
C31: Bakery
B32: Number of Occupants | G32: Average Wall Height:
B34: Floors Above Grade:

Sheet Billing Data Collection (hidden)
A1: ='Home Data'!A1 -> Home Energy Assessment
B2: Billing Data
B5: Please select preferred energy use entry method: | I5: 1
C7: Month | D7: kWh | H7: kWh
C8: January | G8: Total Annual Energy Use
C10: February
C12: March
C14: April
C16: May
C18: June
C20: July
C22: August
C24: September
C26: October
C28: November
C30: December | G30: Total | H30: =IF(I5=1,SUM(D8:D30),H8) -> 0

Sheet HVAC Data Collection
A1: =Development!B3 -> Home Energy Assessment
B2: Heating and Cooling
B5: =B4+1 -> 1 | C5: Heating System
B8: Location: | J8: Qty:
B10: Equipment Type: | J10: Working:
B12: Age: | J12: % of Heating Load:
B14: Fuel Source:
B17: Heating Capacity: | G17: btu (Ex. 80,000)
B19: Efficiency: | G19: AFUE (Ex. 80.5%) | K19: Notes:
B25: =B5+1 -> 2 | C25: Heating System
B27: Location: | J27: Qty:
B29: Equipment Type: | J29: Working:
B31: Age: | J31: % of Heating Load:
B33: Fuel Source:
B36: Heating Capacity: | G36: btu (Ex. 80,000)
B38: Efficiency: | G38: AFUE (Ex. 80.5%) | K38: Notes:
B44: =B25+1 -> 3 | C44: Cooling System
B47: Location: | J47: Qty:
B49: Equipment Type: | J49: Working:
B51: Age: | J51: % of Cooling Load:
B54: Cooling Capacity: | G54: btu (Ex. 36,000)
B56: Efficiency: | C56: SEER | E56: EER | K56: Notes:
B62: =B44+1 -> 4 | C62: Cooling System
B65: Location: | J65: Qty:
B67: Equipment Type: | J67: Working:
B69: Age: | J69: % of Cooling Load:
B72: Cooling Capacity: | G72: btu (Ex. 36,000)
B74: Efficiency: | C74: SEER | E74: EER | K74: Notes:

Sheet DHW Data Collection
A1: =Development!B3 -> Home Energy Assessment
B2: Domestic Hot Water
B5: =B4+1 -> 1
B6: Location: | I6: Fuel Source:
B8: System Type: | I8: Energy Factor (EF): | L8: (Ex. .80)
B10: Age: | I10: Temperature Setting:
B16: Motor Type | C16: =#REF!&" "&#REF! -> 
B17: Annual Operating Hrs. | C17: =IF(OR(C16="Cooling Fan",C16="Heating Fan"),VLOOKUP('Home Data'!$C$26,Motor_Hours,4,FALSE),IF(C16="Cooling Pump",VLOOKUP('Home Data'!$C$26,Motor_Hours,2,FALSE),VLOOKUP('Home Data'!$C$26,Motor_Hours,3,FALSE))) -> 
B18: Notes:
B23: =B5+1 -> 2
B24: Location: | I24: Fuel Source:
B26: System Type: | I26: Energy Factor (EF): | L26: (Ex. .80)
B28: Age: | I28: Temperature Setting:
B34: Motor Type | C34: =#REF!&" "&#REF! -> 
B35: Annual Operating Hrs. | C35: =IF(OR(C34="Cooling Fan",C34="Heating Fan"),VLOOKUP('Home Data'!$C$26,Motor_Hours,4,FALSE),IF(C34="Cooling Pump",VLOOKUP('Home Data'!$C$26,Motor_Hours,2,FALSE),VLOOKUP('Home Data'!$C$26,Motor_Hours,3,FALSE))) -> 
B36: Notes:

Sheet Insulation Levels Data Collec
A1: =Development!B3 -> Home Energy Assessment
B2: Insulation Levels
A6: =A3+1 -> 1
B7: Location: | I7: Existing R Value:
B9: Area (Sq Ft): | G9: =INDEX('Wattage Table'!$H$3:$H$1574,MATCH('Insulation Levels Data Collec'!I9,'Wattage Table'!$C$3:$C$1574,0)) ->  | I9: Recommended R Value :
B11: Condition: | G11: =_xlfn.IFNA(INDEX(Lighting_Index!$Y$3:$Y$7,MATCH('Insulation Levels Data Collec'!C11,Lighting_Index!$X$3:$X$7,0)),"") -> 
G13: =INDEX('Wattage Table'!$G$3:$G$2132,MATCH('Insulation Levels Data Collec'!I9,'Wattage Table'!$C$2:$C$2132,0))/12 ->  | I13: Existing Wattage
G15: =IF(OR(C11="Not Listed",LEFT(C15,6)="Custom"),"Custom",IF(C15="","",C15)) ->  | I15: Proposed Device
G16: TRUE
B17: Notes:
A21: =A6+1 -> 2
B22: Location: | I22: Existing R Value:
B24: Area (Sq Ft): | G24: =INDEX('Wattage Table'!$H$3:$H$1574,MATCH('Insulation Levels Data Collec'!I24,'Wattage Table'!$C$3:$C$1574,0)) ->  | I24: Recommended R Value :
B26: Condition: | G26: =_xlfn.IFNA(INDEX(Lighting_Index!$Y$3:$Y$7,MATCH('Insulation Levels Data Collec'!C26,Lighting_Index!$X$3:$X$7,0)),"") -> 
G28: =INDEX('Wattage Table'!$G$3:$G$2132,MATCH('Insulation Levels Data Collec'!I24,'Wattage Table'!$C$2:$C$2132,0))/12 ->  | I28: Existing Wattage
G30: =IF(OR(C26="Not Listed",LEFT(C30,6)="Custom"),"Custom",IF(C30="","",C30)) ->  | I30: Proposed Device
G31: FALSE
B32: Notes:
A36: =A21+1 -> 3
B37: Location: | I37: Existing R Value:
B39: Area (Sq Ft): | G39: =INDEX('Wattage Table'!$H$3:$H$1574,MATCH('Insulation Levels Data Collec'!I39,'Wattage Table'!$C$3:$C$1574,0)) ->  | I39: Recommended R Value :
B41: Condition: | G41: =_xlfn.IFNA(INDEX(Lighting_Index!$Y$3:$Y$7,MATCH('Insulation Levels Data Collec'!C41,Lighting_Index!$X$3:$X$7,0)),"") -> 
G45: =IF(OR(C41="Not Listed",LEFT(C45,6)="Custom"),"Custom",IF(C45="","",C45)) -> 
G46: FALSE
B47: Notes:
A51: =A36+1 -> 4
B52: Location: | I52: Existing R Value:
B54: Area (Sq Ft): | G54: =INDEX('Wattage Table'!$H$3:$H$1574,MATCH('Insulation Levels Data Collec'!I54,'Wattage Table'!$C$3:$C$1574,0)) ->  | I54: Recommended R Value :
B56: Condition: | G56: =_xlfn.IFNA(INDEX(Lighting_Index!$Y$3:$Y$7,MATCH('Insulation Levels Data Collec'!C56,Lighting_Index!$X$3:$X$7,0)),"") -> 
G61: FALSE
B62: Notes:
A66: =A51+1 -> 5
B67: Location: | I67: Existing R Value:
B69: Area (Sq Ft): | G69: =INDEX('Wattage Table'!$H$3:$H$1574,MATCH('Insulation Levels Data Collec'!I69,'Wattage Table'!$C$3:$C$1574,0)) ->  | I69: Recommended R Value :
B71: Condition: | G71: =_xlfn.IFNA(INDEX(Lighting_Index!$Y$3:$Y$7,MATCH('Insulation Levels Data Collec'!C71,Lighting_Index!$X$3:$X$7,0)),"") -> 
G76: FALSE
B77: Notes:
A81: =A66+1 -> 6
B82: Location: | I82: Existing R Value:
B84: Area (Sq Ft): | G84: =INDEX('Wattage Table'!$H$3:$H$1574,MATCH('Insulation Levels Data Collec'!I84,'Wattage Table'!$C$3:$C$1574,0)) ->  | I84: Recommended R Value :
B86: Condition: | G86: =_xlfn.IFNA(INDEX(Lighting_Index!$Y$3:$Y$7,MATCH('Insulation Levels Data Collec'!C86,Lighting_Index!$X$3:$X$7,0)),"") -> 
G91: FALSE
B92: Notes:

Sheet Air Sealing Data Collection
A1: =Development!B3 -> Home Energy Assessment
B2: Air Sealing (Air Leakage)
B5: =B4+1 -> 1
B6: Square Footage: | I6: Blower Door Reading - CFM50 Pre:
B8: Conditioned Air Volume:
B10: Calculated BAS - CFM50*:
B12: *Building Airflow Standard
B16: Motor Type | C16: =#REF!&" "&#REF! -> 
B17: Annual Operating Hrs. | C17: =IF(OR(C16="Cooling Fan",C16="Heating Fan"),VLOOKUP('Home Data'!$C$26,Motor_Hours,4,FALSE),IF(C16="Cooling Pump",VLOOKUP('Home Data'!$C$26,Motor_Hours,2,FALSE),VLOOKUP('Home Data'!$C$26,Motor_Hours,3,FALSE))) -> 
B18: Notes:
B23: =B5+1 -> 2
B24: Square Footage: | I24: Blower Door Reading - CFM50 Pre:
B26: Condtioned Air Volume:
B28: Calculated BAS - CFM50*:
B30: *Building Airflow Standard
B34: Motor Type | C34: =#REF!&" "&#REF! -> 
B35: Annual Operating Hrs. | C35: =IF(OR(C34="Cooling Fan",C34="Heating Fan"),VLOOKUP('Home Data'!$C$26,Motor_Hours,4,FALSE),IF(C34="Cooling Pump",VLOOKUP('Home Data'!$C$26,Motor_Hours,2,FALSE),VLOOKUP('Home Data'!$C$26,Motor_Hours,3,FALSE))) -> 
B36: Notes:

Sheet Duct Sealing Data Collection
A1: =Development!B3 -> Home Energy Assessment
B2: Duct Sealing
B6: =B5+1 -> 1 | C6: Heating System
B8: Primary Duct Location: | I8: Total Ductwork Square Footage:
B10: Existing Ductwork Insulation: | G10: =INDEX('Wattage Table'!$H$3:$H$1574,MATCH('Duct Sealing Data Collection'!I10,'Wattage Table'!$C$3:$C$1574,0)) ->  | I10: Square Footage of Ductwork: | K10: (Unconditioned Space)
B12: Existing Ductwork Sealed?: | G12: =_xlfn.IFNA(INDEX(Lighting_Index!$Y$3:$Y$7,MATCH('Duct Sealing Data Collection'!C12,Lighting_Index!$X$3:$X$7,0)),"") -> 
G14: =INDEX('Wattage Table'!$G$3:$G$2132,MATCH('Duct Sealing Data Collection'!I10,'Wattage Table'!$C$2:$C$2132,0))/12 ->  | I14: Existing Wattage
G16: =IF(OR(C12="Not Listed",LEFT(C16,6)="Custom"),"Custom",IF(C16="","",C16)) ->  | I16: Proposed Device
G17: TRUE
B18: Notes:
B22: =B6+1 -> 2 | C22: Heating System
B24: Primary Duct Location: | I24: Total Ductwork Square Footage: | K24: Feet
B26: Existing Ductwork Insulation: | G26: =INDEX('Wattage Table'!$H$3:$H$1574,MATCH('Duct Sealing Data Collection'!I26,'Wattage Table'!$C$3:$C$1574,0)) ->  | I26: Square Footage of Ductwork: | K26: (Unconditioned Space)
B28: Existing Ductwork Sealed?: | G28: =_xlfn.IFNA(INDEX(Lighting_Index!$Y$3:$Y$7,MATCH('Duct Sealing Data Collection'!C28,Lighting_Index!$X$3:$X$7,0)),"") -> 
G33: FALSE
B34: Notes:
A38: =B22+1 -> 3 | C38: Cooling System
B40: Primary Duct Location: | I40: Total Square Footage of Ductwork:
B42: Existing Ductwork Insulation: | G42: =INDEX('Wattage Table'!$H$3:$H$1574,MATCH('Duct Sealing Data Collection'!I42,'Wattage Table'!$C$3:$C$1574,0)) ->  | I42: Square Footage of Ductwork: | K42: (Unconditioned Space)
B44: Existing Ductwork Sealed?: | G44: =_xlfn.IFNA(INDEX(Lighting_Index!$Y$3:$Y$7,MATCH('Duct Sealing Data Collection'!C44,Lighting_Index!$X$3:$X$7,0)),"") -> 
G48: =IF(OR(C44="Not Listed",LEFT(C48,6)="Custom"),"Custom",IF(C48="","",C48)) -> 
G49: FALSE
B50: Notes:
A54: =A38+1 -> 4 | C54: Cooling System
B56: Primary Duct Location: | I56: Total Square Footage of Ductwork:
B58: Existing Ductwork Insulation: | G58: =INDEX('Wattage Table'!$H$3:$H$1574,MATCH('Duct Sealing Data Collection'!I58,'Wattage Table'!$C$3:$C$1574,0)) ->  | I58: Square Footage of Ductwork: | K58: (Unconditioned Space)
B60: Existing Ductwork Sealed?: | G60: =_xlfn.IFNA(INDEX(Lighting_Index!$Y$3:$Y$7,MATCH('Duct Sealing Data Collection'!C60,Lighting_Index!$X$3:$X$7,0)),"") -> 
G65: FALSE
B66: Notes:

Sheet Thermostats and Controls Data
A1: =Development!B3 -> Home Energy Assessment
B2: Thermostats and Controls
B5: =B4+1 -> 1
B6: Location: | I6: Thermostat Type:
B8: Heating Set Point - High: | I8: Cooling Set Point - High:
B10: Heating Set Point - Low: | I10: Cooling Set Point - Low:
B16: Motor Type | C16: =#REF!&" "&#REF! -> 
B17: Annual Operating Hrs. | C17: =IF(OR(C16="Cooling Fan",C16="Heating Fan"),VLOOKUP('Home Data'!$C$26,Motor_Hours,4,FALSE),IF(C16="Cooling Pump",VLOOKUP('Home Data'!$C$26,Motor_Hours,2,FALSE),VLOOKUP('Home Data'!$C$26,Motor_Hours,3,FALSE))) -> 
B18: Notes:
B23: =B5+1 -> 2
B24: Location: | I24: Thermostat Type:
B26: Heating Set Point - High: | I26: Cooling Set Point - High:
B28: Heating Set Point - Low: | I28: Cooling Set Point - Low:
B34: Motor Type | C34: =#REF!&" "&#REF! -> 
B35: Annual Operating Hrs. | C35: =IF(OR(C34="Cooling Fan",C34="Heating Fan"),VLOOKUP('Home Data'!$C$26,Motor_Hours,4,FALSE),IF(C34="Cooling Pump",VLOOKUP('Home Data'!$C$26,Motor_Hours,2,FALSE),VLOOKUP('Home Data'!$C$26,Motor_Hours,3,FALSE))) -> 
B36: Notes:

Sheet Lighting Data Collection
A1: =Development!B3 -> Home Energy Assessment
B2: Lighting
D5: % of Home LED Lighting:
A8: =A3+1 -> 1
B9: Lighting Type: | I9: Quantity:
B11: ENERGY STAR®: | G11: =INDEX('Wattage Table'!$H$3:$H$1574,MATCH('Lighting Data Collection'!I11,'Wattage Table'!$C$3:$C$1574,0)) ->  | I11: Location:
B13: Watts: | G13: =_xlfn.IFNA(INDEX(Lighting_Index!$Y$3:$Y$7,MATCH('Lighting Data Collection'!C13,Lighting_Index!$X$3:$X$7,0)),"") ->  | I13: Working:
G15: =INDEX('Wattage Table'!$G$3:$G$2132,MATCH('Lighting Data Collection'!I11,'Wattage Table'!$C$2:$C$2132,0))/12 ->  | I15: Existing Wattage
G17: =IF(OR(C13="Not Listed",LEFT(C17,6)="Custom"),"Custom",IF(C17="","",C17)) ->  | I17: Proposed Device
B19: Notes:
A23: =A8+1 -> 2
B24: Lighting Type: | I24: Quantity:
B26: ENERGY STAR®: | G26: =INDEX('Wattage Table'!$H$3:$H$1574,MATCH('Lighting Data Collection'!I26,'Wattage Table'!$C$3:$C$1574,0)) ->  | I26: Location:
B28: Watts: | G28: =_xlfn.IFNA(INDEX(Lighting_Index!$Y$3:$Y$7,MATCH('Lighting Data Collection'!C28,Lighting_Index!$X$3:$X$7,0)),"") ->  | I28: Working:
G30: =INDEX('Wattage Table'!$G$3:$G$2132,MATCH('Lighting Data Collection'!I26,'Wattage Table'!$C$2:$C$2132,0))/12 ->  | I30: Existing Wattage
G32: =IF(OR(C28="Not Listed",LEFT(C32,6)="Custom"),"Custom",IF(C32="","",C32)) ->  | I32: Proposed Device
G33: FALSE
B34: Notes:
A38: =A23+1 -> 3
B39: Lighting Type: | I39: Quantity:
B41: ENERGY STAR®: | G41: =INDEX('Wattage Table'!$H$3:$H$1574,MATCH('Lighting Data Collection'!I41,'Wattage Table'!$C$3:$C$1574,0)) ->  | I41: Location:
B43: Watts: | G43: =_xlfn.IFNA(INDEX(Lighting_Index!$Y$3:$Y$7,MATCH('Lighting Data Collection'!C43,Lighting_Index!$X$3:$X$7,0)),"") ->  | I43: Working:
G45: =INDEX('Wattage Table'!$G$3:$G$2132,MATCH('Lighting Data Collection'!I41,'Wattage Table'!$C$2:$C$2132,0))/12 ->  | I45: Existing Wattage
G47: =IF(OR(C43="Not Listed",LEFT(C47,6)="Custom"),"Custom",IF(C47="","",C47)) -> 
G48: FALSE
B49: Notes:
A53: =A38+1 -> 4
B54: Lighting Type: | I54: Quantity:
B56: ENERGY STAR®: | G56: =INDEX('Wattage Table'!$H$3:$H$1574,MATCH('Lighting Data Collection'!I56,'Wattage Table'!$C$3:$C$1574,0)) ->  | I56: Location:
B58: Watts: | G58: =_xlfn.IFNA(INDEX(Lighting_Index!$Y$3:$Y$7,MATCH('Lighting Data Collection'!C58,Lighting_Index!$X$3:$X$7,0)),"") ->  | I58: Working:
B64: Notes:
A68: =A53+1 -> 5
B69: Lighting Type: | I69: Quantity:
B71: ENERGY STAR®: | G71: =INDEX('Wattage Table'!$H$3:$H$1574,MATCH('Lighting Data Collection'!I71,'Wattage Table'!$C$3:$C$1574,0)) ->  | I71: Location:
B73: Watts: | G73: =_xlfn.IFNA(INDEX(Lighting_Index!$Y$3:$Y$7,MATCH('Lighting Data Collection'!C73,Lighting_Index!$X$3:$X$7,0)),"") ->  | I73: Working:
G77: =IF(OR(C73="Not Listed",LEFT(C77,6)="Custom"),"Custom",IF(C77="","",C77)) -> 
G78: FALSE
B79: Notes:
A83: =A68+1 -> 6
B84: Lighting Type: | I84: Quantity:
B86: ENERGY STAR®: | G86: =INDEX('Wattage Table'!$H$3:$H$1574,MATCH('Lighting Data Collection'!I86,'Wattage Table'!$C$3:$C$1574,0)) ->  | I86: Location:
B88: Watts: | G88: =_xlfn.IFNA(INDEX(Lighting_Index!$Y$3:$Y$7,MATCH('Lighting Data Collection'!C88,Lighting_Index!$X$3:$X$7,0)),"") ->  | I88: Working:
B94: Notes:
A98: =A83+1 -> 7
B99: Lighting Type: | I99: Quantity:
B101: ENERGY STAR®: | G101: =INDEX('Wattage Table'!$H$3:$H$1574,MATCH('Lighting Data Collection'!I101,'Wattage Table'!$C$3:$C$1574,0)) ->  | I101: Location:
B103: Watts: | G103: =_xlfn.IFNA(INDEX(Lighting_Index!$Y$3:$Y$7,MATCH('Lighting Data Collection'!C103,Lighting_Index!$X$3:$X$7,0)),"") ->  | I103: Working:
G107: =IF(OR(C103="Not Listed",LEFT(C107,6)="Custom"),"Custom",IF(C107="","",C107)) -> 
G108: FALSE
B109: Notes:
A113: =A98+1 -> 8
B114: Lighting Type: | I114: Quantity:
B116: ENERGY STAR®: | G116: =INDEX('Wattage Table'!$H$3:$H$1574,MATCH('Lighting Data Collection'!I116,'Wattage Table'!$C$3:$C$1574,0)) ->  | I116: Location:
B118: Watts: | G118: =_xlfn.IFNA(INDEX(Lighting_Index!$Y$3:$Y$7,MATCH('Lighting Data Collection'!C118,Lighting_Index!$X$3:$X$7,0)),"") ->  | I118: Working:
G122: =IF(OR(C118="Not Listed",LEFT(C122,6)="Custom"),"Custom",IF(C122="","",C122)) -> 
G123: TRUE
B124: Notes:
A128: =A113+1 -> 9
B129: Lighting Type: | I129: Quantity:
B131: ENERGY STAR®: | G131: =INDEX('Wattage Table'!$H$3:$H$1574,MATCH('Lighting Data Collection'!I131,'Wattage Table'!$C$3:$C$1574,0)) ->  | I131: Location:
B133: Watts: | G133: =_xlfn.IFNA(INDEX(Lighting_Index!$Y$3:$Y$7,MATCH('Lighting Data Collection'!C133,Lighting_Index!$X$3:$X$7,0)),"") ->  | I133: Working:
G137: =IF(OR(C133="Not Listed",LEFT(C137,6)="Custom"),"Custom",IF(C137="","",C137)) -> 
G138: FALSE
B139: Notes:
A143: =A128+1 -> 10
B144: Lighting Type: | I144: Quantity:
B146: ENERGY STAR®: | G146: =INDEX('Wattage Table'!$H$3:$H$1574,MATCH('Lighting Data Collection'!I146,'Wattage Table'!$C$3:$C$1574,0)) ->  | I146: Location:
B148: Watts: | G148: =_xlfn.IFNA(INDEX(Lighting_Index!$Y$3:$Y$7,MATCH('Lighting Data Collection'!C148,Lighting_Index!$X$3:$X$7,0)),"") ->  | I148: Working:
G153: FALSE
B154: Notes:

Sheet Appliances Data Collection
A1: =Development!B3 -> Home Energy Assessment
B2: Appliances
A6: =A3+1 -> 1
B7: Appliance: | I7: Age:
B9: ENERGY STAR®: | G9: =INDEX('Wattage Table'!$H$3:$H$1574,MATCH('Appliances Data Collection'!I9,'Wattage Table'!$C$3:$C$1574,0)) ->  | I9: Working:
B11: Location: | G11: =_xlfn.IFNA(INDEX(Lighting_Index!$Y$3:$Y$7,MATCH('Appliances Data Collection'!C11,Lighting_Index!$X$3:$X$7,0)),"") ->  | I11: Fuel Source:
G13: =INDEX('Wattage Table'!$G$3:$G$2132,MATCH('Appliances Data Collection'!I9,'Wattage Table'!$C$2:$C$2132,0))/12 ->  | I13: Existing Wattage
G15: =IF(OR(C11="Not Listed",LEFT(C15,6)="Custom"),"Custom",IF(C15="","",C15)) ->  | I15: Proposed Device
G16: TRUE
B17: Notes:
A21: =A6+1 -> 2
B22: Appliance: | I22: Age:
B24: ENERGY STAR®: | G24: =INDEX('Wattage Table'!$H$3:$H$1574,MATCH('Appliances Data Collection'!I24,'Wattage Table'!$C$3:$C$1574,0)) ->  | I24: Working:
B26: Location: | G26: =_xlfn.IFNA(INDEX(Lighting_Index!$Y$3:$Y$7,MATCH('Appliances Data Collection'!C26,Lighting_Index!$X$3:$X$7,0)),"") ->  | I26: Fuel Source:
G28: =INDEX('Wattage Table'!$G$3:$G$2132,MATCH('Appliances Data Collection'!I24,'Wattage Table'!$C$2:$C$2132,0))/12 ->  | I28: Existing Wattage
G30: =IF(OR(C26="Not Listed",LEFT(C30,6)="Custom"),"Custom",IF(C30="","",C30)) ->  | I30: Proposed Device
G31: FALSE
B32: Notes:
A36: =A21+1 -> 3
B37: Appliance: | I37: Age:
B39: ENERGY STAR®: | G39: =INDEX('Wattage Table'!$H$3:$H$1574,MATCH('Appliances Data Collection'!I39,'Wattage Table'!$C$3:$C$1574,0)) ->  | I39: Working:
B41: Location: | G41: =_xlfn.IFNA(INDEX(Lighting_Index!$Y$3:$Y$7,MATCH('Appliances Data Collection'!C41,Lighting_Index!$X$3:$X$7,0)),"") ->  | I41: Fuel Source:
G45: =IF(OR(C41="Not Listed",LEFT(C45,6)="Custom"),"Custom",IF(C45="","",C45)) -> 
G46: FALSE
B47: Notes:
A51: =A36+1 -> 4
B52: Appliance: | I52: Age:
B54: ENERGY STAR®: | G54: =INDEX('Wattage Table'!$H$3:$H$1574,MATCH('Appliances Data Collection'!I54,'Wattage Table'!$C$3:$C$1574,0)) ->  | I54: Working:
B56: Location: | G56: =_xlfn.IFNA(INDEX(Lighting_Index!$Y$3:$Y$7,MATCH('Appliances Data Collection'!C56,Lighting_Index!$X$3:$X$7,0)),"") ->  | I56: Fuel Source:
G58: =INDEX('Wattage Table'!$G$3:$G$2132,MATCH('Appliances Data Collection'!I54,'Wattage Table'!$C$2:$C$2132,0))/12 -> 
G60: =IF(OR(C56="Not Listed",LEFT(C60,6)="Custom"),"Custom",IF(C60="","",C60)) -> 
G61: FALSE
B62: Notes:
A66: =A51+1 -> 5
B67: Appliance: | I67: Age:
B69: ENERGY STAR®: | G69: =INDEX('Wattage Table'!$H$3:$H$1574,MATCH('Appliances Data Collection'!I69,'Wattage Table'!$C$3:$C$1574,0)) ->  | I69: Working:
B71: Location: | G71: =_xlfn.IFNA(INDEX(Lighting_Index!$Y$3:$Y$7,MATCH('Appliances Data Collection'!C71,Lighting_Index!$X$3:$X$7,0)),"") ->  | I71: Fuel Source:
G73: =INDEX('Wattage Table'!$G$3:$G$2132,MATCH('Appliances Data Collection'!I69,'Wattage Table'!$C$2:$C$2132,0))/12 -> 
G75: =IF(OR(C71="Not Listed",LEFT(C75,6)="Custom"),"Custom",IF(C75="","",C75)) -> 
G76: FALSE
B77: Notes:
A81: =A66+1 -> 6
B82: Appliance: | I82: Age:
B84: ENERGY STAR®: | G84: =INDEX('Wattage Table'!$H$3:$H$1574,MATCH('Appliances Data Collection'!I84,'Wattage Table'!$C$3:$C$1574,0)) ->  | I84: Working:
B86: Location: | G86: =_xlfn.IFNA(INDEX(Lighting_Index!$Y$3:$Y$7,MATCH('Appliances Data Collection'!C86,Lighting_Index!$X$3:$X$7,0)),"") ->  | I86: Fuel Source:
G88: =INDEX('Wattage Table'!$G$3:$G$2132,MATCH('Appliances Data Collection'!I84,'Wattage Table'!$C$2:$C$2132,0))/12 -> 
G90: =IF(OR(C86="Not Listed",LEFT(C90,6)="Custom"),"Custom",IF(C90="","",C90)) -> 
G91: FALSE
B92: Notes:
A96: =A81+1 -> 7
B97: Appliance: | I97: Age:
B99: ENERGY STAR®: | G99: =INDEX('Wattage Table'!$H$3:$H$1574,MATCH('Appliances Data Collection'!I99,'Wattage Table'!$C$3:$C$1574,0)) ->  | I99: Working:
B101: Location: | G101: =_xlfn.IFNA(INDEX(Lighting_Index!$Y$3:$Y$7,MATCH('Appliances Data Collection'!C101,Lighting_Index!$X$3:$X$7,0)),"") ->  | I101: Fuel Source:
G103: =INDEX('Wattage Table'!$G$3:$G$2132,MATCH('Appliances Data Collection'!I99,'Wattage Table'!$C$2:$C$2132,0))/12 -> 
G105: =IF(OR(C101="Not Listed",LEFT(C105,6)="Custom"),"Custom",IF(C105="","",C105)) -> 
G106: FALSE
B107: Notes:
A111: =A96+1 -> 8
B112: Appliance: | I112: Age:
B114: ENERGY STAR®: | G114: =INDEX('Wattage Table'!$H$3:$H$1574,MATCH('Appliances Data Collection'!I114,'Wattage Table'!$C$3:$C$1574,0)) ->  | I114: Working:
B116: Location: | G116: =_xlfn.IFNA(INDEX(Lighting_Index!$Y$3:$Y$7,MATCH('Appliances Data Collection'!C116,Lighting_Index!$X$3:$X$7,0)),"") ->  | I116: Fuel Source:
G118: =INDEX('Wattage Table'!$G$3:$G$2132,MATCH('Appliances Data Collection'!I114,'Wattage Table'!$C$2:$C$2132,0))/12 -> 
G120: =IF(OR(C116="Not Listed",LEFT(C120,6)="Custom"),"Custom",IF(C120="","",C120)) -> 
G121: TRUE
B122: Notes:
A126: =A111+1 -> 9
B127: Appliance: | I127: Age:
B129: ENERGY STAR®: | G129: =INDEX('Wattage Table'!$H$3:$H$1574,MATCH('Appliances Data Collection'!I129,'Wattage Table'!$C$3:$C$1574,0)) ->  | I129: Working:
B131: Location: | G131: =_xlfn.IFNA(INDEX(Lighting_Index!$Y$3:$Y$7,MATCH('Appliances Data Collection'!C131,Lighting_Index!$X$3:$X$7,0)),"") ->  | I131: Fuel Source:
G133: =INDEX('Wattage Table'!$G$3:$G$2132,MATCH('Appliances Data Collection'!I129,'Wattage Table'!$C$2:$C$2132,0))/12 -> 
G135: =IF(OR(C131="Not Listed",LEFT(C135,6)="Custom"),"Custom",IF(C135="","",C135)) -> 
G136: FALSE
B137: Notes:
A141: =A126+1 -> 10
B142: Appliance: | I142: Age:
B144: ENERGY STAR®: | G144: =INDEX('Wattage Table'!$H$3:$H$1574,MATCH('Appliances Data Collection'!I144,'Wattage Table'!$C$3:$C$1574,0)) ->  | I144: Working:
B146: Location: | G146: =_xlfn.IFNA(INDEX(Lighting_Index!$Y$3:$Y$7,MATCH('Appliances Data Collection'!C146,Lighting_Index!$X$3:$X$7,0)),"") ->  | I146: Fuel Source:
G148: =INDEX('Wattage Table'!$G$3:$G$2132,MATCH('Appliances Data Collection'!I144,'Wattage Table'!$C$2:$C$2132,0))/12 -> 
G150: =IF(OR(C146="Not Listed",LEFT(C150,6)="Custom"),"Custom",IF(C150="","",C150)) -> 
G151: FALSE
B152: Notes:

Sheet Lighting_Index (hidden)
B1: T12 | D1: T8 | F1: T5 | H1: Incandescent | J1: Halogen | L1: Metal Halide | N1: High Pressure Sodium | Q1: Compact Fluorescent, Spiral | S1: Compact Fluorescent, Twin Tube | U1: Compact Fluorescent, Quad Tube | X1: Fixture Type | Y1: Fixture Category | AA1: Linear | AB1: Non-Linear | AC1: HID | AD1: Open | AI1: T12 | AJ1: T8 | AK1: T5 | AL1: Incandescent | AM1: Halogen | AN1: Metal Halide | AO1: High Pressure Sodium | AP1: Compact Fluorescent
B3: 1lp, 1 x 4 Fluorescent, T12 | C3: F41SS | D3: 1lp, 1 x 4 Fluorescent, T8 | E3: F41ILL | F3: 1lp, 2 x 2 Fluorescent, T5 | G3: F21GL | H3: 1lp, 15 watts, Incandescent | I3: I15/1 | J3: 1lp, 35 watts, Halogen | K3: H35/1 | L3: 50w Metal Halide | M3: =INDEX(Lighting_Recs!$B$2:$B$123,MATCH(Lighting_Index!L3,Lighting_Recs!$A$2:$A$123,0)) -> MH50/1 | N3: 100w High Pressure Sodium | O3: =INDEX(Lighting_Recs!$B$2:$B$123,MATCH(Lighting_Index!N3,Lighting_Recs!$A$2:$A$123,0)) -> HPS100/1 | P3: Custom | Q3: 7 watt, spiral CFL | R3: =INDEX(Lighting_Recs!$B$2:$B$123,MATCH(Lighting_Index!Q3,Lighting_Recs!$A$2:$A$123,0)) -> CFS7/1 | S3: 9 watt, twin tube CFL | T3: CFT9/1 | U3: 9 watt quad tube CFL | V3: =INDEX(Lighting_Recs!$B$2:$B$123,MATCH(Lighting_Index!U3,Lighting_Recs!$A$2:$A$123,0)) -> CFQ9/1 | X3: Incandescent | Y3: Non-Linear | AA3: None | AB3: None | AC3: None | AD3: None | AI3: F1.51SS | AJ3: F1.51LS | AK3: F21GHL | AL3: I100/1 | AM3: H100/1 | AN3: CDM205 | AO3: HPS100/1 | AP3: CF10/2D
B4: 2lp, 1 x 4 Fluorescent, T12 | C4: F42SS | D4: 2lp, 1 x 4 Fluorescent, T8 | E4: F42ILL | F4: 2lp, 2 x 2 Fluorescent, T5 | G4: F22GL | H4: 1lp, 20 watts, Incandescent | I4: I20/1 | J4: 1lp, 40 watts, Halogen | K4: H40/1 | L4: 70w Metal Halide | M4: =INDEX(Lighting_Recs!$B$2:$B$123,MATCH(Lighting_Index!L4,Lighting_Recs!$A$2:$A$123,0)) -> MH70/1 | N4: 150w High Pressure Sodium | O4: HPS150/1 | Q4: 9 watt, spiral CFL | R4: CFS9/1 | S4: 10 watt, twin tube CFL | T4: =INDEX(Lighting_Recs!$B$2:$B$123,MATCH(Lighting_Index!S4,Lighting_Recs!$A$2:$A$123,0)) -> CFT7/1 | U4: 13 watt quad tube CFL | V4: =INDEX(Lighting_Recs!$B$2:$B$123,MATCH(Lighting_Index!U4,Lighting_Recs!$A$2:$A$123,0)) -> CFQ13/1 | X4: HID | Y4: HID | AA4: FLED 1x4 10 | AB4: ILED 10 | AC4: FLED HBY 106 | AD4: FLED 1x4 10 | AI4: F1.52SS | AJ4: F1.52LS | AK4: F21GL | AL4: I100/2 | AM4: H1000/1 | AN4: CDM330 | AO4: HPS1000/1 | AP4: CF10/2D-L
B5: 2lp, 2 x 2 Fluorescent, T12 | C5: F22SS | D5: 2lp, 2 x 2 Fluorescent, T8 | E5: =INDEX(Lighting_Recs!$B$2:$B$123,MATCH(Lighting_Index!D5,Lighting_Recs!$A$2:$A$123,0)) -> F22ILL | F5: 2lp, 2 x 4 Fluorescent, T5 | G5: F42GL | H5: 1lp, 40 watts, Incandescent | I5: I40/1 | J5: 1lp, 45 watts, Halogen | K5: H45/1 | L5: 100w Metal Halide | M5: =INDEX(Lighting_Recs!$B$2:$B$123,MATCH(Lighting_Index!L5,Lighting_Recs!$A$2:$A$123,0)) -> MH100/1 | N5: 200w High Pressure Sodium | O5: =INDEX(Lighting_Recs!$B$2:$B$123,MATCH(Lighting_Index!N5,Lighting_Recs!$A$2:$A$123,0)) -> HPS200/1 | Q5: 13 watt, spiral CFL | R5: CFS13/1 | S5: 11 watt, twin tube CFL | T5: =INDEX(Lighting_Recs!$B$2:$B$123,MATCH(Lighting_Index!S5,Lighting_Recs!$A$2:$A$123,0)) -> CFT9/1 | U5: 15 watt quad tube CFL | V5: =INDEX(Lighting_Recs!$B$2:$B$123,MATCH(Lighting_Index!U5,Lighting_Recs!$A$2:$A$123,0)) -> CFQ15/1 | X5: Compact Fluorescent | Y5: Non-Linear | AA5: FLED 1x4 11 | AB5: ILED 11 | AC5: FLED HBY 108 | AD5: FLED 1x4 11 | AI5: F21SHS | AJ5: F21ILL | AK5: F22GHL | AL5: I100/3 | AM5: H1200/1 | AN5: MH100/1 | AO5: HPS150/1 | AP5: CF11/1
B6: 3lp, 2 x 2 Fluorescent, T12 | C6: F23SS | D6: 3lp, 2 x 2 Fluorescent, T8 | E6: F23ILL | F6: 3lp, 2 x 4 Fluorescent, T5 | G6: F43GL | H6: 1lp, 50 watts, Incandescent | I6: I50/1 | J6: 1lp, 50 watts, Halogen | K6: H50/1 | L6: 150w Metal Halide | M6: MH150/1 | N6: 250w High Pressure Sodium | O6: HPS250/1 | Q6: 15 watt, spiral CFL | R6: =INDEX(Lighting_Recs!$B$2:$B$123,MATCH(Lighting_Index!Q6,Lighting_Recs!$A$2:$A$123,0)) -> CFS15/1 | S6: 18 watt, twin tube CFL | T6: CFT18/1 | U6: 17 watt quad tube CFL | V6: =INDEX(Lighting_Recs!$B$2:$B$123,MATCH(Lighting_Index!U6,Lighting_Recs!$A$2:$A$123,0)) -> CFQ17/1 | X6: Not Listed | Y6: Open | AA6: FLED 1x4 12 | AB6: ILED 12 | AC6: FLED HBY 109 | AD6: FLED 1x4 12 | AI6: F21SE | AJ6: F21ILL/T2 | AK6: F22GL | AL6: I100/4 | AM6: H150/1 | AN6: MH1000/1 | AO6: HPS200/1 | AP6: CF11/2
B7: 4lp, 2 x 2 Fluorescent, T12 | C7: F24SS | D7: 4lp, 2 x 2 Fluorescent, T8 | E7: F24ILL | F7: 4lp, 2 x 4 Fluorescent, T5 | G7: F44GL | H7: 1lp, 55 watts, Incandescent | I7: I55/1 | J7: 1lp, 55 watts, Halogen | K7: H55/1 | L7: 175w Metal Halide | M7: =INDEX(Lighting_Recs!$B$2:$B$123,MATCH(Lighting_Index!L7,Lighting_Recs!$A$2:$A$123,0)) -> MH175/1 | N7: 400w High Pressure Sodium | O7: HPS400/1 | Q7: 20 watt, spiral CFL | R7: CFS20/1 | S7: 27 watt, twin tube CFL | T7: =INDEX(Lighting_Recs!$B$2:$B$123,MATCH(Lighting_Index!S7,Lighting_Recs!$A$2:$A$123,0)) -> CFT22/1 | U7: 18 watt quad tube CFL | V7: =INDEX(Lighting_Recs!$B$2:$B$123,MATCH(Lighting_Index!U7,Lighting_Recs!$A$2:$A$123,0)) -> CFQ18/1 | X7: Fluorescent | Y7: Linear | AA7: FLED 1x4 13 | AB7: ILED 13 | AC7: FLED HBY 112 | AD7: FLED 1x4 13 | AI7: F21SS | AJ7: F21ILL/T2-R | AK7: F31GHL | AL7: I100/5 | AM7: H150/2 | AN7: MH150/1 | AO7: HPS225/1 | AP7: CF13/2
B8: 2lp, 2 x 4 Fluorescent, T12 | C8: F42SS | D8: 2lp, 2 x 4 Fluorescent, T8 | E8: F42ILL | F8: 6lp, Fluorescent High Bay, T5 | G8: =INDEX(Lighting_Recs!$B$2:$B$123,MATCH(Lighting_Index!F8,Lighting_Recs!$A$2:$A$123,0)) -> F46GHL | H8: 1lp, 60 watts, Incandescent | I8: I60/1 | J8: 1lp, 60 watts, Halogen | K8: H60/1 | L8: 200w Metal Halide Low Bay | M8: =INDEX(Lighting_Recs!$B$2:$B$123,MATCH(Lighting_Index!L8,Lighting_Recs!$A$2:$A$123,0)) -> MH200/1 | N8: 600w High Pressure Sodium | O8: =INDEX(Lighting_Recs!$B$2:$B$123,MATCH(Lighting_Index!N8,Lighting_Recs!$A$2:$A$123,0)) -> HPS600/1 | Q8: 23 watt, spiral CFL | R8: CFS23/1 | S8: 32 watt, twin tube CFL | T8: =INDEX(Lighting_Recs!$B$2:$B$123,MATCH(Lighting_Index!S8,Lighting_Recs!$A$2:$A$123,0)) -> CFT24/1 | U8: 20 watt quad tube CFL | V8: =INDEX(Lighting_Recs!$B$2:$B$123,MATCH(Lighting_Index!U8,Lighting_Recs!$A$2:$A$123,0)) -> CFQ20/1 | AA8: FLED 1x4 14 | AB8: ILED 14 | AC8: FLED HBY 113 | AD8: FLED 1x4 14 | AI8: F22SE | AJ8: F21ILL/T3 | AK8: F31GL | AL8: I1000/1 | AM8: H1500/1 | AN8: MH1500/1 | AO8: HPS250/1 | AP8: CF13/3
B9: 3lp, 2 x 4 Fluorescent, T12 | C9: F43SS | D9: 3lp, 2 x 4 Fluorescent, T8 | E9: F43ILL | F9: 8lp, Fluorescent High Bay, T5 | G9: =INDEX(Lighting_Recs!$B$2:$B$123,MATCH(Lighting_Index!F9,Lighting_Recs!$A$2:$A$123,0)) -> F48GHL | H9: 1lp, 65 watts, Incandescent | I9: I65/1 | J9: 1lp, 75 watts, Halogen | K9: H75/1 | L9: 250w Metal Halide Low Bay | M9: MH250/1 | N9: 750w High Pressure Sodium | O9: HPS750/1 | Q9: 27 watt, spiral CFL | R9: =INDEX(Lighting_Recs!$B$2:$B$123,MATCH(Lighting_Index!Q9,Lighting_Recs!$A$2:$A$123,0)) -> CFS27/1 | S9: 33 watt, twin tube CFL | T9: =INDEX(Lighting_Recs!$B$2:$B$123,MATCH(Lighting_Index!S9,Lighting_Recs!$A$2:$A$123,0)) -> CFT28/1 | U9: 22 watt quad tube CFL | V9: =INDEX(Lighting_Recs!$B$2:$B$123,MATCH(Lighting_Index!U9,Lighting_Recs!$A$2:$A$123,0)) -> CFQ22/1 | Y9: =INDEX($Y$3:$Y$7,MATCH('Appliances Data Collection'!C11,Lighting_Index!$X$3:$X$7,0)) ->  | AA9: FLED 1x4 15 | AB9: ILED 15 | AC9: FLED HBY 114 | AD9: FLED 1x4 15 | AI9: F22SHS | AJ9: F21ILL/T3-R | AK9: F32GHL | AL9: I100E/1 | AM9: H200/1 | AN9: MH175/1 | AO9: HPS310/1 | AP9: CF14/1
B10: 4lp, 2 x 4 Fluorescent, T12 | C10: F44SS | D10: 4lp, 2 x 4 Fluorescent, T8 | E10: F44ILL | F10: Custom T5 | H10: 1lp, 75 watts, Incandescent | I10: I75/1 | J10: 1lp, 90 watts, Halogen | K10: H90/1 | L10: 300w Metal Halide Low Bay | M10: =INDEX(Lighting_Recs!$B$2:$B$123,MATCH(Lighting_Index!L10,Lighting_Recs!$A$2:$A$123,0)) -> MH300/1 | N10: 1000w High Pressure Sodium | O10: HPS1000/1 | Q10: 30 watt, spiral CFL | R10: =INDEX(Lighting_Recs!$B$2:$B$123,MATCH(Lighting_Index!Q10,Lighting_Recs!$A$2:$A$123,0)) -> CFS30/1 | S10: 34 watt, twin tube CFL | T10: =INDEX(Lighting_Recs!$B$2:$B$123,MATCH(Lighting_Index!S10,Lighting_Recs!$A$2:$A$123,0)) -> CFT32/1 | U10: 25 watt quad tube CFL | V10: =INDEX(Lighting_Recs!$B$2:$B$123,MATCH(Lighting_Index!U10,Lighting_Recs!$A$2:$A$123,0)) -> CFQ25/1 | AA10: FLED 1x4 16 | AB10: ILED 16 | AC10: FLED HBY 115 | AD10: FLED 1x4 16 | AI10: F22SS | AJ10: F21ILL/T4 | AK10: F32GL | AL10: I100EL/1 | AM10: H250/1 | AN10: MH1800/1 | AO10: HPS35/1 | AP10: CF15/1
B11: 1lp, U-Bend Fluorescent, T12 | C11: FU1EE | D11: 2lp, U-Bend Fluorescent, T8 | E11: =INDEX(Lighting_Recs!$B$2:$B$123,MATCH(Lighting_Index!D11,Lighting_Recs!$A$2:$A$123,0)) -> FU2ILL | H11: 1lp, 80 watts, Incandescent | I11: I80/1 | J11: 1lp, 100 watts, Halogen | K11: H100/1 | L11: 400w Metal Halide High Bay | M11: MH400/1 | N11: Custom High Pressure Sodium | Q11: Custom Compact Fluorescent, Spiral | S11: 36 watt twin tube, CFL | T11: CFT36/1 | U11: 26 watt quad tube CFL | V11: =INDEX(Lighting_Recs!$B$2:$B$123,MATCH(Lighting_Index!U11,Lighting_Recs!$A$2:$A$123,0)) -> CFQ26/1 | AA11: FLED 1x4 17 | AB11: ILED 17 | AC11: FLED HBY 117 | AD11: FLED 1x4 17 | AI11: F23SE | AJ11: F21ILL/T4-R | AK11: F41GHL | AL11: I120/1 | AM11: H300/1 | AN11: MH200/1 | AO11: HPS360/1 | AP11: CF16/2D
B12: 2lp, U-Bend Fluorescent, T12 | C12: FU2SS | D12: 3lp, U-Bend Fluorescent, T8 | E12: =INDEX(Lighting_Recs!$B$2:$B$123,MATCH(Lighting_Index!D12,Lighting_Recs!$A$2:$A$123,0)) -> FU3ILL | H12: 1lp, 90 watts, Incandescent | I12: I90/1 | J12: Custom Halogen | L12: 750w Metal Halide High Bay | M12: MH750/1 | S12: 46 watt, twin tube CFL | T12: =INDEX(Lighting_Recs!$B$2:$B$123,MATCH(Lighting_Index!S12,Lighting_Recs!$A$2:$A$123,0)) -> CFT40/1 | U12: 28 watt quad tube CFL | V12: =INDEX(Lighting_Recs!$B$2:$B$123,MATCH(Lighting_Index!U12,Lighting_Recs!$A$2:$A$123,0)) -> CFQ28/1 | AA12: FLED 1x4 18 | AB12: ILED 18 | AC12: FLED HBY 118 | AD12: FLED 1x4 18 | AI12: F23SS | AJ12: F21LL | AK12: F41GL | AL12: I120/2 | AM12: H35/1 | AN12: MH250/1 | AO12: HPS400/1 | AP12: CF16/2D-L
B13: 3lp, U-Bend Fluorescent, T12 | C13: FU3EE | D13: 2lp, 8' Fluorescent Strip, T8 | E13: =INDEX(Lighting_Recs!$B$2:$B$123,MATCH(Lighting_Index!D13,Lighting_Recs!$A$2:$A$123,0)) -> F82ILL | H13: 1lp, 95 watts, Incandescent | I13: I95/1 | L13: 1000w Metal Halide High Bay | M13: MH1000/1 | S13: 54 watt, twin tube CFL | T13: =INDEX(Lighting_Recs!$B$2:$B$123,MATCH(Lighting_Index!S13,Lighting_Recs!$A$2:$A$123,0)) -> CFT50/1 | U13: Custom Compact Fluorescent, Quad Tube | AA13: FLED 1x4 19 | AB13: ILED 19 | AC13: FLED HBY 119 | AD13: FLED 1x4 19 | AI13: F24SE | AJ13: F21LL/T2 | AK13: F42GHL | AL13: I125/1 | AM13: H350/1 | AN13: MH300/1 | AO13: HPS50/1 | AP13: CF18/3-L
B14: 1lp, 8' Fluorescent Strip, T12 | C14: F81SS | D14: 3lp, 8' Fluorescent Strip, T8 | E14: =INDEX(Lighting_Recs!$B$2:$B$123,MATCH(Lighting_Index!D14,Lighting_Recs!$A$2:$A$123,0)) -> F83ILL | H14: 1lp, 100 watts, Incandescent | I14: I100/1 | L14: Custom Metal Halide | S14: 56 watt, twin tube CFL | T14: =INDEX(Lighting_Recs!$B$2:$B$123,MATCH(Lighting_Index!S14,Lighting_Recs!$A$2:$A$123,0)) -> CFT55/1 | AA14: FLED 1x4 20 | AB14: ILED 2 | AC14: FLED HBY 120 | AD14: FLED 1x4 20 | AI14: F24SS | AJ14: F21LL/T3 | AK14: F42GL | AL14: I135/1 | AM14: H40/1 | AN14: MH32/1 | AO14: HPS600/1 | AP14: CF21/2D
B15: 2lp, 8' Fluorescent Strip, T12 | C15: F82SS | D15: 4lp, 8' Fluorescent Strip, T8 | E15: =INDEX(Lighting_Recs!$B$2:$B$123,MATCH(Lighting_Index!D15,Lighting_Recs!$A$2:$A$123,0)) -> F84ILL | H15: 1lp, 120 watts, Incandescent | I15: I120/1 | S15: Custom Compact Fluorescent, Twin Tube | AA15: FLED 1x4 21 | AB15: ILED 20 | AC15: FLED HBY 121 | AD15: FLED 1x4 21 | AI15: F26SE | AJ15: F21LL/T4 | AK15: F43GHL | AL15: I135/2 | AM15: H400/1 | AN15: MH320/1 | AO15: HPS70/1 | AP15: CF21/2D-L
B16: 3lp, 8' Fluorescent Strip, T12 | C16: F83SS | D16: 6lp, Fluorescent High Bay, T8 | E16: =INDEX(Lighting_Recs!$B$2:$B$123,MATCH(Lighting_Index!D16,Lighting_Recs!$A$2:$A$123,0)) -> F46ILL | H16: 1lp, 125 watts, Incandescent | I16: I125/1 | AA16: FLED 1x4 22 | AB16: ILED 24 | AC16: FLED HBY 122 | AD16: FLED 1x4 22 | AI16: F26SS | AJ16: F21LL-R | AK16: F43GL | AL16: I15/1 | AM16: H42/1 | AN16: MH35/1 | AO16: HPS750/1 | AP16: CF23/1
B17: 4lp, 8' Fluorescent Strip, T12 | C17: F84SS | D17: 8lp, Fluorescent High Bay, T8 | E17: =INDEX(Lighting_Recs!$B$2:$B$123,MATCH(Lighting_Index!D17,Lighting_Recs!$A$2:$A$123,0)) -> F48ILL | H17: 1lp, 150 watts, Incandescent | I17: I150/1 | AA17: FLED 1x4 23 | AB17: ILED 3 | AC17: FLED HBY 123 | AD17: FLED 1x4 23 | AI17: F31EE | AJ17: F21LS | AK17: F44GHL | AL17: I15/2 | AM17: H425/1 | AN17: MH350/1 | AP17: CF23/1-L
B18: 6lp, Fluorescent High Bay, T12 | C18: F46SS | D18: Custom T8 | H18: 1lp, 200 watts, Incandescent | I18: I200/1 | AA18: FLED 1x4 24 | AB18: ILED 30 | AC18: FLED HBY 124 | AD18: FLED 1x4 24 | AI18: F31EE/T2 | AJ18: F22ILE | AK18: F44GL | AL18: I150/1 | AM18: H45/1 | AN18: MH360/1 | AP18: CF26/3-L
B19: Custom T12 | H19: 1lp, 250 watts, Incandescent | I19: I250/1 | AA19: FLED 1x4 25 | AB19: ILED 32 | AC19: FLED HBY 125 | AD19: FLED 1x4 25 | AI19: F31EL | AJ19: F22ILL | AK19: F45GHL | AL19: I150/2 | AM19: H45/2 | AN19: MH400/1 | AP19: CF26/4-L
H20: 1lp, 300 watts, Incandescent | I20: I300/1 | AA20: FLED 1x4 26 | AB20: ILED 38 | AC20: FLED HBY 126 | AD20: FLED 1x4 26 | AI20: F31ES | AJ20: F22ILL/T4 | AK20: F46GHL | AL20: I1500/1 | AM20: H50/1 | AN20: MH400/2 | AP20: CF26/6-L
H21: Custom Incandescent | AA21: FLED 1x4 27 | AB21: ILED 4 | AC21: FLED HBY 127 | AD21: FLED 1x4 27 | AI21: F31ES/T2 | AJ21: F22ILL/T4-R | AK21: F48GHL | AL21: I150E/1 | AM21: H50/2 | AN21: MH450/1 | AP21: CF26/8-L
AA22: FLED 1x4 28 | AB22: ILED 5 | AC22: FLED HBY 128 | AD22: FLED 1x4 28 | AI22: F31SE/T2 | AJ22: F22ILL-R | AK22: F51GHL | AL22: I150EL/1 | AM22: H500/1 | AN22: MH50/1 | AP22: CF28/2D
AA23: FLED 1x4 29 | AB23: ILED 6 | AC23: FLED HBY 129 | AD23: FLED 1x4 29 | AI23: F31SHS | AJ23: F22LL | AK23: F51GHL-H | AL23: I170/1 | AM23: H52/1 | AN23: MH70/1 | AP23: CF28/2D-L
AA24: FLED 1x4 30 | AB24: ILED 7 | AC24: FLED HBY 130 | AD24: FLED 1x4 30 | AI24: F31SL | AJ24: F22LL/T4 | AK24: F51GL | AL24: I20/1 | AM24: H55/1 | AN24: MH750/1 | AP24: CF32/3-L
AA25: FLED 1x4 31 | AB25: ILED 8 | AC25: FLED HBY 131 | AD25: FLED 1x4 31 | AI25: F31SS | AJ25: F22LL-R | AK25: F52GHL | AL25: I20/2 | AM25: H55/2 | AN25: MHPS/LR/100/1 | AP25: CF32/4-L
AA26: FLED 1x4 32 | AB26: ILED 9 | AC26: FLED HBY 132 | AD26: FLED 1x4 32 | AI26: F31SS/T2 | AJ26: F23ILL | AK26: F52GL | AL26: I200/1 | AM26: H60/1 | AN26: MHPS/LR/150/1 | AP26: CF32/6-L
AA27: FLED 1x4 33 | AB27: ILED A 10 | AC27: FLED HBY 133 | AD27: FLED 1x4 33 | AI27: F32EE | AJ27: F23ILL-H | AL27: I200/2 | AM27: H72/1 | AN27: MHPS/LR/175/1 | AP27: CF32/8-L
AA28: FLED 1x4 34 | AB28: ILED A 11 | AC28: FLED HBY 134 | AD28: FLED 1x4 34 | AI28: F32EL | AJ28: F23ILL-R | AL28: I2000/1 | AM28: H75/1 | AN28: MHPS/LR/200/1 | AP28: CF38/2D
AA29: FLED 1x4 35 | AB29: ILED A 12 | AC29: FLED HBY 135 | AD29: FLED 1x4 35 | AI29: F32ES | AJ29: F23LL | AL29: I200L/1 | AM29: H75/2 | AN29: MHPS/LR/250/1 | AP29: CF38/2D-L
AA30: FLED 1x4 36 | AB30: ILED A 13 | AC30: FLED HBY 136 | AD30: FLED 1x4 36 | AI30: F32SE | AJ30: F23LL-R | AL30: I25/1 | AM30: H750/1 | AN30: MHPS/LR/300/1 | AP30: CF4/1
AA31: FLED 1x4 37 | AB31: ILED A 14 | AC31: FLED HBY 136 | AD31: FLED 1x4 37 | AI31: F32SHS | AJ31: F24ILL | AL31: I25/2 | AM31: H90/1 | AN31: MHPS/LR/320/1 | AP31: CF42/1
AA32: FLED 1x4 38 | AB32: ILED A 15 | AC32: FLED HBY 137 | AD32: FLED 1x4 38 | AI32: F32SL | AJ32: F24ILL-R | AL32: I25/4 | AM32: H90/2 | AN32: MHPS/LR/350/1 | AP32: CF42/1-L
AA33: FLED 1x4 39 | AB33: ILED A 16 | AC33: FLED HBY 138 | AD33: FLED 1x4 39 | AI33: F32SS | AJ33: F24LL | AL33: I250/1 | AM33: H900/1 | AN33: MHPS/LR/400/1 | AP33: CF42/2-L
AA34: FLED 1x4 40 | AB34: ILED A 17 | AC34: FLED HBY 140 | AD34: FLED 1x4 40 | AI34: F33ES | AJ34: F24LL-R | AL34: I300/1 | AM34: HLV20/1 | AN34: MHPS/LR/450/1 | AP34: CF42/3-L
AA35: FLED 1x4 41 | AB35: ILED A 18 | AC35: FLED HBY 141 | AD35: FLED 1x4 41 | AI35: F33SE | AJ35: F31ILL | AL35: I34/1 | AM35: HLV25/1 | AN35: MHPS/LR/750/1 | AP35: CF42/4-L
AA36: FLED 1x4 42 | AB36: ILED A 19 | AC36: FLED HBY 142 | AD36: FLED 1x4 42 | AI36: F33SS | AJ36: F31ILL/T2 | AL36: I34/2 | AM36: HLV35/1 | AN36: MHPS/SCWA/10 0/1 | AP36: CF42/6-L
AA37: FLED 1x4 43 | AB37: ILED A 20 | AC37: FLED HBY 143 | AD37: FLED 1x4 43 | AI37: F34ES | AJ37: F31ILL/T2-H | AL37: I36/1 | AM37: HLV42/1 | AN37: MHPS/SCWA/10 00/1 | AP37: CF42/8-L
AA38: FLED 1x4 44 | AB38: ILED A 5 | AC38: FLED HBY 144 | AD38: FLED 1x4 44 | AI38: F34SL | AJ38: F31ILL/T2-R | AL38: I40/1 | AM38: HLV50/1 | AN38: MHPS/SCWA/15 0/1 | AP38: CFQ10/1
AA39: FLED 1x4 45 | AB39: ILED A 6 | AC39: FLED HBY 144 | AD39: FLED 1x4 45 | AI39: F34SS | AJ39: F31ILL/T3 | AL39: I40/2 | AM39: HLV65/1 | AN39: MHPS/SCWA/17 5/1 | AP39: CFQ13/1
AA40: FLED 1x4 46 | AB40: ILED A 7 | AC40: FLED HBY 145 | AD40: FLED 1x4 46 | AI40: F36EE | AJ40: F31ILL/T3-R | AL40: I400/1 | AM40: HLV75/1 | AN40: MHPS/SCWA/20 0/1 | AP40: CFQ13/1-L
AA41: FLED 1x4 47 | AB41: ILED A 8 | AC41: FLED HBY 146 | AD41: FLED 1x4 47 | AI41: F36SE | AJ41: F31ILL/T4 | AL41: I40E/1 | AN41: MHPS/SCWA/25 0/1 | AP41: CFQ13/2
AA42: FLED 1x4 48 | AB42: ILED A 9 | AC42: FLED HBY 147 | AD42: FLED 1x4 48 | AI42: F40EE/D1 | AJ42: F31ILL/T4-R | AL42: I40EL/1 | AN42: MHPS/SCWA/30 0/1 | AP42: CFQ13/2-L
AA43: FLED 1x4 49 | AB43: ILED BR30 10 | AC43: FLED HBY 148 | AD43: FLED 1x4 49 | AI43: F40EE/D2 | AJ43: F31ILL-H | AL43: I42/1 | AN43: MHPS/SCWA/32 0/1 | AP43: CFQ13/3
AA44: FLED 1x4 50 | AB44: ILED BR30 11 | AC44: FLED HBY 149 | AD44: FLED 1x4 50 | AI44: F41AL | AJ44: F31ILL-R | AL44: I448/1 | AN44: MHPS/SCWA/35 0/1 | AP44: CFQ15/1
AA45: FLED 1x4 51 | AB45: ILED BR30 12 | AC45: FLED HBY 150 | AD45: FLED 1x4 51 | AI45: F41AL/T2-R | AJ45: F31LL | AL45: I45/1 | AN45: MHPS/SCWA/40 0/1 | AP45: CFQ17/1
AA46: FLED 1x4 52 | AB46: ILED BR30 13 | AC46: FLED HBY 151 | AD46: FLED 1x4 52 | AI46: F41AL/T3-R | AJ46: F31LL/T2 | AL46: I50/1 | AN46: MHPS/SCWA/45 0/1 | AP46: CFQ17/2
AA47: FLED 1x4 53 | AB47: ILED BR30 14 | AC47: FLED HBY 152 | AD47: FLED 1x4 53 | AI47: F41EE | AJ47: F31LL/T3 | AL47: I50/2 | AN47: MHPS/SCWA/75 0/1 | AP47: CFQ18/1
AA48: FLED 1x4 54 | AB48: ILED BR30 15 | AC48: FLED HBY 154 | AD48: FLED 1x4 54 | AI48: F41EE/D2 | AJ48: F31LL/T4 | AL48: I500/1 | AP48: CFQ18/1-L
AA49: FLED 1x4 55 | AB49: ILED BR30 16 | AC49: FLED HBY 155 | AD49: FLED 1x4 55 | AI49: F41EE/T2 | AJ49: F31LL-H | AL49: I52/1 | AP49: CFQ18/2
AA50: FLED 1x4 56 | AB50: ILED BR30 17 | AC50: FLED HBY 156 | AD50: FLED 1x4 56 | AI50: F41EHS | AJ50: F31LL-R | AL50: I52/2 | AP50: CFQ18/2-L
AA51: FLED 1x4 57 | AB51: ILED BR30 18 | AC51: FLED HBY 157 | AD51: FLED 1x4 57 | AI51: F41EIS | AJ51: F32ILL | AL51: I54/1 | AP51: CFQ18/4
AA52: FLED 1x4 58 | AB52: ILED BR30 19 | AC52: FLED HBY 158 | AD52: FLED 1x4 58 | AI52: F41EL | AJ52: F32ILL/T4 | AL52: I54/2 | AP52: CFQ20/1
AA53: FLED 1x4 59 | AB53: ILED BR30 20 | AC53: FLED HBY 159 | AD53: FLED 1x4 59 | AI53: F41EL/T2 | AJ53: F32ILL/T4-R | AL53: I55/1 | AP53: CFQ20/2
AA54: FLED 1x4 60 | AB54: ILED BR30 5 | AC54: FLED HBY 160 | AD54: FLED 1x4 60 | AI54: F41ES | AJ54: F32ILL-H | AL54: I55/2 | AP54: CFQ22/1
AA55: FLED 1x4 61 | AB55: ILED BR30 6 | AC55: FLED HBY 161 | AD55: FLED 1x4 61 | AI55: F41EVS | AJ55: F32ILL-R | AL55: I60/1 | AP55: CFQ22/2
AA56: FLED 1x4 62 | AB56: ILED BR30 7 | AC56: FLED HBY 162 | AD56: FLED 1x4 62 | AI56: F41SE | AJ56: F32LE | AL56: I60/2 | AP56: CFQ22/3
AA57: FLED 1x4 63 | AB57: ILED BR30 8 | AC57: FLED HBY 163 | AD57: FLED 1x4 63 | AI57: F41SHS | AJ57: F32LL | AL57: I60/3 | AP57: CFQ25/1
AA58: FLED 1x4 64 | AB58: ILED BR30 9 | AC58: FLED HBY 166 | AD58: FLED 1x4 64 | AI58: F41SIL | AJ58: F32LL/T4 | AL58: I60/4 | AP58: CFQ25/2
AA59: FLED 1x4 65 | AB59: ILED BR40 10 | AC59: FLED HBY 167 | AD59: FLED 1x4 65 | AI59: F41SIL/T2 | AJ59: F32LL-H | AL59: I60/5 | AP59: CFQ26/1
AA60: FLED 1x4 66 | AB60: ILED BR40 11 | AC60: FLED HBY 168 | AD60: FLED 1x4 66 | AI60: F41SIS | AJ60: F32LL-R | AL60: I60E/1 | AP60: CFQ26/1-L
AA61: FLED 1x4 67 | AB61: ILED BR40 12 | AC61: FLED HBY 169 | AD61: FLED 1x4 67 | AI61: F41SIS/T2 | AJ61: F32LL-V | AL61: I60EL/1 | AP61: CFQ26/2
AA62: FLED 1x4 68 | AB62: ILED BR40 13 | AC62: FLED HBY 170 | AD62: FLED 1x4 68 | AI62: F41SL/T2 | AJ62: F33ILL | AL62: I65/1 | AP62: CFQ26/2-L
AA63: FLED 1x4 69 | AB63: ILED BR40 14 | AC63: FLED HBY 171 | AD63: FLED 1x4 69 | AI63: F41SS | AJ63: F33ILL-R | AL63: I65/2 | AP63: CFQ26/3
AA64: FLED 1x4 70 | AB64: ILED BR40 15 | AC64: FLED HBY 173 | AD64: FLED 1x4 70 | AI64: F41SVS | AJ64: F33LL | AL64: I67/1 | AP64: CFQ26/6-L
AA65: FLED 1x4 71 | AB65: ILED BR40 16 | AC65: FLED HBY 175 | AD65: FLED 1x4 71 | AI65: F42AL/T4-R | AJ65: F33LL-R | AL65: I67/2 | AP65: CFQ28/1
AA66: FLED 1x4 72 | AB66: ILED BR40 17 | AC66: FLED HBY 176 | AD66: FLED 1x4 72 | AI66: F42AL-R | AJ66: F34ILL | AL66: I67/3 | AP66: CFQ9/1
AA67: FLED 1x4 73 | AB67: ILED BR40 18 | AC67: FLED HBY 177 | AD67: FLED 1x4 73 | AI67: F42EE | AJ67: F34ILL-R | AL67: I69/1 | AP67: CFQ9/2
AA68: FLED 1x4 74 | AB68: ILED BR40 19 | AC68: FLED HBY 178 | AD68: FLED 1x4 74 | AI68: F42EE/D2 | AJ68: F34LL | AL68: I72/1 | AP68: CFS11/1
AA69: FLED 1x4 75 | AB69: ILED BR40 2 | AC69: FLED HBY 179 | AD69: FLED 1x4 75 | AI69: F42EHS | AJ69: F34LL-R | AL69: I75/1 | AP69: CFS13/1
AA70: FLED 1x4 76 | AB70: ILED BR40 2 | AC70: FLED HBY 180 | AD70: FLED 1x4 76 | AI70: F42EIS | AJ70: F36ILL-R | AL70: I75/2 | AP70: CFS15/1
AA71: FLED 1x4 77 | AB71: ILED BR40 20 | AC71: FLED HBY 181 | AD71: FLED 1x4 77 | AI71: F42EL | AJ71: F41ILL | AL71: I75/3 | AP71: CFS20/1
AA72: FLED 1x4 78 | AB72: ILED BR40 3 | AC72: FLED HBY 182 | AD72: FLED 1x4 78 | AI72: F42ES | AJ72: F41ILL/T2 | AL72: I75/4 | AP72: CFS23/1
AA73: FLED 1x4 79 | AB73: ILED BR40 3 | AC73: FLED HBY 184 | AD73: FLED 1x4 79 | AI73: F42EVS | AJ73: F41ILL/T2-H | AL73: I750/1 | AP73: CFS27/1
AA74: FLED 1x4 80 | AB74: ILED BR40 4 | AC74: FLED HBY 185 | AD74: FLED 1x4 80 | AI74: F42SE | AJ74: F41ILL/T2-R | AL74: I75E/1 | AP74: CFS30/1
AA75: FLED 2x2 20 | AB75: ILED BR40 4 | AC75: FLED HBY 186 | AD75: FLED 2x2 20 | AI75: F42SHS | AJ75: F41ILL/T3 | AL75: I75EL/1 | AP75: CFS7/1
AA76: FLED 2x2 21 | AB76: ILED BR40 5 | AC76: FLED HBY 188 | AD76: FLED 2x2 21 | AI76: F42SIL | AJ76: F41ILL/T3-H | AL76: I80/1 | AP76: CFS9/1
AA77: FLED 2x2 22 | AB77: ILED BR40 6 | AC77: FLED HBY 189 | AD77: FLED 2x2 22 | AI77: F42SIS | AJ77: F41ILL/T3-R | AL77: I85/1 | AP77: CFT13/1
AA78: FLED 2x2 23 | AB78: ILED BR40 7 | AC78: FLED HBY 191 | AD78: FLED 2x2 23 | AI78: F42SS | AJ78: F41ILL/T4 | AL78: I90/1 | AP78: CFT13/2
AA79: FLED 2x2 24 | AB79: ILED BR40 8 | AC79: FLED HBY 192 | AD79: FLED 2x2 24 | AI79: F42SVS | AJ79: F41ILL/T4-R | AL79: I90/2 | AP79: CFT13/3
AA80: FLED 2x2 25 | AB80: ILED BR40 9 | AC80: FLED HBY 194 | AD80: FLED 2x2 25 | AI80: F43AL-R | AJ80: F41ILL-H | AL80: I90/3 | AP80: CFT18/1
AA81: FLED 2x2 26 | AB81: ILED C 1 | AC81: FLED HBY 197 | AD81: FLED 2x2 26 | AI81: F43EE | AJ81: F41ILL-R | AL81: I93/1 | AP81: CFT22/1
AA82: FLED 2x2 27 | AB82: ILED C 2 | AC82: FLED HBY 198 | AD82: FLED 2x2 27 | AI82: F43EHS | AJ82: F41LE | AL82: I95/1 | AP82: CFT22/2
AA83: FLED 2x2 28 | AB83: ILED C 3 | AC83: FLED HBY 199 | AD83: FLED 2x2 28 | AI83: F43EIS | AJ83: F41LL | AL83: I95/2 | AP83: CFT22/4
AA84: FLED 2x2 29 | AB84: ILED C 4 | AC84: FLED HBY 200 | AD84: FLED 2x2 29 | AI84: F43EL | AJ84: F41LL/T2 | AP84: CFT24/1
AA85: FLED 2x2 30 | AB85: ILED C 5 | AC85: FLED HBY 201 | AD85: FLED 2x2 30 | AI85: F43ES | AJ85: F41LL/T2-H | AP85: CFT28/1
AA86: FLED 2x2 31 | AB86: ILED CA 1 | AC86: FLED HBY 202 | AD86: FLED 2x2 31 | AI86: F43EVS | AJ86: F41LL/T2-R | AP86: CFT28/2
AA87: FLED 2x2 32 | AB87: ILED CA 2 | AC87: FLED HBY 203 | AD87: FLED 2x2 32 | AI87: F43SE | AJ87: F41LL/T3 | AP87: CFT32/1
AA88: FLED 2x2 33 | AB88: ILED CA 3 | AC88: FLED HBY 204 | AD88: FLED 2x2 33 | AI88: F43SHS | AJ88: F41LL/T3-H | AP88: CFT32/2-L
AA89: FLED 2x2 34 | AB89: ILED G 10 | AC89: FLED HBY 205 | AD89: FLED 2x2 34 | AI89: F43SIL | AJ89: F41LL/T3-R | AP89: CFT32/6-L
AA90: FLED 2x2 35 | AB90: ILED G 2 | AC90: FLED HBY 206 | AD90: FLED 2x2 35 | AI90: F43SIS | AJ90: F41LL/T4 | AP90: CFT36/1
AA91: FLED 2x2 36 | AB91: ILED G 3 | AC91: FLED HBY 207 | AD91: FLED 2x2 36 | AI91: F43SS | AJ91: F41LL/T4-R | AP91: CFT36/4-BX
AA92: FLED 2x2 37 | AB92: ILED G 4 | AC92: FLED HBY 208 | AD92: FLED 2x2 37 | AI92: F43SVS | AJ92: F41LL-H | AP92: CFT36/6-BX
AA93: FLED 2x2 38 | AB93: ILED G 5 | AC93: FLED HBY 210 | AD93: FLED 2x2 38 | AI93: F44EE | AJ93: F41LL-R | AP93: CFT36/6-L
AA94: FLED 2x2 39 | AB94: ILED G 6 | AC94: FLED HBY 212 | AD94: FLED 2x2 39 | AI94: F44EE/D4 | AJ94: F41PILL | AP94: CFT36/6-L-H
AA95: FLED 2x2 40 | AB95: ILED G 7 | AC95: FLED HBY 213 | AD95: FLED 2x2 40 | AI95: F44EHS | AJ95: F41PILL-H | AP95: CFT36/8-BX
AA96: FLED 2x2 41 | AB96: ILED G 8 | AC96: FLED HBY 215 | AD96: FLED 2x2 41 | AI96: F44EIS | AJ96: F41PILL-R | AP96: CFT36/8-L
AA97: FLED 2x2 42 | AB97: ILED G 9 | AC97: FLED HBY 216 | AD97: FLED 2x2 42 | AI97: F44EL | AJ97: F41RILL | AP97: CFT36/8-L-H
AA98: FLED 2x2 43 | AB98: ILED MR16 10 | AC98: FLED HBY 217 | AD98: FLED 2x2 43 | AI98: F44ES | AJ98: F41RILL-H | AP98: CFT36/9-BX
AA99: FLED 2x2 44 | AB99: ILED MR16 2 | AC99: FLED HBY 218 | AD99: FLED 2x2 44 | AI99: F44EVS | AJ99: F41RILL-R | AP99: CFT40/1
AA100: FLED 2x2 45 | AB100: ILED MR16 3 | AC100: FLED HBY 219 | AD100: FLED 2x2 45 | AI100: F44IAL-R | AJ100: F41SILL | AP100: CFT40/12-BX
AA101: FLED 2x2 46 | AB101: ILED MR16 4 | AC101: FLED HBY 220 | AD101: FLED 2x2 46 | AI101: F44SE | AJ101: F41SILL/T2 | AP101: CFT40/1-BX
AA102: FLED 2x2 46 | AB102: ILED MR16 5 | AC102: FLED HBY 221 | AD102: FLED 2x2 46 | AI102: F44SHS | AJ102: F41SILL/T2-H | AP102: CFT40/1-L
AA103: FLED 2x2 47 | AB103: ILED MR16 6 | AC103: FLED HBY 223 | AD103: FLED 2x2 47 | AI103: F44SIL | AJ103: F41SILL/T2-R | AP103: CFT40/2
AA104: FLED 2x2 48 | AB104: ILED MR16 7 | AC104: FLED HBY 224 | AD104: FLED 2x2 48 | AI104: F44SIS | AJ104: F41SILL/T3 | AP104: CFT40/2-BX
AA105: FLED 2x2 49 | AB105: ILED MR16 8 | AC105: FLED HBY 227 | AD105: FLED 2x2 49 | AI105: F44SS | AJ105: F41SILL/T3-H | AP105: CFT40/2-L
AA106: FLED 2x2 50 | AB106: ILED MR16 9 | AC106: FLED HBY 228 | AD106: FLED 2x2 50 | AI106: F44SVS | AJ106: F41SILL/T3-R | AP106: CFT40/3
AA107: FLED 2x2 51 | AB107: ILED PAR20 1 | AC107: FLED HBY 229 | AD107: FLED 2x2 51 | AI107: F46EE | AJ107: F41SILL/T4 | AP107: CFT40/3-BX
AA108: FLED 2x2 52 | AB108: ILED PAR20 10 | AC108: FLED HBY 230 | AD108: FLED 2x2 52 | AI108: F46EL | AJ108: F41SILL/T4-R | AP108: CFT40/3-L
AA109: FLED 2x2 53 | AB109: ILED PAR20 11 | AC109: FLED HBY 232 | AD109: FLED 2x2 53 | AI109: F46ES | AJ109: F41SILL-H | AP109: CFT40/4-BX
AA110: FLED 2x2 54 | AB110: ILED PAR20 12 | AC110: FLED HBY 235 | AD110: FLED 2x2 54 | AI110: F46SE | AJ110: F41SILL-R | AP110: CFT40/5-BX
AA111: FLED 2x2 55 | AB111: ILED PAR20 13 | AC111: FLED HBY 237 | AD111: FLED 2x2 55 | AI111: F46SS | AJ111: F41SSILL | AP111: CFT40/6-BX
AA112: FLED 2x2 56 | AB112: ILED PAR20 14 | AC112: FLED HBY 238 | AD112: FLED 2x2 56 | AI112: F48EE | AJ112: F41SSILL/T2 | AP112: CFT40/6-L
AA113: FLED 2x2 57 | AB113: ILED PAR20 15 | AC113: FLED HBY 239 | AD113: FLED 2x2 57 | AI113: F51ILHL | AJ113: F41SSILL/T2-H | AP113: CFT40/6-L-H
AA114: FLED 2x2 58 | AB114: ILED PAR20 16 | AC114: FLED HBY 241 | AD114: FLED 2x2 58 | AI114: F51SHE | AJ114: F41SSILL/T2-R | AP114: CFT40/8-BX
AA115: FLED 2x2 59 | AB115: ILED PAR20 17 | AC115: FLED HBY 242 | AD115: FLED 2x2 59 | AI115: F51SHL | AJ115: F41SSILL/T3 | AP115: CFT40/8-L
AA116: FLED 2x2 60 | AB116: ILED PAR20 18 | AC116: FLED HBY 243 | AD116: FLED 2x2 60 | AI116: F51SHS | AJ116: F41SSILL/T3-H | AP116: CFT40/8-L-H
AA117: FLED 2x2 61 | AB117: ILED PAR20 19 | AC117: FLED HBY 245 | AD117: FLED 2x2 61 | AI117: F51SL | AJ117: F41SSILL/T3-R | AP117: CFT40/9-BX
AA118: FLED 2x2 62 | AB118: ILED PAR20 2 | AC118: FLED HBY 249 | AD118: FLED 2x2 62 | AI118: F51SS | AJ118: F41SSILL/T4 | AP118: CFT5/1
AA119: FLED 2x2 63 | AB119: ILED PAR20 20 | AC119: FLED HBY 250 | AD119: FLED 2x2 63 | AI119: F51SVS | AJ119: F41SSILL/T4-R | AP119: CFT5/2
AA120: FLED 2x2 64 | AB120: ILED PAR20 3 | AC120: FLED HBY 254 | AD120: FLED 2x2 64 | AI120: F52SHE | AJ120: F41SSILL-H | AP120: CFT50/1
AA121: FLED 2x2 65 | AB121: ILED PAR20 4 | AC121: FLED HBY 256 | AD121: FLED 2x2 65 | AI121: F52SHL | AJ121: F41SSILL-R | AP121: CFT50/12-BX
AA122: FLED 2x2 66 | AB122: ILED PAR20 5 | AC122: FLED HBY 259 | AD122: FLED 2x2 66 | AI122: F52SHS | AJ122: F42ILL | AP122: CFT50/1-BX
AA123: FLED 2x2 67 | AB123: ILED PAR20 6 | AC123: FLED HBY 260 | AD123: FLED 2x2 67 | AI123: F52SL | AJ123: F42ILL/T4 | AP123: CFT50/2-BX
AA124: FLED 2x2 68 | AB124: ILED PAR20 7 | AC124: FLED HBY 261 | AD124: FLED 2x2 68 | AI124: F52SS | AJ124: F42ILL/T4-R | AP124: CFT50/3-BX
AA125: FLED 2x2 69 | AB125: ILED PAR20 8 | AC125: FLED HBY 264 | AD125: FLED 2x2 69 | AI125: F52SVS | AJ125: F42ILL-H | AP125: CFT50/4-BX
AA126: FLED 2x2 70 | AB126: ILED PAR20 9 | AC126: FLED HBY 269 | AD126: FLED 2x2 70 | AI126: F61ISL | AJ126: F42ILL-R | AP126: CFT50/5-BX
AA127: FLED 2x2 71 | AB127: ILED PAR30 10 | AC127: FLED HBY 272 | AD127: FLED 2x2 71 | AI127: F61SE | AJ127: F42ILL-V | AP127: CFT50/6-BX
AA128: FLED 2x2 72 | AB128: ILED PAR30 11 | AC128: FLED HBY 273 | AD128: FLED 2x2 72 | AI128: F61SHS | AJ128: F42LE | AP128: CFT50/8-BX
AA129: FLED 2x2 73 | AB129: ILED PAR30 12 | AC129: FLED HBY 279 | AD129: FLED 2x2 73 | AI129: F61SS | AJ129: F42LL | AP129: CFT50/9-BX
AA130: FLED 2x2 74 | AB130: ILED PAR30 13 | AC130: FLED HBY 280 | AD130: FLED 2x2 74 | AI130: F61SVS | AJ130: F42LL/T4 | AP130: CFT55/1
AA131: FLED 2x2 75 | AB131: ILED PAR30 14 | AC131: FLED HBY 281 | AD131: FLED 2x2 75 | AI131: F62ISL | AJ131: F42LL/T4-R | AP131: CFT55/12-BX
AA132: FLED 2x2 76 | AB132: ILED PAR30 15 | AC132: FLED HBY 282 | AD132: FLED 2x2 76 | AI132: F62SE | AJ132: F42LL-H | AP132: CF55/1
AA133: FLED 2x2 77 | AB133: ILED PAR30 5 | AC133: FLED HBY 284 | AD133: FLED 2x2 77 | AI133: F62SHE | AJ133: F42LL-R | AP133: CFT55/1-BX
AA134: FLED 2x2 78 | AB134: ILED PAR30 6 | AC134: FLED HBY 285 | AD134: FLED 2x2 78 | AI134: F62SHS | AJ134: F42LL-V | AP134: CFT55/2-BX
AA135: FLED 2x2 79 | AB135: ILED PAR30 7 | AC135: FLED HBY 287 | AD135: FLED 2x2 79 | AI135: F62SL | AJ135: F42PILL | AP135: CFT55/3-BX
AA136: FLED 2x2 80 | AB136: ILED PAR30 8 | AC136: FLED HBY 290 | AD136: FLED 2x2 80 | AI136: F62SS | AJ136: F42PILL-H | AP136: CFT55/4-BX
AA137: FLED 2x4 100 | AB137: ILED PAR30 9 | AC137: FLED HBY 292 | AD137: FLED 2x4 100 | AI137: F62SVS | AJ137: F42PILL-R | AP137: CFT55/5-BX
AA138: FLED 2x4 30 | AB138: ILED PAR38 10 | AC138: FLED HBY 293 | AD138: FLED 2x4 30 | AI138: F63ISL | AJ138: F42RILL | AP138: CFT55/6-BX
AA139: FLED 2x4 31 | AB139: ILED PAR38 11 | AC139: FLED HBY 297 | AD139: FLED 2x4 31 | AI139: F63SS | AJ139: F42RILL-H | AP139: CFT55/6-L
AA140: FLED 2x4 32 | AB140: ILED PAR38 12 | AC140: FLED HBY 300 | AD140: FLED 2x4 32 | AI140: F64ISL | AJ140: F42RILL-R | AP140: CFT55/6-L-H
AA141: FLED 2x4 33 | AB141: ILED PAR38 13 | AC141: FLED HBY 301 | AD141: FLED 2x4 33 | AI141: F64SE | AJ141: F42SILL | AP141: CFT55/8-BX
AA142: FLED 2x4 34 | AB142: ILED PAR38 14 | AC142: FLED HBY 311 | AD142: FLED 2x4 34 | AI142: F64SHE | AJ142: F42SILL/T4 | AP142: CFT55/8-L
AA143: FLED 2x4 35 | AB143: ILED PAR38 15 | AC143: FLED HBY 314 | AD143: FLED 2x4 35 | AI143: F64SS | AJ143: F42SILL/T4-R | AP143: CFT55/8-L-H
AA144: FLED 2x4 36 | AB144: ILED PAR38 16 | AC144: FLED HBY 315 | AD144: FLED 2x4 36 | AI144: F81EE/T2 | AJ144: F42SILL-H | AP144: CFT55/9-BX
AA145: FLED 2x4 37 | AB145: ILED PAR38 17 | AC145: FLED HBY 316 | AD145: FLED 2x4 37 | AI145: F81EHL | AJ145: F42SILL-R | AP145: CFT7/1
AA146: FLED 2x4 38 | AB146: ILED PAR38 18 | AC146: FLED HBY 317 | AD146: FLED 2x4 38 | AI146: F81EHL/T2 | AJ146: F42SSILL | AP146: CFT7/2
AA147: FLED 2x4 39 | AB147: ILED PAR38 19 | AC147: FLED HBY 321 | AD147: FLED 2x4 39 | AI147: F81EHS | AJ147: F42SSILL/T4 | AP147: CFT9/1
AA148: FLED 2x4 40 | AB148: ILED PAR38 20 | AC148: FLED HBY 327 | AD148: FLED 2x4 40 | AI148: F81EL | AJ148: F42SSILL/T4-R | AP148: CFT9/2
AA149: FLED 2x4 41 | AB149: ILED R30 10 | AC149: FLED HBY 328 | AD149: FLED 2x4 41 | AI149: F81EL/T2 | AJ149: F42SSILL-H | AP149: CFT9/3
AA150: FLED 2x4 42 | AB150: ILED R30 2 | AC150: FLED HBY 332 | AD150: FLED 2x4 42 | AI150: F81ES | AJ150: F42SSILL-R
AA151: FLED 2x4 43 | AB151: ILED R30 3 | AC151: FLED HBY 333 | AD151: FLED 2x4 43 | AI151: F81ES/T2 | AJ151: F43ILL
AA152: FLED 2x4 44 | AB152: ILED R30 4 | AC152: FLED HBY 345 | AD152: FLED 2x4 44 | AI152: F81EVS | AJ152: F43ILL/2
AA153: FLED 2x4 45 | AB153: ILED R30 5 | AC153: FLED HBY 353 | AD153: FLED 2x4 45 | AI153: F81SE | AJ153: F43ILL-H
AA154: FLED 2x4 46 | AB154: ILED R30 6 | AC154: FLED HBY 362 | AD154: FLED 2x4 46 | AI154: F81SHE | AJ154: F43ILL-R
AA155: FLED 2x4 47 | AB155: ILED R30 7 | AC155: FLED HBY 367 | AD155: FLED 2x4 47 | AI155: F81SHL/T2 | AJ155: F43ILL-V
AA156: FLED 2x4 48 | AB156: ILED R30 8 | AC156: FLED HBY 388 | AD156: FLED 2x4 48 | AI156: F81SHS | AJ156: F43LE
AA157: FLED 2x4 49 | AB157: ILED R30 9 | AC157: FLED HBY 396 | AD157: FLED 2x4 49 | AI157: F81SL | AJ157: F43LL
AA158: FLED 2x4 50 | AB158: ILED TRK 10 | AC158: FLED HBY 403 | AD158: FLED 2x4 50 | AI158: F81SL/T2 | AJ158: F43LL/2
AA159: FLED 2x4 51 | AB159: ILED TRK 11 | AC159: FLED HBY 410 | AD159: FLED 2x4 51 | AI159: F81SS | AJ159: F43LL-H
AA160: FLED 2x4 52 | AB160: ILED TRK 12 | AC160: FLED HBY 420 | AD160: FLED 2x4 52 | AI160: F81SVS | AJ160: F43LL-R
AA161: FLED 2x4 53 | AB161: ILED TRK 13 | AC161: FLED HBY 433 | AD161: FLED 2x4 53 | AI161: F82EE | AJ161: F43PILL
AA162: FLED 2x4 54 | AB162: ILED TRK 14 | AC162: FLED HBY 434 | AD162: FLED 2x4 54 | AI162: F82EHE | AJ162: F43PILL-H
AA163: FLED 2x4 55 | AB163: ILED TRK 15 | AC163: FLED HBY 439 | AD163: FLED 2x4 55 | AI163: F82EHL | AJ163: F43PILL-R
AA164: FLED 2x4 56 | AB164: ILED TRK 16 | AC164: FLED HBY 442 | AD164: FLED 2x4 56 | AI164: F82EHS | AJ164: F43RILL
AA165: FLED 2x4 57 | AB165: ILED TRK 17 | AC165: FLED HBY 443 | AD165: FLED 2x4 57 | AI165: F82EL | AJ165: F43RILL-H
AA166: FLED 2x4 58 | AB166: ILED TRK 18 | AC166: FLED HBY 465 | AD166: FLED 2x4 58 | AI166: F82ES | AJ166: F43RILL-R
AA167: FLED 2x4 59 | AB167: ILED TRK 19 | AC167: FLED HBY 466 | AD167: FLED 2x4 59 | AI167: F82EVS | AJ167: F43SILL
AA168: FLED 2x4 60 | AB168: ILED TRK 20 | AC168: FLED HBY 485 | AD168: FLED 2x4 60 | AI168: F82SE | AJ168: F43SILL-H
AA169: FLED 2x4 61 | AB169: ILED TRK 21 | AC169: FLED HBY 521 | AD169: FLED 2x4 61 | AI169: F82SHE | AJ169: F43SILL-R
AA170: FLED 2x4 62 | AB170: ILED TRK 22 | AC170: FLED HBY 528 | AD170: FLED 2x4 62 | AI170: F82SHL | AJ170: F43SSILL
AA171: FLED 2x4 63 | AB171: ILED TRK 23 | AC171: FLED HBY 555 | AD171: FLED 2x4 63 | AI171: F82SHS | AJ171: F43SSILL-H
AA172: FLED 2x4 64 | AB172: ILED TRK 24 | AC172: FLED HBY 562 | AD172: FLED 2x4 64 | AI172: F82SL | AJ172: F43SSILL-R
AA173: FLED 2x4 65 | AB173: ILED TRK 25 | AC173: FLED HBY 587 | AD173: FLED 2x4 65 | AI173: F82SS | AJ173: F44ILL
AA174: FLED 2x4 66 | AB174: ILED TRK 26 | AC174: FLED HBY 601 | AD174: FLED 2x4 66 | AI174: F82SVS | AJ174: F44ILL/2
AA175: FLED 2x4 67 | AB175: ILED TRK 27 | AC175: FLED HBY 622 | AD175: FLED 2x4 67 | AI175: F83EE | AJ175: F44ILL-H
AA176: FLED 2x4 68 | AB176: ILED TRK 28 | AC176: FLED HBY 692 | AD176: FLED 2x4 68 | AI176: F83EHE | AJ176: F44ILL-R
AA177: FLED 2x4 69 | AB177: ILED TRK 29 | AC177: FLED HBY 727 | AD177: FLED 2x4 69 | AI177: F83EHS | AJ177: F44ILL-V
AA178: FLED 2x4 70 | AB178: ILED TRK 30 | AC178: FLED HBY 93 | AD178: FLED 2x4 70 | AI178: F83EL | AJ178: F44LE
AA179: FLED 2x4 71 | AB179: ILED TRK 31 | AC179: FLED HBY 932 | AD179: FLED 2x4 71 | AI179: F83ES | AJ179: F44LL
AA180: FLED 2x4 72 | AB180: ILED TRK 32 | AC180: FLED HBY 95 | AD180: FLED 2x4 72 | AI180: F83EVS | AJ180: F44LL/2
AA181: FLED 2x4 73 | AB181: ILED TRK 33 | AC181: FLED HBY 96 | AD181: FLED 2x4 73 | AI181: F83SHS | AJ181: F44LL-R
AA182: FLED 2x4 74 | AB182: ILED TRK 34 | AC182: FLED HBY 97 | AD182: FLED 2x4 74 | AI182: F83SS | AJ182: F44PILL
AA183: FLED 2x4 75 | AB183: ILED TRK 35 | AC183: FLED HBY 99 | AD183: FLED 2x4 75 | AI183: F83SVS | AJ183: F44PILL-H
AA184: FLED 2x4 76 | AB184: ILED TRK 36 | AC184: LBLED 100 | AD184: FLED 2x4 76 | AI184: F84EE | AJ184: F44PILL-R
AA185: FLED 2x4 77 | AB185: ILED TRK 37 | AC185: LBLED 101 | AD185: FLED 2x4 77 | AI185: F84EHE | AJ185: F44RILL
AA186: FLED 2x4 78 | AB186: ILED TRK 38 | AC186: LBLED 103 | AD186: FLED 2x4 78 | AI186: F84EHL | AJ186: F44RILL-H
AA187: FLED 2x4 79 | AB187: ILED TRK 39 | AC187: LBLED 104 | AD187: FLED 2x4 79 | AI187: F84EHS | AJ187: F44RILL-R
AA188: FLED 2x4 80 | AB188: ILED TRK 40 | AC188: LBLED 116 | AD188: FLED 2x4 80 | AI188: F84EL | AJ188: F44SILL
AA189: FLED 2x4 81 | AB189: ILED TRK 41 | AC189: LBLED 120 | AD189: FLED 2x4 81 | AI189: F84ES | AJ189: F44SILL-H
AA190: FLED 2x4 82 | AB190: ILED TRK 42 | AC190: LBLED 122 | AD190: FLED 2x4 82 | AI190: F84EVS | AJ190: F44SILL-R
AA191: FLED 2x4 83 | AB191: ILED TRK 43 | AC191: LBLED 123 | AD191: FLED 2x4 83 | AI191: F84SE | AJ191: F44SSILL
AA192: FLED 2x4 84 | AB192: ILED TRK 44 | AC192: LBLED 124 | AD192: FLED 2x4 84 | AI192: F84SHE | AJ192: F44SSILL-H
AA193: FLED 2x4 85 | AB193: ILED TRK 45 | AC193: LBLED 126 | AD193: FLED 2x4 85 | AI193: F84SHL | AJ193: F44SSILL-R
AA194: FLED 2x4 86 | AB194: ILED TRK 46 | AC194: LBLED 135 | AD194: FLED 2x4 86 | AI194: F84SHS | AJ194: F45ILL
AA195: FLED 2x4 87 | AB195: ILED TRK 47 | AC195: LBLED 159 | AD195: FLED 2x4 87 | AI195: F84SL | AJ195: F46ILL
AA196: FLED 2x4 88 | AB196: ILED TRK 48 | AC196: LBLED 172 | AD196: FLED 2x4 88 | AI196: F84SS | AJ196: F46ILL-R
AA197: FLED 2x4 89 | AB197: ILED TRK 49 | AC197: LBLED 48 | AD197: FLED 2x4 89 | AI197: F84SVS | AJ197: F46LL
AA198: FLED 2x4 90 | AB198: ILED TRK 5 | AC198: LBLED 50 | AD198: FLED 2x4 90 | AI198: F86EHS | AJ198: F46PILL-H
AA199: FLED 2x4 91 | AB199: ILED TRK 50 | AC199: LBLED 51 | AD199: FLED 2x4 91 | AI199: FU1EE | AJ199: F46SSIL-H
AA200: FLED 2x4 92 | AB200: ILED TRK 6 | AC200: LBLED 53 | AD200: FLED 2x4 92 | AI200: FU2EE | AJ200: F48ILL
AA201: FLED 2x4 93 | AB201: ILED TRK 7 | AC201: LBLED 54 | AD201: FLED 2x4 93 | AI201: FU2ES | AJ201: F48ILL-H
... 730 more rows

Sheet Lighting_Recs (hidden)
B1: Existing | C1: No. of Lamps | E1: Dev Category | F1: Wattage | G1: Rec 2 | H1: Dev Category | I1: Wattage | J1: Reduction | K1: Measure Code 2 | M1: Lamp Replacement
A2: =D2&" watt quad tube CFL" -> 9 watt quad tube CFL | B2: CFQ9/1 | D2: =MID(B2,4,1) -> 9 | E2: =INDEX('Wattage Table'!$A$3:$A$2131,MATCH(Lighting_Recs!B2,'Wattage Table'!$C$3:$C$2131,0)) -> CFL | F2: =INDEX('Wattage Table'!$K$3:$K$2130,MATCH(B2,Device_Code,0)) -> 14 | G2: ILED 4 | H2: =INDEX('Wattage Table'!$E$3:$E$2131,MATCH(Lighting_Recs!G2,'Wattage Table'!$C$3:$C$2131,0)) -> LED, Replacement Lamps 4 watts | I2: =INDEX('Wattage Table'!$K$3:$K$2130,MATCH(G2,Device_Code,0)) -> 4 | J2: =IF(G2="No Rec","",1-(I2/F2)) -> 0.7142857143 | K2: L410 | O2: =A2&" to "&H2 -> 9 watt quad tube CFL to LED, Replacement Lamps 4 watts
A3: =D3&" watt quad tube CFL" -> 13 watt quad tube CFL | B3: CFQ13/1 | D3: =MID(B3,4,2) -> 13 | E3: =INDEX('Wattage Table'!$A$3:$A$2131,MATCH(Lighting_Recs!B3,'Wattage Table'!$C$3:$C$2131,0)) -> CFL | F3: =INDEX('Wattage Table'!$K$3:$K$2130,MATCH(B3,Device_Code,0)) -> 17 | G3: ILED 5 | H3: =INDEX('Wattage Table'!$E$3:$E$2131,MATCH(Lighting_Recs!G3,'Wattage Table'!$C$3:$C$2131,0)) -> LED, Replacement Lamps 5 watts | I3: =INDEX('Wattage Table'!$K$3:$K$2130,MATCH(G3,Device_Code,0)) -> 5 | J3: 0.7058823529 | K3: L410 | O3: 13 watt quad tube CFL to LED, Replacement Lamps 5 watts
A4: 15 watt quad tube CFL | B4: CFQ15/1 | D4: =MID(B4,4,2) -> 15 | E4: =INDEX('Wattage Table'!$A$3:$A$2131,MATCH(Lighting_Recs!B4,'Wattage Table'!$C$3:$C$2131,0)) -> CFL | F4: =INDEX('Wattage Table'!$K$3:$K$2130,MATCH(B4,Device_Code,0)) -> 20 | G4: ILED 6 | H4: =INDEX('Wattage Table'!$E$3:$E$2131,MATCH(Lighting_Recs!G4,'Wattage Table'!$C$3:$C$2131,0)) -> LED, Replacement Lamps 6 watts | I4: =INDEX('Wattage Table'!$K$3:$K$2130,MATCH(G4,Device_Code,0)) -> 6 | J4: 0.7 | K4: L410 | O4: 15 watt quad tube CFL to LED, Replacement Lamps 6 watts
A5: 17 watt quad tube CFL | B5: CFQ17/1 | D5: 17 | E5: =INDEX('Wattage Table'!$A$3:$A$2131,MATCH(Lighting_Recs!B5,'Wattage Table'!$C$3:$C$2131,0)) -> CFL | F5: =INDEX('Wattage Table'!$K$3:$K$2130,MATCH(B5,Device_Code,0)) -> 24 | G5: ILED 7 | H5: =INDEX('Wattage Table'!$E$3:$E$2131,MATCH(Lighting_Recs!G5,'Wattage Table'!$C$3:$C$2131,0)) -> LED, Replacement Lamps 7 watts | I5: =INDEX('Wattage Table'!$K$3:$K$2130,MATCH(G5,Device_Code,0)) -> 7 | J5: 0.7083333333 | K5: L410 | O5: 17 watt quad tube CFL to LED, Replacement Lamps 7 watts
A6: 18 watt quad tube CFL | B6: CFQ18/1 | D6: 18 | E6: =INDEX('Wattage Table'!$A$3:$A$2131,MATCH(Lighting_Recs!B6,'Wattage Table'!$C$3:$C$2131,0)) -> CFL | F6: =INDEX('Wattage Table'!$K$3:$K$2130,MATCH(B6,Device_Code,0)) -> 26 | G6: ILED 7 | H6: =INDEX('Wattage Table'!$E$3:$E$2131,MATCH(Lighting_Recs!G6,'Wattage Table'!$C$3:$C$2131,0)) -> LED, Replacement Lamps 7 watts | I6: =INDEX('Wattage Table'!$K$3:$K$2130,MATCH(G6,Device_Code,0)) -> 7 | J6: 0.7307692308 | K6: L410 | O6: 18 watt quad tube CFL to LED, Replacement Lamps 7 watts
A7: 20 watt quad tube CFL | B7: CFQ20/1 | D7: 20 | E7: =INDEX('Wattage Table'!$A$3:$A$2131,MATCH(Lighting_Recs!B7,'Wattage Table'!$C$3:$C$2131,0)) -> CFL | F7: =INDEX('Wattage Table'!$K$3:$K$2130,MATCH(B7,Device_Code,0)) -> 23 | G7: ILED 8 | H7: =INDEX('Wattage Table'!$E$3:$E$2131,MATCH(Lighting_Recs!G7,'Wattage Table'!$C$3:$C$2131,0)) -> LED, Replacement Lamps 8 watts | I7: =INDEX('Wattage Table'!$K$3:$K$2130,MATCH(G7,Device_Code,0)) -> 8 | J7: 0.652173913 | K7: L410 | O7: 20 watt quad tube CFL to LED, Replacement Lamps 8 watts
A8: 22 watt quad tube CFL | B8: CFQ22/1 | D8: 22 | E8: =INDEX('Wattage Table'!$A$3:$A$2131,MATCH(Lighting_Recs!B8,'Wattage Table'!$C$3:$C$2131,0)) -> CFL | F8: =INDEX('Wattage Table'!$K$3:$K$2130,MATCH(B8,Device_Code,0)) -> 24 | G8: ILED 8 | H8: =INDEX('Wattage Table'!$E$3:$E$2131,MATCH(Lighting_Recs!G8,'Wattage Table'!$C$3:$C$2131,0)) -> LED, Replacement Lamps 8 watts | I8: =INDEX('Wattage Table'!$K$3:$K$2130,MATCH(G8,Device_Code,0)) -> 8 | J8: 0.6666666667 | K8: L410 | O8: 22 watt quad tube CFL to LED, Replacement Lamps 8 watts
A9: 25 watt quad tube CFL | B9: CFQ25/1 | D9: 25 | E9: =INDEX('Wattage Table'!$A$3:$A$2131,MATCH(Lighting_Recs!B9,'Wattage Table'!$C$3:$C$2131,0)) -> CFL | F9: =INDEX('Wattage Table'!$K$3:$K$2130,MATCH(B9,Device_Code,0)) -> 33 | G9: ILED 10 | H9: =INDEX('Wattage Table'!$E$3:$E$2131,MATCH(Lighting_Recs!G9,'Wattage Table'!$C$3:$C$2131,0)) -> LED, Replacement Lamps 10 watts | I9: =INDEX('Wattage Table'!$K$3:$K$2130,MATCH(G9,Device_Code,0)) -> 10 | J9: 0.696969697 | K9: L410 | O9: 25 watt quad tube CFL to LED, Replacement Lamps 10 watts
A10: 26 watt quad tube CFL | B10: CFQ26/1 | D10: 26 | E10: =INDEX('Wattage Table'!$A$3:$A$2131,MATCH(Lighting_Recs!B10,'Wattage Table'!$C$3:$C$2131,0)) -> CFL | F10: =INDEX('Wattage Table'!$K$3:$K$2130,MATCH(B10,Device_Code,0)) -> 33 | G10: ILED 10 | H10: =INDEX('Wattage Table'!$E$3:$E$2131,MATCH(Lighting_Recs!G10,'Wattage Table'!$C$3:$C$2131,0)) -> LED, Replacement Lamps 10 watts | I10: =INDEX('Wattage Table'!$K$3:$K$2130,MATCH(G10,Device_Code,0)) -> 10 | J10: 0.696969697 | K10: L410 | O10: 26 watt quad tube CFL to LED, Replacement Lamps 10 watts
A11: 28 watt quad tube CFL | B11: CFQ28/1 | D11: 28 | E11: =INDEX('Wattage Table'!$A$3:$A$2131,MATCH(Lighting_Recs!B11,'Wattage Table'!$C$3:$C$2131,0)) -> CFL | F11: =INDEX('Wattage Table'!$K$3:$K$2130,MATCH(B11,Device_Code,0)) -> 33 | G11: ILED 11 | H11: =INDEX('Wattage Table'!$E$3:$E$2131,MATCH(Lighting_Recs!G11,'Wattage Table'!$C$3:$C$2131,0)) -> LED, Replacement Lamps 11 watts | I11: =INDEX('Wattage Table'!$K$3:$K$2130,MATCH(G11,Device_Code,0)) -> 11 | J11: 0.6666666667 | K11: L410 | O11: 28 watt quad tube CFL to LED, Replacement Lamps 11 watts
A12: 9 watt quad tube CFL | B12: CFQ9/1 | D12: =MID(B12,4,1) -> 9 | E12: =INDEX('Wattage Table'!$A$3:$A$2131,MATCH(Lighting_Recs!B12,'Wattage Table'!$C$3:$C$2131,0)) -> CFL | F12: =INDEX('Wattage Table'!$K$3:$K$2130,MATCH(B12,Device_Code,0)) -> 14 | G12: ILED 3 | H12: =INDEX('Wattage Table'!$E$3:$E$2131,MATCH(Lighting_Recs!G12,'Wattage Table'!$C$3:$C$2131,0)) -> LED, Replacement Lamps 3 watts | I12: =INDEX('Wattage Table'!$K$3:$K$2130,MATCH(G12,Device_Code,0)) -> 3 | J12: 0.7857142857 | K12: L410 | O12: 9 watt quad tube CFL to LED, Replacement Lamps 3 watts
A13: =Lighting_Index!Q4 -> 9 watt, spiral CFL | B13: CFS9/1 | D13: =MID(B13,4,1) -> 9 | E13: =INDEX('Wattage Table'!$A$3:$A$2131,MATCH(B13,'Wattage Table'!$C$3:$C$2131,0)) -> CFL | F13: =INDEX('Wattage Table'!$K$3:$K$2130,MATCH(B13,Device_Code,0)) -> 9 | G13: ILED 4 | H13: =INDEX('Wattage Table'!$E$3:$E$2131,MATCH(Lighting_Recs!G13,'Wattage Table'!$C$3:$C$2131,0)) -> LED, Replacement Lamps 4 watts | I13: =INDEX('Wattage Table'!$K$3:$K$2130,MATCH(G13,Device_Code,0)) -> 4 | J13: 0.5555555556 | K13: L410 | O13: 9 watt, spiral CFL to LED, Replacement Lamps 4 watts
A14: =Lighting_Index!Q5 -> 13 watt, spiral CFL | B14: CFS13/1 | D14: =MID(B14,4,2) -> 13 | E14: =INDEX('Wattage Table'!$A$3:$A$2131,MATCH(Lighting_Recs!B14,'Wattage Table'!$C$3:$C$2131,0)) -> CFL | F14: =INDEX('Wattage Table'!$K$3:$K$2130,MATCH(B14,Device_Code,0)) -> 13 | G14: ILED 5 | H14: =INDEX('Wattage Table'!$E$3:$E$2131,MATCH(Lighting_Recs!G14,'Wattage Table'!$C$3:$C$2131,0)) -> LED, Replacement Lamps 5 watts | I14: =INDEX('Wattage Table'!$K$3:$K$2130,MATCH(G14,Device_Code,0)) -> 5 | J14: 0.6153846154 | K14: L410 | O14: 13 watt, spiral CFL to LED, Replacement Lamps 5 watts
A15: =F15&" watt, spiral CFL" -> 15 watt, spiral CFL | B15: CFS15/1 | D15: =MID(B15,4,2) -> 15 | E15: =INDEX('Wattage Table'!$A$3:$A$2131,MATCH(Lighting_Recs!B15,'Wattage Table'!$C$3:$C$2131,0)) -> CFL | F15: =INDEX('Wattage Table'!$K$3:$K$2130,MATCH(B15,Device_Code,0)) -> 15 | G15: ILED 6 | H15: =INDEX('Wattage Table'!$E$3:$E$2131,MATCH(Lighting_Recs!G15,'Wattage Table'!$C$3:$C$2131,0)) -> LED, Replacement Lamps 6 watts | I15: =INDEX('Wattage Table'!$K$3:$K$2130,MATCH(G15,Device_Code,0)) -> 6 | J15: 0.6 | K15: L410 | O15: 15 watt, spiral CFL to LED, Replacement Lamps 6 watts
A16: =Lighting_Index!Q7 -> 20 watt, spiral CFL | B16: CFS20/1 | D16: 20 | E16: =INDEX('Wattage Table'!$A$3:$A$2131,MATCH(Lighting_Recs!B16,'Wattage Table'!$C$3:$C$2131,0)) -> CFL | F16: =INDEX('Wattage Table'!$K$3:$K$2130,MATCH(B16,Device_Code,0)) -> 20 | G16: ILED 8 | H16: =INDEX('Wattage Table'!$E$3:$E$2131,MATCH(Lighting_Recs!G16,'Wattage Table'!$C$3:$C$2131,0)) -> LED, Replacement Lamps 8 watts | I16: =INDEX('Wattage Table'!$K$3:$K$2130,MATCH(G16,Device_Code,0)) -> 8 | J16: 0.6 | K16: L410 | O16: 20 watt, spiral CFL to LED, Replacement Lamps 8 watts
A17: =Lighting_Index!Q8 -> 23 watt, spiral CFL | B17: CFS23/1 | D17: 23 | E17: =INDEX('Wattage Table'!$A$3:$A$2131,MATCH(Lighting_Recs!B17,'Wattage Table'!$C$3:$C$2131,0)) -> CFL | F17: =INDEX('Wattage Table'!$K$3:$K$2130,MATCH(B17,Device_Code,0)) -> 23 | G17: ILED 9 | H17: =INDEX('Wattage Table'!$E$3:$E$2131,MATCH(Lighting_Recs!G17,'Wattage Table'!$C$3:$C$2131,0)) -> LED, Replacement Lamps 9 watts | I17: =INDEX('Wattage Table'!$K$3:$K$2130,MATCH(G17,Device_Code,0)) -> 9 | J17: 0.6086956522 | K17: L410 | O17: 23 watt, spiral CFL to LED, Replacement Lamps 9 watts
A18: =F18&" watt, spiral CFL" -> 27 watt, spiral CFL | B18: CFS27/1 | D18: 27 | E18: =INDEX('Wattage Table'!$A$3:$A$2131,MATCH(Lighting_Recs!B18,'Wattage Table'!$C$3:$C$2131,0)) -> CFL | F18: =INDEX('Wattage Table'!$K$3:$K$2130,MATCH(B18,Device_Code,0)) -> 27 | G18: ILED 10 | H18: =INDEX('Wattage Table'!$E$3:$E$2131,MATCH(Lighting_Recs!G18,'Wattage Table'!$C$3:$C$2131,0)) -> LED, Replacement Lamps 10 watts | I18: =INDEX('Wattage Table'!$K$3:$K$2130,MATCH(G18,Device_Code,0)) -> 10 | J18: 0.6296296296 | K18: L410 | O18: 27 watt, spiral CFL to LED, Replacement Lamps 10 watts
A19: =F19&" watt, spiral CFL" -> 30 watt, spiral CFL | B19: CFS30/1 | D19: 30 | E19: =INDEX('Wattage Table'!$A$3:$A$2131,MATCH(Lighting_Recs!B19,'Wattage Table'!$C$3:$C$2131,0)) -> CFL | F19: =INDEX('Wattage Table'!$K$3:$K$2130,MATCH(B19,Device_Code,0)) -> 30 | G19: ILED 12 | H19: =INDEX('Wattage Table'!$E$3:$E$2131,MATCH(Lighting_Recs!G19,'Wattage Table'!$C$3:$C$2131,0)) -> LED, Replacement Lamps 12 watts | I19: =INDEX('Wattage Table'!$K$3:$K$2130,MATCH(G19,Device_Code,0)) -> 12 | J19: 0.6 | K19: L410 | O19: 30 watt, spiral CFL to LED, Replacement Lamps 12 watts
A20: 7 watt, spiral CFL | B20: CFS7/1 | D20: =MID(B20,4,1) -> 7 | E20: =INDEX('Wattage Table'!$A$3:$A$2131,MATCH(Lighting_Recs!B20,'Wattage Table'!$C$3:$C$2131,0)) -> CFL | F20: =INDEX('Wattage Table'!$K$3:$K$2130,MATCH(B20,Device_Code,0)) -> 7 | G20: ILED 3 | H20: =INDEX('Wattage Table'!$E$3:$E$2131,MATCH(Lighting_Recs!G20,'Wattage Table'!$C$3:$C$2131,0)) -> LED, Replacement Lamps 3 watts | I20: =INDEX('Wattage Table'!$K$3:$K$2130,MATCH(G20,Device_Code,0)) -> 3 | J20: 0.5714285714 | K20: L410 | O20: 7 watt, spiral CFL to LED, Replacement Lamps 3 watts
A21: 9 watt, spiral CFL | B21: CFS9/1 | D21: =MID(B21,4,1) -> 9 | E21: =INDEX('Wattage Table'!$A$3:$A$2131,MATCH(Lighting_Recs!B21,'Wattage Table'!$C$3:$C$2131,0)) -> CFL | F21: =INDEX('Wattage Table'!$K$3:$K$2130,MATCH(B21,Device_Code,0)) -> 9 | G21: ILED 3 | H21: =INDEX('Wattage Table'!$E$3:$E$2131,MATCH(Lighting_Recs!G21,'Wattage Table'!$C$3:$C$2131,0)) -> LED, Replacement Lamps 3 watts | I21: =INDEX('Wattage Table'!$K$3:$K$2130,MATCH(G21,Device_Code,0)) -> 3 | J21: 0.6666666667 | K21: L410 | O21: 9 watt, spiral CFL to LED, Replacement Lamps 3 watts
A22: =Lighting_Index!S3 -> 9 watt, twin tube CFL | B22: CFT9/1 | D22: 9 | E22: =INDEX('Wattage Table'!$A$3:$A$2131,MATCH(Lighting_Recs!B22,'Wattage Table'!$C$3:$C$2131,0)) -> CFL | F22: =INDEX('Wattage Table'!$K$3:$K$2130,MATCH(B22,Device_Code,0)) -> 11 | G22: ILED 5 | H22: =INDEX('Wattage Table'!$E$3:$E$2131,MATCH(Lighting_Recs!G22,'Wattage Table'!$C$3:$C$2131,0)) -> LED, Replacement Lamps 5 watts | I22: =INDEX('Wattage Table'!$K$3:$K$2130,MATCH(G22,Device_Code,0)) -> 5 | J22: 0.5454545455 | K22: L410 | O22: 9 watt, twin tube CFL to LED, Replacement Lamps 5 watts
A23: =Lighting_Index!S6 -> 18 watt, twin tube CFL | B23: CFT18/1 | D23: =MID(B23,4,2) -> 18 | E23: =INDEX('Wattage Table'!$A$3:$A$2131,MATCH(Lighting_Recs!B23,'Wattage Table'!$C$3:$C$2131,0)) -> CFL | F23: =INDEX('Wattage Table'!$K$3:$K$2130,MATCH(B23,Device_Code,0)) -> 24 | G23: ILED 7 | H23: =INDEX('Wattage Table'!$E$3:$E$2131,MATCH(Lighting_Recs!G23,'Wattage Table'!$C$3:$C$2131,0)) -> LED, Replacement Lamps 7 watts | I23: =INDEX('Wattage Table'!$K$3:$K$2130,MATCH(G23,Device_Code,0)) -> 7 | J23: 0.7083333333 | K23: L410 | O23: 18 watt, twin tube CFL to LED, Replacement Lamps 7 watts
A24: =F24&" watt, twin tube CFL" -> 27 watt, twin tube CFL | B24: CFT22/1 | D24: =MID(B24,4,2) -> 22 | E24: =INDEX('Wattage Table'!$A$3:$A$2131,MATCH(Lighting_Recs!B24,'Wattage Table'!$C$3:$C$2131,0)) -> CFL | F24: =INDEX('Wattage Table'!$K$3:$K$2130,MATCH(B24,Device_Code,0)) -> 27 | G24: ILED 8 | H24: =INDEX('Wattage Table'!$E$3:$E$2131,MATCH(Lighting_Recs!G24,'Wattage Table'!$C$3:$C$2131,0)) -> LED, Replacement Lamps 8 watts | I24: =INDEX('Wattage Table'!$K$3:$K$2130,MATCH(G24,Device_Code,0)) -> 8 | J24: 0.7037037037 | K24: L410 | O24: 27 watt, twin tube CFL to LED, Replacement Lamps 8 watts
A25: =F25&" watt, twin tube CFL" -> 32 watt, twin tube CFL | B25: CFT24/1 | D25: 24 | E25: =INDEX('Wattage Table'!$A$3:$A$2131,MATCH(Lighting_Recs!B25,'Wattage Table'!$C$3:$C$2131,0)) -> CFL | F25: =INDEX('Wattage Table'!$K$3:$K$2130,MATCH(B25,Device_Code,0)) -> 32 | G25: ILED 9 | H25: =INDEX('Wattage Table'!$E$3:$E$2131,MATCH(Lighting_Recs!G25,'Wattage Table'!$C$3:$C$2131,0)) -> LED, Replacement Lamps 9 watts | I25: =INDEX('Wattage Table'!$K$3:$K$2130,MATCH(G25,Device_Code,0)) -> 9 | J25: 0.71875 | K25: L410 | O25: 32 watt, twin tube CFL to LED, Replacement Lamps 9 watts
A26: 33 watt, twin tube CFL | B26: CFT28/1 | D26: 28 | E26: =INDEX('Wattage Table'!$A$3:$A$2131,MATCH(Lighting_Recs!B26,'Wattage Table'!$C$3:$C$2131,0)) -> CFL | F26: =INDEX('Wattage Table'!$K$3:$K$2130,MATCH(B26,Device_Code,0)) -> 33 | G26: ILED 11 | H26: =INDEX('Wattage Table'!$E$3:$E$2131,MATCH(Lighting_Recs!G26,'Wattage Table'!$C$3:$C$2131,0)) -> LED, Replacement Lamps 11 watts | I26: =INDEX('Wattage Table'!$K$3:$K$2130,MATCH(G26,Device_Code,0)) -> 11 | J26: 0.6666666667 | K26: L410 | O26: 33 watt, twin tube CFL to LED, Replacement Lamps 11 watts
A27: 34 watt, twin tube CFL | B27: CFT32/1 | D27: 32 | E27: =INDEX('Wattage Table'!$A$3:$A$2131,MATCH(Lighting_Recs!B27,'Wattage Table'!$C$3:$C$2131,0)) -> CFL | F27: =INDEX('Wattage Table'!$K$3:$K$2130,MATCH(B27,Device_Code,0)) -> 34 | G27: ILED 11 | H27: =INDEX('Wattage Table'!$E$3:$E$2131,MATCH(Lighting_Recs!G27,'Wattage Table'!$C$3:$C$2131,0)) -> LED, Replacement Lamps 11 watts | I27: =INDEX('Wattage Table'!$K$3:$K$2130,MATCH(G27,Device_Code,0)) -> 11 | J27: 0.6764705882 | K27: L410 | O27: 34 watt, twin tube CFL to LED, Replacement Lamps 11 watts
A28: =Lighting_Index!S11 -> 36 watt twin tube, CFL | B28: CFT36/1 | D28: 36 | E28: =INDEX('Wattage Table'!$A$3:$A$2131,MATCH(Lighting_Recs!B28,'Wattage Table'!$C$3:$C$2131,0)) -> CFL | F28: =INDEX('Wattage Table'!$K$3:$K$2130,MATCH(B28,Device_Code,0)) -> 51 | G28: ILED 14 | H28: =INDEX('Wattage Table'!$E$3:$E$2131,MATCH(Lighting_Recs!G28,'Wattage Table'!$C$3:$C$2131,0)) -> LED, Replacement Lamps 14 watts | I28: =INDEX('Wattage Table'!$K$3:$K$2130,MATCH(G28,Device_Code,0)) -> 14 | J28: =IF(G28="No Rec","",1-(I28/F28)) -> 0.7254901961 | K28: L410 | O28: 36 watt twin tube, CFL to LED, Replacement Lamps 14 watts
A29: 46 watt, twin tube CFL | B29: CFT40/1 | D29: 40 | E29: =INDEX('Wattage Table'!$A$3:$A$2131,MATCH(Lighting_Recs!B29,'Wattage Table'!$C$3:$C$2131,0)) -> CFL | F29: =INDEX('Wattage Table'!$K$3:$K$2130,MATCH(B29,Device_Code,0)) -> 46 | G29: ILED 15 | H29: =INDEX('Wattage Table'!$E$3:$E$2131,MATCH(Lighting_Recs!G29,'Wattage Table'!$C$3:$C$2131,0)) -> LED, Replacement Lamps 15 watts | I29: =INDEX('Wattage Table'!$K$3:$K$2130,MATCH(G29,Device_Code,0)) -> 15 | J29: 0.6739130435 | K29: L410 | O29: 46 watt, twin tube CFL to LED, Replacement Lamps 15 watts
A30: 9 watt, twin tube CFL | B30: CFT5/1 | D30: =MID(B30,4,1) -> 5 | E30: =INDEX('Wattage Table'!$A$3:$A$2131,MATCH(Lighting_Recs!B30,'Wattage Table'!$C$3:$C$2131,0)) -> CFL | F30: =INDEX('Wattage Table'!$K$3:$K$2130,MATCH(B30,Device_Code,0)) -> 9 | G30: ILED 2 | H30: =INDEX('Wattage Table'!$E$3:$E$2131,MATCH(Lighting_Recs!G30,'Wattage Table'!$C$3:$C$2131,0)) -> LED, Replacement Lamps 2 watts | I30: =INDEX('Wattage Table'!$K$3:$K$2130,MATCH(G30,Device_Code,0)) -> 2 | J30: 0.7777777778 | K30: L410 | O30: 9 watt, twin tube CFL to LED, Replacement Lamps 2 watts
A31: 54 watt, twin tube CFL | B31: CFT50/1 | D31: =MID(B31,4,2) -> 50 | E31: =INDEX('Wattage Table'!$A$3:$A$2131,MATCH(Lighting_Recs!B31,'Wattage Table'!$C$3:$C$2131,0)) -> CFL | F31: =INDEX('Wattage Table'!$K$3:$K$2130,MATCH(B31,Device_Code,0)) -> 54 | G31: ILED 20 | H31: =INDEX('Wattage Table'!$E$3:$E$2131,MATCH(Lighting_Recs!G31,'Wattage Table'!$C$3:$C$2131,0)) -> LED, Replacement Lamps 20 watts | I31: =INDEX('Wattage Table'!$K$3:$K$2130,MATCH(G31,Device_Code,0)) -> 20 | J31: 0.6296296296 | K31: L410 | O31: 54 watt, twin tube CFL to LED, Replacement Lamps 20 watts
A32: 56 watt, twin tube CFL | B32: CFT55/1 | D32: =MID(B32,4,2) -> 55 | E32: =INDEX('Wattage Table'!$A$3:$A$2131,MATCH(Lighting_Recs!B32,'Wattage Table'!$C$3:$C$2131,0)) -> CFL | F32: =INDEX('Wattage Table'!$K$3:$K$2130,MATCH(B32,Device_Code,0)) -> 56 | G32: ILED 20 | H32: =INDEX('Wattage Table'!$E$3:$E$2131,MATCH(Lighting_Recs!G32,'Wattage Table'!$C$3:$C$2131,0)) -> LED, Replacement Lamps 20 watts | I32: =INDEX('Wattage Table'!$K$3:$K$2130,MATCH(G32,Device_Code,0)) -> 20 | J32: 0.6428571429 | K32: L410 | O32: 56 watt, twin tube CFL to LED, Replacement Lamps 20 watts
A33: 10 watt, twin tube CFL | B33: CFT7/1 | D33: =MID(B33,4,1) -> 7 | E33: =INDEX('Wattage Table'!$A$3:$A$2131,MATCH(Lighting_Recs!B33,'Wattage Table'!$C$3:$C$2131,0)) -> CFL | F33: =INDEX('Wattage Table'!$K$3:$K$2130,MATCH(B33,Device_Code,0)) -> 10 | G33: ILED 3 | H33: =INDEX('Wattage Table'!$E$3:$E$2131,MATCH(Lighting_Recs!G33,'Wattage Table'!$C$3:$C$2131,0)) -> LED, Replacement Lamps 3 watts | I33: =INDEX('Wattage Table'!$K$3:$K$2130,MATCH(G33,Device_Code,0)) -> 3 | J33: 0.7 | K33: L410 | O33: 10 watt, twin tube CFL to LED, Replacement Lamps 3 watts
A34: 11 watt, twin tube CFL | B34: CFT9/1 | D34: =MID(B34,4,1) -> 9 | E34: =INDEX('Wattage Table'!$A$3:$A$2131,MATCH(Lighting_Recs!B34,'Wattage Table'!$C$3:$C$2131,0)) -> CFL | F34: =INDEX('Wattage Table'!$K$3:$K$2130,MATCH(B34,Device_Code,0)) -> 11 | G34: ILED 3 | H34: =INDEX('Wattage Table'!$E$3:$E$2131,MATCH(Lighting_Recs!G34,'Wattage Table'!$C$3:$C$2131,0)) -> LED, Replacement Lamps 3 watts | I34: =INDEX('Wattage Table'!$K$3:$K$2130,MATCH(G34,Device_Code,0)) -> 3 | J34: 0.7272727273 | K34: L410 | O34: =A34&" to "&H34 -> 11 watt, twin tube CFL to LED, Replacement Lamps 3 watts
A35: 2lp, 2 x 2 Fluorescent, T12 | B35: F22SS | C35: =MID(B35,3,1) -> 2 | D35: =F35 -> 56 | E35: =INDEX('Wattage Table'!$A$3:$A$2131,MATCH(Lighting_Recs!B35,'Wattage Table'!$C$3:$C$2131,0)) -> T12 | F35: =INDEX('Wattage Table'!$K$3:$K$2130,MATCH(B35,Device_Code,0)) -> 56 | G35: FLED 2x2 30 | H35: =INDEX('Wattage Table'!$E$3:$E$2131,MATCH(Lighting_Recs!G35,'Wattage Table'!$C$3:$C$2131,0)) -> LED, 2x2 Panel, 30 watts | I35: =INDEX('Wattage Table'!$K$3:$K$2130,MATCH(G35,Device_Code,0)) -> 30 | J35: 0.4642857143 | K35: L720 | L35: =I35/C35 -> 15 | M35: ILED 2' REPL 15 | N35: =INDEX('Wattage Table'!$E$3:$E$2130,MATCH(Lighting_Recs!M35,'Wattage Table'!$C$3:$C$2130,0)) -> LED, Two Foot Linear Replacements 15 watts | O35: 2lp, 2 x 2 Fluorescent, T12 to LED, 2x2 Panel, 30 watts | P35: =A35&" to "&N35 -> 2lp, 2 x 2 Fluorescent, T12 to LED, Two Foot Linear Replacements 15 watts | Q35: 2lp, 2 x 2 Fluorescent
A36: 3lp, 2 x 2 Fluorescent, T12 | B36: F23SS | C36: =MID(B36,3,1) -> 3 | D36: =F36 -> 84 | E36: =INDEX('Wattage Table'!$A$3:$A$2131,MATCH(Lighting_Recs!B36,'Wattage Table'!$C$3:$C$2131,0)) -> T12 | F36: =INDEX('Wattage Table'!$K$3:$K$2130,MATCH(B36,Device_Code,0)) -> 84 | G36: FLED 2x2 40 | H36: =INDEX('Wattage Table'!$E$3:$E$2131,MATCH(Lighting_Recs!G36,'Wattage Table'!$C$3:$C$2131,0)) -> LED, 2x2 Panel, 40 watts | I36: =INDEX('Wattage Table'!$K$3:$K$2130,MATCH(G36,Device_Code,0)) -> 40 | J36: 0.5238095238 | K36: L720 | L36: =I36/C36 -> 13.33333333 | M36: ILED 2' REPL 13 | N36: =INDEX('Wattage Table'!$E$3:$E$2130,MATCH(Lighting_Recs!M36,'Wattage Table'!$C$3:$C$2130,0)) -> LED, Two Foot Linear Replacements 13 watts | O36: 3lp, 2 x 2 Fluorescent, T12 to LED, 2x2 Panel, 40 watts | P36: 3lp, 2 x 2 Fluorescent, T12 to LED, Two Foot Linear Replacements 13 watts
A37: 4lp, 2 x 2 Fluorescent, T12 | B37: F24SS | C37: =MID(B37,3,1) -> 4 | D37: 112 | E37: =INDEX('Wattage Table'!$A$3:$A$2131,MATCH(Lighting_Recs!B37,'Wattage Table'!$C$3:$C$2131,0)) -> T12 | F37: =INDEX('Wattage Table'!$K$3:$K$2130,MATCH(B37,Device_Code,0)) -> 112 | G37: FLED 2x2 55 | H37: =INDEX('Wattage Table'!$E$3:$E$2131,MATCH(Lighting_Recs!G37,'Wattage Table'!$C$3:$C$2131,0)) -> LED, 2x2 Panel, 55 watts | I37: =INDEX('Wattage Table'!$K$3:$K$2130,MATCH(G37,Device_Code,0)) -> 55 | J37: 0.5089285714 | K37: L720 | L37: 13.75 | M37: ILED 2' REPL 14 | N37: =INDEX('Wattage Table'!$E$3:$E$2130,MATCH(Lighting_Recs!M37,'Wattage Table'!$C$3:$C$2130,0)) -> LED, Two Foot Linear Replacements 14 watts | O37: 4lp, 2 x 2 Fluorescent, T12 to LED, 2x2 Panel, 55 watts | P37: 4lp, 2 x 2 Fluorescent, T12 to LED, Two Foot Linear Replacements 14 watts
A38: 1lp, 1 x 4 Fluorescent, T12 | B38: F41SS | C38: 1 | D38: 57 | E38: =INDEX('Wattage Table'!$A$3:$A$2131,MATCH(Lighting_Recs!B38,'Wattage Table'!$C$3:$C$2131,0)) -> T12 | F38: =INDEX('Wattage Table'!$K$3:$K$2130,MATCH(B38,Device_Code,0)) -> 57 | G38: FLED 1x4 18 | H38: =INDEX('Wattage Table'!$E$3:$E$2131,MATCH(Lighting_Recs!G38,'Wattage Table'!$C$3:$C$2131,0)) -> LED, 1x4 Panel, 18 watts | I38: =INDEX('Wattage Table'!$K$3:$K$2130,MATCH(G38,Device_Code,0)) -> 18 | J38: =IF(G38="No Rec","",1-(I38/F38)) -> 0.6842105263 | K38: L710 | L38: 18 | M38: ="ILED 4' REPL "&L38 -> ILED 4' REPL 18 | N38: =INDEX('Wattage Table'!$E$3:$E$2130,MATCH(Lighting_Recs!M38,'Wattage Table'!$C$3:$C$2130,0)) -> LED, Four Foot Linear Replacements 18 watts | O38: 1lp, 1 x 4 Fluorescent, T12 to LED, 1x4 Panel, 18 watts | P38: 1lp, 1 x 4 Fluorescent, T12 to LED, Four Foot Linear Replacements 18 watts
A39: 2lp, 2 x 4 Fluorescent, T12 | B39: F42SS | C39: 2 | D39: 94 | E39: =INDEX('Wattage Table'!$A$3:$A$2131,MATCH(Lighting_Recs!B39,'Wattage Table'!$C$3:$C$2131,0)) -> T12 | F39: =INDEX('Wattage Table'!$K$3:$K$2130,MATCH(B39,Device_Code,0)) -> 94 | G39: FLED 2x4 30 | H39: =INDEX('Wattage Table'!$E$3:$E$2131,MATCH(Lighting_Recs!G39,'Wattage Table'!$C$3:$C$2131,0)) -> LED, 2x4 Panel, 30 watts | I39: =INDEX('Wattage Table'!$K$3:$K$2130,MATCH(G39,Device_Code,0)) -> 30 | J39: 0.6808510638 | L39: 15 | M39: ="ILED 4' REPL "&L39 -> ILED 4' REPL 15 | N39: =INDEX('Wattage Table'!$E$3:$E$2130,MATCH(Lighting_Recs!M39,'Wattage Table'!$C$3:$C$2130,0)) -> LED, Four Foot Linear Replacements 15 watts | O39: 2lp, 2 x 4 Fluorescent, T12 to LED, 2x4 Panel, 30 watts | P39: 2lp, 2 x 4 Fluorescent, T12 to LED, Four Foot Linear Replacements 15 watts
A40: 2lp, 1 x 4 Fluorescent, T12 | B40: F42SS | C40: 2 | D40: 94 | E40: =INDEX('Wattage Table'!$A$3:$A$2131,MATCH(Lighting_Recs!B40,'Wattage Table'!$C$3:$C$2131,0)) -> T12 | F40: =INDEX('Wattage Table'!$K$3:$K$2130,MATCH(B40,Device_Code,0)) -> 94 | G40: FLED 1x4 30 | H40: =INDEX('Wattage Table'!$E$3:$E$2131,MATCH(Lighting_Recs!G40,'Wattage Table'!$C$3:$C$2131,0)) -> LED, 1x4 Panel, 30 watts | I40: =INDEX('Wattage Table'!$K$3:$K$2130,MATCH(G40,Device_Code,0)) -> 30 | J40: 0.6808510638 | K40: L710 | L40: 15 | M40: ="ILED 4' REPL "&L40 -> ILED 4' REPL 15 | N40: =INDEX('Wattage Table'!$E$3:$E$2130,MATCH(Lighting_Recs!M40,'Wattage Table'!$C$3:$C$2130,0)) -> LED, Four Foot Linear Replacements 15 watts | O40: 2lp, 1 x 4 Fluorescent, T12 to LED, 1x4 Panel, 30 watts | P40: 2lp, 1 x 4 Fluorescent, T12 to LED, Four Foot Linear Replacements 15 watts
A41: 3lp, 2 x 4 Fluorescent, T12 | B41: F43SS | C41: 3 | D41: 151 | E41: =INDEX('Wattage Table'!$A$3:$A$2131,MATCH(Lighting_Recs!B41,'Wattage Table'!$C$3:$C$2131,0)) -> T12 | F41: =INDEX('Wattage Table'!$K$3:$K$2130,MATCH(B41,Device_Code,0)) -> 151 | G41: FLED 2x4 45 | H41: =INDEX('Wattage Table'!$E$3:$E$2131,MATCH(Lighting_Recs!G41,'Wattage Table'!$C$3:$C$2131,0)) -> LED, 2x4 Panel, 45 watts | I41: =INDEX('Wattage Table'!$K$3:$K$2130,MATCH(G41,Device_Code,0)) -> 45 | J41: 0.701986755 | K41: L710 | L41: 15 | M41: ILED 4' REPL 15 | N41: =INDEX('Wattage Table'!$E$3:$E$2130,MATCH(Lighting_Recs!M41,'Wattage Table'!$C$3:$C$2130,0)) -> LED, Four Foot Linear Replacements 15 watts | O41: 3lp, 2 x 4 Fluorescent, T12 to LED, 2x4 Panel, 45 watts | P41: 3lp, 2 x 4 Fluorescent, T12 to LED, Four Foot Linear Replacements 15 watts
A42: 4lp, 2 x 4 Fluorescent, T12 | B42: F44SS | C42: 4 | D42: 188 | E42: =INDEX('Wattage Table'!$A$3:$A$2131,MATCH(Lighting_Recs!B42,'Wattage Table'!$C$3:$C$2131,0)) -> T12 | F42: =INDEX('Wattage Table'!$K$3:$K$2130,MATCH(B42,Device_Code,0)) -> 188 | G42: FLED 2x4 50 | H42: =INDEX('Wattage Table'!$E$3:$E$2131,MATCH(Lighting_Recs!G42,'Wattage Table'!$C$3:$C$2131,0)) -> LED, 2x4 Panel, 50 watts | I42: =INDEX('Wattage Table'!$K$3:$K$2130,MATCH(G42,Device_Code,0)) -> 50 | J42: =IF(G42="No Rec","",1-(I42/F42)) -> 0.7340425532 | K42: L710 | L42: 12.5 | M42: ILED 4' REPL 15 | N42: =INDEX('Wattage Table'!$E$3:$E$2130,MATCH(Lighting_Recs!M42,'Wattage Table'!$C$3:$C$2130,0)) -> LED, Four Foot Linear Replacements 15 watts | O42: 4lp, 2 x 4 Fluorescent, T12 to LED, 2x4 Panel, 50 watts | P42: 4lp, 2 x 4 Fluorescent, T12 to LED, Four Foot Linear Replacements 15 watts
A43: 6lp, Fluorescent High Bay, T12 | B43: F46SS | C43: 6 | D43: 282 | E43: =INDEX('Wattage Table'!$A$3:$A$2131,MATCH(Lighting_Recs!B43,'Wattage Table'!$C$3:$C$2131,0)) -> T12 | F43: =INDEX('Wattage Table'!$K$3:$K$2130,MATCH(B43,Device_Code,0)) -> 282 | G43: FLED HBY 140 | H43: =INDEX('Wattage Table'!$E$3:$E$2131,MATCH(Lighting_Recs!G43,'Wattage Table'!$C$3:$C$2131,0)) -> LED, High Bay Fixtures 140 watts | I43: =INDEX('Wattage Table'!$K$3:$K$2130,MATCH(G43,Device_Code,0)) -> 140 | J43: 0.5035460993 | K43: L820 | L43: 23 | M43: ILED 4' REPL 23 | N43: =INDEX('Wattage Table'!$E$3:$E$2130,MATCH(Lighting_Recs!M43,'Wattage Table'!$C$3:$C$2130,0)) -> LED, Four Foot Linear Replacements 23 watts | O43: 6lp, Fluorescent High Bay, T12 to LED, High Bay Fixtures 140 watts | P43: 6lp, Fluorescent High Bay, T12 to LED, Four Foot Linear Replacements 23 watts
A44: 1lp, 8' Fluorescent Strip, T12 | B44: F81SS | C44: 1 | D44: 100 | E44: =INDEX('Wattage Table'!$A$3:$A$2131,MATCH(Lighting_Recs!B44,'Wattage Table'!$C$3:$C$2131,0)) -> T12 | F44: =INDEX('Wattage Table'!$K$3:$K$2130,MATCH(B44,Device_Code,0)) -> 100 | G44: FLED AMB 25 | H44: =INDEX('Wattage Table'!$E$3:$E$2131,MATCH(Lighting_Recs!G44,'Wattage Table'!$C$3:$C$2131,0)) -> LED, Linear Ambient Fixtures 25 watts | I44: =INDEX('Wattage Table'!$K$3:$K$2130,MATCH(G44,Device_Code,0)) -> 25 | J44: 0.75 | K44: L734 | L44: 25 | O44: =A44&" to (2) "&H44 -> 1lp, 8' Fluorescent Strip, T12 to (2) LED, Linear Ambient Fixtures 25 watts
A45: 2lp, 8' Fluorescent Strip, T12 | B45: F82SS | C45: 2 | D45: 173 | E45: =INDEX('Wattage Table'!$A$3:$A$2131,MATCH(Lighting_Recs!B45,'Wattage Table'!$C$3:$C$2131,0)) -> T12 | F45: =INDEX('Wattage Table'!$K$3:$K$2130,MATCH(B45,Device_Code,0)) -> 173 | G45: FLED AMB 45 | H45: =INDEX('Wattage Table'!$E$3:$E$2131,MATCH(Lighting_Recs!G45,'Wattage Table'!$C$3:$C$2131,0)) -> LED, Linear Ambient Fixtures 45 watts | I45: =INDEX('Wattage Table'!$K$3:$K$2130,MATCH(G45,Device_Code,0)) -> 45 | J45: 0.7398843931 | K45: L734 | L45: 22.5 | O45: =A45&" to (2) "&H45 -> 2lp, 8' Fluorescent Strip, T12 to (2) LED, Linear Ambient Fixtures 45 watts
A46: 3lp, 8' Fluorescent Strip, T12 | B46: F83SS | C46: 3 | D46: 273 | E46: =INDEX('Wattage Table'!$A$3:$A$2131,MATCH(Lighting_Recs!B46,'Wattage Table'!$C$3:$C$2131,0)) -> T12 | F46: =INDEX('Wattage Table'!$K$3:$K$2130,MATCH(B46,Device_Code,0)) -> 273 | G46: FLED AMB 50 | H46: =INDEX('Wattage Table'!$E$3:$E$2131,MATCH(Lighting_Recs!G46,'Wattage Table'!$C$3:$C$2131,0)) -> LED, Linear Ambient Fixtures 50 watts | I46: =INDEX('Wattage Table'!$K$3:$K$2130,MATCH(G46,Device_Code,0)) -> 50 | J46: 0.8168498168 | K46: L734 | L46: 16.66666667 | O46: =A46&" to (2) "&H46 -> 3lp, 8' Fluorescent Strip, T12 to (2) LED, Linear Ambient Fixtures 50 watts
A47: 4lp, 8' Fluorescent Strip, T12 | B47: F84SS | C47: 4 | D47: 346 | E47: =INDEX('Wattage Table'!$A$3:$A$2131,MATCH(Lighting_Recs!B47,'Wattage Table'!$C$3:$C$2131,0)) -> T12 | F47: =INDEX('Wattage Table'!$K$3:$K$2130,MATCH(B47,Device_Code,0)) -> 346 | G47: FLED AMB 50 | H47: =INDEX('Wattage Table'!$E$3:$E$2131,MATCH(Lighting_Recs!G47,'Wattage Table'!$C$3:$C$2131,0)) -> LED, Linear Ambient Fixtures 50 watts | I47: =INDEX('Wattage Table'!$K$3:$K$2130,MATCH(G47,Device_Code,0)) -> 50 | J47: =IF(G47="No Rec","",1-(I47/F47)) -> 0.8554913295 | K47: L734 | L47: 12.5 | O47: =A47&" to (2) "&H47 -> 4lp, 8' Fluorescent Strip, T12 to (2) LED, Linear Ambient Fixtures 50 watts
A48: 1lp, U-Bend Fluorescent, T12 | B48: FU1EE | C48: 1 | D48: 43 | E48: =INDEX('Wattage Table'!$A$3:$A$2131,MATCH(Lighting_Recs!B48,'Wattage Table'!$C$3:$C$2131,0)) -> T12 | F48: =INDEX('Wattage Table'!$K$3:$K$2130,MATCH(B48,Device_Code,0)) -> 43 | G48: FLED 2x2 21 | H48: =INDEX('Wattage Table'!$E$3:$E$2131,MATCH(Lighting_Recs!G48,'Wattage Table'!$C$3:$C$2131,0)) -> LED, 2x2 Panel, 21 watts | I48: =INDEX('Wattage Table'!$K$3:$K$2130,MATCH(G48,Device_Code,0)) -> 21 | J48: 0.511627907 | K48: L720 | L48: 21 | M48: ILED 2' REPL 21 | N48: =INDEX('Wattage Table'!$E$3:$E$2130,MATCH(Lighting_Recs!M48,'Wattage Table'!$C$3:$C$2130,0)) -> LED, Two Foot Linear Replacements 21 watts | O48: 1lp, U-Bend Fluorescent, T12 to LED, 2x2 Panel, 21 watts | P48: =A48&" to "&N48 -> 1lp, U-Bend Fluorescent, T12 to LED, Two Foot Linear Replacements 21 watts
A49: 2lp, U-Bend Fluorescent, T12 | B49: FU2SS | C49: 2 | D49: 96 | E49: =INDEX('Wattage Table'!$A$3:$A$2131,MATCH(Lighting_Recs!B49,'Wattage Table'!$C$3:$C$2131,0)) -> T12 | F49: =INDEX('Wattage Table'!$K$3:$K$2130,MATCH(B49,Device_Code,0)) -> 96 | G49: FLED 2x2 48 | H49: =INDEX('Wattage Table'!$E$3:$E$2131,MATCH(Lighting_Recs!G49,'Wattage Table'!$C$3:$C$2131,0)) -> LED, 2x2 Panel, 48 watts | I49: =INDEX('Wattage Table'!$K$3:$K$2130,MATCH(G49,Device_Code,0)) -> 48 | J49: 0.5 | K49: L720 | L49: 24 | M49: ILED 2' REPL 24 | N49: =INDEX('Wattage Table'!$E$3:$E$2130,MATCH(Lighting_Recs!M49,'Wattage Table'!$C$3:$C$2130,0)) -> LED, Two Foot Linear Replacements 24 watts | O49: 2lp, U-Bend Fluorescent, T12 to LED, 2x2 Panel, 48 watts | P49: 2lp, U-Bend Fluorescent, T12 to LED, Two Foot Linear Replacements 24 watts
A50: 3lp, U-Bend Fluorescent, T12 | B50: FU3EE | C50: 3 | D50: 115 | E50: =INDEX('Wattage Table'!$A$3:$A$2131,MATCH(Lighting_Recs!B50,'Wattage Table'!$C$3:$C$2131,0)) -> T12 | F50: =INDEX('Wattage Table'!$K$3:$K$2130,MATCH(B50,Device_Code,0)) -> 115 | G50: FLED 2x2 58 | H50: =INDEX('Wattage Table'!$E$3:$E$2131,MATCH(Lighting_Recs!G50,'Wattage Table'!$C$3:$C$2131,0)) -> LED, 2x2 Panel, 58 watts | I50: =INDEX('Wattage Table'!$K$3:$K$2130,MATCH(G50,Device_Code,0)) -> 58 | J50: 0.4956521739 | K50: L720 | L50: 19.33333333 | M50: ILED 2' REPL 19 | N50: =INDEX('Wattage Table'!$E$3:$E$2130,MATCH(Lighting_Recs!M50,'Wattage Table'!$C$3:$C$2130,0)) -> LED, Two Foot Linear Replacements 19 watts | O50: 3lp, U-Bend Fluorescent, T12 to LED, 2x2 Panel, 58 watts | P50: 3lp, U-Bend Fluorescent, T12 to LED, Two Foot Linear Replacements 19 watts
A51: 2lp, 2 x 2 Fluorescent, T5 | B51: F22GL | C51: 2 | D51: 35 | E51: =INDEX('Wattage Table'!$A$3:$A$2131,MATCH(Lighting_Recs!B51,'Wattage Table'!$C$3:$C$2131,0)) -> T5 | F51: =INDEX('Wattage Table'!$K$3:$K$2130,MATCH(B51,Device_Code,0)) -> 35 | G51: FLED 2x2 30 | H51: =INDEX('Wattage Table'!$E$3:$E$2131,MATCH(Lighting_Recs!G51,'Wattage Table'!$C$3:$C$2131,0)) -> LED, 2x2 Panel, 30 watts | I51: =INDEX('Wattage Table'!$K$3:$K$2130,MATCH(G51,Device_Code,0)) -> 30 | J51: 0.1428571429 | K51: L720 | L51: 15 | M51: ILED 2' REPL 15 | N51: =INDEX('Wattage Table'!$E$3:$E$2130,MATCH(Lighting_Recs!M51,'Wattage Table'!$C$3:$C$2130,0)) -> LED, Two Foot Linear Replacements 15 watts | O51: 2lp, 2 x 2 Fluorescent, T5 to LED, 2x2 Panel, 30 watts | P51: =A51&" to "&N51 -> 2lp, 2 x 2 Fluorescent, T5 to LED, Two Foot Linear Replacements 15 watts
A52: 2lp, 2 x 4 Fluorescent, T5 | B52: F42GL | C52: 2 | D52: 63 | E52: =INDEX('Wattage Table'!$A$3:$A$2131,MATCH(Lighting_Recs!B52,'Wattage Table'!$C$3:$C$2131,0)) -> T5 | F52: =INDEX('Wattage Table'!$K$3:$K$2130,MATCH(B52,Device_Code,0)) -> 63 | G52: FLED 2x4 30 | H52: =INDEX('Wattage Table'!$E$3:$E$2131,MATCH(Lighting_Recs!G52,'Wattage Table'!$C$3:$C$2131,0)) -> LED, 2x4 Panel, 30 watts | I52: =INDEX('Wattage Table'!$K$3:$K$2130,MATCH(G52,Device_Code,0)) -> 30 | J52: 0.5238095238 | K52: L710 | L52: 15 | M52: ="ILED 4' REPL "&L52 -> ILED 4' REPL 15 | N52: =INDEX('Wattage Table'!$E$3:$E$2130,MATCH(Lighting_Recs!M52,'Wattage Table'!$C$3:$C$2130,0)) -> LED, Four Foot Linear Replacements 15 watts | O52: 2lp, 2 x 4 Fluorescent, T5 to LED, 2x4 Panel, 30 watts | P52: 2lp, 2 x 4 Fluorescent, T5 to LED, Four Foot Linear Replacements 15 watts
A53: 3lp, 2 x 4 Fluorescent, T5 | B53: F43GL | C53: 3 | D53: 97 | E53: =INDEX('Wattage Table'!$A$3:$A$2131,MATCH(Lighting_Recs!B53,'Wattage Table'!$C$3:$C$2131,0)) -> T5 | F53: =INDEX('Wattage Table'!$K$3:$K$2130,MATCH(B53,Device_Code,0)) -> 97 | G53: FLED 2x4 70 | H53: =INDEX('Wattage Table'!$E$3:$E$2131,MATCH(Lighting_Recs!G53,'Wattage Table'!$C$3:$C$2131,0)) -> LED, 2x4 Panel, 70 watts | I53: =INDEX('Wattage Table'!$K$3:$K$2130,MATCH(G53,Device_Code,0)) -> 70 | J53: 0.2783505155 | K53: L710 | L53: 23 | M53: ILED 4' REPL 23 | N53: =INDEX('Wattage Table'!$E$3:$E$2130,MATCH(Lighting_Recs!M53,'Wattage Table'!$C$3:$C$2130,0)) -> LED, Four Foot Linear Replacements 23 watts | O53: 3lp, 2 x 4 Fluorescent, T5 to LED, 2x4 Panel, 70 watts | P53: 3lp, 2 x 4 Fluorescent, T5 to LED, Four Foot Linear Replacements 23 watts
A54: 4lp, 2 x 4 Fluorescent, T5 | B54: F44GL | C54: 4 | D54: 128 | E54: =INDEX('Wattage Table'!$A$3:$A$2131,MATCH(Lighting_Recs!B54,'Wattage Table'!$C$3:$C$2131,0)) -> T5 | F54: =INDEX('Wattage Table'!$K$3:$K$2130,MATCH(B54,Device_Code,0)) -> 128 | G54: FLED 2x4 100 | H54: =INDEX('Wattage Table'!$E$3:$E$2131,MATCH(Lighting_Recs!G54,'Wattage Table'!$C$3:$C$2131,0)) -> LED, 2x4 Panel, 100 watts | I54: =INDEX('Wattage Table'!$K$3:$K$2130,MATCH(G54,Device_Code,0)) -> 100 | J54: 0.21875 | K54: L710 | L54: 25 | M54: ILED 4' REPL 25 | N54: =INDEX('Wattage Table'!$E$3:$E$2130,MATCH(Lighting_Recs!M54,'Wattage Table'!$C$3:$C$2130,0)) -> LED, Four Foot Linear Replacements 25 watts | O54: 4lp, 2 x 4 Fluorescent, T5 to LED, 2x4 Panel, 100 watts | P54: 4lp, 2 x 4 Fluorescent, T5 to LED, Four Foot Linear Replacements 25 watts
A55: 6lp, Fluorescent High Bay, T5 | B55: F46GHL | C55: 6 | D55: 351 | E55: =INDEX('Wattage Table'!$A$3:$A$2131,MATCH(Lighting_Recs!B55,'Wattage Table'!$C$3:$C$2131,0)) -> T5 | F55: =INDEX('Wattage Table'!$K$3:$K$2130,MATCH(B55,Device_Code,0)) -> 351 | G55: FLED HBY 175 | H55: =INDEX('Wattage Table'!$E$3:$E$2131,MATCH(Lighting_Recs!G55,'Wattage Table'!$C$3:$C$2131,0)) -> LED, High Bay Fixtures 175 watts | I55: =INDEX('Wattage Table'!$K$3:$K$2130,MATCH(G55,Device_Code,0)) -> 175 | J55: 0.5014245014 | K55: L820 | L55: 26 | M55: ILED 4' REPL 26 | N55: =INDEX('Wattage Table'!$E$3:$E$2130,MATCH(Lighting_Recs!M55,'Wattage Table'!$C$3:$C$2130,0)) -> LED, Four Foot Linear Replacements 26 watts | O55: 6lp, Fluorescent High Bay, T5 to LED, High Bay Fixtures 175 watts | P55: 6lp, Fluorescent High Bay, T5 to LED, Four Foot Linear Replacements 26 watts
A56: 8lp, Fluorescent High Bay, T5 | B56: F48GHL | C56: 8 | D56: 468 | E56: =INDEX('Wattage Table'!$A$3:$A$2131,MATCH(Lighting_Recs!B56,'Wattage Table'!$C$3:$C$2131,0)) -> T5 | F56: =INDEX('Wattage Table'!$K$3:$K$2130,MATCH(B56,Device_Code,0)) -> 468 | G56: FLED HBY 235 | H56: =INDEX('Wattage Table'!$E$3:$E$2131,MATCH(Lighting_Recs!G56,'Wattage Table'!$C$3:$C$2131,0)) -> LED, High Bay Fixtures 235 watts | I56: =INDEX('Wattage Table'!$K$3:$K$2130,MATCH(G56,Device_Code,0)) -> 235 | J56: 0.4978632479 | K56: L820 | L56: 26 | M56: ILED 4' REPL 26 | N56: =INDEX('Wattage Table'!$E$3:$E$2130,MATCH(Lighting_Recs!M56,'Wattage Table'!$C$3:$C$2130,0)) -> LED, Four Foot Linear Replacements 26 watts | O56: 8lp, Fluorescent High Bay, T5 to LED, High Bay Fixtures 235 watts | P56: 8lp, Fluorescent High Bay, T5 to LED, Four Foot Linear Replacements 26 watts
A57: 1lp, 1 x4 Fluorescent, T8 | B57: F21ILL | C57: 1 | D57: 20 | E57: =INDEX('Wattage Table'!$A$3:$A$2131,MATCH(Lighting_Recs!B57,'Wattage Table'!$C$3:$C$2131,0)) -> T8 | F57: =INDEX('Wattage Table'!$K$3:$K$2130,MATCH(B57,Device_Code,0)) -> 20 | G57: FLED 1x4 10 | H57: =INDEX('Wattage Table'!$E$3:$E$2131,MATCH(Lighting_Recs!G57,'Wattage Table'!$C$3:$C$2131,0)) -> LED, 1x4 Panel, 10 watts | I57: =INDEX('Wattage Table'!$K$3:$K$2130,MATCH(G57,Device_Code,0)) -> 10 | J57: 0.5 | K57: L700 | L57: 10 | M57: ILED 2' REPL 10 | N57: =INDEX('Wattage Table'!$E$3:$E$2130,MATCH(Lighting_Recs!M57,'Wattage Table'!$C$3:$C$2130,0)) -> LED, Two Foot Linear Replacements 10 watts | O57: 1lp, 1 x4 Fluorescent, T8 to LED, 1x4 Panel, 10 watts | P57: 1lp, 1 x4 Fluorescent, T8 to LED, Two Foot Linear Replacements 10 watts
A58: 2lp, 2 x 2 Fluorescent, T8 | B58: F22ILL | C58: 2 | D58: 33 | E58: =INDEX('Wattage Table'!$A$3:$A$2131,MATCH(Lighting_Recs!B58,'Wattage Table'!$C$3:$C$2131,0)) -> T8 | F58: =INDEX('Wattage Table'!$K$3:$K$2130,MATCH(B58,Device_Code,0)) -> 33 | G58: FLED 2x2 20 | H58: =INDEX('Wattage Table'!$E$3:$E$2131,MATCH(Lighting_Recs!G58,'Wattage Table'!$C$3:$C$2131,0)) -> LED, 2x2 Panel, 20 watts | I58: =INDEX('Wattage Table'!$K$3:$K$2130,MATCH(G58,Device_Code,0)) -> 20 | J58: 0.3939393939 | K58: L720 | L58: 10 | M58: ILED 2' REPL 10 | N58: =INDEX('Wattage Table'!$E$3:$E$2130,MATCH(Lighting_Recs!M58,'Wattage Table'!$C$3:$C$2130,0)) -> LED, Two Foot Linear Replacements 10 watts | O58: 2lp, 2 x 2 Fluorescent, T8 to LED, 2x2 Panel, 20 watts | P58: 2lp, 2 x 2 Fluorescent, T8 to LED, Two Foot Linear Replacements 10 watts
A59: 3lp, 2 x 2 Fluorescent, T8 | B59: F23ILL | C59: 3 | D59: 47 | E59: =INDEX('Wattage Table'!$A$3:$A$2131,MATCH(Lighting_Recs!B59,'Wattage Table'!$C$3:$C$2131,0)) -> T8 | F59: =INDEX('Wattage Table'!$K$3:$K$2130,MATCH(B59,Device_Code,0)) -> 47 | G59: FLED 2x2 25 | H59: =INDEX('Wattage Table'!$E$3:$E$2131,MATCH(Lighting_Recs!G59,'Wattage Table'!$C$3:$C$2131,0)) -> LED, 2x2 Panel, 25 watts | I59: =INDEX('Wattage Table'!$K$3:$K$2130,MATCH(G59,Device_Code,0)) -> 25 | J59: 0.4680851064 | K59: L720 | L59: 8.333333333 | M59: ILED 2' REPL 8 | N59: =INDEX('Wattage Table'!$E$3:$E$2130,MATCH(Lighting_Recs!M59,'Wattage Table'!$C$3:$C$2130,0)) -> LED, Two Foot Linear Replacements 8 watts | O59: 3lp, 2 x 2 Fluorescent, T8 to LED, 2x2 Panel, 25 watts | P59: 3lp, 2 x 2 Fluorescent, T8 to LED, Two Foot Linear Replacements 8 watts
A60: 4lp, 2 x 2 Fluorescent, T8 | B60: F24ILL | C60: 4 | D60: 61 | E60: =INDEX('Wattage Table'!$A$3:$A$2131,MATCH(Lighting_Recs!B60,'Wattage Table'!$C$3:$C$2131,0)) -> T8 | F60: =INDEX('Wattage Table'!$K$3:$K$2130,MATCH(B60,Device_Code,0)) -> 61 | G60: FLED 2x2 30 | H60: =INDEX('Wattage Table'!$E$3:$E$2131,MATCH(Lighting_Recs!G60,'Wattage Table'!$C$3:$C$2131,0)) -> LED, 2x2 Panel, 30 watts | I60: =INDEX('Wattage Table'!$K$3:$K$2130,MATCH(G60,Device_Code,0)) -> 30 | J60: 0.5081967213 | K60: L720 | L60: 7.5 | M60: ILED 2' REPL 8 | N60: =INDEX('Wattage Table'!$E$3:$E$2130,MATCH(Lighting_Recs!M60,'Wattage Table'!$C$3:$C$2130,0)) -> LED, Two Foot Linear Replacements 8 watts | O60: 4lp, 2 x 2 Fluorescent, T8 to LED, 2x2 Panel, 30 watts | P60: 4lp, 2 x 2 Fluorescent, T8 to LED, Two Foot Linear Replacements 8 watts
A61: 1lp, 1 x 4 Fluorescent, T8 | B61: F41ILL | C61: 1 | D61: 31 | E61: =INDEX('Wattage Table'!$A$3:$A$2131,MATCH(Lighting_Recs!B61,'Wattage Table'!$C$3:$C$2131,0)) -> T8 | F61: =INDEX('Wattage Table'!$K$3:$K$2130,MATCH(B61,Device_Code,0)) -> 31 | G61: FLED 1x4 18 | H61: =INDEX('Wattage Table'!$E$3:$E$2131,MATCH(Lighting_Recs!G61,'Wattage Table'!$C$3:$C$2131,0)) -> LED, 1x4 Panel, 18 watts | I61: =INDEX('Wattage Table'!$K$3:$K$2130,MATCH(G61,Device_Code,0)) -> 18 | J61: =IF(G61="No Rec","",1-(I61/F61)) -> 0.4193548387 | K61: L710 | L61: 18 | M61: ="ILED 4' REPL "&L61 -> ILED 4' REPL 18 | N61: =INDEX('Wattage Table'!$E$3:$E$2130,MATCH(Lighting_Recs!M61,'Wattage Table'!$C$3:$C$2130,0)) -> LED, Four Foot Linear Replacements 18 watts | O61: =A61&" to "&H61 -> 1lp, 1 x 4 Fluorescent, T8 to LED, 1x4 Panel, 18 watts | P61: 1lp, 1 x 4 Fluorescent, T8 to LED, Four Foot Linear Replacements 18 watts
A62: 2lp, 1 x 4 Fluorescent, T8 | B62: F42ILL | C62: 2 | D62: 59 | E62: =INDEX('Wattage Table'!$A$3:$A$2131,MATCH(Lighting_Recs!B62,'Wattage Table'!$C$3:$C$2131,0)) -> T8 | F62: =INDEX('Wattage Table'!$K$3:$K$2130,MATCH(B62,Device_Code,0)) -> 59 | G62: FLED 1x4 30 | H62: =INDEX('Wattage Table'!$E$3:$E$2131,MATCH(Lighting_Recs!G62,'Wattage Table'!$C$3:$C$2131,0)) -> LED, 1x4 Panel, 30 watts | I62: =INDEX('Wattage Table'!$K$3:$K$2130,MATCH(G62,Device_Code,0)) -> 30 | J62: =IF(G62="No Rec","",1-(I62/F62)) -> 0.4915254237 | K62: L710 | L62: 27 | M62: ="ILED 4' REPL "&L63 -> ILED 4' REPL 15 | N62: =INDEX('Wattage Table'!$E$3:$E$2130,MATCH(Lighting_Recs!M62,'Wattage Table'!$C$3:$C$2130,0)) -> LED, Four Foot Linear Replacements 15 watts | O62: =A62&" to "&H62 -> 2lp, 1 x 4 Fluorescent, T8 to LED, 1x4 Panel, 30 watts | P62: 2lp, 1 x 4 Fluorescent, T8 to LED, Four Foot Linear Replacements 15 watts
A63: 2lp, 2 x 4 Fluorescent, T8 | B63: F42ILL | C63: =MID(B63,3,1) -> 2 | D63: =F63 -> 59 | E63: =INDEX('Wattage Table'!$A$3:$A$2131,MATCH(Lighting_Recs!B63,'Wattage Table'!$C$3:$C$2131,0)) -> T8 | F63: =INDEX('Wattage Table'!$K$3:$K$2130,MATCH(B63,Device_Code,0)) -> 59 | G63: FLED 2x4 30 | H63: =INDEX('Wattage Table'!$E$3:$E$2131,MATCH(Lighting_Recs!G63,'Wattage Table'!$C$3:$C$2131,0)) -> LED, 2x4 Panel, 30 watts | I63: =INDEX('Wattage Table'!$K$3:$K$2130,MATCH(G63,Device_Code,0)) -> 30 | J63: =IF(G63="No Rec","",1-(I63/F62)) -> 0.4915254237 | K63: L710 | L63: =I63/C62 -> 15 | M63: ="ILED 4' REPL "&L64 -> ILED 4' REPL 15 | N63: =INDEX('Wattage Table'!$E$3:$E$2130,MATCH(Lighting_Recs!M63,'Wattage Table'!$C$3:$C$2130,0)) -> LED, Four Foot Linear Replacements 15 watts | O63: =A63&" to "&H64 -> 2lp, 2 x 4 Fluorescent, T8 to LED, 2x4 Panel, 45 watts | P63: 2lp, 2 x 4 Fluorescent, T8 to LED, Four Foot Linear Replacements 15 watts
A64: 3lp, 2 x 4 Fluorescent, T8 | B64: F43ILL | C64: 3 | D64: 89 | E64: =INDEX('Wattage Table'!$A$3:$A$2131,MATCH(Lighting_Recs!B64,'Wattage Table'!$C$3:$C$2131,0)) -> T8 | F64: =INDEX('Wattage Table'!$K$3:$K$2130,MATCH(B64,Device_Code,0)) -> 89 | G64: FLED 2x4 45 | H64: =INDEX('Wattage Table'!$E$3:$E$2131,MATCH(Lighting_Recs!G64,'Wattage Table'!$C$3:$C$2131,0)) -> LED, 2x4 Panel, 45 watts | I64: =INDEX('Wattage Table'!$K$3:$K$2130,MATCH(G64,Device_Code,0)) -> 45 | J64: 0.4943820225 | K64: L710 | L64: 15 | M64: ILED 4' REPL 15 | N64: =INDEX('Wattage Table'!$E$3:$E$2130,MATCH(Lighting_Recs!M64,'Wattage Table'!$C$3:$C$2130,0)) -> LED, Four Foot Linear Replacements 15 watts | O64: 3lp, 2 x 4 Fluorescent, T8 to LED, 2x4 Panel, 45 watts | P64: 3lp, 2 x 4 Fluorescent, T8 to LED, Four Foot Linear Replacements 15 watts
A65: 4lp, 2 x 4 Fluorescent, T8 | B65: F44ILL | C65: 4 | D65: 112 | E65: =INDEX('Wattage Table'!$A$3:$A$2131,MATCH(Lighting_Recs!B65,'Wattage Table'!$C$3:$C$2131,0)) -> T8 | F65: =INDEX('Wattage Table'!$K$3:$K$2130,MATCH(B65,Device_Code,0)) -> 112 | G65: FLED 2x4 50 | H65: =INDEX('Wattage Table'!$E$3:$E$2131,MATCH(Lighting_Recs!G65,'Wattage Table'!$C$3:$C$2131,0)) -> LED, 2x4 Panel, 50 watts | I65: =INDEX('Wattage Table'!$K$3:$K$2130,MATCH(G65,Device_Code,0)) -> 50 | J65: 0.5535714286 | K65: L710 | L65: 12.5 | M65: ILED 4' REPL 15 | N65: =INDEX('Wattage Table'!$E$3:$E$2130,MATCH(Lighting_Recs!M65,'Wattage Table'!$C$3:$C$2130,0)) -> LED, Four Foot Linear Replacements 15 watts | O65: 4lp, 2 x 4 Fluorescent, T8 to LED, 2x4 Panel, 50 watts | P65: 4lp, 2 x 4 Fluorescent, T8 to LED, Four Foot Linear Replacements 15 watts
A66: 6lp, Fluorescent High Bay, T8 | B66: F46ILL | C66: 6 | D66: 175 | E66: =INDEX('Wattage Table'!$A$3:$A$2131,MATCH(Lighting_Recs!B66,'Wattage Table'!$C$3:$C$2131,0)) -> T8 | F66: =INDEX('Wattage Table'!$K$3:$K$2130,MATCH(B66,Device_Code,0)) -> 175 | G66: FLED HBY 95 | H66: =INDEX('Wattage Table'!$E$3:$E$2131,MATCH(Lighting_Recs!G66,'Wattage Table'!$C$3:$C$2131,0)) -> LED, High Bay Fixtures 95 watts | I66: =INDEX('Wattage Table'!$K$3:$K$2130,MATCH(G66,Device_Code,0)) -> 95 | J66: 0.4571428571 | K66: L820 | L66: 16 | M66: ILED 4' REPL 16 | N66: =INDEX('Wattage Table'!$E$3:$E$2130,MATCH(Lighting_Recs!M66,'Wattage Table'!$C$3:$C$2130,0)) -> LED, Four Foot Linear Replacements 16 watts | O66: 6lp, Fluorescent High Bay, T8 to LED, High Bay Fixtures 95 watts | P66: 6lp, Fluorescent High Bay, T8 to LED, Four Foot Linear Replacements 16 watts
A67: 8lp, Fluorescent High Bay, T8 | B67: F48ILL | C67: 8 | D67: 224 | E67: =INDEX('Wattage Table'!$A$3:$A$2131,MATCH(Lighting_Recs!B67,'Wattage Table'!$C$3:$C$2131,0)) -> T8 | F67: =INDEX('Wattage Table'!$K$3:$K$2130,MATCH(B67,Device_Code,0)) -> 224 | G67: FLED HBY 115 | H67: =INDEX('Wattage Table'!$E$3:$E$2131,MATCH(Lighting_Recs!G67,'Wattage Table'!$C$3:$C$2131,0)) -> LED, High Bay Fixtures 115 watts | I67: =INDEX('Wattage Table'!$K$3:$K$2130,MATCH(G67,Device_Code,0)) -> 115 | J67: 0.4866071429 | K67: L820 | L67: 14.375 | M67: ILED 4' REPL 15 | N67: =INDEX('Wattage Table'!$E$3:$E$2130,MATCH(Lighting_Recs!M67,'Wattage Table'!$C$3:$C$2130,0)) -> LED, Four Foot Linear Replacements 15 watts | O67: 8lp, Fluorescent High Bay, T8 to LED, High Bay Fixtures 115 watts | P67: 8lp, Fluorescent High Bay, T8 to LED, Four Foot Linear Replacements 15 watts
A68: 1lp, 8' Fluorescent Strip, T12 | B68: F81ILL | C68: 1 | D68: 58 | E68: =INDEX('Wattage Table'!$A$3:$A$2131,MATCH(Lighting_Recs!B68,'Wattage Table'!$C$3:$C$2131,0)) -> T8 | F68: =INDEX('Wattage Table'!$K$3:$K$2130,MATCH(B68,Device_Code,0)) -> 58 | G68: FLED AMB 18 | H68: =INDEX('Wattage Table'!$E$3:$E$2131,MATCH(Lighting_Recs!G68,'Wattage Table'!$C$3:$C$2131,0)) -> LED, Linear Ambient Fixtures 18 watts | I68: =INDEX('Wattage Table'!$K$3:$K$2130,MATCH(G68,Device_Code,0)) -> 18 | J68: =IF(G68="No Rec","",1-(I68/F68)) -> 0.6896551724 | K68: L734 | L68: 18 | O68: =A68&" to (2) "&H68 -> 1lp, 8' Fluorescent Strip, T12 to (2) LED, Linear Ambient Fixtures 18 watts
A69: 2lp, 8' Fluorescent Strip, T8 | B69: F82ILL | C69: 2 | D69: 94 | E69: =INDEX('Wattage Table'!$A$3:$A$2131,MATCH(Lighting_Recs!B69,'Wattage Table'!$C$3:$C$2131,0)) -> T8 | F69: =INDEX('Wattage Table'!$K$3:$K$2130,MATCH(B69,Device_Code,0)) -> 94 | G69: FLED AMB 25 | H69: =INDEX('Wattage Table'!$E$3:$E$2131,MATCH(Lighting_Recs!G69,'Wattage Table'!$C$3:$C$2131,0)) -> LED, Linear Ambient Fixtures 25 watts | I69: =INDEX('Wattage Table'!$K$3:$K$2130,MATCH(G69,Device_Code,0)) -> 25 | J69: 0.7340425532 | K69: L734 | L69: 12.5 | O69: =A69&" to (2) "&H69 -> 2lp, 8' Fluorescent Strip, T8 to (2) LED, Linear Ambient Fixtures 25 watts
A70: 3lp, 8' Fluorescent Strip, T8 | B70: F83ILL | C70: 3 | D70: 167 | E70: =INDEX('Wattage Table'!$A$3:$A$2131,MATCH(Lighting_Recs!B70,'Wattage Table'!$C$3:$C$2131,0)) -> T8 | F70: =INDEX('Wattage Table'!$K$3:$K$2130,MATCH(B70,Device_Code,0)) -> 167 | G70: FLED AMB 40 | H70: =INDEX('Wattage Table'!$E$3:$E$2131,MATCH(Lighting_Recs!G70,'Wattage Table'!$C$3:$C$2131,0)) -> LED, Linear Ambient Fixtures 40 watts | I70: =INDEX('Wattage Table'!$K$3:$K$2130,MATCH(G70,Device_Code,0)) -> 40 | J70: =IF(G70="No Rec","",1-(I70/F70)) -> 0.7604790419 | K70: L734 | L70: 13.33333333 | O70: =A70&" to (2) "&H70 -> 3lp, 8' Fluorescent Strip, T8 to (2) LED, Linear Ambient Fixtures 40 watts
A71: 4lp, 8' Fluorescent Strip, T8 | B71: F84ILL | C71: 4 | D71: 219 | E71: =INDEX('Wattage Table'!$A$3:$A$2131,MATCH(Lighting_Recs!B71,'Wattage Table'!$C$3:$C$2131,0)) -> T8 | F71: =INDEX('Wattage Table'!$K$3:$K$2130,MATCH(B71,Device_Code,0)) -> 219 | G71: FLED AMB 50 | H71: =INDEX('Wattage Table'!$E$3:$E$2131,MATCH(Lighting_Recs!G71,'Wattage Table'!$C$3:$C$2131,0)) -> LED, Linear Ambient Fixtures 50 watts | I71: =INDEX('Wattage Table'!$K$3:$K$2130,MATCH(G71,Device_Code,0)) -> 50 | J71: 0.7716894977 | K71: L734 | L71: 12.5 | O71: =A71&" to (2) "&H71 -> 4lp, 8' Fluorescent Strip, T8 to (2) LED, Linear Ambient Fixtures 50 watts
A72: 2lp, U-Bend Fluorescent, T8 | B72: FU2ILL | C72: 2 | D72: 59 | E72: =INDEX('Wattage Table'!$A$3:$A$2131,MATCH(Lighting_Recs!B72,'Wattage Table'!$C$3:$C$2131,0)) -> T8 | F72: =INDEX('Wattage Table'!$K$3:$K$2130,MATCH(B72,Device_Code,0)) -> 59 | G72: FLED 2x2 30 | H72: =INDEX('Wattage Table'!$E$3:$E$2131,MATCH(Lighting_Recs!G72,'Wattage Table'!$C$3:$C$2131,0)) -> LED, 2x2 Panel, 30 watts | I72: =INDEX('Wattage Table'!$K$3:$K$2130,MATCH(G72,Device_Code,0)) -> 30 | J72: 0.4915254237 | K72: L720 | L72: 15 | M72: ILED 2' REPL 15 | N72: =INDEX('Wattage Table'!$E$3:$E$2130,MATCH(Lighting_Recs!M72,'Wattage Table'!$C$3:$C$2130,0)) -> LED, Two Foot Linear Replacements 15 watts | O72: 2lp, U-Bend Fluorescent, T8 to LED, 2x2 Panel, 30 watts | P72: =A72&" to "&N72 -> 2lp, U-Bend Fluorescent, T8 to LED, Two Foot Linear Replacements 15 watts
A73: 3lp, U-Bend Fluorescent, T8 | B73: FU3ILL | C73: 3 | D73: 89 | E73: =INDEX('Wattage Table'!$A$3:$A$2131,MATCH(Lighting_Recs!B73,'Wattage Table'!$C$3:$C$2131,0)) -> T8 | F73: =INDEX('Wattage Table'!$K$3:$K$2130,MATCH(B73,Device_Code,0)) -> 89 | G73: FLED 2x2 45 | H73: =INDEX('Wattage Table'!$E$3:$E$2131,MATCH(Lighting_Recs!G73,'Wattage Table'!$C$3:$C$2131,0)) -> LED, 2x2 Panel, 45 watts | I73: =INDEX('Wattage Table'!$K$3:$K$2130,MATCH(G73,Device_Code,0)) -> 45 | J73: =IF(G73="No Rec","",1-(I73/F73)) -> 0.4943820225 | K73: L720 | L73: 15 | M73: ILED 2' REPL 15 | N73: =INDEX('Wattage Table'!$E$3:$E$2130,MATCH(Lighting_Recs!M73,'Wattage Table'!$C$3:$C$2130,0)) -> LED, Two Foot Linear Replacements 15 watts | O73: 3lp, U-Bend Fluorescent, T8 to LED, 2x2 Panel, 45 watts | P73: 3lp, U-Bend Fluorescent, T8 to LED, Two Foot Linear Replacements 15 watts
A74: 1lp, 100 watts, Halogen | B74: H100/1 | D74: 100 | E74: =INDEX('Wattage Table'!$A$3:$A$2131,MATCH(Lighting_Recs!B74,'Wattage Table'!$C$3:$C$2131,0)) -> Halogen Lamps | F74: =INDEX('Wattage Table'!$K$3:$K$2130,MATCH(B74,Device_Code,0)) -> 100 | G74: ILED 20 | H74: =INDEX('Wattage Table'!$E$3:$E$2131,MATCH(Lighting_Recs!G74,'Wattage Table'!$C$3:$C$2131,0)) -> LED, Replacement Lamps 20 watts | I74: =INDEX('Wattage Table'!$K$3:$K$2130,MATCH(G74,Device_Code,0)) -> 20 | J74: 0.8 | K74: L410 | O74: 1lp, 100 watts, Halogen to LED, Replacement Lamps 20 watts
A75: ="1lp, "&F75&" watts, Halogen" -> 1lp, 35 watts, Halogen | B75: H35/1 | D75: 35 | E75: =INDEX('Wattage Table'!$A$3:$A$2131,MATCH(Lighting_Recs!B75,'Wattage Table'!$C$3:$C$2131,0)) -> Halogen Lamps | F75: =INDEX('Wattage Table'!$K$3:$K$2130,MATCH(B75,Device_Code,0)) -> 35 | G75: ILED 7 | H75: =INDEX('Wattage Table'!$E$3:$E$2131,MATCH(Lighting_Recs!G75,'Wattage Table'!$C$3:$C$2131,0)) -> LED, Replacement Lamps 7 watts | I75: =INDEX('Wattage Table'!$K$3:$K$2130,MATCH(G75,Device_Code,0)) -> 7 | J75: 0.8 | K75: L410 | O75: 1lp, 35 watts, Halogen to LED, Replacement Lamps 7 watts
A76: ="1lp, "&F76&" watts, Halogen" -> 1lp, 40 watts, Halogen | B76: H40/1 | D76: 40 | E76: =INDEX('Wattage Table'!$A$3:$A$2131,MATCH(Lighting_Recs!B76,'Wattage Table'!$C$3:$C$2131,0)) -> Halogen Lamps | F76: =INDEX('Wattage Table'!$K$3:$K$2130,MATCH(B76,Device_Code,0)) -> 40 | G76: ILED 8 | H76: =INDEX('Wattage Table'!$E$3:$E$2131,MATCH(Lighting_Recs!G76,'Wattage Table'!$C$3:$C$2131,0)) -> LED, Replacement Lamps 8 watts | I76: =INDEX('Wattage Table'!$K$3:$K$2130,MATCH(G76,Device_Code,0)) -> 8 | J76: 0.8 | K76: L410 | O76: 1lp, 40 watts, Halogen to LED, Replacement Lamps 8 watts
A77: 1lp, 45 watts, Halogen | B77: H45/1 | D77: 45 | E77: =INDEX('Wattage Table'!$A$3:$A$2131,MATCH(Lighting_Recs!B77,'Wattage Table'!$C$3:$C$2131,0)) -> Halogen Lamps | F77: =INDEX('Wattage Table'!$K$3:$K$2130,MATCH(B77,Device_Code,0)) -> 45 | G77: ILED 9 | H77: =INDEX('Wattage Table'!$E$3:$E$2131,MATCH(Lighting_Recs!G77,'Wattage Table'!$C$3:$C$2131,0)) -> LED, Replacement Lamps 9 watts | I77: =INDEX('Wattage Table'!$K$3:$K$2130,MATCH(G77,Device_Code,0)) -> 9 | J77: 0.8 | K77: L410 | O77: 1lp, 45 watts, Halogen to LED, Replacement Lamps 9 watts
A78: 1lp, 50 watts, Halogen | B78: H50/1 | D78: 50 | E78: =INDEX('Wattage Table'!$A$3:$A$2131,MATCH(Lighting_Recs!B78,'Wattage Table'!$C$3:$C$2131,0)) -> Halogen Lamps | F78: =INDEX('Wattage Table'!$K$3:$K$2130,MATCH(B78,Device_Code,0)) -> 50 | G78: ILED 10 | H78: =INDEX('Wattage Table'!$E$3:$E$2131,MATCH(Lighting_Recs!G78,'Wattage Table'!$C$3:$C$2131,0)) -> LED, Replacement Lamps 10 watts | I78: =INDEX('Wattage Table'!$K$3:$K$2130,MATCH(G78,Device_Code,0)) -> 10 | J78: 0.8 | K78: L410 | O78: 1lp, 50 watts, Halogen to LED, Replacement Lamps 10 watts
A79: 1lp, 55 watts, Halogen | B79: H55/1 | D79: 55 | E79: =INDEX('Wattage Table'!$A$3:$A$2131,MATCH(Lighting_Recs!B79,'Wattage Table'!$C$3:$C$2131,0)) -> Halogen Lamps | F79: =INDEX('Wattage Table'!$K$3:$K$2130,MATCH(B79,Device_Code,0)) -> 55 | G79: ILED 11 | H79: =INDEX('Wattage Table'!$E$3:$E$2131,MATCH(Lighting_Recs!G79,'Wattage Table'!$C$3:$C$2131,0)) -> LED, Replacement Lamps 11 watts | I79: =INDEX('Wattage Table'!$K$3:$K$2130,MATCH(G79,Device_Code,0)) -> 11 | J79: 0.8 | K79: L410 | O79: 1lp, 55 watts, Halogen to LED, Replacement Lamps 11 watts
A80: 1lp, 60 watts, Halogen | B80: H60/1 | D80: 60 | E80: =INDEX('Wattage Table'!$A$3:$A$2131,MATCH(Lighting_Recs!B80,'Wattage Table'!$C$3:$C$2131,0)) -> Halogen Lamps | F80: =INDEX('Wattage Table'!$K$3:$K$2130,MATCH(B80,Device_Code,0)) -> 60 | G80: ILED 12 | H80: =INDEX('Wattage Table'!$E$3:$E$2131,MATCH(Lighting_Recs!G80,'Wattage Table'!$C$3:$C$2131,0)) -> LED, Replacement Lamps 12 watts | I80: =INDEX('Wattage Table'!$K$3:$K$2130,MATCH(G80,Device_Code,0)) -> 12 | J80: 0.8 | K80: L410 | O80: 1lp, 60 watts, Halogen to LED, Replacement Lamps 12 watts
A81: 1lp, 75 watts, Halogen | B81: H75/1 | D81: 75 | E81: =INDEX('Wattage Table'!$A$3:$A$2131,MATCH(Lighting_Recs!B81,'Wattage Table'!$C$3:$C$2131,0)) -> Halogen Lamps | F81: =INDEX('Wattage Table'!$K$3:$K$2130,MATCH(B81,Device_Code,0)) -> 75 | G81: ILED 15 | H81: =INDEX('Wattage Table'!$E$3:$E$2131,MATCH(Lighting_Recs!G81,'Wattage Table'!$C$3:$C$2131,0)) -> LED, Replacement Lamps 15 watts | I81: =INDEX('Wattage Table'!$K$3:$K$2130,MATCH(G81,Device_Code,0)) -> 15 | J81: 0.8 | K81: L410 | O81: 1lp, 75 watts, Halogen to LED, Replacement Lamps 15 watts
A82: 1lp, 90 watts, Halogen | B82: H90/1 | D82: 90 | E82: =INDEX('Wattage Table'!$A$3:$A$2131,MATCH(Lighting_Recs!B82,'Wattage Table'!$C$3:$C$2131,0)) -> Halogen Lamps | F82: =INDEX('Wattage Table'!$K$3:$K$2130,MATCH(B82,Device_Code,0)) -> 90 | G82: ILED 18 | H82: =INDEX('Wattage Table'!$E$3:$E$2131,MATCH(Lighting_Recs!G82,'Wattage Table'!$C$3:$C$2131,0)) -> LED, Replacement Lamps 18 watts | I82: =INDEX('Wattage Table'!$K$3:$K$2130,MATCH(G82,Device_Code,0)) -> 18 | J82: =IF(G82="No Rec","",1-(I82/F82)) -> 0.8 | K82: L410 | O82: 1lp, 90 watts, Halogen to LED, Replacement Lamps 18 watts
A83: 100w High Pressure Sodium | B83: HPS100/1 | D83: =MID(B83,4,3) -> 100 | E83: =INDEX('Wattage Table'!$A$3:$A$2131,MATCH(Lighting_Recs!B83,'Wattage Table'!$C$3:$C$2131,0)) -> High Pressure Sodium | F83: =INDEX('Wattage Table'!$K$3:$K$2130,MATCH(B83,Device_Code,0)) -> 138 | G83: ILED 30 | H83: =INDEX('Wattage Table'!$E$3:$E$2131,MATCH(Lighting_Recs!G83,'Wattage Table'!$C$3:$C$2131,0)) -> LED, Replacement Lamps 30 watts | I83: =INDEX('Wattage Table'!$K$3:$K$2130,MATCH(G83,Device_Code,0)) -> 30 | J83: 0.7826086957 | O83: 100w High Pressure Sodium to LED, Replacement Lamps 30 watts
A84: 1000w High Pressure Sodium | B84: HPS1000/1 | D84: =MID(B84,4,4) -> 1000 | E84: =INDEX('Wattage Table'!$A$3:$A$2131,MATCH(Lighting_Recs!B84,'Wattage Table'!$C$3:$C$2131,0)) -> High Pressure Sodium | F84: =INDEX('Wattage Table'!$K$3:$K$2130,MATCH(B84,Device_Code,0)) -> 1100 | G84: FLED HBY 465 | H84: =INDEX('Wattage Table'!$E$3:$E$2131,MATCH(Lighting_Recs!G84,'Wattage Table'!$C$3:$C$2131,0)) -> LED, High Bay Fixtures 465 watts | I84: =INDEX('Wattage Table'!$K$3:$K$2130,MATCH(G84,Device_Code,0)) -> 465 | J84: 0.5772727273 | K84: L820 | O84: 1000w High Pressure Sodium to LED, High Bay Fixtures 465 watts
A85: 150w High Pressure Sodium | B85: HPS150/1 | D85: =MID(B85,4,3) -> 150 | E85: =INDEX('Wattage Table'!$A$3:$A$2131,MATCH(Lighting_Recs!B85,'Wattage Table'!$C$3:$C$2131,0)) -> High Pressure Sodium | F85: =INDEX('Wattage Table'!$K$3:$K$2130,MATCH(B85,Device_Code,0)) -> 188 | G85: ILED 32 | H85: =INDEX('Wattage Table'!$E$3:$E$2131,MATCH(Lighting_Recs!G85,'Wattage Table'!$C$3:$C$2131,0)) -> LED, Replacement Lamps 32 watts | I85: =INDEX('Wattage Table'!$K$3:$K$2130,MATCH(G85,Device_Code,0)) -> 32 | J85: 0.829787234 | K85: L810 | O85: 150w High Pressure Sodium to LED, Replacement Lamps 32 watts
A86: 200w High Pressure Sodium | B86: HPS200/1 | D86: 200 | E86: =INDEX('Wattage Table'!$A$3:$A$2131,MATCH(Lighting_Recs!B86,'Wattage Table'!$C$3:$C$2131,0)) -> High Pressure Sodium | F86: =INDEX('Wattage Table'!$K$3:$K$2130,MATCH(B86,Device_Code,0)) -> 250 | G86: LBLED 104 | H86: =INDEX('Wattage Table'!$E$3:$E$2131,MATCH(Lighting_Recs!G86,'Wattage Table'!$C$3:$C$2131,0)) -> LED, Low Bay Fixtures 104 watts | I86: =INDEX('Wattage Table'!$K$3:$K$2130,MATCH(G86,Device_Code,0)) -> 104 | J86: 0.584 | K86: L810 | O86: 200w High Pressure Sodium to LED, Low Bay Fixtures 104 watts
A87: 250w High Pressure Sodium | B87: HPS250/1 | D87: 250 | E87: =INDEX('Wattage Table'!$A$3:$A$2131,MATCH(Lighting_Recs!B87,'Wattage Table'!$C$3:$C$2131,0)) -> High Pressure Sodium | F87: =INDEX('Wattage Table'!$K$3:$K$2130,MATCH(B87,Device_Code,0)) -> 295 | G87: LBLED 124 | H87: =INDEX('Wattage Table'!$E$3:$E$2131,MATCH(Lighting_Recs!G87,'Wattage Table'!$C$3:$C$2131,0)) -> LED, Low Bay Fixtures 124 watts | I87: =INDEX('Wattage Table'!$K$3:$K$2130,MATCH(G87,Device_Code,0)) -> 124 | J87: 0.5796610169 | K87: L820 | O87: 250w High Pressure Sodium to LED, Low Bay Fixtures 124 watts
A88: 400w High Pressure Sodium | B88: HPS400/1 | D88: 400 | E88: =INDEX('Wattage Table'!$A$3:$A$2131,MATCH(Lighting_Recs!B88,'Wattage Table'!$C$3:$C$2131,0)) -> High Pressure Sodium | F88: =INDEX('Wattage Table'!$K$3:$K$2130,MATCH(B88,Device_Code,0)) -> 465 | G88: FLED HBY 197 | H88: =INDEX('Wattage Table'!$E$3:$E$2131,MATCH(Lighting_Recs!G88,'Wattage Table'!$C$3:$C$2131,0)) -> LED, High Bay Fixtures 197 watts | I88: =INDEX('Wattage Table'!$K$3:$K$2130,MATCH(G88,Device_Code,0)) -> 197 | J88: 0.576344086 | K88: L820 | O88: 400w High Pressure Sodium to LED, High Bay Fixtures 197 watts
A89: 600w High Pressure Sodium | B89: HPS600/1 | D89: 600 | E89: =INDEX('Wattage Table'!$A$3:$A$2131,MATCH(Lighting_Recs!B89,'Wattage Table'!$C$3:$C$2131,0)) -> High Pressure Sodium | F89: =INDEX('Wattage Table'!$K$3:$K$2130,MATCH(B89,Device_Code,0)) -> 675 | G89: FLED HBY 284 | H89: =INDEX('Wattage Table'!$E$3:$E$2131,MATCH(Lighting_Recs!G89,'Wattage Table'!$C$3:$C$2131,0)) -> LED, High Bay Fixtures 284 watts | I89: =INDEX('Wattage Table'!$K$3:$K$2130,MATCH(G89,Device_Code,0)) -> 284 | J89: 0.5792592593 | K89: L820 | O89: 600w High Pressure Sodium to LED, High Bay Fixtures 284 watts
A90: 750w High Pressure Sodium | B90: HPS750/1 | D90: 750 | E90: =INDEX('Wattage Table'!$A$3:$A$2131,MATCH(Lighting_Recs!B90,'Wattage Table'!$C$3:$C$2131,0)) -> High Pressure Sodium | F90: =INDEX('Wattage Table'!$K$3:$K$2130,MATCH(B90,Device_Code,0)) -> 835 | G90: FLED HBY 353 | H90: =INDEX('Wattage Table'!$E$3:$E$2131,MATCH(Lighting_Recs!G90,'Wattage Table'!$C$3:$C$2131,0)) -> LED, High Bay Fixtures 353 watts | I90: =INDEX('Wattage Table'!$K$3:$K$2130,MATCH(G90,Device_Code,0)) -> 353 | J90: 0.577245509 | K90: L820 | O90: 750w High Pressure Sodium to LED, High Bay Fixtures 353 watts
A91: 1lp, 100 watts, Incandescent | B91: I100/1 | D91: =F91 -> 100 | E91: =INDEX('Wattage Table'!$A$3:$A$2131,MATCH(Lighting_Recs!B91,'Wattage Table'!$C$3:$C$2131,0)) -> Incandescent | F91: =INDEX('Wattage Table'!$K$3:$K$2130,MATCH(B91,Device_Code,0)) -> 100 | G91: ILED 14 | H91: =INDEX('Wattage Table'!$E$3:$E$2131,MATCH(Lighting_Recs!G91,'Wattage Table'!$C$3:$C$2131,0)) -> LED, Replacement Lamps 14 watts | I91: =INDEX('Wattage Table'!$K$3:$K$2130,MATCH(G91,Device_Code,0)) -> 14 | J91: 0.86 | K91: L410 | O91: 1lp, 100 watts, Incandescent to LED, Replacement Lamps 14 watts
A92: =1&"lp, "&F92&" watts, Incandescent" -> 1lp, 120 watts, Incandescent | B92: I120/1 | D92: =F92 -> 120 | E92: =INDEX('Wattage Table'!$A$3:$A$2131,MATCH(Lighting_Recs!B92,'Wattage Table'!$C$3:$C$2131,0)) -> Incandescent | F92: =INDEX('Wattage Table'!$K$3:$K$2130,MATCH(B92,Device_Code,0)) -> 120 | G92: ILED 14 | H92: =INDEX('Wattage Table'!$E$3:$E$2131,MATCH(Lighting_Recs!G92,'Wattage Table'!$C$3:$C$2131,0)) -> LED, Replacement Lamps 14 watts | I92: =INDEX('Wattage Table'!$K$3:$K$2130,MATCH(G92,Device_Code,0)) -> 14 | J92: 0.8833333333 | K92: L410 | O92: 1lp, 120 watts, Incandescent to LED, Replacement Lamps 14 watts
A93: =1&"lp, "&F93&" watts, Incandescent" -> 1lp, 125 watts, Incandescent | B93: I125/1 | D93: 125 | E93: =INDEX('Wattage Table'!$A$3:$A$2131,MATCH(Lighting_Recs!B93,'Wattage Table'!$C$3:$C$2131,0)) -> Incandescent | F93: =INDEX('Wattage Table'!$K$3:$K$2130,MATCH(B93,Device_Code,0)) -> 125 | G93: ILED 17 | H93: =INDEX('Wattage Table'!$E$3:$E$2131,MATCH(Lighting_Recs!G93,'Wattage Table'!$C$3:$C$2131,0)) -> LED, Replacement Lamps 17 watts | I93: =INDEX('Wattage Table'!$K$3:$K$2130,MATCH(G93,Device_Code,0)) -> 17 | J93: 0.864 | K93: L410 | O93: 1lp, 125 watts, Incandescent to LED, Replacement Lamps 17 watts
A94: 1lp, 15 watts, Incandescent | B94: I15/1 | D94: 15 | E94: =INDEX('Wattage Table'!$A$3:$A$2131,MATCH(Lighting_Recs!B94,'Wattage Table'!$C$3:$C$2131,0)) -> Incandescent | F94: =INDEX('Wattage Table'!$K$3:$K$2130,MATCH(B94,Device_Code,0)) -> 15 | G94: ILED 3 | H94: =INDEX('Wattage Table'!$E$3:$E$2131,MATCH(Lighting_Recs!G94,'Wattage Table'!$C$3:$C$2131,0)) -> LED, Replacement Lamps 3 watts | I94: =INDEX('Wattage Table'!$K$3:$K$2130,MATCH(G94,Device_Code,0)) -> 3 | J94: 0.8 | K94: L410 | O94: 1lp, 15 watts, Incandescent to LED, Replacement Lamps 3 watts
A95: 1lp, 150 watts, Incandescent | B95: I150/1 | D95: 150 | E95: =INDEX('Wattage Table'!$A$3:$A$2131,MATCH(Lighting_Recs!B95,'Wattage Table'!$C$3:$C$2131,0)) -> Incandescent | F95: =INDEX('Wattage Table'!$K$3:$K$2130,MATCH(B95,Device_Code,0)) -> 150 | G95: ILED 17 | H95: =INDEX('Wattage Table'!$E$3:$E$2131,MATCH(Lighting_Recs!G95,'Wattage Table'!$C$3:$C$2131,0)) -> LED, Replacement Lamps 17 watts | I95: =INDEX('Wattage Table'!$K$3:$K$2130,MATCH(G95,Device_Code,0)) -> 17 | J95: 0.8866666667 | K95: L410 | O95: 1lp, 150 watts, Incandescent to LED, Replacement Lamps 17 watts
A96: 1lp, 20 watts, Incandescent | B96: I20/1 | D96: 20 | E96: =INDEX('Wattage Table'!$A$3:$A$2131,MATCH(Lighting_Recs!B96,'Wattage Table'!$C$3:$C$2131,0)) -> Incandescent | F96: =INDEX('Wattage Table'!$K$3:$K$2130,MATCH(B96,Device_Code,0)) -> 20 | G96: ILED 4 | H96: =INDEX('Wattage Table'!$E$3:$E$2131,MATCH(Lighting_Recs!G96,'Wattage Table'!$C$3:$C$2131,0)) -> LED, Replacement Lamps 4 watts | I96: =INDEX('Wattage Table'!$K$3:$K$2130,MATCH(G96,Device_Code,0)) -> 4 | J96: 0.8 | K96: L410 | O96: 1lp, 20 watts, Incandescent to LED, Replacement Lamps 4 watts
A97: 1lp, 200 watts, Incandescent | B97: I200/1 | D97: 200 | E97: =INDEX('Wattage Table'!$A$3:$A$2131,MATCH(Lighting_Recs!B97,'Wattage Table'!$C$3:$C$2131,0)) -> Incandescent | F97: =INDEX('Wattage Table'!$K$3:$K$2130,MATCH(B97,Device_Code,0)) -> 200 | G97: ILED 30 | H97: =INDEX('Wattage Table'!$E$3:$E$2131,MATCH(Lighting_Recs!G97,'Wattage Table'!$C$3:$C$2131,0)) -> LED, Replacement Lamps 30 watts | I97: =INDEX('Wattage Table'!$K$3:$K$2130,MATCH(G97,Device_Code,0)) -> 30 | J97: 0.85 | K97: L410 | O97: 1lp, 200 watts, Incandescent to LED, Replacement Lamps 30 watts
A98: 1lp, 250 watts, Incandescent | B98: I250/1 | D98: 250 | E98: =INDEX('Wattage Table'!$A$3:$A$2131,MATCH(Lighting_Recs!B98,'Wattage Table'!$C$3:$C$2131,0)) -> Incandescent | F98: =INDEX('Wattage Table'!$K$3:$K$2130,MATCH(B98,Device_Code,0)) -> 250 | G98: ILED 32 | H98: =INDEX('Wattage Table'!$E$3:$E$2131,MATCH(Lighting_Recs!G98,'Wattage Table'!$C$3:$C$2131,0)) -> LED, Replacement Lamps 32 watts | I98: =INDEX('Wattage Table'!$K$3:$K$2130,MATCH(G98,Device_Code,0)) -> 32 | J98: 0.872 | K98: L410 | O98: 1lp, 250 watts, Incandescent to LED, Replacement Lamps 32 watts
A99: 1lp, 300 watts, Incandescent | B99: I300/1 | D99: 300 | E99: =INDEX('Wattage Table'!$A$3:$A$2131,MATCH(Lighting_Recs!B99,'Wattage Table'!$C$3:$C$2131,0)) -> Incandescent | F99: =INDEX('Wattage Table'!$K$3:$K$2130,MATCH(B99,Device_Code,0)) -> 300 | G99: ILED 38 | H99: =INDEX('Wattage Table'!$E$3:$E$2131,MATCH(Lighting_Recs!G99,'Wattage Table'!$C$3:$C$2131,0)) -> LED, Replacement Lamps 38 watts | I99: =INDEX('Wattage Table'!$K$3:$K$2130,MATCH(G99,Device_Code,0)) -> 38 | J99: 0.8733333333 | K99: L410 | O99: 1lp, 300 watts, Incandescent to LED, Replacement Lamps 38 watts
A100: 1lp, 40 watts, Incandescent | B100: I40/1 | D100: 40 | E100: =INDEX('Wattage Table'!$A$3:$A$2131,MATCH(Lighting_Recs!B100,'Wattage Table'!$C$3:$C$2131,0)) -> Incandescent | F100: =INDEX('Wattage Table'!$K$3:$K$2130,MATCH(B100,Device_Code,0)) -> 40 | G100: ILED 7 | H100: =INDEX('Wattage Table'!$E$3:$E$2131,MATCH(Lighting_Recs!G100,'Wattage Table'!$C$3:$C$2131,0)) -> LED, Replacement Lamps 7 watts | I100: =INDEX('Wattage Table'!$K$3:$K$2130,MATCH(G100,Device_Code,0)) -> 7 | J100: 0.825 | K100: L410 | O100: 1lp, 40 watts, Incandescent to LED, Replacement Lamps 7 watts
A101: 1lp, 50 watts, Incandescent | B101: I50/1 | D101: 50 | E101: =INDEX('Wattage Table'!$A$3:$A$2131,MATCH(Lighting_Recs!B101,'Wattage Table'!$C$3:$C$2131,0)) -> Incandescent | F101: =INDEX('Wattage Table'!$K$3:$K$2130,MATCH(B101,Device_Code,0)) -> 50 | G101: ILED 9 | H101: =INDEX('Wattage Table'!$E$3:$E$2131,MATCH(Lighting_Recs!G101,'Wattage Table'!$C$3:$C$2131,0)) -> LED, Replacement Lamps 9 watts | I101: =INDEX('Wattage Table'!$K$3:$K$2130,MATCH(G101,Device_Code,0)) -> 9 | J101: 0.82 | K101: L410 | O101: 1lp, 50 watts, Incandescent to LED, Replacement Lamps 9 watts
A102: 1lp, 55 watts, Incandescent | B102: I55/1 | D102: 55 | E102: =INDEX('Wattage Table'!$A$3:$A$2131,MATCH(Lighting_Recs!B102,'Wattage Table'!$C$3:$C$2131,0)) -> Incandescent | F102: =INDEX('Wattage Table'!$K$3:$K$2130,MATCH(B102,Device_Code,0)) -> 55 | G102: ILED 9 | H102: =INDEX('Wattage Table'!$E$3:$E$2131,MATCH(Lighting_Recs!G102,'Wattage Table'!$C$3:$C$2131,0)) -> LED, Replacement Lamps 9 watts | I102: =INDEX('Wattage Table'!$K$3:$K$2130,MATCH(G102,Device_Code,0)) -> 9 | J102: 0.8363636364 | K102: L410 | O102: 1lp, 55 watts, Incandescent to LED, Replacement Lamps 9 watts
A103: 1lp, 60 watts, Incandescent | B103: I60/1 | D103: 60 | E103: =INDEX('Wattage Table'!$A$3:$A$2131,MATCH(Lighting_Recs!B103,'Wattage Table'!$C$3:$C$2131,0)) -> Incandescent | F103: =INDEX('Wattage Table'!$K$3:$K$2130,MATCH(B103,Device_Code,0)) -> 60 | G103: ILED 10 | H103: =INDEX('Wattage Table'!$E$3:$E$2131,MATCH(Lighting_Recs!G103,'Wattage Table'!$C$3:$C$2131,0)) -> LED, Replacement Lamps 10 watts | I103: =INDEX('Wattage Table'!$K$3:$K$2130,MATCH(G103,Device_Code,0)) -> 10 | J103: 0.8333333333 | K103: L410 | O103: 1lp, 60 watts, Incandescent to LED, Replacement Lamps 10 watts
A104: 1lp, 65 watts, Incandescent | B104: I65/1 | D104: 65 | E104: =INDEX('Wattage Table'!$A$3:$A$2131,MATCH(Lighting_Recs!B104,'Wattage Table'!$C$3:$C$2131,0)) -> Incandescent | F104: =INDEX('Wattage Table'!$K$3:$K$2130,MATCH(B104,Device_Code,0)) -> 65 | G104: ILED 11 | H104: =INDEX('Wattage Table'!$E$3:$E$2131,MATCH(Lighting_Recs!G104,'Wattage Table'!$C$3:$C$2131,0)) -> LED, Replacement Lamps 11 watts | I104: =INDEX('Wattage Table'!$K$3:$K$2130,MATCH(G104,Device_Code,0)) -> 11 | J104: 0.8307692308 | K104: L410 | O104: 1lp, 65 watts, Incandescent to LED, Replacement Lamps 11 watts
A105: 1lp, 75 watts, Incandescent | B105: I75/1 | D105: 75 | E105: =INDEX('Wattage Table'!$A$3:$A$2131,MATCH(Lighting_Recs!B105,'Wattage Table'!$C$3:$C$2131,0)) -> Incandescent | F105: =INDEX('Wattage Table'!$K$3:$K$2130,MATCH(B105,Device_Code,0)) -> 75 | G105: ILED 14 | H105: =INDEX('Wattage Table'!$E$3:$E$2131,MATCH(Lighting_Recs!G105,'Wattage Table'!$C$3:$C$2131,0)) -> LED, Replacement Lamps 14 watts | I105: =INDEX('Wattage Table'!$K$3:$K$2130,MATCH(G105,Device_Code,0)) -> 14 | O105: 1lp, 75 watts, Incandescent to LED, Replacement Lamps 14 watts
A106: 1lp, 80 watts, Incandescent | B106: I80/1 | D106: 80 | E106: =INDEX('Wattage Table'!$A$3:$A$2131,MATCH(Lighting_Recs!B106,'Wattage Table'!$C$3:$C$2131,0)) -> Incandescent | F106: =INDEX('Wattage Table'!$K$3:$K$2130,MATCH(B106,Device_Code,0)) -> 80 | G106: ILED 14 | H106: =INDEX('Wattage Table'!$E$3:$E$2131,MATCH(Lighting_Recs!G106,'Wattage Table'!$C$3:$C$2131,0)) -> LED, Replacement Lamps 14 watts | I106: =INDEX('Wattage Table'!$K$3:$K$2130,MATCH(G106,Device_Code,0)) -> 14 | J106: =IF(G106="No Rec","",1-(I106/F106)) -> 0.825 | K106: L410 | O106: 1lp, 80 watts, Incandescent to LED, Replacement Lamps 14 watts
A107: 1lp, 90 watts, Incandescent | B107: I90/1 | D107: 90 | E107: =INDEX('Wattage Table'!$A$3:$A$2131,MATCH(Lighting_Recs!B107,'Wattage Table'!$C$3:$C$2131,0)) -> Incandescent | F107: =INDEX('Wattage Table'!$K$3:$K$2130,MATCH(B107,Device_Code,0)) -> 90 | G107: ILED 15 | H107: =INDEX('Wattage Table'!$E$3:$E$2131,MATCH(Lighting_Recs!G107,'Wattage Table'!$C$3:$C$2131,0)) -> LED, Replacement Lamps 15 watts | I107: =INDEX('Wattage Table'!$K$3:$K$2130,MATCH(G107,Device_Code,0)) -> 15 | J107: 0.8333333333 | K107: L410 | O107: 1lp, 90 watts, Incandescent to LED, Replacement Lamps 15 watts
A108: 1lp, 95 watts, Incandescent | B108: I95/1 | D108: 95 | E108: =INDEX('Wattage Table'!$A$3:$A$2131,MATCH(Lighting_Recs!B108,'Wattage Table'!$C$3:$C$2131,0)) -> Incandescent | F108: =INDEX('Wattage Table'!$K$3:$K$2130,MATCH(B108,Device_Code,0)) -> 95 | G108: ILED 16 | H108: =INDEX('Wattage Table'!$E$3:$E$2131,MATCH(Lighting_Recs!G108,'Wattage Table'!$C$3:$C$2131,0)) -> LED, Replacement Lamps 16 watts | I108: =INDEX('Wattage Table'!$K$3:$K$2130,MATCH(G108,Device_Code,0)) -> 16 | J108: 0.8315789474 | K108: L410 | O108: 1lp, 95 watts, Incandescent to LED, Replacement Lamps 16 watts
A109: 100w Metal Halide | B109: MH100/1 | D109: =MID(B109,3,3) -> 100 | E109: =INDEX('Wattage Table'!$A$3:$A$2131,MATCH(Lighting_Recs!B109,'Wattage Table'!$C$3:$C$2131,0)) -> Metal Halide | F109: =INDEX('Wattage Table'!$K$3:$K$2130,MATCH(B109,Device_Code,0)) -> 128 | G109: ILED 30 | H109: =INDEX('Wattage Table'!$E$3:$E$2131,MATCH(Lighting_Recs!G109,'Wattage Table'!$C$3:$C$2131,0)) -> LED, Replacement Lamps 30 watts | I109: =INDEX('Wattage Table'!$K$3:$K$2130,MATCH(G109,Device_Code,0)) -> 30 | J109: 0.765625 | K109: L410 | O109: 100w Metal Halide to LED, Replacement Lamps 30 watts
A110: 1000w Metal Halide High Bay | B110: MH1000/1 | D110: =MID(B110,3,4) -> 1000 | E110: =INDEX('Wattage Table'!$A$3:$A$2131,MATCH(Lighting_Recs!B110,'Wattage Table'!$C$3:$C$2131,0)) -> Metal Halide | F110: =INDEX('Wattage Table'!$K$3:$K$2130,MATCH(B110,Device_Code,0)) -> 1080 | G110: FLED HBY 345 | H110: =INDEX('Wattage Table'!$E$3:$E$2131,MATCH(Lighting_Recs!G110,'Wattage Table'!$C$3:$C$2131,0)) -> LED, High Bay Fixtures 345 watts | I110: =INDEX('Wattage Table'!$K$3:$K$2130,MATCH(G110,Device_Code,0)) -> 345 | J110: 0.6805555556 | K110: L820 | O110: 1000w Metal Halide High Bay to LED, High Bay Fixtures 345 watts
A111: 150w Metal Halide | B111: MH150/1 | D111: =MID(B111,3,3) -> 150 | E111: =INDEX('Wattage Table'!$A$3:$A$2131,MATCH(Lighting_Recs!B111,'Wattage Table'!$C$3:$C$2131,0)) -> Metal Halide | F111: =INDEX('Wattage Table'!$K$3:$K$2130,MATCH(B111,Device_Code,0)) -> 190 | G111: ILED 32 | H111: =INDEX('Wattage Table'!$E$3:$E$2131,MATCH(Lighting_Recs!G111,'Wattage Table'!$C$3:$C$2131,0)) -> LED, Replacement Lamps 32 watts | I111: =INDEX('Wattage Table'!$K$3:$K$2130,MATCH(G111,Device_Code,0)) -> 32 | J111: 0.8315789474 | K111: L410 | O111: 150w Metal Halide to LED, Replacement Lamps 32 watts
A112: 175w Metal Halide | B112: MH175/1 | D112: 175 | E112: =INDEX('Wattage Table'!$A$3:$A$2131,MATCH(Lighting_Recs!B112,'Wattage Table'!$C$3:$C$2131,0)) -> Metal Halide | F112: =INDEX('Wattage Table'!$K$3:$K$2130,MATCH(B112,Device_Code,0)) -> 215 | G112: ILED 32 | H112: =INDEX('Wattage Table'!$E$3:$E$2131,MATCH(Lighting_Recs!G112,'Wattage Table'!$C$3:$C$2131,0)) -> LED, Replacement Lamps 32 watts | I112: =INDEX('Wattage Table'!$K$3:$K$2130,MATCH(G112,Device_Code,0)) -> 32 | J112: 0.8511627907 | K112: L410 | O112: 175w Metal Halide to LED, Replacement Lamps 32 watts
A113: 200w Metal Halide Low Bay | B113: MH200/1 | D113: 200 | E113: =INDEX('Wattage Table'!$A$3:$A$2131,MATCH(Lighting_Recs!B113,'Wattage Table'!$C$3:$C$2131,0)) -> Metal Halide | F113: =INDEX('Wattage Table'!$K$3:$K$2130,MATCH(B113,Device_Code,0)) -> 232 | G113: LBLED 72 | H113: =INDEX('Wattage Table'!$E$3:$E$2131,MATCH(Lighting_Recs!G113,'Wattage Table'!$C$3:$C$2131,0)) -> LED, Low Bay Fixtures 72 watts | I113: =INDEX('Wattage Table'!$K$3:$K$2130,MATCH(G113,Device_Code,0)) -> 72 | J113: 0.6896551724 | K113: L810 | O113: 200w Metal Halide Low Bay to LED, Low Bay Fixtures 72 watts
A114: 250w Metal Halide Low Bay | B114: MH250/1 | D114: 250 | E114: =INDEX('Wattage Table'!$A$3:$A$2131,MATCH(Lighting_Recs!B114,'Wattage Table'!$C$3:$C$2131,0)) -> Metal Halide | F114: =INDEX('Wattage Table'!$K$3:$K$2130,MATCH(B114,Device_Code,0)) -> 295 | G114: LBLED 60 | H114: =INDEX('Wattage Table'!$E$3:$E$2131,MATCH(Lighting_Recs!G114,'Wattage Table'!$C$3:$C$2131,0)) -> LED, Low Bay Fixtures 60 watts | I114: =INDEX('Wattage Table'!$K$3:$K$2130,MATCH(G114,Device_Code,0)) -> 60 | J114: 0.7966101695 | K114: L820 | O114: 250w Metal Halide Low Bay to LED, Low Bay Fixtures 60 watts
A115: 300w Metal Halide Low Bay | B115: MH300/1 | D115: 300 | E115: =INDEX('Wattage Table'!$A$3:$A$2131,MATCH(Lighting_Recs!B115,'Wattage Table'!$C$3:$C$2131,0)) -> Metal Halide | F115: =INDEX('Wattage Table'!$K$3:$K$2130,MATCH(B115,Device_Code,0)) -> 342 | G115: FLED HBY 108 | H115: =INDEX('Wattage Table'!$E$3:$E$2131,MATCH(Lighting_Recs!G115,'Wattage Table'!$C$3:$C$2131,0)) -> LED, High Bay Fixtures 108 watts | I115: =INDEX('Wattage Table'!$K$3:$K$2130,MATCH(G115,Device_Code,0)) -> 108 | J115: 0.6842105263 | K115: L820 | O115: 300w Metal Halide Low Bay to LED, High Bay Fixtures 108 watts
A116: 320w Metal Halide Low Bay | B116: MH320/1 | D116: 320 | E116: =INDEX('Wattage Table'!$A$3:$A$2131,MATCH(Lighting_Recs!B116,'Wattage Table'!$C$3:$C$2131,0)) -> Metal Halide | F116: =INDEX('Wattage Table'!$K$3:$K$2130,MATCH(B116,Device_Code,0)) -> 365 | G116: FLED HBY 115 | H116: =INDEX('Wattage Table'!$E$3:$E$2131,MATCH(Lighting_Recs!G116,'Wattage Table'!$C$3:$C$2131,0)) -> LED, High Bay Fixtures 115 watts | I116: =INDEX('Wattage Table'!$K$3:$K$2130,MATCH(G116,Device_Code,0)) -> 115 | J116: 0.6849315068 | K116: L820 | O116: 320w Metal Halide Low Bay to LED, High Bay Fixtures 115 watts
A117: 350w Metal Halide Low Bay | B117: MH350/1 | D117: 350 | E117: =INDEX('Wattage Table'!$A$3:$A$2131,MATCH(Lighting_Recs!B117,'Wattage Table'!$C$3:$C$2131,0)) -> Metal Halide | F117: =INDEX('Wattage Table'!$K$3:$K$2130,MATCH(B117,Device_Code,0)) -> 400 | G117: FLED HBY 126 | H117: =INDEX('Wattage Table'!$E$3:$E$2131,MATCH(Lighting_Recs!G117,'Wattage Table'!$C$3:$C$2131,0)) -> LED, High Bay Fixtures 126 watts | I117: =INDEX('Wattage Table'!$K$3:$K$2130,MATCH(G117,Device_Code,0)) -> 126 | J117: 0.685 | K117: L820 | O117: 350w Metal Halide Low Bay to LED, High Bay Fixtures 126 watts
A118: 360w Metal Halide Low Bay | B118: MH360/1 | D118: 360 | E118: =INDEX('Wattage Table'!$A$3:$A$2131,MATCH(Lighting_Recs!B118,'Wattage Table'!$C$3:$C$2131,0)) -> Metal Halide | F118: =INDEX('Wattage Table'!$K$3:$K$2130,MATCH(B118,Device_Code,0)) -> 430 | G118: FLED HBY 136 | H118: =INDEX('Wattage Table'!$E$3:$E$2131,MATCH(Lighting_Recs!G118,'Wattage Table'!$C$3:$C$2131,0)) -> LED, High Bay Fixtures 136 watts | I118: =INDEX('Wattage Table'!$K$3:$K$2130,MATCH(G118,Device_Code,0)) -> 136 | J118: 0.6837209302 | K118: L820 | O118: 360w Metal Halide Low Bay to LED, High Bay Fixtures 136 watts
A119: 400w Metal Halide High Bay | B119: MH400/1 | D119: 400 | E119: =INDEX('Wattage Table'!$A$3:$A$2131,MATCH(Lighting_Recs!B119,'Wattage Table'!$C$3:$C$2131,0)) -> Metal Halide | F119: =INDEX('Wattage Table'!$K$3:$K$2130,MATCH(B119,Device_Code,0)) -> 458 | G119: FLED HBY 145 | H119: =INDEX('Wattage Table'!$E$3:$E$2131,MATCH(Lighting_Recs!G119,'Wattage Table'!$C$3:$C$2131,0)) -> LED, High Bay Fixtures 145 watts | I119: =INDEX('Wattage Table'!$K$3:$K$2130,MATCH(G119,Device_Code,0)) -> 145 | J119: 0.6834061135 | K119: L820 | O119: 400w Metal Halide High Bay to LED, High Bay Fixtures 145 watts
A120: 450w Metal Halide High Bay | B120: MH450/1 | D120: 450 | E120: =INDEX('Wattage Table'!$A$3:$A$2131,MATCH(Lighting_Recs!B120,'Wattage Table'!$C$3:$C$2131,0)) -> Metal Halide | F120: =INDEX('Wattage Table'!$K$3:$K$2130,MATCH(B120,Device_Code,0)) -> 508 | G120: FLED HBY 160 | H120: =INDEX('Wattage Table'!$E$3:$E$2131,MATCH(Lighting_Recs!G120,'Wattage Table'!$C$3:$C$2131,0)) -> LED, High Bay Fixtures 160 watts | I120: =INDEX('Wattage Table'!$K$3:$K$2130,MATCH(G120,Device_Code,0)) -> 160 | J120: 0.6850393701 | K120: L820 | O120: 450w Metal Halide High Bay to LED, High Bay Fixtures 160 watts
A121: 50w Metal Halide | B121: MH50/1 | D121: =MID(B121,3,2) -> 50 | E121: =INDEX('Wattage Table'!$A$3:$A$2131,MATCH(Lighting_Recs!B121,'Wattage Table'!$C$3:$C$2131,0)) -> Metal Halide | F121: =INDEX('Wattage Table'!$K$3:$K$2130,MATCH(B121,Device_Code,0)) -> 72 | G121: ILED 14 | H121: =INDEX('Wattage Table'!$E$3:$E$2131,MATCH(Lighting_Recs!G121,'Wattage Table'!$C$3:$C$2131,0)) -> LED, Replacement Lamps 14 watts | I121: =INDEX('Wattage Table'!$K$3:$K$2130,MATCH(G121,Device_Code,0)) -> 14 | J121: 0.8055555556 | O121: 50w Metal Halide to LED, Replacement Lamps 14 watts
A122: 70w Metal Halide | B122: MH70/1 | D122: =MID(B122,3,2) -> 70 | E122: =INDEX('Wattage Table'!$A$3:$A$2131,MATCH(Lighting_Recs!B122,'Wattage Table'!$C$3:$C$2131,0)) -> Metal Halide | F122: =INDEX('Wattage Table'!$K$3:$K$2130,MATCH(B122,Device_Code,0)) -> 95 | G122: ILED 18 | H122: =INDEX('Wattage Table'!$E$3:$E$2131,MATCH(Lighting_Recs!G122,'Wattage Table'!$C$3:$C$2131,0)) -> LED, Replacement Lamps 18 watts | I122: =INDEX('Wattage Table'!$K$3:$K$2130,MATCH(G122,Device_Code,0)) -> 18 | J122: 0.8105263158 | O122: 70w Metal Halide to LED, Replacement Lamps 18 watts
A123: 750w Metal Halide High Bay | B123: MH750/1 | D123: 75 | E123: =INDEX('Wattage Table'!$A$3:$A$2131,MATCH(Lighting_Recs!B123,'Wattage Table'!$C$3:$C$2131,0)) -> Metal Halide | F123: =INDEX('Wattage Table'!$K$3:$K$2130,MATCH(B123,Device_Code,0)) -> 850 | G123: FLED HBY 269 | H123: =INDEX('Wattage Table'!$E$3:$E$2131,MATCH(Lighting_Recs!G123,'Wattage Table'!$C$3:$C$2131,0)) -> LED, High Bay Fixtures 269 watts | I123: =INDEX('Wattage Table'!$K$3:$K$2130,MATCH(G123,Device_Code,0)) -> 269 | J123: 0.6835294118 | K123: L820 | O123: 750w Metal Halide High Bay to LED, High Bay Fixtures 269 watts
A124: T12 Not Listed | B124: Custom | G124: Custom
A125: T8 Not Listed | B125: Custom | G125: Custom
A126: T5 Not Listed | B126: Custom | G126: Custom
A127: Incandescent Not Listed | B127: Custom | G127: Custom
A128: MH Not Listed | B128: Custom | G128: Custom
A129: HPS Not Listed | B129: Custom | G129: Custom

Sheet Lighting Calcs (hidden)
E1: Existing | O1: =SUM(O3:O231) -> 0 | Q1: Recommendation | Y1: =SUM(Y3:Y27) ->  | AB1: Savings | AH1: =SUM(AH3:AH27) -> 0 | AI1: =SUM(AI3:AI27) ->  | AK1: =SUM(AK3:AK27) -> 0 | AL1: =SUM(AL3:AL27) ->  | AN1: =SUM(AN3:AN27) ->  | AO1: =SUM(AO3:AO27) -> 
B2: Location | C2: Fixture Qty | E2: Fixture Type | G2: Device Code | H2: Device Category | I2: Description | J2: Lamp/Fixt | K2: Watt/Lamp | L2: Watt/ Fixture | M2: Total kW | N2: Total kWh | O2: Annual $ | Q2: Recommended Device Code | R2: Description | S2: Qty. | T2: Lamp/Fixt | U2: Watt/Lamp | V2: Watt/ Fixture | W2: Total kW | X2: Total kWh | Y2: Annual $ | AA2: Measure | AB2: Watts saved per fixture | AC2: Total Watts Saved | AD2: Total kW Saved | AE2: Full Load Hours | AF2: Total kWh Saved | AH2: Existing kW | AI2: Existing kWh | AK2: Proposed kW | AL2: Proposed kWh | AN2: Existing operating cost | AO2: Proposed Operating costs
A3: =OFFSET('Appliances Data Collection'!$A$6,ROWS(A3:A$3)*15-15,0) -> 1 | B3: =IF(OFFSET('Appliances Data Collection'!$C$7,ROWS(B3:B$3)*15-15,0)="","",OFFSET('Appliances Data Collection'!$C$7,ROWS(B3:B$3)*15-15,0)) ->  | C3: =OFFSET('Appliances Data Collection'!$C$9,ROWS(C3:C$3)*15-15,0) -> 0 | E3: =IF(C3=0,"",IF(F3="Open","Custom",OFFSET('Appliances Data Collection'!$C$15,ROWS(E3:E$3)*15-15,0))) ->  | F3: =OFFSET('Appliances Data Collection'!$G$11,ROWS(F3:F$3)*15-15,0) ->  | G3: =OFFSET('Appliances Data Collection'!$I$9,ROWS(G3:G$3)*15-15,0) -> Working: | H3: =IF(C3=0,"",INDEX('Wattage Table'!$A$3:$A$2131,MATCH(G3,Device_Code,0))) ->  | I3: =_xlfn.IFNA(INDEX('Wattage Table'!$E$3:$E$2131,MATCH(G3,Device_Code,0)),"") ->  | J3: =_xlfn.IFNA(INDEX('Wattage Table'!$H$3:$H$2131,MATCH(G3,Device_Code,0)),"") ->  | K3: =_xlfn.IFNA(INDEX('Wattage Table'!$J$3:$J$2131,MATCH(G3,Device_Code,0)),"") ->  | L3: =OFFSET('Appliances Data Collection'!$J$9,ROWS(L3:L$3)*15-15,0) -> 0 | M3: =IF(C3=0,"",L3*C3/1000) ->  | N3: =IF(C3=0,"",M3*AE3) ->  | O3: =IF(C3=0,"",N3*0.2) ->  | Q3: =OFFSET('Appliances Data Collection'!$L$9,ROWS(Q3:Q$3)*15-15,0) -> 0 | R3: =_xlfn.IFNA(INDEX('Wattage Table'!$E$3:$E$2130,MATCH(Q3,Device_Code,0)),"") ->  | S3: =IF(OR(Q3="",Q3="none"),"",IF(G3="Custom",C3,IF(LEFT(G3,2)="F8",C3*2,IF(LEFT(Q3,4)="ILED",J3*C3,C3)))) -> 0 | T3: =_xlfn.IFNA(INDEX('Wattage Table'!$H$3:$H$2130,MATCH(Q3,Device_Code,0)),"") ->  | U3: =IF(OR(Q3="",Q3="None"),"",IF(LEFT(Q3,4)="ILED",INDEX('Wattage Table'!$K$3:$K$2132,MATCH('Lighting Calcs'!Q3,'Wattage Table'!$C$3:$C$2132,0),INDEX('Wattage Table'!$J$3:$J$2130,MATCH(Q3,Device_Code,0))))) -> FALSE | V3: =OFFSET('Appliances Data Collection'!$M$9,ROWS(V3:V$3)*15-15,0) -> 0 | W3: =IF(Q3="","",V3*C3/1000) -> 0 | X3: =IF(Q3="","",W3*AE3) ->  | Y3: =IF(Q3="","",X3*0.2) ->  | AA3: =IF(E3="","",IF(Q3="None","No Recommendation",IF(G3="Custom",E3&" to LED",IF(LEFT(G3,2)="F8",E3&" to (2) "&R3,E3&" to "&R3)))) ->  | AB3: =IFERROR(IF(AA3="No Recommendation",0,L3-V3),"") -> 0 | AC3: =IFERROR(AB3*C3,"") -> 0 | AD3: =IFERROR(AC3/1000,"") -> 0 | AE3: =IF(E3="","",IF(NOT(OtherOperHours=0),OtherOperHours,AnnualOperHours)) ->  | AF3: =IFERROR(AE3*AD3,"") ->  | AH3: =IF(L3="","",(L3*C3)/1000) -> 0 | AI3: =IF(AH3="","",AE3*AH3) ->  | AK3: =IF(Q3="None",AH3,IF(V3="","",(V3*C3)/1000)) -> 0 | AL3: =IF(AK3="","",AK3*AE3) ->  | AN3: =IF(AI3="","",AI3*0.2) ->  | AO3: =IF(AL3="","",IF(AA3="No Recommendation",AN3,AL3*0.2)) -> 
A4: =OFFSET('Appliances Data Collection'!$A$6,ROWS(A$3:A4)*15-15,0) -> 2 | B4: =IF(OFFSET('Appliances Data Collection'!$C$7,ROWS(B$3:B4)*15-15,0)="","",OFFSET('Appliances Data Collection'!$C$7,ROWS(B$3:B4)*15-15,0)) ->  | C4: =OFFSET('Appliances Data Collection'!$C$9,ROWS(C$3:C4)*15-15,0) -> 0 | E4: =IF(C4=0,"",IF(F4="Open","Custom",OFFSET('Appliances Data Collection'!$C$15,ROWS(E$3:E4)*15-15,0))) ->  | F4: =OFFSET('Appliances Data Collection'!$G$11,ROWS(F$3:F4)*15-15,0) ->  | G4: =OFFSET('Appliances Data Collection'!$I$9,ROWS(G$3:G4)*15-15,0) -> Working: | H4: =IF(C4=0,"",INDEX('Wattage Table'!$A$3:$A$2131,MATCH(G4,Device_Code,0))) ->  | I4: =_xlfn.IFNA(INDEX('Wattage Table'!$E$3:$E$2131,MATCH(G4,Device_Code,0)),"") ->  | J4: =_xlfn.IFNA(INDEX('Wattage Table'!$H$3:$H$2131,MATCH(G4,Device_Code,0)),"") ->  | K4: =_xlfn.IFNA(INDEX('Wattage Table'!$J$3:$J$2131,MATCH(G4,Device_Code,0)),"") ->  | L4: =OFFSET('Appliances Data Collection'!$J$9,ROWS(L$3:L4)*15-15,0) -> 0 | M4: =IF(C4=0,"",L4*C4/1000) ->  | O4: =IF(C4=0,"",N4*0.2) ->  | Q4: =OFFSET('Appliances Data Collection'!$L$9,ROWS(Q$3:Q4)*15-15,0) -> 0 | R4: =_xlfn.IFNA(INDEX('Wattage Table'!$E$3:$E$2130,MATCH(Q4,Device_Code,0)),"") ->  | S4: =IF(OR(Q4="",Q4="none"),"",IF(G4="Custom",C4,IF(LEFT(G4,2)="F8",C4*2,IF(LEFT(Q4,4)="ILED",J4*C4,C4)))) -> 0 | T4: =_xlfn.IFNA(INDEX('Wattage Table'!$H$3:$H$2130,MATCH(Q4,Device_Code,0)),"") ->  | U4: =IF(OR(Q4="",Q4="None"),"",IF(LEFT(Q4,4)="ILED",INDEX('Wattage Table'!$K$3:$K$2132,MATCH('Lighting Calcs'!Q4,'Wattage Table'!$C$3:$C$2132,0),INDEX('Wattage Table'!$J$3:$J$2130,MATCH(Q4,Device_Code,0))))) -> FALSE | V4: =OFFSET('Appliances Data Collection'!$M$9,ROWS(V$3:V4)*15-15,0) -> 0 | W4: =IF(Q4="","",V4*C4/1000) -> 0 | Y4: =IF(Q4="","",X4*0.2) ->  | AA4: =IF(E4="","",IF(Q4="None","No Recommendation",IF(G4="Custom",E4&" to LED",IF(LEFT(G4,2)="F8",E4&" to (2) "&R4,E4&" to "&R4)))) ->  | AB4: =IFERROR(IF(AA4="No Recommendation",0,L4-V4),"") -> 0 | AC4: 0 | AD4: =IFERROR(AC4/1000,"") -> 0 | AF4: =IFERROR(AE4*AD4,"") ->  | AH4: 0 | AI4: =IF(AH4="","",AE4*AH4) ->  | AK4: =IF(Q4="None",AH4,IF(V4="","",(V4*C4)/1000)) -> 0 | AL4: =IF(AK4="","",AK4*AE4) ->  | AN4: =IF(AI4="","",AI4*0.2) ->  | AO4: =IF(AL4="","",IF(AA4="No Recommendation",AN4,AL4*0.2)) -> 
A5: =OFFSET('Appliances Data Collection'!$A$6,ROWS(A$3:A5)*15-15,0) -> 3 | B5: =IF(OFFSET('Appliances Data Collection'!$C$7,ROWS(B$3:B5)*15-15,0)="","",OFFSET('Appliances Data Collection'!$C$7,ROWS(B$3:B5)*15-15,0)) ->  | C5: =OFFSET('Appliances Data Collection'!$C$9,ROWS(C$3:C5)*15-15,0) -> 0 | E5: =IF(C5=0,"",IF(F5="Open","Custom",OFFSET('Appliances Data Collection'!$C$15,ROWS(E$3:E5)*15-15,0))) ->  | F5: =OFFSET('Appliances Data Collection'!$G$11,ROWS(F$3:F5)*15-15,0) ->  | G5: =OFFSET('Appliances Data Collection'!$I$9,ROWS(G$3:G5)*15-15,0) -> Working: | H5: =IF(C5=0,"",INDEX('Wattage Table'!$A$3:$A$2131,MATCH(G5,Device_Code,0))) ->  | I5: =_xlfn.IFNA(INDEX('Wattage Table'!$E$3:$E$2131,MATCH(G5,Device_Code,0)),"") ->  | J5: =_xlfn.IFNA(INDEX('Wattage Table'!$H$3:$H$2131,MATCH(G5,Device_Code,0)),"") ->  | K5: =_xlfn.IFNA(INDEX('Wattage Table'!$J$3:$J$2131,MATCH(G5,Device_Code,0)),"") ->  | L5: =OFFSET('Appliances Data Collection'!$J$9,ROWS(L$3:L5)*15-15,0) -> 0 | Q5: =OFFSET('Appliances Data Collection'!$L$9,ROWS(Q$3:Q5)*15-15,0) -> 0 | R5: =_xlfn.IFNA(INDEX('Wattage Table'!$E$3:$E$2130,MATCH(Q5,Device_Code,0)),"") ->  | S5: 0 | T5: =_xlfn.IFNA(INDEX('Wattage Table'!$H$3:$H$2130,MATCH(Q5,Device_Code,0)),"") ->  | U5: =IF(OR(Q5="",Q5="None"),"",IF(LEFT(Q5,4)="ILED",INDEX('Wattage Table'!$K$3:$K$2132,MATCH('Lighting Calcs'!Q5,'Wattage Table'!$C$3:$C$2132,0),INDEX('Wattage Table'!$J$3:$J$2130,MATCH(Q5,Device_Code,0))))) -> FALSE | V5: =OFFSET('Appliances Data Collection'!$M$9,ROWS(V$3:V5)*15-15,0) -> 0 | W5: 0 | AB5: 0 | AC5: 0 | AD5: 0 | AH5: 0 | AK5: 0
A6: =OFFSET('Appliances Data Collection'!$A$6,ROWS(A$3:A6)*15-15,0) -> 4 | B6: =IF(OFFSET('Appliances Data Collection'!$C$7,ROWS(B$3:B6)*15-15,0)="","",OFFSET('Appliances Data Collection'!$C$7,ROWS(B$3:B6)*15-15,0)) ->  | C6: =OFFSET('Appliances Data Collection'!$C$9,ROWS(C$3:C6)*15-15,0) -> 0 | E6: =IF(C6=0,"",IF(F6="Open","Custom",OFFSET('Appliances Data Collection'!$C$15,ROWS(E$3:E6)*15-15,0))) ->  | F6: =OFFSET('Appliances Data Collection'!$G$11,ROWS(F$3:F6)*15-15,0) ->  | G6: =OFFSET('Appliances Data Collection'!$I$9,ROWS(G$3:G6)*15-15,0) -> Working: | H6: =IF(C6=0,"",INDEX('Wattage Table'!$A$3:$A$2131,MATCH(G6,Device_Code,0))) ->  | I6: =_xlfn.IFNA(INDEX('Wattage Table'!$E$3:$E$2131,MATCH(G6,Device_Code,0)),"") ->  | J6: =_xlfn.IFNA(INDEX('Wattage Table'!$H$3:$H$2131,MATCH(G6,Device_Code,0)),"") ->  | K6: =_xlfn.IFNA(INDEX('Wattage Table'!$J$3:$J$2131,MATCH(G6,Device_Code,0)),"") ->  | L6: =OFFSET('Appliances Data Collection'!$J$9,ROWS(L$3:L6)*15-15,0) -> 0 | Q6: =OFFSET('Appliances Data Collection'!$L$9,ROWS(Q$3:Q6)*15-15,0) -> 0 | R6: =_xlfn.IFNA(INDEX('Wattage Table'!$E$3:$E$2130,MATCH(Q6,Device_Code,0)),"") ->  | S6: 0 | T6: =_xlfn.IFNA(INDEX('Wattage Table'!$H$3:$H$2130,MATCH(Q6,Device_Code,0)),"") ->  | U6: =IF(OR(Q6="",Q6="None"),"",IF(LEFT(Q6,4)="ILED",INDEX('Wattage Table'!$K$3:$K$2132,MATCH('Lighting Calcs'!Q6,'Wattage Table'!$C$3:$C$2132,0),INDEX('Wattage Table'!$J$3:$J$2130,MATCH(Q6,Device_Code,0))))) -> FALSE | V6: =OFFSET('Appliances Data Collection'!$M$9,ROWS(V$3:V6)*15-15,0) -> 0 | W6: 0 | AB6: 0 | AC6: 0 | AD6: 0 | AH6: 0 | AK6: 0
A7: =OFFSET('Appliances Data Collection'!$A$6,ROWS(A$3:A7)*15-15,0) -> 5 | B7: =IF(OFFSET('Appliances Data Collection'!$C$7,ROWS(B$3:B7)*15-15,0)="","",OFFSET('Appliances Data Collection'!$C$7,ROWS(B$3:B7)*15-15,0)) ->  | C7: =OFFSET('Appliances Data Collection'!$C$9,ROWS(C$3:C7)*15-15,0) -> 0 | E7: =IF(C7=0,"",IF(F7="Open","Custom",OFFSET('Appliances Data Collection'!$C$15,ROWS(E$3:E7)*15-15,0))) ->  | F7: =OFFSET('Appliances Data Collection'!$G$11,ROWS(F$3:F7)*15-15,0) ->  | G7: =OFFSET('Appliances Data Collection'!$I$9,ROWS(G$3:G7)*15-15,0) -> Working: | H7: =IF(C7=0,"",INDEX('Wattage Table'!$A$3:$A$2131,MATCH(G7,Device_Code,0))) ->  | I7: =_xlfn.IFNA(INDEX('Wattage Table'!$E$3:$E$2131,MATCH(G7,Device_Code,0)),"") ->  | J7: =_xlfn.IFNA(INDEX('Wattage Table'!$H$3:$H$2131,MATCH(G7,Device_Code,0)),"") ->  | K7: =_xlfn.IFNA(INDEX('Wattage Table'!$J$3:$J$2131,MATCH(G7,Device_Code,0)),"") ->  | L7: =OFFSET('Appliances Data Collection'!$J$9,ROWS(L$3:L7)*15-15,0) -> 0 | Q7: =OFFSET('Appliances Data Collection'!$L$9,ROWS(Q$3:Q7)*15-15,0) -> 0 | R7: =_xlfn.IFNA(INDEX('Wattage Table'!$E$3:$E$2130,MATCH(Q7,Device_Code,0)),"") ->  | S7: 0 | T7: =_xlfn.IFNA(INDEX('Wattage Table'!$H$3:$H$2130,MATCH(Q7,Device_Code,0)),"") ->  | U7: =IF(OR(Q7="",Q7="None"),"",IF(LEFT(Q7,4)="ILED",INDEX('Wattage Table'!$K$3:$K$2132,MATCH('Lighting Calcs'!Q7,'Wattage Table'!$C$3:$C$2132,0),INDEX('Wattage Table'!$J$3:$J$2130,MATCH(Q7,Device_Code,0))))) -> FALSE | V7: =OFFSET('Appliances Data Collection'!$M$9,ROWS(V$3:V7)*15-15,0) -> 0 | W7: 0 | AB7: 0 | AC7: 0 | AD7: 0 | AH7: 0 | AK7: 0
A8: =OFFSET('Appliances Data Collection'!$A$6,ROWS(A$3:A8)*15-15,0) -> 6 | B8: =IF(OFFSET('Appliances Data Collection'!$C$7,ROWS(B$3:B8)*15-15,0)="","",OFFSET('Appliances Data Collection'!$C$7,ROWS(B$3:B8)*15-15,0)) ->  | C8: =OFFSET('Appliances Data Collection'!$C$9,ROWS(C$3:C8)*15-15,0) -> 0 | E8: =IF(C8=0,"",IF(F8="Open","Custom",OFFSET('Appliances Data Collection'!$C$15,ROWS(E$3:E8)*15-15,0))) ->  | F8: =OFFSET('Appliances Data Collection'!$G$11,ROWS(F$3:F8)*15-15,0) ->  | G8: =OFFSET('Appliances Data Collection'!$I$9,ROWS(G$3:G8)*15-15,0) -> Working: | H8: =IF(C8=0,"",INDEX('Wattage Table'!$A$3:$A$2131,MATCH(G8,Device_Code,0))) ->  | I8: =_xlfn.IFNA(INDEX('Wattage Table'!$E$3:$E$2131,MATCH(G8,Device_Code,0)),"") ->  | J8: =_xlfn.IFNA(INDEX('Wattage Table'!$H$3:$H$2131,MATCH(G8,Device_Code,0)),"") ->  | K8: =_xlfn.IFNA(INDEX('Wattage Table'!$J$3:$J$2131,MATCH(G8,Device_Code,0)),"") ->  | L8: =OFFSET('Appliances Data Collection'!$J$9,ROWS(L$3:L8)*15-15,0) -> 0 | Q8: =OFFSET('Appliances Data Collection'!$L$9,ROWS(Q$3:Q8)*15-15,0) -> 0 | R8: =_xlfn.IFNA(INDEX('Wattage Table'!$E$3:$E$2130,MATCH(Q8,Device_Code,0)),"") ->  | S8: 0 | T8: =_xlfn.IFNA(INDEX('Wattage Table'!$H$3:$H$2130,MATCH(Q8,Device_Code,0)),"") ->  | U8: =IF(OR(Q8="",Q8="None"),"",IF(LEFT(Q8,4)="ILED",INDEX('Wattage Table'!$K$3:$K$2132,MATCH('Lighting Calcs'!Q8,'Wattage Table'!$C$3:$C$2132,0),INDEX('Wattage Table'!$J$3:$J$2130,MATCH(Q8,Device_Code,0))))) -> FALSE | V8: =OFFSET('Appliances Data Collection'!$M$9,ROWS(V$3:V8)*15-15,0) -> 0 | W8: 0 | AB8: 0 | AC8: 0 | AD8: 0 | AH8: 0 | AK8: 0
A9: =OFFSET('Appliances Data Collection'!$A$6,ROWS(A$3:A9)*15-15,0) -> 7 | B9: =IF(OFFSET('Appliances Data Collection'!$C$7,ROWS(B$3:B9)*15-15,0)="","",OFFSET('Appliances Data Collection'!$C$7,ROWS(B$3:B9)*15-15,0)) ->  | C9: =OFFSET('Appliances Data Collection'!$C$9,ROWS(C$3:C9)*15-15,0) -> 0 | E9: =IF(C9=0,"",IF(F9="Open","Custom",OFFSET('Appliances Data Collection'!$C$15,ROWS(E$3:E9)*15-15,0))) ->  | F9: =OFFSET('Appliances Data Collection'!$G$11,ROWS(F$3:F9)*15-15,0) ->  | G9: =OFFSET('Appliances Data Collection'!$I$9,ROWS(G$3:G9)*15-15,0) -> Working: | H9: =IF(C9=0,"",INDEX('Wattage Table'!$A$3:$A$2131,MATCH(G9,Device_Code,0))) ->  | I9: =_xlfn.IFNA(INDEX('Wattage Table'!$E$3:$E$2131,MATCH(G9,Device_Code,0)),"") ->  | J9: =_xlfn.IFNA(INDEX('Wattage Table'!$H$3:$H$2131,MATCH(G9,Device_Code,0)),"") ->  | K9: =_xlfn.IFNA(INDEX('Wattage Table'!$J$3:$J$2131,MATCH(G9,Device_Code,0)),"") ->  | L9: =OFFSET('Appliances Data Collection'!$J$9,ROWS(L$3:L9)*15-15,0) -> 0 | Q9: =OFFSET('Appliances Data Collection'!$L$9,ROWS(Q$3:Q9)*15-15,0) -> 0 | R9: =_xlfn.IFNA(INDEX('Wattage Table'!$E$3:$E$2130,MATCH(Q9,Device_Code,0)),"") ->  | S9: 0 | T9: =_xlfn.IFNA(INDEX('Wattage Table'!$H$3:$H$2130,MATCH(Q9,Device_Code,0)),"") ->  | U9: =IF(OR(Q9="",Q9="None"),"",IF(LEFT(Q9,4)="ILED",INDEX('Wattage Table'!$K$3:$K$2132,MATCH('Lighting Calcs'!Q9,'Wattage Table'!$C$3:$C$2132,0),INDEX('Wattage Table'!$J$3:$J$2130,MATCH(Q9,Device_Code,0))))) -> FALSE | V9: =OFFSET('Appliances Data Collection'!$M$9,ROWS(V$3:V9)*15-15,0) -> 0 | W9: 0 | AB9: 0 | AC9: 0 | AD9: 0 | AH9: 0 | AK9: 0
A10: =OFFSET('Appliances Data Collection'!$A$6,ROWS(A$3:A10)*15-15,0) -> 8 | B10: =IF(OFFSET('Appliances Data Collection'!$C$7,ROWS(B$3:B10)*15-15,0)="","",OFFSET('Appliances Data Collection'!$C$7,ROWS(B$3:B10)*15-15,0)) ->  | C10: =OFFSET('Appliances Data Collection'!$C$9,ROWS(C$3:C10)*15-15,0) -> 0 | E10: =IF(C10=0,"",IF(F10="Open","Custom",OFFSET('Appliances Data Collection'!$C$15,ROWS(E$3:E10)*15-15,0))) ->  | F10: =OFFSET('Appliances Data Collection'!$G$11,ROWS(F$3:F10)*15-15,0) ->  | G10: =OFFSET('Appliances Data Collection'!$I$9,ROWS(G$3:G10)*15-15,0) -> Working: | H10: =IF(C10=0,"",INDEX('Wattage Table'!$A$3:$A$2131,MATCH(G10,Device_Code,0))) ->  | I10: =_xlfn.IFNA(INDEX('Wattage Table'!$E$3:$E$2131,MATCH(G10,Device_Code,0)),"") ->  | J10: =_xlfn.IFNA(INDEX('Wattage Table'!$H$3:$H$2131,MATCH(G10,Device_Code,0)),"") ->  | K10: =_xlfn.IFNA(INDEX('Wattage Table'!$J$3:$J$2131,MATCH(G10,Device_Code,0)),"") ->  | L10: =OFFSET('Appliances Data Collection'!$J$9,ROWS(L$3:L10)*15-15,0) -> 0 | Q10: =OFFSET('Appliances Data Collection'!$L$9,ROWS(Q$3:Q10)*15-15,0) -> 0 | R10: =_xlfn.IFNA(INDEX('Wattage Table'!$E$3:$E$2130,MATCH(Q10,Device_Code,0)),"") ->  | S10: 0 | T10: =_xlfn.IFNA(INDEX('Wattage Table'!$H$3:$H$2130,MATCH(Q10,Device_Code,0)),"") ->  | U10: =IF(OR(Q10="",Q10="None"),"",IF(LEFT(Q10,4)="ILED",INDEX('Wattage Table'!$K$3:$K$2132,MATCH('Lighting Calcs'!Q10,'Wattage Table'!$C$3:$C$2132,0),INDEX('Wattage Table'!$J$3:$J$2130,MATCH(Q10,Device_Code,0))))) -> FALSE | V10: =OFFSET('Appliances Data Collection'!$M$9,ROWS(V$3:V10)*15-15,0) -> 0 | W10: 0 | AB10: 0 | AC10: 0 | AD10: 0 | AH10: 0 | AK10: 0
A11: =OFFSET('Appliances Data Collection'!$A$6,ROWS(A$3:A11)*15-15,0) -> 9 | B11: =IF(OFFSET('Appliances Data Collection'!$C$7,ROWS(B$3:B11)*15-15,0)="","",OFFSET('Appliances Data Collection'!$C$7,ROWS(B$3:B11)*15-15,0)) ->  | C11: =OFFSET('Appliances Data Collection'!$C$9,ROWS(C$3:C11)*15-15,0) -> 0 | E11: =IF(C11=0,"",IF(F11="Open","Custom",OFFSET('Appliances Data Collection'!$C$15,ROWS(E$3:E11)*15-15,0))) ->  | F11: =OFFSET('Appliances Data Collection'!$G$11,ROWS(F$3:F11)*15-15,0) ->  | G11: =OFFSET('Appliances Data Collection'!$I$9,ROWS(G$3:G11)*15-15,0) -> Working: | H11: =IF(C11=0,"",INDEX('Wattage Table'!$A$3:$A$2131,MATCH(G11,Device_Code,0))) ->  | I11: =_xlfn.IFNA(INDEX('Wattage Table'!$E$3:$E$2131,MATCH(G11,Device_Code,0)),"") ->  | J11: =_xlfn.IFNA(INDEX('Wattage Table'!$H$3:$H$2131,MATCH(G11,Device_Code,0)),"") ->  | K11: =_xlfn.IFNA(INDEX('Wattage Table'!$J$3:$J$2131,MATCH(G11,Device_Code,0)),"") ->  | L11: =OFFSET('Appliances Data Collection'!$J$9,ROWS(L$3:L11)*15-15,0) -> 0 | Q11: =OFFSET('Appliances Data Collection'!$L$9,ROWS(Q$3:Q11)*15-15,0) -> 0 | R11: =_xlfn.IFNA(INDEX('Wattage Table'!$E$3:$E$2130,MATCH(Q11,Device_Code,0)),"") ->  | S11: 0 | T11: =_xlfn.IFNA(INDEX('Wattage Table'!$H$3:$H$2130,MATCH(Q11,Device_Code,0)),"") ->  | U11: =IF(OR(Q11="",Q11="None"),"",IF(LEFT(Q11,4)="ILED",INDEX('Wattage Table'!$K$3:$K$2132,MATCH('Lighting Calcs'!Q11,'Wattage Table'!$C$3:$C$2132,0),INDEX('Wattage Table'!$J$3:$J$2130,MATCH(Q11,Device_Code,0))))) -> FALSE | V11: =OFFSET('Appliances Data Collection'!$M$9,ROWS(V$3:V11)*15-15,0) -> 0 | W11: 0 | AB11: 0 | AC11: 0 | AD11: 0 | AH11: 0 | AK11: 0
A12: =OFFSET('Appliances Data Collection'!$A$6,ROWS(A$3:A12)*15-15,0) -> 10 | B12: =IF(OFFSET('Appliances Data Collection'!$C$7,ROWS(B$3:B12)*15-15,0)="","",OFFSET('Appliances Data Collection'!$C$7,ROWS(B$3:B12)*15-15,0)) ->  | C12: =OFFSET('Appliances Data Collection'!$C$9,ROWS(C$3:C12)*15-15,0) -> 0 | E12: =IF(C12=0,"",IF(F12="Open","Custom",OFFSET('Appliances Data Collection'!$C$15,ROWS(E$3:E12)*15-15,0))) ->  | F12: =OFFSET('Appliances Data Collection'!$G$11,ROWS(F$3:F12)*15-15,0) ->  | G12: =OFFSET('Appliances Data Collection'!$I$9,ROWS(G$3:G12)*15-15,0) -> Working: | H12: =IF(C12=0,"",INDEX('Wattage Table'!$A$3:$A$2131,MATCH(G12,Device_Code,0))) ->  | I12: =_xlfn.IFNA(INDEX('Wattage Table'!$E$3:$E$2131,MATCH(G12,Device_Code,0)),"") ->  | J12: =_xlfn.IFNA(INDEX('Wattage Table'!$H$3:$H$2131,MATCH(G12,Device_Code,0)),"") ->  | K12: =_xlfn.IFNA(INDEX('Wattage Table'!$J$3:$J$2131,MATCH(G12,Device_Code,0)),"") ->  | L12: =OFFSET('Appliances Data Collection'!$J$9,ROWS(L$3:L12)*15-15,0) -> 0 | Q12: =OFFSET('Appliances Data Collection'!$L$9,ROWS(Q$3:Q12)*15-15,0) -> 0 | R12: =_xlfn.IFNA(INDEX('Wattage Table'!$E$3:$E$2130,MATCH(Q12,Device_Code,0)),"") ->  | S12: 0 | T12: =_xlfn.IFNA(INDEX('Wattage Table'!$H$3:$H$2130,MATCH(Q12,Device_Code,0)),"") ->  | U12: =IF(OR(Q12="",Q12="None"),"",IF(LEFT(Q12,4)="ILED",INDEX('Wattage Table'!$K$3:$K$2132,MATCH('Lighting Calcs'!Q12,'Wattage Table'!$C$3:$C$2132,0),INDEX('Wattage Table'!$J$3:$J$2130,MATCH(Q12,Device_Code,0))))) -> FALSE | V12: =OFFSET('Appliances Data Collection'!$M$9,ROWS(V$3:V12)*15-15,0) -> 0 | W12: 0 | AB12: 0 | AC12: 0 | AD12: 0 | AH12: 0 | AK12: 0
A13: =OFFSET('Appliances Data Collection'!$A$6,ROWS(A$3:A13)*15-15,0) -> 0 | B13: =IF(OFFSET('Appliances Data Collection'!$C$7,ROWS(B$3:B13)*15-15,0)="","",OFFSET('Appliances Data Collection'!$C$7,ROWS(B$3:B13)*15-15,0)) ->  | C13: =OFFSET('Appliances Data Collection'!$C$9,ROWS(C$3:C13)*15-15,0) -> 0 | E13: =IF(C13=0,"",IF(F13="Open","Custom",OFFSET('Appliances Data Collection'!$C$15,ROWS(E$3:E13)*15-15,0))) ->  | F13: =OFFSET('Appliances Data Collection'!$G$11,ROWS(F$3:F13)*15-15,0) -> 0 | G13: =OFFSET('Appliances Data Collection'!$I$9,ROWS(G$3:G13)*15-15,0) -> 0 | H13: =IF(C13=0,"",INDEX('Wattage Table'!$A$3:$A$2131,MATCH(G13,Device_Code,0))) ->  | I13: =_xlfn.IFNA(INDEX('Wattage Table'!$E$3:$E$2131,MATCH(G13,Device_Code,0)),"") ->  | J13: =_xlfn.IFNA(INDEX('Wattage Table'!$H$3:$H$2131,MATCH(G13,Device_Code,0)),"") ->  | K13: =_xlfn.IFNA(INDEX('Wattage Table'!$J$3:$J$2131,MATCH(G13,Device_Code,0)),"") ->  | L13: =OFFSET('Appliances Data Collection'!$J$9,ROWS(L$3:L13)*15-15,0) -> 0 | Q13: =OFFSET('Appliances Data Collection'!$L$9,ROWS(Q$3:Q13)*15-15,0) -> 0 | R13: =_xlfn.IFNA(INDEX('Wattage Table'!$E$3:$E$2130,MATCH(Q13,Device_Code,0)),"") ->  | S13: 0 | T13: =_xlfn.IFNA(INDEX('Wattage Table'!$H$3:$H$2130,MATCH(Q13,Device_Code,0)),"") ->  | U13: =IF(OR(Q13="",Q13="None"),"",IF(LEFT(Q13,4)="ILED",INDEX('Wattage Table'!$K$3:$K$2132,MATCH('Lighting Calcs'!Q13,'Wattage Table'!$C$3:$C$2132,0),INDEX('Wattage Table'!$J$3:$J$2130,MATCH(Q13,Device_Code,0))))) -> FALSE | V13: =OFFSET('Appliances Data Collection'!$M$9,ROWS(V$3:V13)*15-15,0) -> 0 | W13: 0 | AB13: 0 | AC13: 0 | AD13: 0 | AH13: 0 | AK13: 0
A14: =OFFSET('Appliances Data Collection'!$A$6,ROWS(A$3:A14)*15-15,0) -> 0 | B14: =IF(OFFSET('Appliances Data Collection'!$C$7,ROWS(B$3:B14)*15-15,0)="","",OFFSET('Appliances Data Collection'!$C$7,ROWS(B$3:B14)*15-15,0)) ->  | C14: =OFFSET('Appliances Data Collection'!$C$9,ROWS(C$3:C14)*15-15,0) -> 0 | E14: =IF(C14=0,"",IF(F14="Open","Custom",OFFSET('Appliances Data Collection'!$C$15,ROWS(E$3:E14)*15-15,0))) ->  | F14: =OFFSET('Appliances Data Collection'!$G$11,ROWS(F$3:F14)*15-15,0) -> 0 | G14: =OFFSET('Appliances Data Collection'!$I$9,ROWS(G$3:G14)*15-15,0) -> 0 | H14: =IF(C14=0,"",INDEX('Wattage Table'!$A$3:$A$2131,MATCH(G14,Device_Code,0))) ->  | I14: =_xlfn.IFNA(INDEX('Wattage Table'!$E$3:$E$2131,MATCH(G14,Device_Code,0)),"") ->  | J14: =_xlfn.IFNA(INDEX('Wattage Table'!$H$3:$H$2131,MATCH(G14,Device_Code,0)),"") ->  | K14: =_xlfn.IFNA(INDEX('Wattage Table'!$J$3:$J$2131,MATCH(G14,Device_Code,0)),"") ->  | L14: =OFFSET('Appliances Data Collection'!$J$9,ROWS(L$3:L14)*15-15,0) -> 0 | Q14: =OFFSET('Appliances Data Collection'!$L$9,ROWS(Q$3:Q14)*15-15,0) -> 0 | R14: =_xlfn.IFNA(INDEX('Wattage Table'!$E$3:$E$2130,MATCH(Q14,Device_Code,0)),"") ->  | S14: 0 | T14: =_xlfn.IFNA(INDEX('Wattage Table'!$H$3:$H$2130,MATCH(Q14,Device_Code,0)),"") ->  | U14: =IF(OR(Q14="",Q14="None"),"",IF(LEFT(Q14,4)="ILED",INDEX('Wattage Table'!$K$3:$K$2132,MATCH('Lighting Calcs'!Q14,'Wattage Table'!$C$3:$C$2132,0),INDEX('Wattage Table'!$J$3:$J$2130,MATCH(Q14,Device_Code,0))))) -> FALSE | V14: =OFFSET('Appliances Data Collection'!$M$9,ROWS(V$3:V14)*15-15,0) -> 0 | W14: 0 | AB14: 0 | AC14: 0 | AD14: 0 | AH14: 0 | AK14: 0
A15: =OFFSET('Appliances Data Collection'!$A$6,ROWS(A$3:A15)*15-15,0) -> 0 | B15: =IF(OFFSET('Appliances Data Collection'!$C$7,ROWS(B$3:B15)*15-15,0)="","",OFFSET('Appliances Data Collection'!$C$7,ROWS(B$3:B15)*15-15,0)) ->  | C15: =OFFSET('Appliances Data Collection'!$C$9,ROWS(C$3:C15)*15-15,0) -> 0 | E15: =IF(C15=0,"",IF(F15="Open","Custom",OFFSET('Appliances Data Collection'!$C$15,ROWS(E$3:E15)*15-15,0))) ->  | F15: =OFFSET('Appliances Data Collection'!$G$11,ROWS(F$3:F15)*15-15,0) -> 0 | G15: =OFFSET('Appliances Data Collection'!$I$9,ROWS(G$3:G15)*15-15,0) -> 0 | H15: =IF(C15=0,"",INDEX('Wattage Table'!$A$3:$A$2131,MATCH(G15,Device_Code,0))) ->  | I15: =_xlfn.IFNA(INDEX('Wattage Table'!$E$3:$E$2131,MATCH(G15,Device_Code,0)),"") ->  | J15: =_xlfn.IFNA(INDEX('Wattage Table'!$H$3:$H$2131,MATCH(G15,Device_Code,0)),"") ->  | K15: =_xlfn.IFNA(INDEX('Wattage Table'!$J$3:$J$2131,MATCH(G15,Device_Code,0)),"") ->  | L15: =OFFSET('Appliances Data Collection'!$J$9,ROWS(L$3:L15)*15-15,0) -> 0 | Q15: =OFFSET('Appliances Data Collection'!$L$9,ROWS(Q$3:Q15)*15-15,0) -> 0 | R15: =_xlfn.IFNA(INDEX('Wattage Table'!$E$3:$E$2130,MATCH(Q15,Device_Code,0)),"") ->  | S15: 0 | T15: =_xlfn.IFNA(INDEX('Wattage Table'!$H$3:$H$2130,MATCH(Q15,Device_Code,0)),"") ->  | U15: =IF(OR(Q15="",Q15="None"),"",IF(LEFT(Q15,4)="ILED",INDEX('Wattage Table'!$K$3:$K$2132,MATCH('Lighting Calcs'!Q15,'Wattage Table'!$C$3:$C$2132,0),INDEX('Wattage Table'!$J$3:$J$2130,MATCH(Q15,Device_Code,0))))) -> FALSE | V15: =OFFSET('Appliances Data Collection'!$M$9,ROWS(V$3:V15)*15-15,0) -> 0 | W15: 0 | AB15: 0 | AC15: 0 | AD15: 0 | AH15: 0 | AK15: 0
A16: =OFFSET('Appliances Data Collection'!$A$6,ROWS(A$3:A16)*15-15,0) -> 0 | B16: =IF(OFFSET('Appliances Data Collection'!$C$7,ROWS(B$3:B16)*15-15,0)="","",OFFSET('Appliances Data Collection'!$C$7,ROWS(B$3:B16)*15-15,0)) ->  | C16: =OFFSET('Appliances Data Collection'!$C$9,ROWS(C$3:C16)*15-15,0) -> 0 | E16: =IF(C16=0,"",IF(F16="Open","Custom",OFFSET('Appliances Data Collection'!$C$15,ROWS(E$3:E16)*15-15,0))) ->  | F16: =OFFSET('Appliances Data Collection'!$G$11,ROWS(F$3:F16)*15-15,0) -> 0 | G16: =OFFSET('Appliances Data Collection'!$I$9,ROWS(G$3:G16)*15-15,0) -> 0 | H16: =IF(C16=0,"",INDEX('Wattage Table'!$A$3:$A$2131,MATCH(G16,Device_Code,0))) ->  | I16: =_xlfn.IFNA(INDEX('Wattage Table'!$E$3:$E$2131,MATCH(G16,Device_Code,0)),"") ->  | J16: =_xlfn.IFNA(INDEX('Wattage Table'!$H$3:$H$2131,MATCH(G16,Device_Code,0)),"") ->  | K16: =_xlfn.IFNA(INDEX('Wattage Table'!$J$3:$J$2131,MATCH(G16,Device_Code,0)),"") ->  | L16: =OFFSET('Appliances Data Collection'!$J$9,ROWS(L$3:L16)*15-15,0) -> 0 | Q16: =OFFSET('Appliances Data Collection'!$L$9,ROWS(Q$3:Q16)*15-15,0) -> 0 | R16: =_xlfn.IFNA(INDEX('Wattage Table'!$E$3:$E$2130,MATCH(Q16,Device_Code,0)),"") ->  | S16: 0 | T16: =_xlfn.IFNA(INDEX('Wattage Table'!$H$3:$H$2130,MATCH(Q16,Device_Code,0)),"") ->  | U16: =IF(OR(Q16="",Q16="None"),"",IF(LEFT(Q16,4)="ILED",INDEX('Wattage Table'!$K$3:$K$2132,MATCH('Lighting Calcs'!Q16,'Wattage Table'!$C$3:$C$2132,0),INDEX('Wattage Table'!$J$3:$J$2130,MATCH(Q16,Device_Code,0))))) -> FALSE | V16: =OFFSET('Appliances Data Collection'!$M$9,ROWS(V$3:V16)*15-15,0) -> 0 | W16: 0 | AB16: 0 | AC16: 0 | AD16: 0 | AH16: 0 | AK16: 0
A17: =OFFSET('Appliances Data Collection'!$A$6,ROWS(A$3:A17)*15-15,0) -> 0 | B17: =IF(OFFSET('Appliances Data Collection'!$C$7,ROWS(B$3:B17)*15-15,0)="","",OFFSET('Appliances Data Collection'!$C$7,ROWS(B$3:B17)*15-15,0)) ->  | C17: =OFFSET('Appliances Data Collection'!$C$9,ROWS(C$3:C17)*15-15,0) -> 0 | E17: =IF(C17=0,"",IF(F17="Open","Custom",OFFSET('Appliances Data Collection'!$C$15,ROWS(E$3:E17)*15-15,0))) ->  | F17: =OFFSET('Appliances Data Collection'!$G$11,ROWS(F$3:F17)*15-15,0) -> 0 | G17: =OFFSET('Appliances Data Collection'!$I$9,ROWS(G$3:G17)*15-15,0) -> 0 | H17: =IF(C17=0,"",INDEX('Wattage Table'!$A$3:$A$2131,MATCH(G17,Device_Code,0))) ->  | I17: =_xlfn.IFNA(INDEX('Wattage Table'!$E$3:$E$2131,MATCH(G17,Device_Code,0)),"") ->  | J17: =_xlfn.IFNA(INDEX('Wattage Table'!$H$3:$H$2131,MATCH(G17,Device_Code,0)),"") ->  | K17: =_xlfn.IFNA(INDEX('Wattage Table'!$J$3:$J$2131,MATCH(G17,Device_Code,0)),"") ->  | L17: =OFFSET('Appliances Data Collection'!$J$9,ROWS(L$3:L17)*15-15,0) -> 0 | Q17: =OFFSET('Appliances Data Collection'!$L$9,ROWS(Q$3:Q17)*15-15,0) -> 0 | R17: =_xlfn.IFNA(INDEX('Wattage Table'!$E$3:$E$2130,MATCH(Q17,Device_Code,0)),"") ->  | S17: 0 | T17: =_xlfn.IFNA(INDEX('Wattage Table'!$H$3:$H$2130,MATCH(Q17,Device_Code,0)),"") ->  | U17: =IF(OR(Q17="",Q17="None"),"",IF(LEFT(Q17,4)="ILED",INDEX('Wattage Table'!$K$3:$K$2132,MATCH('Lighting Calcs'!Q17,'Wattage Table'!$C$3:$C$2132,0),INDEX('Wattage Table'!$J$3:$J$2130,MATCH(Q17,Device_Code,0))))) -> FALSE | V17: =OFFSET('Appliances Data Collection'!$M$9,ROWS(V$3:V17)*15-15,0) -> 0 | W17: 0 | AB17: 0 | AC17: 0 | AD17: 0 | AH17: 0 | AK17: 0
A18: =OFFSET('Appliances Data Collection'!$A$6,ROWS(A$3:A18)*15-15,0) -> 0 | B18: =IF(OFFSET('Appliances Data Collection'!$C$7,ROWS(B$3:B18)*15-15,0)="","",OFFSET('Appliances Data Collection'!$C$7,ROWS(B$3:B18)*15-15,0)) ->  | C18: =OFFSET('Appliances Data Collection'!$C$9,ROWS(C$3:C18)*15-15,0) -> 0 | E18: =IF(C18=0,"",IF(F18="Open","Custom",OFFSET('Appliances Data Collection'!$C$15,ROWS(E$3:E18)*15-15,0))) ->  | F18: =OFFSET('Appliances Data Collection'!$G$11,ROWS(F$3:F18)*15-15,0) -> 0 | G18: =OFFSET('Appliances Data Collection'!$I$9,ROWS(G$3:G18)*15-15,0) -> 0 | H18: =IF(C18=0,"",INDEX('Wattage Table'!$A$3:$A$2131,MATCH(G18,Device_Code,0))) ->  | I18: =_xlfn.IFNA(INDEX('Wattage Table'!$E$3:$E$2131,MATCH(G18,Device_Code,0)),"") ->  | J18: =_xlfn.IFNA(INDEX('Wattage Table'!$H$3:$H$2131,MATCH(G18,Device_Code,0)),"") ->  | K18: =_xlfn.IFNA(INDEX('Wattage Table'!$J$3:$J$2131,MATCH(G18,Device_Code,0)),"") ->  | L18: =OFFSET('Appliances Data Collection'!$J$9,ROWS(L$3:L18)*15-15,0) -> 0 | Q18: =OFFSET('Appliances Data Collection'!$L$9,ROWS(Q$3:Q18)*15-15,0) -> 0 | R18: =_xlfn.IFNA(INDEX('Wattage Table'!$E$3:$E$2130,MATCH(Q18,Device_Code,0)),"") ->  | S18: 0 | T18: =_xlfn.IFNA(INDEX('Wattage Table'!$H$3:$H$2130,MATCH(Q18,Device_Code,0)),"") ->  | U18: =IF(OR(Q18="",Q18="None"),"",IF(LEFT(Q18,4)="ILED",INDEX('Wattage Table'!$K$3:$K$2132,MATCH('Lighting Calcs'!Q18,'Wattage Table'!$C$3:$C$2132,0),INDEX('Wattage Table'!$J$3:$J$2130,MATCH(Q18,Device_Code,0))))) -> FALSE | V18: =OFFSET('Appliances Data Collection'!$M$9,ROWS(V$3:V18)*15-15,0) -> 0 | W18: 0 | AB18: 0 | AC18: 0 | AD18: 0 | AH18: 0 | AK18: 0
A19: =OFFSET('Appliances Data Collection'!$A$6,ROWS(A$3:A19)*15-15,0) -> 0 | B19: =IF(OFFSET('Appliances Data Collection'!$C$7,ROWS(B$3:B19)*15-15,0)="","",OFFSET('Appliances Data Collection'!$C$7,ROWS(B$3:B19)*15-15,0)) ->  | C19: =OFFSET('Appliances Data Collection'!$C$9,ROWS(C$3:C19)*15-15,0) -> 0 | E19: =IF(C19=0,"",IF(F19="Open","Custom",OFFSET('Appliances Data Collection'!$C$15,ROWS(E$3:E19)*15-15,0))) ->  | F19: =OFFSET('Appliances Data Collection'!$G$11,ROWS(F$3:F19)*15-15,0) -> 0 | G19: =OFFSET('Appliances Data Collection'!$I$9,ROWS(G$3:G19)*15-15,0) -> 0 | H19: =IF(C19=0,"",INDEX('Wattage Table'!$A$3:$A$2131,MATCH(G19,Device_Code,0))) ->  | I19: =_xlfn.IFNA(INDEX('Wattage Table'!$E$3:$E$2131,MATCH(G19,Device_Code,0)),"") ->  | J19: =_xlfn.IFNA(INDEX('Wattage Table'!$H$3:$H$2131,MATCH(G19,Device_Code,0)),"") ->  | K19: =_xlfn.IFNA(INDEX('Wattage Table'!$J$3:$J$2131,MATCH(G19,Device_Code,0)),"") ->  | L19: =OFFSET('Appliances Data Collection'!$J$9,ROWS(L$3:L19)*15-15,0) -> 0 | Q19: =OFFSET('Appliances Data Collection'!$L$9,ROWS(Q$3:Q19)*15-15,0) -> 0 | R19: =_xlfn.IFNA(INDEX('Wattage Table'!$E$3:$E$2130,MATCH(Q19,Device_Code,0)),"") ->  | S19: 0 | T19: =_xlfn.IFNA(INDEX('Wattage Table'!$H$3:$H$2130,MATCH(Q19,Device_Code,0)),"") ->  | U19: =IF(OR(Q19="",Q19="None"),"",IF(LEFT(Q19,4)="ILED",INDEX('Wattage Table'!$K$3:$K$2132,MATCH('Lighting Calcs'!Q19,'Wattage Table'!$C$3:$C$2132,0),INDEX('Wattage Table'!$J$3:$J$2130,MATCH(Q19,Device_Code,0))))) -> FALSE | V19: =OFFSET('Appliances Data Collection'!$M$9,ROWS(V$3:V19)*15-15,0) -> 0 | W19: 0 | AB19: 0 | AC19: 0 | AD19: 0 | AH19: 0 | AK19: 0
A20: =OFFSET('Appliances Data Collection'!$A$6,ROWS(A$3:A20)*15-15,0) -> 0 | B20: =IF(OFFSET('Appliances Data Collection'!$C$7,ROWS(B$3:B20)*15-15,0)="","",OFFSET('Appliances Data Collection'!$C$7,ROWS(B$3:B20)*15-15,0)) ->  | C20: =OFFSET('Appliances Data Collection'!$C$9,ROWS(C$3:C20)*15-15,0) -> 0 | E20: =IF(C20=0,"",IF(F20="Open","Custom",OFFSET('Appliances Data Collection'!$C$15,ROWS(E$3:E20)*15-15,0))) ->  | F20: =OFFSET('Appliances Data Collection'!$G$11,ROWS(F$3:F20)*15-15,0) -> 0 | G20: =OFFSET('Appliances Data Collection'!$I$9,ROWS(G$3:G20)*15-15,0) -> 0 | H20: =IF(C20=0,"",INDEX('Wattage Table'!$A$3:$A$2131,MATCH(G20,Device_Code,0))) ->  | I20: =_xlfn.IFNA(INDEX('Wattage Table'!$E$3:$E$2131,MATCH(G20,Device_Code,0)),"") ->  | J20: =_xlfn.IFNA(INDEX('Wattage Table'!$H$3:$H$2131,MATCH(G20,Device_Code,0)),"") ->  | K20: =_xlfn.IFNA(INDEX('Wattage Table'!$J$3:$J$2131,MATCH(G20,Device_Code,0)),"") ->  | L20: =OFFSET('Appliances Data Collection'!$J$9,ROWS(L$3:L20)*15-15,0) -> 0 | Q20: =OFFSET('Appliances Data Collection'!$L$9,ROWS(Q$3:Q20)*15-15,0) -> 0 | R20: =_xlfn.IFNA(INDEX('Wattage Table'!$E$3:$E$2130,MATCH(Q20,Device_Code,0)),"") ->  | S20: 0 | T20: =_xlfn.IFNA(INDEX('Wattage Table'!$H$3:$H$2130,MATCH(Q20,Device_Code,0)),"") ->  | U20: =IF(OR(Q20="",Q20="None"),"",IF(LEFT(Q20,4)="ILED",INDEX('Wattage Table'!$K$3:$K$2132,MATCH('Lighting Calcs'!Q20,'Wattage Table'!$C$3:$C$2132,0),INDEX('Wattage Table'!$J$3:$J$2130,MATCH(Q20,Device_Code,0))))) -> FALSE | V20: =OFFSET('Appliances Data Collection'!$M$9,ROWS(V$3:V20)*15-15,0) -> 0 | W20: 0 | AB20: 0 | AC20: 0 | AD20: 0 | AH20: 0 | AK20: 0
A21: =OFFSET('Appliances Data Collection'!$A$6,ROWS(A$3:A21)*15-15,0) -> 0 | B21: =IF(OFFSET('Appliances Data Collection'!$C$7,ROWS(B$3:B21)*15-15,0)="","",OFFSET('Appliances Data Collection'!$C$7,ROWS(B$3:B21)*15-15,0)) ->  | C21: =OFFSET('Appliances Data Collection'!$C$9,ROWS(C$3:C21)*15-15,0) -> 0 | E21: =IF(C21=0,"",IF(F21="Open","Custom",OFFSET('Appliances Data Collection'!$C$15,ROWS(E$3:E21)*15-15,0))) ->  | F21: =OFFSET('Appliances Data Collection'!$G$11,ROWS(F$3:F21)*15-15,0) -> 0 | G21: =OFFSET('Appliances Data Collection'!$I$9,ROWS(G$3:G21)*15-15,0) -> 0 | H21: =IF(C21=0,"",INDEX('Wattage Table'!$A$3:$A$2131,MATCH(G21,Device_Code,0))) ->  | I21: =_xlfn.IFNA(INDEX('Wattage Table'!$E$3:$E$2131,MATCH(G21,Device_Code,0)),"") ->  | J21: =_xlfn.IFNA(INDEX('Wattage Table'!$H$3:$H$2131,MATCH(G21,Device_Code,0)),"") ->  | K21: =_xlfn.IFNA(INDEX('Wattage Table'!$J$3:$J$2131,MATCH(G21,Device_Code,0)),"") ->  | L21: =OFFSET('Appliances Data Collection'!$J$9,ROWS(L$3:L21)*15-15,0) -> 0 | Q21: =OFFSET('Appliances Data Collection'!$L$9,ROWS(Q$3:Q21)*15-15,0) -> 0 | R21: =_xlfn.IFNA(INDEX('Wattage Table'!$E$3:$E$2130,MATCH(Q21,Device_Code,0)),"") ->  | S21: 0 | T21: =_xlfn.IFNA(INDEX('Wattage Table'!$H$3:$H$2130,MATCH(Q21,Device_Code,0)),"") ->  | U21: =IF(OR(Q21="",Q21="None"),"",IF(LEFT(Q21,4)="ILED",INDEX('Wattage Table'!$K$3:$K$2132,MATCH('Lighting Calcs'!Q21,'Wattage Table'!$C$3:$C$2132,0),INDEX('Wattage Table'!$J$3:$J$2130,MATCH(Q21,Device_Code,0))))) -> FALSE | V21: =OFFSET('Appliances Data Collection'!$M$9,ROWS(V$3:V21)*15-15,0) -> 0 | W21: 0 | AB21: 0 | AC21: 0 | AD21: 0 | AH21: 0 | AK21: 0
A22: =OFFSET('Appliances Data Collection'!$A$6,ROWS(A$3:A22)*15-15,0) -> 0 | B22: =IF(OFFSET('Appliances Data Collection'!$C$7,ROWS(B$3:B22)*15-15,0)="","",OFFSET('Appliances Data Collection'!$C$7,ROWS(B$3:B22)*15-15,0)) ->  | C22: =OFFSET('Appliances Data Collection'!$C$9,ROWS(C$3:C22)*15-15,0) -> 0 | E22: =IF(C22=0,"",IF(F22="Open","Custom",OFFSET('Appliances Data Collection'!$C$15,ROWS(E$3:E22)*15-15,0))) ->  | F22: =OFFSET('Appliances Data Collection'!$G$11,ROWS(F$3:F22)*15-15,0) -> 0 | G22: =OFFSET('Appliances Data Collection'!$I$9,ROWS(G$3:G22)*15-15,0) -> 0 | H22: =IF(C22=0,"",INDEX('Wattage Table'!$A$3:$A$2131,MATCH(G22,Device_Code,0))) ->  | I22: =_xlfn.IFNA(INDEX('Wattage Table'!$E$3:$E$2131,MATCH(G22,Device_Code,0)),"") ->  | J22: =_xlfn.IFNA(INDEX('Wattage Table'!$H$3:$H$2131,MATCH(G22,Device_Code,0)),"") ->  | K22: =_xlfn.IFNA(INDEX('Wattage Table'!$J$3:$J$2131,MATCH(G22,Device_Code,0)),"") ->  | L22: =OFFSET('Appliances Data Collection'!$J$9,ROWS(L$3:L22)*15-15,0) -> 0 | Q22: =OFFSET('Appliances Data Collection'!$L$9,ROWS(Q$3:Q22)*15-15,0) -> 0 | R22: =_xlfn.IFNA(INDEX('Wattage Table'!$E$3:$E$2130,MATCH(Q22,Device_Code,0)),"") ->  | S22: 0 | T22: =_xlfn.IFNA(INDEX('Wattage Table'!$H$3:$H$2130,MATCH(Q22,Device_Code,0)),"") ->  | U22: =IF(OR(Q22="",Q22="None"),"",IF(LEFT(Q22,4)="ILED",INDEX('Wattage Table'!$K$3:$K$2132,MATCH('Lighting Calcs'!Q22,'Wattage Table'!$C$3:$C$2132,0),INDEX('Wattage Table'!$J$3:$J$2130,MATCH(Q22,Device_Code,0))))) -> FALSE | V22: =OFFSET('Appliances Data Collection'!$M$9,ROWS(V$3:V22)*15-15,0) -> 0 | W22: 0 | AB22: 0 | AC22: 0 | AD22: 0 | AH22: 0 | AK22: 0
A23: =OFFSET('Appliances Data Collection'!$A$6,ROWS(A$3:A23)*15-15,0) -> 0 | B23: =IF(OFFSET('Appliances Data Collection'!$C$7,ROWS(B$3:B23)*15-15,0)="","",OFFSET('Appliances Data Collection'!$C$7,ROWS(B$3:B23)*15-15,0)) ->  | C23: =OFFSET('Appliances Data Collection'!$C$9,ROWS(C$3:C23)*15-15,0) -> 0 | E23: =IF(C23=0,"",IF(F23="Open","Custom",OFFSET('Appliances Data Collection'!$C$15,ROWS(E$3:E23)*15-15,0))) ->  | F23: =OFFSET('Appliances Data Collection'!$G$11,ROWS(F$3:F23)*15-15,0) -> 0 | G23: =OFFSET('Appliances Data Collection'!$I$9,ROWS(G$3:G23)*15-15,0) -> 0 | H23: =IF(C23=0,"",INDEX('Wattage Table'!$A$3:$A$2131,MATCH(G23,Device_Code,0))) ->  | I23: =_xlfn.IFNA(INDEX('Wattage Table'!$E$3:$E$2131,MATCH(G23,Device_Code,0)),"") ->  | J23: =_xlfn.IFNA(INDEX('Wattage Table'!$H$3:$H$2131,MATCH(G23,Device_Code,0)),"") ->  | K23: =_xlfn.IFNA(INDEX('Wattage Table'!$J$3:$J$2131,MATCH(G23,Device_Code,0)),"") ->  | L23: =OFFSET('Appliances Data Collection'!$J$9,ROWS(L$3:L23)*15-15,0) -> 0 | Q23: =OFFSET('Appliances Data Collection'!$L$9,ROWS(Q$3:Q23)*15-15,0) -> 0 | R23: =_xlfn.IFNA(INDEX('Wattage Table'!$E$3:$E$2130,MATCH(Q23,Device_Code,0)),"") ->  | S23: 0 | T23: =_xlfn.IFNA(INDEX('Wattage Table'!$H$3:$H$2130,MATCH(Q23,Device_Code,0)),"") ->  | U23: =IF(OR(Q23="",Q23="None"),"",IF(LEFT(Q23,4)="ILED",INDEX('Wattage Table'!$K$3:$K$2132,MATCH('Lighting Calcs'!Q23,'Wattage Table'!$C$3:$C$2132,0),INDEX('Wattage Table'!$J$3:$J$2130,MATCH(Q23,Device_Code,0))))) -> FALSE | V23: =OFFSET('Appliances Data Collection'!$M$9,ROWS(V$3:V23)*15-15,0) -> 0 | W23: 0 | AB23: 0 | AC23: 0 | AD23: 0 | AH23: 0 | AK23: 0
A24: =OFFSET('Appliances Data Collection'!$A$6,ROWS(A$3:A24)*15-15,0) -> 0 | B24: =IF(OFFSET('Appliances Data Collection'!$C$7,ROWS(B$3:B24)*15-15,0)="","",OFFSET('Appliances Data Collection'!$C$7,ROWS(B$3:B24)*15-15,0)) ->  | C24: =OFFSET('Appliances Data Collection'!$C$9,ROWS(C$3:C24)*15-15,0) -> 0 | E24: =IF(C24=0,"",IF(F24="Open","Custom",OFFSET('Appliances Data Collection'!$C$15,ROWS(E$3:E24)*15-15,0))) ->  | F24: =OFFSET('Appliances Data Collection'!$G$11,ROWS(F$3:F24)*15-15,0) -> 0 | G24: =OFFSET('Appliances Data Collection'!$I$9,ROWS(G$3:G24)*15-15,0) -> 0 | H24: =IF(C24=0,"",INDEX('Wattage Table'!$A$3:$A$2131,MATCH(G24,Device_Code,0))) ->  | I24: =_xlfn.IFNA(INDEX('Wattage Table'!$E$3:$E$2131,MATCH(G24,Device_Code,0)),"") ->  | J24: =_xlfn.IFNA(INDEX('Wattage Table'!$H$3:$H$2131,MATCH(G24,Device_Code,0)),"") ->  | K24: =_xlfn.IFNA(INDEX('Wattage Table'!$J$3:$J$2131,MATCH(G24,Device_Code,0)),"") ->  | L24: =OFFSET('Appliances Data Collection'!$J$9,ROWS(L$3:L24)*15-15,0) -> 0 | Q24: =OFFSET('Appliances Data Collection'!$L$9,ROWS(Q$3:Q24)*15-15,0) -> 0 | R24: =_xlfn.IFNA(INDEX('Wattage Table'!$E$3:$E$2130,MATCH(Q24,Device_Code,0)),"") ->  | S24: 0 | T24: =_xlfn.IFNA(INDEX('Wattage Table'!$H$3:$H$2130,MATCH(Q24,Device_Code,0)),"") ->  | U24: =IF(OR(Q24="",Q24="None"),"",IF(LEFT(Q24,4)="ILED",INDEX('Wattage Table'!$K$3:$K$2132,MATCH('Lighting Calcs'!Q24,'Wattage Table'!$C$3:$C$2132,0),INDEX('Wattage Table'!$J$3:$J$2130,MATCH(Q24,Device_Code,0))))) -> FALSE | V24: =OFFSET('Appliances Data Collection'!$M$9,ROWS(V$3:V24)*15-15,0) -> 0 | W24: 0 | AB24: 0 | AC24: 0 | AD24: 0 | AH24: 0 | AK24: 0
A25: =OFFSET('Appliances Data Collection'!$A$6,ROWS(A$3:A25)*15-15,0) -> 0 | B25: =IF(OFFSET('Appliances Data Collection'!$C$7,ROWS(B$3:B25)*15-15,0)="","",OFFSET('Appliances Data Collection'!$C$7,ROWS(B$3:B25)*15-15,0)) ->  | C25: =OFFSET('Appliances Data Collection'!$C$9,ROWS(C$3:C25)*15-15,0) -> 0 | E25: =IF(C25=0,"",IF(F25="Open","Custom",OFFSET('Appliances Data Collection'!$C$15,ROWS(E$3:E25)*15-15,0))) ->  | F25: =OFFSET('Appliances Data Collection'!$G$11,ROWS(F$3:F25)*15-15,0) -> 0 | G25: =OFFSET('Appliances Data Collection'!$I$9,ROWS(G$3:G25)*15-15,0) -> 0 | H25: =IF(C25=0,"",INDEX('Wattage Table'!$A$3:$A$2131,MATCH(G25,Device_Code,0))) ->  | I25: =_xlfn.IFNA(INDEX('Wattage Table'!$E$3:$E$2131,MATCH(G25,Device_Code,0)),"") ->  | J25: =_xlfn.IFNA(INDEX('Wattage Table'!$H$3:$H$2131,MATCH(G25,Device_Code,0)),"") ->  | K25: =_xlfn.IFNA(INDEX('Wattage Table'!$J$3:$J$2131,MATCH(G25,Device_Code,0)),"") ->  | L25: =OFFSET('Appliances Data Collection'!$J$9,ROWS(L$3:L25)*15-15,0) -> 0 | Q25: =OFFSET('Appliances Data Collection'!$L$9,ROWS(Q$3:Q25)*15-15,0) -> 0 | R25: =_xlfn.IFNA(INDEX('Wattage Table'!$E$3:$E$2130,MATCH(Q25,Device_Code,0)),"") ->  | S25: 0 | T25: =_xlfn.IFNA(INDEX('Wattage Table'!$H$3:$H$2130,MATCH(Q25,Device_Code,0)),"") ->  | U25: =IF(OR(Q25="",Q25="None"),"",IF(LEFT(Q25,4)="ILED",INDEX('Wattage Table'!$K$3:$K$2132,MATCH('Lighting Calcs'!Q25,'Wattage Table'!$C$3:$C$2132,0),INDEX('Wattage Table'!$J$3:$J$2130,MATCH(Q25,Device_Code,0))))) -> FALSE | V25: =OFFSET('Appliances Data Collection'!$M$9,ROWS(V$3:V25)*15-15,0) -> 0 | W25: 0 | AB25: 0 | AC25: 0 | AD25: 0 | AH25: 0 | AK25: 0
A26: =OFFSET('Appliances Data Collection'!$A$6,ROWS(A$3:A26)*15-15,0) -> 0 | B26: =IF(OFFSET('Appliances Data Collection'!$C$7,ROWS(B$3:B26)*15-15,0)="","",OFFSET('Appliances Data Collection'!$C$7,ROWS(B$3:B26)*15-15,0)) ->  | C26: =OFFSET('Appliances Data Collection'!$C$9,ROWS(C$3:C26)*15-15,0) -> 0 | E26: =IF(C26=0,"",IF(F26="Open","Custom",OFFSET('Appliances Data Collection'!$C$15,ROWS(E$3:E26)*15-15,0))) ->  | F26: =OFFSET('Appliances Data Collection'!$G$11,ROWS(F$3:F26)*15-15,0) -> 0 | G26: =OFFSET('Appliances Data Collection'!$I$9,ROWS(G$3:G26)*15-15,0) -> 0 | H26: =IF(C26=0,"",INDEX('Wattage Table'!$A$3:$A$2131,MATCH(G26,Device_Code,0))) ->  | I26: =_xlfn.IFNA(INDEX('Wattage Table'!$E$3:$E$2131,MATCH(G26,Device_Code,0)),"") ->  | J26: =_xlfn.IFNA(INDEX('Wattage Table'!$H$3:$H$2131,MATCH(G26,Device_Code,0)),"") ->  | K26: =_xlfn.IFNA(INDEX('Wattage Table'!$J$3:$J$2131,MATCH(G26,Device_Code,0)),"") ->  | L26: =OFFSET('Appliances Data Collection'!$J$9,ROWS(L$3:L26)*15-15,0) -> 0 | Q26: =OFFSET('Appliances Data Collection'!$L$9,ROWS(Q$3:Q26)*15-15,0) -> 0 | R26: =_xlfn.IFNA(INDEX('Wattage Table'!$E$3:$E$2130,MATCH(Q26,Device_Code,0)),"") ->  | S26: 0 | T26: =_xlfn.IFNA(INDEX('Wattage Table'!$H$3:$H$2130,MATCH(Q26,Device_Code,0)),"") ->  | U26: =IF(OR(Q26="",Q26="None"),"",IF(LEFT(Q26,4)="ILED",INDEX('Wattage Table'!$K$3:$K$2132,MATCH('Lighting Calcs'!Q26,'Wattage Table'!$C$3:$C$2132,0),INDEX('Wattage Table'!$J$3:$J$2130,MATCH(Q26,Device_Code,0))))) -> FALSE | V26: =OFFSET('Appliances Data Collection'!$M$9,ROWS(V$3:V26)*15-15,0) -> 0 | W26: 0 | AB26: 0 | AC26: 0 | AD26: 0 | AH26: 0 | AK26: 0
A27: =OFFSET('Appliances Data Collection'!$A$6,ROWS(A$3:A27)*15-15,0) -> 0 | B27: =IF(OFFSET('Appliances Data Collection'!$C$7,ROWS(B$3:B27)*15-15,0)="","",OFFSET('Appliances Data Collection'!$C$7,ROWS(B$3:B27)*15-15,0)) ->  | C27: =OFFSET('Appliances Data Collection'!$C$9,ROWS(C$3:C27)*15-15,0) -> 0 | E27: =IF(C27=0,"",IF(F27="Open","Custom",OFFSET('Appliances Data Collection'!$C$15,ROWS(E$3:E27)*15-15,0))) ->  | F27: =OFFSET('Appliances Data Collection'!$G$11,ROWS(F$3:F27)*15-15,0) -> 0 | G27: =OFFSET('Appliances Data Collection'!$I$9,ROWS(G$3:G27)*15-15,0) -> 0 | H27: =IF(C27=0,"",INDEX('Wattage Table'!$A$3:$A$2131,MATCH(G27,Device_Code,0))) ->  | I27: =_xlfn.IFNA(INDEX('Wattage Table'!$E$3:$E$2131,MATCH(G27,Device_Code,0)),"") ->  | J27: =_xlfn.IFNA(INDEX('Wattage Table'!$H$3:$H$2131,MATCH(G27,Device_Code,0)),"") ->  | K27: =_xlfn.IFNA(INDEX('Wattage Table'!$J$3:$J$2131,MATCH(G27,Device_Code,0)),"") ->  | L27: =OFFSET('Appliances Data Collection'!$J$9,ROWS(L$3:L27)*15-15,0) -> 0 | Q27: =OFFSET('Appliances Data Collection'!$L$9,ROWS(Q$3:Q27)*15-15,0) -> 0 | R27: =_xlfn.IFNA(INDEX('Wattage Table'!$E$3:$E$2130,MATCH(Q27,Device_Code,0)),"") ->  | S27: 0 | T27: =_xlfn.IFNA(INDEX('Wattage Table'!$H$3:$H$2130,MATCH(Q27,Device_Code,0)),"") ->  | U27: =IF(OR(Q27="",Q27="None"),"",IF(LEFT(Q27,4)="ILED",INDEX('Wattage Table'!$K$3:$K$2132,MATCH('Lighting Calcs'!Q27,'Wattage Table'!$C$3:$C$2132,0),INDEX('Wattage Table'!$J$3:$J$2130,MATCH(Q27,Device_Code,0))))) -> FALSE | V27: =OFFSET('Appliances Data Collection'!$M$9,ROWS(V$3:V27)*15-15,0) -> 0 | W27: 0 | AB27: 0 | AC27: 0 | AD27: 0 | AH27: 0 | AK27: 0

Sheet Most Common (hidden)
B1: Lamp Type | C1: Device Code | D1: Description
B2: T12 | C2: F23SS | D2: =INDEX('Wattage Table'!$E$3:$E$2130,MATCH('Most Common'!C2,Device_Code,0)) -> Fluorescent (3) T-12, Std. lamp, Standard Magnetic Ballast

Sheet Lighting_Products (hidden)
B2: Device Code | C2: Description | D2: Device Category | E2: Secondary Device Category | F2: Lamp Length | G2: Lamp/Fixt | H2: Watt/Lamp | I2: Watt/ Fixture | J2: Product Line | K2: Product Class | L2: Product Name
B3: CDM205 | C3: Metal Halide CDM (1) 205W lamp | D3: Metal Halide | G3: 1 | H3: 205 | I3: 235 | J3: Lighting | K3: HIDs | L3: =D3 -> Metal Halide
B4: CDM330 | C4: Metal Halide CDM (1) 330W lamp | D4: Metal Halide | G4: 1 | H4: 330 | I4: 360 | J4: Lighting | K4: HIDs | L4: Metal Halide
B5: CF10/2D | C5: Compact Fluorescent, 2D, (1) 10W lamp | D5: CFL | G5: 1 | H5: 10 | I5: 16 | J5: Lighting | K5: CFL | L5: CFL
B6: CF10/2D-L | C6: Compact Fluorescent, 2D, (1) 10W lamp | D6: CFL | G6: 1 | H6: 10 | I6: 12 | J6: Lighting | K6: CFL | L6: CFL
B7: CF11/1 | C7: Compact Fluorescent, (1) 11W lamp | D7: CFL | G7: 1 | H7: 11 | I7: 13 | J7: Lighting | K7: CFL | L7: CFL
B8: CF11/2 | C8: Compact Fluorescent, (2) 11W lamp | D8: CFL | G8: 2 | H8: 11 | I8: 26 | J8: Lighting | K8: CFL | L8: CFL
B9: CF13/2 | C9: Compact Fluorescent, (2) 13W lamp | D9: CFL | G9: 2 | H9: 13 | I9: 26 | J9: Lighting | K9: CFL | L9: CFL
B10: CF13/3 | C10: Compact Fluorescent, (3) 13W lamp | D10: CFL | G10: 3 | H10: 13 | I10: 39 | J10: Lighting | K10: CFL | L10: CFL
B11: CF14/1 | C11: Compact Fluorescent, (1) 14W lamp | D11: CFL | G11: 1 | H11: 14 | I11: 14 | J11: Lighting | K11: CFL | L11: CFL
B12: CF15/1 | C12: Compact Fluorescent, (1) 15W lamp | D12: CFL | G12: 1 | H12: 15 | I12: 15 | J12: Lighting | K12: CFL | L12: CFL
B13: CF16/2D | C13: Compact Fluorescent, 2D, (1) 16W lamp | D13: CFL | G13: 1 | H13: 16 | I13: 26 | J13: Lighting | K13: CFL | L13: CFL
B14: CF16/2D-L | C14: Compact Fluorescent, 2D, (1) 16W lamp | D14: CFL | G14: 1 | H14: 16 | I14: 18 | J14: Lighting | K14: CFL | L14: CFL
B15: CF18/3-L | C15: Compact Fluorescent, (3) 18W lamp | D15: CFL | G15: 3 | H15: 18 | I15: 60 | J15: Lighting | K15: CFL | L15: CFL
B16: CF21/2D | C16: Compact Fluorescent, 2D, (1) 21W lamp | D16: CFL | G16: 1 | H16: 21 | I16: 26 | J16: Lighting | K16: CFL | L16: CFL
B17: CF21/2D-L | C17: Compact Fluorescent, 2D, (1) 21W lamp | D17: CFL | G17: 1 | H17: 21 | I17: 22 | J17: Lighting | K17: CFL | L17: CFL
B18: CF23/1 | C18: Compact Fluorescent, (1) 23W lamp | D18: CFL | G18: 1 | H18: 23 | I18: 29 | J18: Lighting | K18: CFL | L18: CFL
B19: CF23/1-L | C19: Compact Fluorescent, (1) 23W lamp | D19: CFL | G19: 1 | H19: 23 | I19: 25 | J19: Lighting | K19: CFL | L19: CFL
B20: CF26/3-L | C20: Compact Fluorescent, (3) 26W lamp | D20: CFL | G20: 3 | H20: 26 | I20: 82 | J20: Lighting | K20: CFL | L20: CFL
B21: CF26/4-L | C21: Compact Fluorescent, (4) 26W lamp | D21: CFL | G21: 4 | H21: 26 | I21: 108 | J21: Lighting | K21: CFL | L21: CFL
B22: CF26/6-L | C22: Compact Fluorescent, (6) 26W lamp | D22: CFL | G22: 6 | H22: 26 | I22: 162 | J22: Lighting | K22: CFL | L22: CFL
B23: CF26/8-L | C23: Compact Fluorescent, (8) 26W lamp | D23: CFL | G23: 8 | H23: 26 | I23: 216 | J23: Lighting | K23: CFL | L23: CFL
B24: CF28/2D | C24: Compact Fluorescent, 2D, (1) 28W lamp | D24: CFL | G24: 1 | H24: 28 | I24: 35 | J24: Lighting | K24: CFL | L24: CFL
B25: CF28/2D-L | C25: Compact Fluorescent, 2D, (1) 28W lamp | D25: CFL | G25: 1 | H25: 28 | I25: 28 | J25: Lighting | K25: CFL | L25: CFL
B26: CF32/3-L | C26: Compact Fluorescent, (3) 32W lamp | D26: CFL | G26: 3 | H26: 32 | I26: 114 | J26: Lighting | K26: CFL | L26: CFL
B27: CF32/4-L | C27: Compact Fluorescent, (4) 32W lamp | D27: CFL | G27: 4 | H27: 32 | I27: 152 | J27: Lighting | K27: CFL | L27: CFL
B28: CF32/6-L | C28: Compact Fluorescent, (6) 32W lamp | D28: CFL | G28: 6 | H28: 32 | I28: 228 | J28: Lighting | K28: CFL | L28: CFL
B29: CF32/8-L | C29: Compact Fluorescent, (8) 32W lamp | D29: CFL | G29: 8 | H29: 32 | I29: 304 | J29: Lighting | K29: CFL | L29: CFL
B30: CF38/2D | C30: Compact Fluorescent, 2D, (1) 38W lamp | D30: CFL | G30: 1 | H30: 38 | I30: 46 | J30: Lighting | K30: CFL | L30: CFL
B31: CF38/2D-L | C31: Compact Fluorescent, 2D, (1) 38W lamp | D31: CFL | G31: 1 | H31: 38 | I31: 36 | J31: Lighting | K31: CFL | L31: CFL
B32: CF4/1 | C32: Compact Fluorescent, (1) 4W lamp | D32: CFL | G32: 1 | H32: 4 | I32: 4 | J32: Lighting | K32: CFL | L32: CFL
B33: CF42/1 | C33: Compact Fluorescent, (1) 4W lamp | D33: CFL | G33: 1 | H33: 42 | I33: 42 | J33: Lighting | K33: CFL | L33: CFL
B34: CF42/1-L | C34: Compact Fluorescent, (1) 42W lamp | D34: CFL | G34: 1 | H34: 42 | I34: 48 | J34: Lighting | K34: CFL | L34: CFL
B35: CF42/2-L | C35: Compact Fluorescent, (2) 42W lamp | D35: CFL | G35: 2 | H35: 42 | I35: 100 | J35: Lighting | K35: CFL | L35: CFL
B36: CF42/3-L | C36: Compact Fluorescent, (3) 42W lamp | D36: CFL | G36: 3 | H36: 42 | I36: 141 | J36: Lighting | K36: CFL | L36: CFL
B37: CF42/4-L | C37: Compact Fluorescent, (4) 42W lamp | D37: CFL | G37: 4 | H37: 42 | I37: 188 | J37: Lighting | K37: CFL | L37: CFL
B38: CF42/6-L | C38: Compact Fluorescent, (6) 42W lamp | D38: CFL | G38: 6 | H38: 42 | I38: 282 | J38: Lighting | K38: CFL | L38: CFL
B39: CF42/8-L | C39: Compact Fluorescent, (8) 42W lamp | D39: CFL | G39: 8 | H39: 42 | I39: 376 | J39: Lighting | K39: CFL | L39: CFL
B40: CFQ10/1 | C40: Compact Fluorescent, quad, (1) 10W lamp | D40: CFL | G40: 1 | H40: 10 | I40: 15 | J40: Lighting | K40: CFL | L40: CFL
B41: CFQ13/1 | C41: Compact Fluorescent, quad, (1) 13W lamp | D41: CFL | G41: 1 | H41: 13 | I41: 17 | J41: Lighting | K41: CFL | L41: CFL
B42: CFQ13/1-L | C42: Compact Fluorescent, quad, (1) 13W lamp, BF=1.05 | D42: CFL | G42: 1 | H42: 13 | I42: 15 | J42: Lighting | K42: CFL | L42: CFL
B43: CFQ13/2 | C43: Compact Fluorescent, quad, (2) 13W lamp | D43: CFL | G43: 2 | H43: 13 | I43: 31 | J43: Lighting | K43: CFL | L43: CFL
B44: CFQ13/2-L | C44: Compact Fluorescent, quad, (2) 13W lamp, BF=1.0 | D44: CFL | G44: 2 | H44: 13 | I44: 28 | J44: Lighting | K44: CFL | L44: CFL
B45: CFQ13/3 | C45: Compact Fluorescent, quad, (3) 13W lamp | D45: CFL | G45: 3 | H45: 13 | I45: 48 | J45: Lighting | K45: CFL | L45: CFL
B46: CFQ15/1 | C46: Compact Fluorescent, quad, (1) 15W lamp | D46: CFL | G46: 1 | H46: 15 | I46: 20 | J46: Lighting | K46: CFL | L46: CFL
B47: CFQ17/1 | C47: Compact Fluorescent, quad, (1) 17W lamp | D47: CFL | G47: 1 | H47: 17 | I47: 24 | J47: Lighting | K47: CFL | L47: CFL
B48: CFQ17/2 | C48: Compact Fluorescent, quad, (2) 17W lamp | D48: CFL | G48: 2 | H48: 17 | I48: 48 | J48: Lighting | K48: CFL | L48: CFL
B49: CFQ18/1 | C49: Compact Fluorescent, quad, (1) 18W lamp | D49: CFL | G49: 1 | H49: 18 | I49: 26 | J49: Lighting | K49: CFL | L49: CFL
B50: CFQ18/1-L | C50: Compact Fluorescent, quad, (1) 18W lamp, BF=1.0 | D50: CFL | G50: 1 | H50: 18 | I50: 20 | J50: Lighting | K50: CFL | L50: CFL
B51: CFQ18/2 | C51: Compact Fluorescent, quad, (2) 18W lamp | D51: CFL | G51: 2 | H51: 18 | I51: 45 | J51: Lighting | K51: CFL | L51: CFL
B52: CFQ18/2-L | C52: Compact Fluorescent, quad, (2) 18W lamp, BF=1.0 | D52: CFL | G52: 2 | H52: 18 | I52: 38 | J52: Lighting | K52: CFL | L52: CFL
B53: CFQ18/4 | C53: Compact Fluorescent, quad, (4) 18W lamp | D53: CFL | G53: 2 | H53: 18 | I53: 90 | J53: Lighting | K53: CFL | L53: CFL
B54: CFQ20/1 | C54: Compact Fluorescent, quad, (1) 20W lamp | D54: CFL | G54: 1 | H54: 20 | I54: 23 | J54: Lighting | K54: CFL | L54: CFL
B55: CFQ20/2 | C55: Compact Fluorescent, quad, (2) 20W lamp | D55: CFL | G55: 2 | H55: 20 | I55: 46 | J55: Lighting | K55: CFL | L55: CFL
B56: CFQ22/1 | C56: Compact Fluorescent, quad, (1) 22W lamp | D56: CFL | G56: 1 | H56: 22 | I56: 24 | J56: Lighting | K56: CFL | L56: CFL
B57: CFQ22/2 | C57: Compact Fluorescent, quad, (2) 22W lamp | D57: CFL | G57: 2 | H57: 22 | I57: 48 | J57: Lighting | K57: CFL | L57: CFL
B58: CFQ22/3 | C58: Compact Fluorescent, quad, (3) 22W lamp | D58: CFL | G58: 3 | H58: 22 | I58: 72 | J58: Lighting | K58: CFL | L58: CFL
B59: CFQ25/1 | C59: Compact Fluorescent, quad, (1) 25W lamp | D59: CFL | G59: 1 | H59: 25 | I59: 33 | J59: Lighting | K59: CFL | L59: CFL
B60: CFQ25/2 | C60: Compact Fluorescent, quad, (2) 25W lamp | D60: CFL | G60: 2 | H60: 25 | I60: 66 | J60: Lighting | K60: CFL | L60: CFL
B61: CFQ26/1 | C61: Compact Fluorescent, quad, (1) 26W lamp | D61: CFL | G61: 1 | H61: 26 | I61: 33 | J61: Lighting | K61: CFL | L61: CFL
B62: CFQ26/1-L | C62: Compact Fluorescent, quad, (1) 26W lamp, BF=0.95 | D62: CFL | G62: 1 | H62: 26 | I62: 27 | J62: Lighting | K62: CFL | L62: CFL
B63: CFQ26/2 | C63: Compact Fluorescent, quad, (2) 26W lamp | D63: CFL | G63: 2 | H63: 26 | I63: 66 | J63: Lighting | K63: CFL | L63: CFL
B64: CFQ26/2-L | C64: Compact Fluorescent, quad, (2) 26W lamp, BF=0.95 | D64: CFL | G64: 2 | H64: 26 | I64: 50 | J64: Lighting | K64: CFL | L64: CFL
B65: CFQ26/3 | C65: Compact Fluorescent, quad, (3) 26W lamp | D65: CFL | G65: 3 | H65: 26 | I65: 99 | J65: Lighting | K65: CFL | L65: CFL
B66: CFQ26/6-L | C66: Compact Fluorescent, quad, (6) 26W lamp, BF=0.95 | D66: CFL | G66: 6 | H66: 26 | I66: 150 | J66: Lighting | K66: CFL | L66: CFL
B67: CFQ28/1 | C67: Compact Fluorescent, quad, (1) 28W lamp | D67: CFL | G67: 1 | H67: 28 | I67: 33 | J67: Lighting | K67: CFL | L67: =D67 -> CFL
B68: CFQ9/1 | C68: Compact Fluorescent, quad, (1) 9W lamp | D68: CFL | G68: 1 | H68: 9 | I68: 14 | J68: Lighting | K68: CFL | L68: CFL
B69: CFQ9/2 | C69: Compact Fluorescent, quad, (2) 9W lamp | D69: CFL | G69: 2 | H69: 9 | I69: 23 | J69: Lighting | K69: CFL | L69: CFL
B70: CFS11/1 | C70: Compact Fluorescent, spiral, (1) 11W lamp | D70: CFL | G70: 1 | H70: 11 | I70: 11 | J70: Lighting | K70: CFL | L70: CFL
B71: CFS13/1 | C71: Compact Fluorescent, spiral, (1) 13W lamp | D71: CFL | G71: 1 | H71: 13 | I71: 13 | J71: Lighting | K71: CFL | L71: CFL
B72: CFS15/1 | C72: Compact Fluorescent, spiral, (1) 15W lamp | D72: CFL | G72: 1 | H72: 15 | I72: 15 | J72: Lighting | K72: CFL | L72: CFL
B73: CFS20/1 | C73: Compact Fluorescent, spiral, (1) 20W lamp | D73: CFL | G73: 1 | H73: 20 | I73: 20 | J73: Lighting | K73: CFL | L73: CFL
B74: CFS23/1 | C74: Compact Fluorescent, spiral, (1) 23W lamp | D74: CFL | G74: 1 | H74: 23 | I74: 23 | J74: Lighting | K74: CFL | L74: CFL
B75: CFS27/1 | C75: Compact Fluorescent, spiral, (1) 27W lamp | D75: CFL | G75: 1 | H75: 27 | I75: 27 | J75: Lighting | K75: CFL | L75: CFL
B76: CFS30/1 | C76: Compact Fluorescent, spiral, (1) 30W lamp | D76: CFL | G76: 1 | H76: 30 | I76: 30 | J76: Lighting | K76: CFL | L76: CFL
B77: CFS7/1 | C77: Compact Fluorescent, spiral, (1) 7W lamp | D77: CFL | G77: 1 | H77: 7 | I77: 7 | J77: Lighting | K77: CFL | L77: CFL
B78: CFS9/1 | C78: Compact Fluorescent, spiral, (1) 9W lamp | D78: CFL | G78: 1 | H78: 9 | I78: 9 | J78: Lighting | K78: CFL | L78: CFL
B79: CFT13/1 | C79: Compact Fluorescent, twin, (1) 13W lamp | D79: CFL | G79: 1 | H79: 13 | I79: 17 | J79: Lighting | K79: CFL | L79: CFL
B80: CFT13/2 | C80: Compact Fluorescent, twin, (2) 13W lamp | D80: CFL | G80: 2 | H80: 13 | I80: 31 | J80: Lighting | K80: CFL | L80: CFL
B81: CFT13/3 | C81: Compact Fluorescent, twin, (3) 13 W lamp | D81: CFL | G81: 3 | H81: 13 | I81: 48 | J81: Lighting | K81: CFL | L81: CFL
B82: CFT18/1 | C82: Compact Fluorescent, long twin., (1) 18W lamp | D82: CFL | G82: 1 | H82: 18 | I82: 24 | J82: Lighting | K82: CFL | L82: CFL
B83: CFT22/1 | C83: Compact Fluorescent, twin, (1) 22W lamp | D83: CFL | G83: 1 | H83: 22 | I83: 27 | J83: Lighting | K83: CFL | L83: CFL
B84: CFT22/2 | C84: Compact Fluorescent, twin, (2) 22W lamp | D84: CFL | G84: 2 | H84: 22 | I84: 54 | J84: Lighting | K84: CFL | L84: CFL
B85: CFT22/4 | C85: Compact Fluorescent, twin, (4) 22W lamp | D85: CFL | G85: 4 | H85: 22 | I85: 108 | J85: Lighting | K85: CFL | L85: CFL
B86: CFT24/1 | C86: Compact Fluorescent, long twin, (1) 24W lamp | D86: CFL | G86: 1 | H86: 24 | I86: 32 | J86: Lighting | K86: CFL | L86: CFL
B87: CFT26/2-BX | C87: CFL, Retrofit Kit, (2) 26W lamps | D87: CFL Parking Garage Retrofit | G87: 2 | H87: 26 | I87: 55 | J87: Lighting | K87: CFL | L87: CFL Parking Garage Retrofit
B88: CFT28/1 | C88: Compact Fluorescent, twin, (1) 28W lamp | D88: CFL | G88: 1 | H88: 28 | I88: 33 | J88: Lighting | K88: CFL | L88: CFL
B89: CFT28/2 | C89: Compact Fluorescent, twin, (2) 28W lamp | D89: CFL | G89: 2 | H89: 28 | I89: 66 | J89: Lighting | K89: CFL | L89: CFL
B90: CFT32/1-L | C90: Compact Fluorescent, twin or multi, (1) 32W lamp | D90: CFL | G90: 1 | H90: 32 | I90: 34 | J90: Lighting | K90: CFL | L90: CFL
B91: CFT32/2-BX | C91: CFL, Retrofit Kit, (2) 32W lamps | D91: CFL Parking Garage Retrofit | G91: 2 | H91: 32 | I91: 68 | J91: Lighting | K91: CFL | L91: CFL Parking Garage Retrofit
B92: CFT32/2-L | C92: Compact Fluorescent, twin or multi, (2) 32W lamp | D92: CFL | G92: 2 | H92: 32 | I92: 62 | J92: Lighting | K92: CFL | L92: CFL
B93: CFT32/6-L | C93: Compact Fluorescent, twin or multi, (2) 32W lamp | D93: CFL | G93: 6 | H93: 32 | I93: 186 | J93: Lighting | K93: CFL | L93: CFL
B94: CFT36/1 | C94: Compact Fluorescent, long twin, (1) 36W lamp | D94: CFL | G94: 1 | H94: 36 | I94: 51 | J94: Lighting | K94: CFL | L94: CFL
B95: CFT36/4-BX | C95: Compact Fluorescent, Biax, (4) 36W lamp | D95: CFL | E95: Biax | G95: 4 | H95: 36 | I95: 148 | J95: Lighting | K95: CFL | L95: CFL
B96: CFT36/6-BX | C96: Compact Fluorescent, Biax, (6) 36W lamp | D96: CFL | E96: Biax | G96: 6 | H96: 36 | I96: 212 | J96: Lighting | K96: CFL | L96: CFL
B97: CFT36/6-L | C97: Compact Fluorescent, long Twin, (6) 36W lamp | D97: CFL | G97: 6 | H97: 36 | I97: 198 | J97: Lighting | K97: CFL | L97: CFL
B98: CFT36/6-L-H | C98: Compact Fluorescent, long Twin, (6) 36W lamp/ High Ballast Factor | D98: CFL | G98: 6 | H98: 36 | I98: 210 | J98: Lighting | K98: CFL | L98: CFL
B99: CFT36/8-BX | C99: Compact Fluorescent, Biax, (8) 36W lamp | D99: CFL | E99: Biax | G99: 8 | H99: 36 | I99: 296 | J99: Lighting | K99: CFL | L99: CFL
B100: CFT36/8-L | C100: Compact Fluorescent, long Twin, (8) 36W lamp | D100: CFL | G100: 8 | H100: 36 | I100: 270 | J100: Lighting | K100: CFL | L100: CFL
B101: CFT36/8-L-H | C101: Compact Fluorescent, long Twin, (8) 36W lamp/ High Ballast Factor | D101: CFL | G101: 8 | H101: 36 | I101: 286 | J101: Lighting | K101: CFL | L101: CFL
B102: CFT36/9-BX | C102: Compact Fluorescent, Biax, (9) 36W lamp | D102: CFL | E102: Biax | G102: 9 | H102: 36 | I102: 318 | J102: Lighting | K102: CFL | L102: CFL
B103: CFT40/1 | C103: Compact Fluorescent, twin, (1) 40W lamp | D103: CFL | G103: 1 | H103: 40 | I103: 46 | J103: Lighting | K103: CFL | L103: CFL
B104: CFT40/12-BX | C104: Compact Fluorescent, Biax, (12) 40W lamp | D104: CFL | E104: Biax | G104: 12 | H104: 40 | I104: 408 | J104: Lighting | K104: CFL | L104: CFL
B105: CFT40/1-BX | C105: Compact Fluorescent, Biax, (1) 40W lamp | D105: CFL | E105: Biax | G105: 1 | H105: 40 | I105: 46 | J105: Lighting | K105: CFL | L105: CFL
B106: CFT40/1-L | C106: Compact Fluorescent, long twin, (1) 40W lamp | D106: CFL | G106: 1 | H106: 40 | I106: 43 | J106: Lighting | K106: CFL | L106: CFL
B107: CFT40/2 | C107: Compact Fluorescent, twin, (2) 40W lamp | D107: CFL | G107: 2 | H107: 40 | I107: 85 | J107: Lighting | K107: CFL | L107: CFL
B108: CFT40/2-BX | C108: Compact Fluorescent, Biax, (2) 40W lamp | D108: CFL | E108: Biax | G108: 2 | H108: 40 | I108: 72 | J108: Lighting | K108: CFL | L108: CFL
B109: CFT40/2-L | C109: Compact Fluorescent, long twin, (2) 40W lamp | D109: CFL | G109: 2 | H109: 40 | I109: 72 | J109: Lighting | K109: CFL | L109: CFL
B110: CFT40/3 | C110: Compact Fluorescent, twin, (3) 40 W lamp | D110: CFL | G110: 3 | H110: 40 | I110: 133 | J110: Lighting | K110: CFL | L110: CFL
B111: CFT40/3-BX | C111: Compact Fluorescent, Biax, (3) 40W lamp | D111: CFL | E111: Biax | G111: 3 | H111: 40 | I111: 102 | J111: Lighting | K111: CFL | L111: CFL
B112: CFT40/3-L | C112: Compact Fluorescent, long twin, (3) 40W lamp | D112: CFL | G112: 3 | H112: 40 | I112: 105 | J112: Lighting | K112: CFL | L112: CFL
B113: CFT40/4-BX | C113: Compact Fluorescent, Biax, (4) 40W lamp | D113: CFL | E113: Biax | G113: 4 | H113: 40 | I113: 144 | J113: Lighting | K113: CFL | L113: CFL
B114: CFT40/5-BX | C114: Compact Fluorescent, Biax, (5) 40W lamp | D114: CFL | E114: Biax | G114: 5 | H114: 40 | I114: 190 | J114: Lighting | K114: CFL | L114: CFL
B115: CFT40/6-BX | C115: Compact Fluorescent, Biax, (6) 40W lamp | D115: CFL | E115: Biax | G115: 6 | H115: 40 | I115: 204 | J115: Lighting | K115: CFL | L115: CFL
B116: CFT40/6-L | C116: Compact Fluorescent, long Twin, (6) 40W lamp | D116: CFL | G116: 6 | H116: 40 | I116: 220 | J116: Lighting | K116: CFL | L116: CFL
B117: CFT40/6-L-H | C117: Compact Fluorescent, long Twin, (6) 40W lamp/ High Ballast Factor | D117: CFL | G117: 6 | H117: 40 | I117: 233 | J117: Lighting | K117: CFL | L117: CFL
B118: CFT40/8-BX | C118: Compact Fluorescent, Biax, (8) 40W lamp | D118: CFL | E118: Biax | G118: 8 | H118: 40 | I118: 288 | J118: Lighting | K118: CFL | L118: CFL
B119: CFT40/8-L | C119: Compact Fluorescent, long Twin, (8) 40W lamp | D119: CFL | G119: 8 | H119: 40 | I119: 300 | J119: Lighting | K119: CFL | L119: CFL
B120: CFT40/8-L-H | C120: Compact Fluorescent, long Twin, (8) 40W lamp/ High Ballast Factor | D120: CFL | G120: 8 | H120: 40 | I120: 340 | J120: Lighting | K120: CFL | L120: CFL
B121: CFT40/9-BX | C121: Compact Fluorescent, Biax, (9) 40W lamp | D121: CFL | E121: Biax | G121: 9 | H121: 40 | I121: 306 | J121: Lighting | K121: CFL | L121: CFL
B122: CFT42/2-BX | C122: CFL, Retrofit Kit, (2) 42W lamps | D122: CFL Parking Garage Retrofit | G122: 2 | H122: 42 | I122: 92 | J122: Lighting | K122: CFL | L122: CFL Parking Garage Retrofit
B123: CFT5/1 | C123: Compact Fluorescent, twin, (1) 5W lamp | D123: CFL | G123: 1 | H123: 5 | I123: 9 | J123: Lighting | K123: CFL | L123: CFL
B124: CFT5/2 | C124: Compact Fluorescent, twin, (2) 5W lamp | D124: CFL | G124: 2 | H124: 5 | I124: 18 | J124: Lighting | K124: CFL | L124: CFL
B125: CFT50/12-BX | C125: Compact Fluorescent, Biax, (12) 50W lamp | D125: CFL | E125: Biax | G125: 12 | H125: 50 | I125: 648 | J125: Lighting | K125: CFL | L125: CFL
B126: CFT50/1-BX | C126: Compact Fluorescent, Biax, (1) 50W lamp | D126: CFL | E126: Biax | G126: 1 | H126: 50 | I126: 54 | J126: Lighting | K126: CFL | L126: CFL
B127: CFT50/2-BX | C127: Compact Fluorescent, Biax, (2) 50W lamp | D127: CFL | E127: Biax | G127: 2 | H127: 50 | I127: 108 | J127: Lighting | K127: CFL | L127: CFL
B128: CFT50/3-BX | C128: Compact Fluorescent, Biax, (3) 50W lamp | D128: CFL | E128: Biax | G128: 3 | H128: 50 | I128: 162 | J128: Lighting | K128: CFL | L128: CFL
B129: CFT50/4-BX | C129: Compact Fluorescent, Biax, (4) 50W lamp | D129: CFL | E129: Biax | G129: 4 | H129: 50 | I129: 216 | J129: Lighting | K129: CFL | L129: CFL
B130: CFT50/5-BX | C130: Compact Fluorescent, Biax, (5) 50W lamp | D130: CFL | E130: Biax | G130: 5 | H130: 50 | I130: 270 | J130: Lighting | K130: CFL | L130: CFL
B131: CFT50/6-BX | C131: Compact Fluorescent, Biax, (6) 50W lamp | D131: CFL | E131: Biax | G131: 6 | H131: 50 | I131: 324 | J131: Lighting | K131: CFL | L131: =D131 -> CFL
B132: CFT50/8-BX | C132: Compact Fluorescent, Biax, (8) 50W lamp | D132: CFL | E132: Biax | G132: 8 | H132: 50 | I132: 432 | J132: Lighting | K132: CFL | L132: CFL
B133: CFT50/9-BX | C133: Compact Fluorescent, Biax, (9) 50W lamp | D133: CFL | E133: Biax | G133: 9 | H133: 50 | I133: 486 | J133: Lighting | K133: CFL | L133: CFL
B134: CFT55/12-BX | C134: Compact Fluorescent, Biax, (12) 55W lamp | D134: CFL | E134: Biax | G134: 12 | H134: 55 | I134: 672 | J134: Lighting | K134: CFL | L134: CFL
B135: CF55/1 | C135: Compact Fluorescent, (1) 55W lamp | D135: CFL | G135: 1 | H135: 55 | I135: 55 | J135: Lighting | K135: CFL | L135: CFL
B136: CFT55/1-BX | C136: Compact Fluorescent, Biax, (1) 55W lamp | D136: CFL | E136: Biax | G136: 1 | H136: 55 | I136: 56 | J136: Lighting | K136: CFL | L136: CFL
B137: CFT55/2-BX | C137: Compact Fluorescent, Biax, (2) 55W lamp | D137: CFL | E137: Biax | G137: 2 | H137: 55 | I137: 112 | J137: Lighting | K137: CFL | L137: CFL
B138: CFT55/3-BX | C138: Compact Fluorescent, Biax, (3) 55W lamp | D138: CFL | E138: Biax | G138: 3 | H138: 55 | I138: 168 | J138: Lighting | K138: CFL | L138: CFL
B139: CFT55/4-BX | C139: Compact Fluorescent, Biax, (4) 55W lamp | D139: CFL | E139: Biax | G139: 4 | H139: 55 | I139: 224 | J139: Lighting | K139: CFL | L139: CFL
B140: CFT55/5-BX | C140: Compact Fluorescent, Biax, (5) 55W lamp | D140: CFL | E140: Biax | G140: 5 | H140: 55 | I140: 280 | J140: Lighting | K140: CFL | L140: CFL
B141: CFT55/6-BX | C141: Compact Fluorescent, Biax, (6) 55W lamp | D141: CFL | E141: Biax | G141: 6 | H141: 55 | I141: 336 | J141: Lighting | K141: CFL | L141: CFL
B142: CFT55/6-L | C142: Compact Fluorescent, long Twin, (6) 55W lamp | D142: CFL | G142: 6 | H142: 55 | I142: 352 | J142: Lighting | K142: CFL | L142: CFL
B143: CFT55/6-L-H | C143: Compact Fluorescent, long Twin, (6) 55W lamp/ High Ballast Factor | D143: CFL | G143: 6 | H143: 55 | I143: 373 | J143: Lighting | K143: CFL | L143: CFL
B144: CFT55/8-BX | C144: Compact Fluorescent, Biax, (8) 55W lamp | D144: CFL | E144: Biax | G144: 8 | H144: 55 | I144: 448 | J144: Lighting | K144: CFL | L144: CFL
B145: CFT55/8-L | C145: Compact Fluorescent, long Twin, (8) 55W lamp | D145: CFL | G145: 8 | H145: 55 | I145: 468 | J145: Lighting | K145: CFL | L145: CFL
B146: CFT55/8-L-H | C146: Compact Fluorescent, long Twin, (8) 55W lamp/ High Ballast Factor | D146: CFL | G146: 8 | H146: 55 | I146: 496 | J146: Lighting | K146: CFL | L146: CFL
B147: CFT55/9-BX | C147: Compact Fluorescent, Biax, (9) 55W lamp | D147: CFL | E147: Biax | G147: 9 | H147: 55 | I147: 504 | J147: Lighting | K147: CFL | L147: CFL
B148: CFT57/2-BX | C148: CFL, Retrofit Kit, (2) 57W lamps | D148: CFL Parking Garage Retrofit | G148: 2 | H148: 57 | I148: 127 | J148: Lighting | K148: CFL | L148: CFL Parking Garage Retrofit
B149: CFT7/1 | C149: Compact Fluorescent, twin, (1) 7W lamp | D149: CFL | G149: 1 | H149: 7 | I149: 10 | J149: Lighting | K149: CFL | L149: CFL
B150: CFT7/2 | C150: Compact Fluorescent, twin, (2) 7W lamp | D150: CFL | G150: 2 | H150: 7 | I150: 21 | J150: Lighting | K150: CFL | L150: CFL
B151: CFT70/2-BX | C151: CFL, Retrofit Kit, (2) 70W lamps | D151: CFL Parking Garage Retrofit | G151: 2 | H151: 70 | I151: 156 | J151: Lighting | K151: CFL | L151: CFL Parking Garage Retrofit
B152: CFT9/1 | C152: Compact Fluorescent, twin, (1) 9W lamp | D152: CFL | G152: 1 | H152: 9 | I152: 11 | J152: Lighting | K152: CFL | L152: CFL
B153: CFT9/2 | C153: Compact Fluorescent, twin, (2) 9W lamp | D153: CFL | G153: 2 | H153: 9 | I153: 23 | J153: Lighting | K153: CFL | L153: CFL
B154: CFT9/3 | C154: Compact Fluorescent, twin, (3) 9W lamp | D154: CFL | G154: 3 | H154: 9 | I154: 34 | J154: Lighting | K154: CFL | L154: CFL
B155: CMHI24/1 | C155: Ceramic Metal Halide, Integrated Ballast PAR 30 Bulb, 24 W | D155: Ceramic MH - Integrated | G155: 1 | H155: 24 | I155: 24 | J155: Lighting | K155: HIDs | L155: Ceramic MH - Integrated
B156: CMHI25/1 | C156: Ceramic Metal Halide, Integrated Ballast PAR 38 Bulb, 25 W | D156: Ceramic MH - Integrated | G156: 1 | H156: 25 | I156: 25 | J156: Lighting | K156: HIDs | L156: Ceramic MH - Integrated
B157: CMHR100/1 | C157: Ceramic Metal Halide, Remote Ballast, 100 W | D157: Ceramic MH - Remote | G157: 1 | H157: 130 | I157: 130 | J157: Lighting | K157: HIDs | L157: Ceramic MH - Remote
B158: CMHR20/1 | C158: Ceramic Metal Halide, Remote Ballast, 20 W | D158: Ceramic MH - Remote | G158: 1 | H158: 22.5 | I158: 22.5 | J158: Lighting | K158: HIDs | L158: Ceramic MH - Remote
B159: CMHR35/1 | C159: Ceramic Metal Halide, Remote Ballast, 35 - 39 W | D159: Ceramic MH - Remote | G159: 1 | H159: 55 | I159: 55 | J159: Lighting | K159: HIDs | L159: Ceramic MH - Remote
B160: CMHR50/1 | C160: Ceramic Metal Halide, Remote Ballast, 50 W | D160: Ceramic MH - Remote | G160: 1 | H160: 72 | I160: 72 | J160: Lighting | K160: HIDs | L160: Ceramic MH - Remote
B161: CMHR70/1 | C161: Ceramic Metal Halide, Remote Ballast, 70 W | D161: Ceramic MH - Remote | G161: 1 | H161: 94 | I161: 94 | J161: Lighting | K161: HIDs | L161: Ceramic MH - Remote
B162: ECF5/1 | C162: EXIT Compact Fluorescent, (1) 5W lamp | D162: CFL Exit | G162: 1 | H162: 5 | I162: 9 | J162: Lighting | K162: CFL | L162: CFL Exit
B163: ECF5/2 | C163: EXIT Compact Fluorescent, (2) 5W lamp | D163: CFL Exit | G163: 2 | H163: 5 | I163: 20 | J163: Lighting | K163: CFL | L163: CFL Exit
B164: ECF7/1 | C164: EXIT Compact Fluorescent, (1) 7W lamp | D164: CFL Exit | G164: 1 | H164: 7 | I164: 10 | J164: Lighting | K164: CFL | L164: CFL Exit
B165: ECF7/2 | C165: EXIT Compact Fluorescent, (2) 7W lamp | D165: CFL Exit | G165: 2 | H165: 7 | I165: 21 | J165: Lighting | K165: CFL | L165: CFL Exit
B166: ECF8/1 | C166: EXIT T5 Fluorescent, (1) 8W lamp | D166: CFL Exit | G166: 1 | H166: 8 | I166: 12 | J166: Lighting | K166: CFL | L166: CFL Exit
B167: ECF8/2 | C167: EXIT T5 Fluorescent, (2) 8W lamp | D167: CFL Exit | G167: 2 | H167: 8 | I167: 24 | J167: Lighting | K167: CFL | L167: CFL Exit
B168: ECF9/1 | C168: EXIT Compact Fluorescent, (1) 9W lamp | D168: CFL Exit | G168: 1 | H168: 9 | I168: 12 | J168: Lighting | K168: CFL | L168: CFL Exit
B169: ECF9/2 | C169: EXIT Compact Fluorescent, (2) 9W lamp | D169: CFL Exit | G169: 2 | H169: 9 | I169: 20 | J169: Lighting | K169: CFL | L169: CFL Exit
B170: EI10/2 | C170: EXIT Incandescent, (2) 10W lamp | D170: Incandescent Exit | G170: 2 | H170: 10 | I170: 20 | J170: Lighting | K170: Incandescent | L170: Incandescent Exit
B171: EI15/1 | C171: EXIT Incandescent, (1) 15W lamp | D171: Incandescent Exit | G171: 1 | H171: 15 | I171: 15 | J171: Lighting | K171: Incandescent | L171: Incandescent Exit
B172: EI15/2 | C172: EXIT Incandescent, (2) 15W lamp | D172: Incandescent Exit | G172: 2 | H172: 15 | I172: 30 | J172: Lighting | K172: Incandescent | L172: Incandescent Exit
B173: EI20/1 | C173: EXIT Incandescent, (1) 20W lamp | D173: Incandescent Exit | G173: 1 | H173: 20 | I173: 20 | J173: Lighting | K173: Incandescent | L173: Incandescent Exit
B174: EI20/2 | C174: EXIT Incandescent, (2) 20W lamp | D174: Incandescent Exit | G174: 2 | H174: 20 | I174: 40 | J174: Lighting | K174: Incandescent | L174: Incandescent Exit
B175: EI25/1 | C175: EXIT Incandescent, (1) 25W lamp | D175: Incandescent Exit | G175: 1 | H175: 25 | I175: 25 | J175: Lighting | K175: Incandescent | L175: Incandescent Exit
B176: EI25/2 | C176: EXIT Incandescent, (2) 25W lamp | D176: Incandescent Exit | G176: 2 | H176: 25 | I176: 50 | J176: Lighting | K176: Incandescent | L176: Incandescent Exit
B177: EI34/1 | C177: EXIT Incandescent, (1) 34W lamp | D177: Incandescent Exit | G177: 1 | H177: 34 | I177: 34 | J177: Lighting | K177: Incandescent | L177: Incandescent Exit
B178: EI34/2 | C178: EXIT Incandescent, (2) 34W lamp | D178: Incandescent Exit | G178: 2 | H178: 34 | I178: 68 | J178: Lighting | K178: Incandescent | L178: Incandescent Exit
B179: EI40/1 | C179: EXIT Incandescent, (1) 40W lamp | D179: Incandescent Exit | G179: 1 | H179: 40 | I179: 40 | J179: Lighting | K179: Incandescent | L179: Incandescent Exit
B180: EI40/2 | C180: EXIT Incandescent, (2) 40W lamp | D180: Incandescent Exit | G180: 2 | H180: 40 | I180: 80 | J180: Lighting | K180: Incandescent | L180: Incandescent Exit
B181: EI5/1 | C181: EXIT Incandescent, (1) 5W lamp | D181: Incandescent Exit | G181: 1 | H181: 5 | I181: 5 | J181: Lighting | K181: Incandescent | L181: Incandescent Exit
B182: EI5/2 | C182: EXIT Incandescent, (2) 5W lamp | D182: Incandescent Exit | G182: 2 | H182: 5 | I182: 10 | J182: Lighting | K182: Incandescent | L182: Incandescent Exit
B183: EI50/2 | C183: EXIT Incandescent, (2) 50W lamp | D183: Incandescent Exit | G183: 2 | H183: 50 | I183: 100 | J183: Lighting | K183: Incandescent | L183: Incandescent Exit
B184: EI7.5/1 | C184: EXIT Tungsten, (1) 7.5 W lamp | D184: Incandescent Exit | G184: 1 | H184: 7.5 | I184: 8 | J184: Lighting | K184: Incandescent | L184: Incandescent Exit
B185: EI7.5/2 | C185: EXIT Tungsten, (2) 7.5 W lamp | D185: Incandescent Exit | G185: 2 | H185: 7.5 | I185: 15 | J185: Lighting | K185: Incandescent | L185: Incandescent Exit
B186: ELED0.5/1 | C186: EXIT Light Emitting Diode, (1) 0.5W lamp, Single Sided | D186: LED Exit | G186: 1 | H186: 0.5 | I186: 0.5 | J186: Lighting | K186: LED/Solid State | L186: LED Exit
B187: ELED0.5/2 | C187: EXIT Light Emitting Diode, (2) 0.5W lamp, Dual Sided | D187: LED Exit | G187: 2 | H187: 0.5 | I187: 1 | J187: Lighting | K187: LED/Solid State | L187: LED Exit
B188: ELED1.5/1 | C188: EXIT Light Emitting Diode, (1) 1.5W lamp, Single Sided | D188: LED Exit | G188: 1 | H188: 1.5 | I188: 1.5 | J188: Lighting | K188: LED/Solid State | L188: LED Exit
B189: ELED1.5/2 | C189: EXIT Light Emitting Diode, (2) 1.5W lamp, Dual Sided | D189: LED Exit | G189: 2 | H189: 1.5 | I189: 3 | J189: Lighting | K189: LED/Solid State | L189: LED Exit
B190: ELED10.5/1 | C190: EXIT Light Emitting Diode, (1) 10.5W lamp, Single Sided | D190: LED Exit | G190: 1 | H190: 10.5 | I190: 10.5 | J190: Lighting | K190: LED/Solid State | L190: LED Exit
B191: ELED10.5/2 | C191: EXIT Light Emitting Diode, (2) 10.5W lamp, Dual Sided | D191: LED Exit | G191: 2 | H191: 10.5 | I191: 21 | J191: Lighting | K191: LED/Solid State | L191: LED Exit
B192: ELED2/1 | C192: EXIT Light Emitting Diode, (1) 2W lamp, Single Sided | D192: LED Exit | G192: 1 | H192: 2 | I192: 2 | J192: Lighting | K192: LED/Solid State | L192: LED Exit
B193: ELED2/2 | C193: EXIT Light Emitting Diode, (2) 2W lamp, Dual Sided | D193: LED Exit | G193: 2 | H193: 2 | I193: 4 | J193: Lighting | K193: LED/Solid State | L193: LED Exit
B194: ELED3/1 | C194: EXIT Light Emitting Diode, (1) 3W lamp, Single Sided | D194: LED Exit | G194: 1 | H194: 3 | I194: 3 | J194: Lighting | K194: LED/Solid State | L194: LED Exit
B195: ELED3/2 | C195: EXIT Light Emitting Diode, (2) 3W lamp, Dual Sided | D195: LED Exit | G195: 2 | H195: 3 | I195: 6 | J195: Lighting | K195: LED/Solid State | L195: =D195 -> LED Exit
B196: ELED5/1 | C196: EXIT Light Emitting Diode, (1) 5W lamp, Single Sided | D196: LED Exit | G196: 1 | H196: 5 | I196: 5 | J196: Lighting | K196: LED/Solid State | L196: LED Exit
B197: ELED5/2 | C197: EXIT Light Emitting Diode, (2) 5W lamp, Dual Sided | D197: LED Exit | G197: 2 | H197: 5 | I197: 10 | J197: Lighting | K197: LED/Solid State | L197: LED Exit
B198: ELED8/1 | C198: EXIT Light Emitting Diode, (1) 8W lamp, Single Sided | D198: LED Exit | G198: 1 | H198: 8 | I198: 8 | J198: Lighting | K198: LED/Solid State | L198: LED Exit
B199: ELED8/2 | C199: EXIT Light Emitting Diode, (2) 8W lamp, Dual Sided | D199: LED Exit | G199: 2 | H199: 8 | I199: 16 | J199: Lighting | K199: LED/Solid State | L199: LED Exit
B200: F1.51LS | C200: Fluorescent (1) 18 T8 lamp, Magnetic STD | D200: T8 | F200: 18 | G200: 1 | H200: 15 | I200: 19 | J200: Lighting | K200: Fluorescent | L200: T8
B201: F1.51SS | C201: Fluorescent (1) T-12 Std. lamp, Standard Magnetic Ballast | D201: T12 | F201: 18 | G201: 1 | H201: 15 | I201: 19 | J201: Lighting | K201: Fluorescent | L201: T12
... 1891 more rows

Sheet Lighting_References (hidden)
AJ1: Lamp Wattage | DC1: 1
B2: Fluorescent | C2: Incandescent | D2: HID | E2: Compact Fluorescent | F2: Not Listed | H2: T12 | I2: T8 | J2: T5 | K2: HPT8 | L2: HPT8-RW | M2: U-Tube | N2: Metal Halide | O2: High Pressure Sodium | P2: Compact Fluorescent | Q2: Compact Fluorescent, Quad Tube | R2: Compact Fluorescent, Spiral | S2: Compact Fluorescent, Twin Tube | T2: Halogen | U2: Incandescent | V2: other | Y2: 2 | Z2: 3 | AA2: 4 | AB2: 5 | AC2: 6 | AD2: 8 | AE2: U | AF2: NA | AG2: HPS | AH2: other | AJ2: 1 | AK2: 2 | AL2: T5 2 | AM2: T5 3 | AN2: T5 4 | AO2: T5 5 | AP2: T8 2 | AQ2: T8 3 | AR2: T8 4 | AS2: T8 5 | AT2: T8 6 | AU2: T8 8 | AV2: T8 Other | AW2: T8 U | AX2: HPT8 4 | AY2: HPT8-RW 4 | AZ2: T12 2 | BA2: T12 3 | BB2: T12 4 | BC2: T12 5 | BD2: T12 6 | BE2: T12 8 | BF2: T12 U | BG2: MH | BH2: HPS | BI2: I | BJ2: H | BK2: CF | BL2: CFQ | BM2: CFS | BN2: CFT | BO2: HPS | BP2: FLED | BQ2: FLED2 | BR2: ILED | BT2: Fixture Type | BU2: Fixture Code | BW2: Lamp Length | BX2: Lamp Length (ft) | BZ2: Lamps/fixture | CB2: Lamp Type | CC2: Lamp Code | CE2: Ballast Type | CF2: Ballast Code | CH2: Linear Lamp Wattage | CJ2: Lamp Wattage | CL2: Fixture Type | CM2: Fixture Code | CP2: Building Type | CQ2: FLH | CS2: Fuel Type | CW2: Replacements | DC2: Rebate Lookup | DP2: Rate Code | DQ2: $/kWh
CB3: T12 | CC3: S | CH3: 14 | CJ3: 0 | CL3: Ceramic Metal Halide | CM3: CMH | CP3: …please select… | CS3: …please select… | CX3: 9 watt quad tube CFL to LED, Replacement Lamps 4 watts | CY3: LR410 | CZ3: L410 | DA3: =IF($DC$1=1,CY3,CZ3) -> LR410 | DC3: Fast Track | DF3: Performance Lighting | DH3: User Selected | DK3: CF11/1 | DL3: CFL | DM3: 5 | DP3: 180 | DQ3: =DQ4+0.05 -> 0.234773 | DS3: Summer | DT3: 0.1969 | DU3: 0.33 | DV3: =SUMPRODUCT(DT3:DT4,DU3:DU4/SUM(DU3:DU4)) -> 0.184773
B4: T12 | C4: Incandescent | D4: Metal Halide | E4: Compact Fluorescent, Quad Tube | H4: 2 | I4: 2 | J4: 2 | K4: 4 | L4: 4 | N4: NA | O4: NA | Y4: 1 | Z4: 1 | AA4: 1 | AB4: 1 | AC4: 1 | AD4: 1 | AE4: 1 | AF4: 1 | AJ4: 25 | AK4: 25 | AL4: 14 | AM4: 21 | AN4: 28 | AO4: 35 | AP4: 17 | AQ4: 25 | AR4: 30 | AS4: 40 | AT4: 35 | AU4: 59 | AV4: 15 | AW4: 32 | AX4: 32 | AY4: 25 | AZ4: 20 | BA4: 25 | BB4: 30 | BC4: 50 | BD4: 55 | BE4: 75 | BF4: 40 | BG4: 32 | BH4: 35 | BI4: 15 | BJ4: 20 | BK4: 4 | BL4: 9 | BM4: 11 | BN4: 5 | BP4: 10 | BQ4: 410 | BR4: 2 | BT4: T12 | BU4: F | BW4: 18 | BX4: =BW4/12 -> 1.5 | BZ4: 1 | CB4: T8 | CC4: IL | CE4: Electronic | CF4: L | CH4: 15 | CJ4: 0.5 | CL4: Compact Fluorescent | CM4: CF | CP4: Auto Related | CQ4: 2810 | CS4: Oil | CX4: 13 watt quad tube CFL to LED, Replacement Lamps 5 watts | CY4: LR410 | CZ4: L410 | DA4: =IF($DC$1=1,CY4,CZ4) -> LR410 | DC4: Measure Code | DD4: Description | DE4: Rebate | DF4: Measure Code | DG4: Rebate | DH4: Measure Code | DI4: Rebate | DK4: CF15/1 | DL4: CFL | DM4: 5 | DP4: 280 | DQ4: =DV3 -> 0.184773 | DS4: Winter | DT4: 0.1788 | DU4: 0.67
B5: T8 | C5: Halogen | D5: High Pressure Sodium | E5: Compact Fluorescent, Spiral | H5: 3 | I5: 3 | J5: 3 | Y5: 2 | Z5: 2 | AA5: 2 | AB5: 2 | AC5: 2 | AD5: 2 | AE5: 2 | AJ5: 28 | AK5: 28 | AL5: 24 | AM5: 39 | AN5: 54 | AO5: 49 | AR5: 32 | AS5: 58 | AT5: 65 | AU5: 86 | AV5: 25 | AY5: 28 | AZ5: 35 | BA5: 30 | BB5: 34 | BC5: 75 | BD5: 85 | BE5: 110 | BG5: 35 | BH5: 50 | BI5: 20 | BJ5: 25 | BK5: 11 | BL5: 13 | BM5: 7 | BN5: 7 | BP5: 20 | BQ5: =BQ4+10 -> 420 | BR5: 3 | BT5: T8 | BU5: F | BW5: 22 | BX5: 1.833333333 | BZ5: 2 | CB5: T5 | CC5: GH | CE5: Standard Magnetic | CF5: S | CH5: 17 | CJ5: 1 | CL5: Compact Fluorescent, Double D Shape | CM5: CFD | CP5: Bakery | CQ5: 2854 | CS5: Steam | CX5: 15 watt quad tube CFL to LED, Replacement Lamps 6 watts | CY5: LR410 | CZ5: L410 | DA5: LR410 | DC5: LR100 | DD5: LED Interior Parking Garage Lighting Fixtures | DE5: 100 | DF5: L100 | DG5: 0.3 | DH5: =IF($DC$1=1,DC5,DF5) -> LR100 | DI5: =IF($DC$1=1,DE5,DG5) -> 100 | DK5: CF23/1 | DL5: CFL | DM5: 5 | DP5: 281 | DQ5: =DV5 -> 0.126847 | DS5: Summer | DT5: 0.1375 | DU5: 0.33 | DV5: =SUMPRODUCT(DT5:DT6,DU5:DU6/SUM(DU5:DU6)) -> 0.126847
B6: T5 | E6: Compact Fluorescent, Twin Tube | H6: 4 | I6: 4 | J6: 4 | Y6: 3 | Z6: 3 | AA6: 3 | AC6: 3 | AD6: 3 | AE6: 3 | AJ6: 32 | AK6: 32 | AV6: 35 | BA6: 50 | BB6: 39 | BC6: 135 | BD6: 160 | BG6: 50 | BH6: 70 | BI6: 40 | BJ6: 35 | BK6: 14 | BL6: 15 | BM6: 9 | BN6: 9 | BP6: 30 | BQ6: =BQ5+10 -> 430 | BR6: 4 | BT6: T5 | BU6: F | BW6: 24 | BX6: 2 | BZ6: 3 | CB6: F25T12 lamp | CC6: A | CE6: Energy Efficient Magnetic | CF6: E | CH6: 20 | CJ6: 1.5 | CL6: Compact Fluorescent, Quad Tube | CM6: CFQ | CP6: Banks | CQ6: 3748 | CS6: Natural Gas | CX6: 17 watt quad tube CFL to LED, Replacement Lamps 7 watts | CY6: LR410 | CZ6: L410 | DA6: LR410 | DC6: LR100-P | DD6: Premium LED Interior Parking Garage Lighting Fixtures | DE6: 100 | DF6: L100-P | DG6: 0.3 | DH6: =IF($DC$1=1,DC6,DF6) -> LR100-P | DI6: =IF($DC$1=1,DE6,DG6) -> 100 | DK6: CF4/1 | DL6: CFL | DM6: 5 | DP6: 285 | DQ6: =DV7 -> 0.132293 | DS6: Winter | DT6: 0.1216 | DU6: 0.67
H7: 5 | I7: 5 | J7: 5 | Y7: 4 | Z7: 4 | AA7: 4 | AC7: 4 | AD7: 4 | AE7: 4 | AJ7: 40 | AK7: 40 | AV7: 40 | BB7: 40 | BG7: 70 | BH7: 100 | BI7: 50 | BJ7: 40 | BK7: 15 | BL7: 17 | BM7: 13 | BN7: 13 | BP7: 40 | BQ7: 440 | BR7: 5 | BT7: HPT8 | BU7: F | BW7: 36 | BX7: 3 | BZ7: 4 | CB7: T-10 lamp | CC7: T | CH7: 21 | CJ7: 2 | CL7: Compact Fluorescent, Spiral | CM7: CFS | CP7: Church | CQ7: 1955 | CS7: Propane | CX7: 18 watt quad tube CFL to LED, Replacement Lamps 7 watts | CY7: LR410 | CZ7: L410 | DA7: LR410 | DC7: LR410 | DD7: LED Lamps | DE7: 4 | DF7: L410 | DG7: 0.1 | DH7: LR410 | DI7: 4 | DK7: CF42/1 | DL7: CFL | DM7: 5 | DP7: TBD | DQ7: =DQ5 -> 0.126847 | DS7: Summer | DT7: 0.1404 | DU7: 0.33 | DV7: =SUMPRODUCT(DT7:DT8,DU7:DU8/SUM(DU7:DU8)) -> 0.132293
H8: 6 | I8: 6 | AA8: 6 | AJ8: Default | AK8: Default | AV8: 58 | BB8: 55 | BG8: 100 | BH8: 150 | BI8: 55 | BJ8: 45 | BK8: 23 | BL8: 18 | BM8: 15 | BN8: 18 | BP8: 50 | BQ8: 450 | BR8: 6 | BT8: HPT8-RW | BU8: F | BW8: 48 | BX8: 4 | BZ8: 5 | CB8: T-12 ES HO lamp | CC8: EH | CH8: 24 | CJ8: 3 | CL8: Compact Fluorescent, Twin Tube | CM8: CFT | CP8: College – Cafeteria | CQ8: 2713 | CX8: 20 watt quad tube CFL to LED, Replacement Lamps 8 watts | CY8: LR410 | CZ8: L410 | DA8: LR410 | DC8: LR600 | DD8: LED Downlights < 1,000 Lumens | DE8: 35 | DF8: L600 | DG8: 0.3 | DH8: LR600 | DI8: 35 | DK8: CF55/1 | DL8: CFL | DM8: 5 | DS8: Winter | DT8: 0.1283 | DU8: 0.67
H9: 8 | I9: 8 | AA9: 8 | AV9: 65 | BB9: 60 | BG9: 150 | BH9: 200 | BI9: 60 | BJ9: 50 | BK9: 42 | BL9: 20 | BM9: 20 | BN9: 22 | BP9: 60 | BQ9: 460 | BR9: 7 | BT9: Fluorescent, Circline | BU9: FC | BW9: 60 | BX9: 5 | BZ9: 6 | CB9: T-12 ES Instant Start lamp | CC9: EI | CH9: 25 | CJ9: 4 | CL9: Electronic Pulse Start Metal Halide | CM9: MPHE | CP9: College - Classes/Administrative | CQ9: 2586 | CX9: 22 watt quad tube CFL to LED, Replacement Lamps 8 watts | CY9: LR410 | CZ9: L410 | DA9: LR410 | DC9: LR610 | DD9: LED Downlights > 1,000 Lumens | DE9: 35 | DF9: L610 | DG9: 0.3 | DH9: LR610 | DI9: 35 | DK9: F21ILL | DL9: T8 | DM9: 50
H10: U | I10: U | BB10: 110 | BG10: 175 | BH10: 225 | BI10: 65 | BJ10: 55 | BL10: 22 | BM10: 23 | BN10: 24 | BP10: 70 | BQ10: 470 | BR10: 8 | BT10: Fluorescent, Linear | BU10: F | BW10: 72 | BX10: 6 | BZ10: 8 | CB10: T-12 ES lamp | CC10: EI | CH10: 28 | CJ10: 5 | CL10: Exit Sign, Compact Fluorescent | CM10: ECF | CP10: College - Dormitory | CQ10: 3066 | CX10: 25 watt quad tube CFL to LED, Replacement Lamps 10 watts | CY10: LR410 | CZ10: L410 | DA10: LR410 | DC10: LR620 | DD10: Recessed LED Retrofit Kits | DE10: 20 | DF10: L620 | DG10: 0.3 | DH10: LR620 | DI10: 20 | DK10: F22GL | DL10: T5 | DM10: 75
BG11: 200 | BH11: 250 | BI11: 80 | BJ11: 60 | BL11: 25 | BM11: 27 | BN11: 28 | BP11: 80 | BQ11: 480 | BR11: 9 | BT11: Fluorescent, U-tube | BU11: FU | BW11: 96 | BX11: 8 | CB11: T-12 ES VHO lamp | CC11: EV | CH11: 30 | CJ11: 6 | CL11: Exit Sign, Incandescent | CM11: EI | CP11: Commercial Condos | CQ11: 3100 | CX11: 26 watt quad tube CFL to LED, Replacement Lamps 10 watts | CY11: LR410 | CZ11: L410 | DA11: LR410 | DC11: LR700 | DD11: LED 1 x 4 Linear Panel | DE11: 35 | DF11: L700 | DG11: 0.3 | DH11: LR700 | DI11: 35 | DK11: F22ILL | DL11: T8 | DM11: 50
H12: 2 | BG12: 250 | BH12: 310 | BI12: 90 | BJ12: 65 | BL12: 26 | BM12: 30 | BN12: 32 | BP12: 90 | BQ12: 490 | BR12: 10 | BT12: Ceramic Metal Halide | BU12: CMH | CB12: T-12 Std. HO lamp | CC12: SH | CH12: 31 | CJ12: 7 | CL12: Exit Sign, LED | CM12: ELED | CP12: Convenience Stores | CQ12: 6376 | CX12: 28 watt quad tube CFL to LED, Replacement Lamps 11 watts | CY12: LR410 | CZ12: L410 | DA12: LR410 | DC12: LR700-P | DD12: Premium LED 1 x 4 Linear Panel | DE12: 35 | DF12: L700-P | DG12: 0.3 | DH12: LR700-P | DI12: 35 | DK12: F23ILL | DL12: T8 | DM12: 50
B13: Recommendations | H13: 5 | BG13: 300 | BH13: 360 | BI13: 95 | BJ13: 75 | BL13: 28 | BN13: 36 | BP13: 100 | BQ13: 500 | BR13: 11 | BT13: Compact Fluorescent | BU13: CF | CB13: T-12 Std. Instant Start lamp | CC13: SIL | CH13: 32 | CJ13: 7.5 | CL13: Halogen | CM13: H | CP13: Convention Center | CQ13: 1954 | CX13: 9 watt quad tube CFL to LED, Replacement Lamps 3 watts | CY13: LR410 | CZ13: L410 | DA13: LR410 | DC13: LR710 | DD13: LED 2 x 4 Linear Panel | DE13: 50 | DF13: L710 | DG13: 0.3 | DH13: LR710 | DI13: 50 | DK13: F24ILL | DL13: T8 | DM13: 50
BG17: 320 | BH17: 400 | BI17: 100 | BJ17: 90 | BN17: 40 | BP17: 110 | BQ17: =BQ13+10 -> 510 | BR17: 12 | BT17: Compact Fluorescent, Double D Shape | BU17: CFD | CB17: T-12 Std. lamp | CC17: S | CH17: 34 | CJ17: 8 | CL17: Halogen, Low Voltage | CM17: HLV | CP17: Court House | CQ17: 3748 | CX17: 9 watt, spiral CFL to LED, Replacement Lamps 4 watts | CY17: LR410 | CZ17: L410 | DA17: LR410 | DC17: LR710-P | DD17: Premium LED 2 x 4 Linear Panel | DE17: 50 | DF17: L710-P | DG17: 0.3 | DH17: LR710-P | DI17: 50 | DK17: F31GL | DL17: T5 | DM17: 75
B18: 1 | H18: 8 | BG18: 350 | BH18: 600 | BI18: 120 | BJ18: 100 | BN18: 50 | BP18: 120 | BQ18: 520 | BR18: 13 | BT18: Compact Fluorescent, Quad Tube | BU18: CFQ | CB18: T-12 Std. VHO lamp | CC18: SV | CH18: 35 | CJ18: 9 | CL18: High Pressure Sodium | CM18: HPS | CP18: Dining: Bar Lounge/Leisure | CQ18: 4182 | CX18: 13 watt, spiral CFL to LED, Replacement Lamps 5 watts | CY18: LR410 | CZ18: L410 | DA18: LR410 | DC18: LR720 | DD18: LED 2 x 2 Linear Panel | DE18: 35 | DF18: L720 | DG18: 0.3 | DH18: LR720 | DI18: 35 | DK18: F31ILL | DL18: T8 | DM18: 50
B19: 2 | BG19: 360 | BH19: 750 | BI19: 125 | BJ19: 150 | BN19: 55 | BP19: 130 | BQ19: 530 | BR19: 14 | BT19: Compact Fluorescent, Spiral | BU19: CFS | CB19: T-5 STD HO T5 lamp | CC19: GH | CH19: 39 | CJ19: 10 | CL19: Incandescent | CM19: I | CP19: Dining: Cafeteria / Fast Food | CQ19: 6456 | CX19: 15 watt, spiral CFL to LED, Replacement Lamps 6 watts | CY19: LR410 | CZ19: L410 | DA19: LR410 | DC19: LR720-P | DD19: Premium LED 2 x 2 Linear Panel | DE19: 35 | DF19: L720-P | DG19: 0.3 | DH19: LR720-P | DI19: 35 | DK19: F32GL | DL19: T5 | DM19: 75
E20: T12 | F20: T8 | G20: Incandescent | H20: HID | I20: Compact Fluorescent | J20: LED | BG20: 400 | BH20: 1000 | BI20: 150 | BP20: 140 | BQ20: 540 | BR20: 15 | BT20: Compact Fluorescent, Twin Tube | BU20: CFT | CB20: T-5 STD T5 lamp | CC20: GH | CH20: 40 | CJ20: 10.5 | CL20: Induction | CM20: QL | CP20: Dining: Family | CQ20: 4182 | CX20: 20 watt, spiral CFL to LED, Replacement Lamps 8 watts | CY20: LR410 | CZ20: L410 | DA20: LR410 | DC20: LR732 | DD20: 2' Linear Ambient LED Luminaire | DE20: 15 | DF20: L732 | DG20: 0.3 | DH20: LR732 | DI20: 15 | DK20: F32ILL | DL20: T8 | DM20: 50
BG21: 450 | BI21: 200 | BP21: 150 | BQ21: 550 | BR21: 16 | BT21: Electronic Pulse Start Metal Halide | BU21: MPHE | CB21: HPT8 | CC21: PIL | CH21: 49 | CJ21: 11 | CL21: Low Bay Parking Garage | CM21: LBLED PG | CP21: Entertainment | CQ21: 1952 | CX21: 23 watt, spiral CFL to LED, Replacement Lamps 9 watts | CY21: LR410 | CZ21: L410 | DA21: LR410 | DC21: LR732-P | DD21: Premium 2' Linear Ambient LED Luminaire | DE21: 15 | DF21: L732-P | DG21: 0.3 | DH21: LR732-P | DI21: 15 | DK21: F33ILL | DL21: T8 | DM21: 50
E22: F22SS | F22: F22ILL | G22: I40/1 | H22: HPS100/1 | I22: CF13/2 | BG22: 750 | BI22: 250 | BP22: 160 | BQ22: 560 | BR22: 17 | BT22: Exit Sign, Compact Fluorescent | BU22: ECF | CB22: HPT8-RW | CC22: SSIL | CH22: 50 | CJ22: 12 | CL22: Mercury Vapor | CM22: MV | CP22: Exercise Center | CQ22: 5836 | CX22: 27 watt, spiral CFL to LED, Replacement Lamps 10 watts | CY22: LR410 | CZ22: L410 | DA22: LR410 | DC22: LR734 | DD22: 4' Linear Ambient LED Luminaire | DE22: 30 | DF22: L734 | DG22: 0.3 | DH22: LR734 | DI22: 30 | DK22: F34ILL | DL22: T8 | DM22: 50
B23: One | E23: F23SS | F23: F23ILL | G23: I60/1 | H23: HPS250/1 | I23: CFQ13/1-L | BG23: 1000 | BI23: 300 | BP23: 170 | BQ23: 570 | BR23: 18 | BT23: Exit Sign, Incandescent | BU23: EI | CB23: T-8 lamp Instant Start | CC23: IL | CH23: 51 | CJ23: 13 | CL23: Metal Halide | CM23: MH | CP23: Fast Food Restaurants | CQ23: 6376 | CX23: 30 watt, spiral CFL to LED, Replacement Lamps 12 watts | CY23: LR410 | CZ23: L410 | DA23: LR410 | DC23: LR734-P | DD23: Premium 4' Linear Ambient LED Luminaire | DE23: 30 | DF23: L734-P | DG23: 0.3 | DH23: LR734-P | DI23: 30 | DK23: F41GL | DL23: T5 | DM23: 75
B24: Two | E24: F24SS | F24: F24ILL | G24: I75/1 | H24: HPS400/1 | I24: CFQ13/2-L | BP24: 180 | BQ24: 580 | BR24: 19 | BT24: Exit Sign, LED | BU24: ELED | CB24: T-8 lamp Rapid Start | CC24: L | CH24: 54 | CJ24: 14 | CL24: Metal Halide, Pulse Start | CM24: MHPS | CP24: Fire Station (Unmanned) | CQ24: 1953 | CX24: 7 watt, spiral CFL to LED, Replacement Lamps 3 watts | CY24: LR410 | CZ24: L410 | DA24: LR410 | DC24: LR742 | DD24: LED Two Foot Linear Replacements | DE24: 4 | DF24: L742 | DG24: 0.15 | DH24: LR742 | DI24: 4 | DK24: F41PILL | DL24: HPT8 | DM24: 50
B25: Three | E25: F42SS | F25: F42ILL | G25: I100/1 | H25: HPS750/1 | I25: CFQ26/1-L | BP25: 190 | BQ25: 590 | BR25: 20 | BT25: Halogen | BU25: H | CH25: 55 | CJ25: 15 | CP25: Food Stores | CQ25: 4055 | CX25: 9 watt, spiral CFL to LED, Replacement Lamps 3 watts | CY25: LR410 | CZ25: L410 | DA25: LR410 | DC25: LR744 | DD25: LED Four Foot Linear Replacements | DE25: 5 | DF25: L744 | DG25: 0.15 | DH25: LR744 | DI25: 5 | DK25: F42GHL | DL25: T5 | DM25: 75
B26: Four | E26: F43SS | F26: F43ILL | H26: HPS1000/1 | I26: CFQ26/2-L | BP26: 200 | BQ26: 600 | BT26: Halogen, Low Voltage | BU26: HLV | CB26: T12 4 40 | CC26: S | CH26: 58 | CJ26: 16 | CP26: Gymnasium | CQ26: 2586 | CX26: 9 watt, twin tube CFL to LED, Replacement Lamps 5 watts | CY26: LR410 | CZ26: L410 | DA26: LR410 | DC26: LR750 | DD26: Retrofit Kits for 2x2 Luminaires | DE26: 30 | DF26: L750 | DG26: 0.3 | DH26: LR750 | DI26: 30 | DK26: F42GL | DL26: T5 | DM26: 75
B27: Five | E27: F44SS | F27: F44ILL | H27: MH100/1 | I27: CFS13/1 | BP27: 210 | BQ27: 610 | BT27: High Pressure Sodium | BU27: HPS | CB27: T12 4 30 | CC27: EI | CH27: 59 | CJ27: 17 | CP27: Hospitals | CQ27: 7674 | CX27: 18 watt, twin tube CFL to LED, Replacement Lamps 7 watts | CY27: LR410 | CZ27: L410 | DA27: LR410 | DC27: LR750-P | DD27: Premium Retrofit Kits for 2x2 Luminaires | DE27: 30 | DF27: L750-P | DG27: 0.3 | DH27: LR750-P | DI27: 30 | DK27: F42PILL | DL27: HPT8 | DM27: 50
B28: Six | H28: MH175/1 | I28: CFS7/1 | BP28: 220 | BQ28: 620 | BT28: Incandescent | BU28: I | CB28: T12 4 34 | CC28: E | CH28: 60 | CJ28: 18 | CP28: Hospitals / Health Care | CQ28: 7666 | CX28: 27 watt, twin tube CFL to LED, Replacement Lamps 8 watts | CY28: LR410 | CZ28: L410 | DA28: LR410 | DC28: LR760 | DD28: Retrofit Kits for 2x4 Luminaires | DE28: 35 | DF28: L760 | DG28: 0.3 | DH28: LR760 | DI28: 35 | DK28: F43GHL | DL28: T5 | DM28: 75
B29: Seven | H29: MH250/1 | I29: CFT40/1-BX | BP29: 230 | BQ29: 630 | BT29: Induction | BU29: QL | CB29: T12 4 39 | CC29: SI | CH29: 65 | CJ29: 19 | CP29: Industrial - 1 Shift | CQ29: 2857 | CX29: 32 watt, twin tube CFL to LED, Replacement Lamps 9 watts | CY29: LR410 | CZ29: L410 | DA29: LR410 | DC29: LR760-P | DD29: Premium Retrofit Kits for 2x4 Luminaires | DE29: 35 | DF29: L760-P | DG29: 0.3 | DH29: LR760-P | DI29: 35 | DK29: F43GL | DL29: T5 | DM29: 75
B30: Eight | H30: MH300/1 | I30: CFT40/1-L | BP30: 240 | BQ30: 640 | BT30: Low Bay Parking Garage | BU30: LBLED PG | CB30: T12 4 55 | CC30: EH | CH30: 75 | CJ30: 20 | CP30: Industrial - 2 Shift | CQ30: 4730 | CX30: 33 watt, twin tube CFL to LED, Replacement Lamps 11 watts | CY30: LR410 | CZ30: L410 | DA30: LR410 | DC30: LR810 | DD30: LED Low Bay Fixtures | DE30: 30 | DF30: L810 | DG30: 0.3 | DH30: LR810 | DI30: 30 | DK30: F43PILL | DL30: HPT8 | DM30: 50
B31: Nine | H31: MH400/1 | I31: CFT40/2-BX | BP31: 250 | BQ31: 650 | BT31: LED Lamp | BU31: ILED | CB31: T12 4 60 | CC31: SH | CH31: 85 | CJ31: 21 | CP31: Industrial - 3 Shift | CQ31: 6631 | CX31: 34 watt, twin tube CFL to LED, Replacement Lamps 11 watts | CY31: LR410 | CZ31: L410 | DA31: LR410 | DC31: LR810-P | DD31: Premium LED Low Bay Fixtures | DE31: 30 | DF31: L810-P | DG31: 0.3 | DH31: LR810-P | DI31: 30 | DK31: F44GHL | DL31: T5 | DM31: 75
B32: Ten | H32: MH400/2 | I32: CFT40/2-L | BP32: 260 | BQ32: 660 | BT32: LED Fixture <= 400w | BU32: FLED | CB32: T12 4 110 | CC32: SV | CH32: 86 | CJ32: 22 | CP32: Laundromats | CQ32: 4056 | CX32: 36 watt twin tube, CFL to LED, Replacement Lamps 14 watts | CY32: LR410 | CZ32: L410 | DA32: LR410 | DC32: LR820 | DD32: LED High Bay Fixtures | DE32: 100 | DF32: L820 | DG32: 0.3 | DH32: LR820 | DI32: 100 | DK32: F44GL | DL32: T5 | DM32: 75
B33: Eleven | H33: MH750/1 | I33: CFT55/1 | BP33: 270 | BQ33: 670 | BT33: LED Fixture > 400w | BU33: FLED2 | CB33: T8 4 30 | CC33: SIL | CH33: 95 | CJ33: 22.5 | CP33: Library | CQ33: 3748 | CX33: 46 watt, twin tube CFL to LED, Replacement Lamps 15 watts | CY33: LR410 | CZ33: L410 | DA33: LR410 | DC33: LR820-P | DD33: Premium LED High Bay Fixtures | DE33: 100 | DF33: L820-P | DG33: 0.3 | DH33: LR820-P | DI33: 100 | DK33: F44PILL | DL33: HPT8 | DM33: 50
B34: Twelve | H34: MH1000/1 | I34: CF55/1 | BP34: 280 | BQ34: 680 | BT34: Mercury Vapor | BU34: MV | CB34: T8 4 32 | CC34: IL | CH34: 110 | CJ34: 23 | CP34: Light Manufacturers(1) | CQ34: 2613 | CX34: 9 watt, twin tube CFL to LED, Replacement Lamps 2 watts | CY34: LR410 | CZ34: L410 | DA34: LR410 | DC34: RC101 | DD34: Refrigerated Case Lighting | DE34: 30 | DF34: R101 | DG34: 0.3 | DH34: RC101 | DI34: 30 | DK34: F46GHL | DL34: T5 | DM34: 75
B35: Thirteen | I35: CFT55/1-BX | BP35: 290 | BQ35: 690 | BT35: Metal Halide | BU35: MH | CB35: T12 8 215 | CC35: SV | CH35: 135 | CJ35: 24 | CP35: Lodging (Hotels/Motels) | CQ35: 3064 | CX35: 54 watt, twin tube CFL to LED, Replacement Lamps 20 watts | CY35: LR410 | CZ35: L410 | DA35: LR410 | DC35: RC101-P | DD35: Premium Refrigerated Case Lighting | DE35: 30 | DF35: R101-P | DG35: 0.3 | DH35: RC101-P | DI35: 30 | DK35: F46ILL | DL35: T8 | DM35: 50
B36: Fourteen | I36: CFT55/2-BX | BP36: 300 | BQ36: 700 | BT36: Metal Halide, Pulse Start | BU36: MHPS | CB36: T8 6 35 | CC36: IL | CH36: 160 | CJ36: 25 | CP36: Mall Concourse | CQ36: 4833 | CX36: 56 watt, twin tube CFL to LED, Replacement Lamps 20 watts | CY36: LR410 | CZ36: L410 | DA36: LR410 | DC36: TBD | DD36: TBD | DF36: TBD | DH36: TBD | DI36: 0 | DK36: F48GHL | DL36: T5 | DM36: 75
B37: Fifteen | BP37: 310 | BQ37: 710 | CB37: T8 6 65 | CC37: ILH | CH37: 185 | CJ37: 26 | CP37: Manufacturing Facility | CQ37: 2857 | CX37: 10 watt, twin tube CFL to LED, Replacement Lamps 3 watts | CY37: LR410 | CZ37: L410 | DA37: LR410 | DC37: LRC100 | DD37: Wall Mounted | DE37: 10 | DF37: LC100 | DG37: 0.3 | DH37: LRC100 | DI37: 10 | DK37: F51ILL | DL37: T8 | DM37: 50
BP38: 320 | BQ38: 720 | CB38: T12 8 110 | CC38: SH | CH38: 215 | CJ38: 27 | CP38: Medical Offices | CQ38: 3748 | CX38: 11 watt, twin tube CFL to LED, Replacement Lamps 3 watts | CY38: LR410 | CZ38: L410 | DA38: LR410 | DC38: LRC200 | DD38: Ceiling/Remote Mounted | DE38: 20 | DF38: LC200 | DG38: 0.3 | DH38: LRC200 | DI38: 20 | DK38: F52GHL | DL38: T5 | DM38: 75
BP39: 330 | BQ39: 730 | CB39: T12 8 75 | CC39: S | CJ39: 28 | CP39: Motion Picture Theatre | CQ39: 1954 | CX39: 2lp, 2 x 2 Fluorescent, T12 to LED, 2x2 Panel, 30 watts | CY39: LR720 | CZ39: L720 | DA39: LR720 | DC39: LRC300 | DD39: Fixture mounted | DE39: 20 | DF39: LC300 | DG39: 0.3 | DH39: LRC300 | DI39: 20 | DK39: F52GL | DL39: T5 | DM39: 75
BP40: 340 | BQ40: 740 | CB40: T12 U 40 | CC40: S | CJ40: 29 | CP40: Multi-Family (Common Areas) | CQ40: 7665 | CX40: 3lp, 2 x 2 Fluorescent, T12 to LED, 2x2 Panel, 40 watts | CY40: LR720 | CZ40: L720 | DA40: LR720 | DC40: LRC400 | DD40: Day lighting Controlled Dimming | DE40: 25 | DF40: LC400 | DG40: 0.3 | DH40: LRC400 | DI40: 25 | DK40: F52ILL | DL40: T8 | DM40: 50
BP41: 350 | BQ41: 750 | CB41: T12 6 55 | CC41: S | CJ41: 30 | CP41: Museum | CQ41: 3748 | CX41: 4lp, 2 x 2 Fluorescent, T12 to LED, 2x2 Panel, 55 watts | CY41: LR720 | CZ41: L720 | DA41: LR720 | DC41: LRC700 | DD41: Fixture mounted daylight | DE41: 20 | DF41: LC700 | DG41: 0.3 | DH41: LRC700 | DI41: 20 | DK41: F81ILL | DL41: T8 | DM41: 50
BP42: 360 | BQ42: 760 | CB42: T12 6 85 | CC42: SH | CJ42: 31 | CP42: Nursing Homes | CQ42: 5840 | CX42: 1lp, 1 x 4 Fluorescent, T12 to LED, 1x4 Panel, 18 watts | CY42: LR700 | CZ42: L700 | DA42: LR700 | DK42: F82ILL | DL42: T8 | DM42: 50
BP43: 370 | BQ43: 770 | CB43: T12 6 160 | CC43: SV | CJ43: 32 | CP43: Office (General Office Types) | CQ43: 3013 | CX43: 2lp, 2 x 4 Fluorescent, T12 to LED, 2x4 Panel, 30 watts | CY43: LR710 | CZ43: L710 | DA43: LR710 | DK43: F83ILL | DL43: T8 | DM43: 50
BP44: 380 | BQ44: 780 | CB44: T12 5 50 | CC44: S | CJ44: 33 | CP44: Office/Retail | CQ44: 4368 | CX44: 2lp, 1 x 4 Fluorescent, T12 to LED, 1x4 Panel, 30 watts | CY44: LR700 | CZ44: L700 | DA44: LR700 | DK44: F84ILL | DL44: T8 | DM44: 50
BP45: 390 | BQ45: 790 | CB45: T12 5 75 | CC45: SH | CJ45: 34 | CP45: Parking Garages | CQ45: 7717 | CX45: 3lp, 2 x 4 Fluorescent, T12 to LED, 2x4 Panel, 45 watts | CY45: LR710 | CZ45: L710 | DA45: LR710 | DK45: FLED 1x4 10 | DL45: LED 1x4 Linear Panel | DM45: 100
BP46: 400 | BQ46: 800 | CB46: T12 5 135 | CC46: SV | CJ46: 35 | CP46: Parking Lots | CQ46: 4100 | CX46: 4lp, 2 x 4 Fluorescent, T12 to LED, 2x4 Panel, 50 watts | CY46: LR710 | CZ46: L710 | DA46: LR710 | DK46: FLED 1x4 15 | DL46: LED 1x4 Linear Panel | DM46: 100
CB47: T12 3 30 | CC47: S | CJ47: 36 | CP47: Penitentiary | CQ47: 5477 | CX47: 6lp, Fluorescent High Bay, T12 to LED, High Bay Fixtures 140 watts | CY47: LR820 | CZ47: L820 | DA47: LR820 | DK47: FLED 2x2 20 | DL47: LED 2x2 Linear Panel | DM47: 140
CB48: T12 3 50 | CC48: SH | CJ48: 37 | CP48: Performing Arts Theatre | CQ48: 2586 | CX48: 1lp, 8' Fluorescent Strip, T12 to (2) LED, Linear Ambient Fixtures 25 watts | CY48: LR734 | CZ48: L734 | DA48: LR734 | DK48: FLED 2x2 21 | DL48: LED 2x2 Linear Panel | DM48: 140
CB49: T12 3 25 | CC49: ES | CJ49: 38 | CP49: Police / Fire Stations (24 Hr) | CQ49: 7665 | CX49: 2lp, 8' Fluorescent Strip, T12 to (2) LED, Linear Ambient Fixtures 45 watts | CY49: LR734 | CZ49: L734 | DA49: LR734 | DK49: FLED 2x2 23 | DL49: LED 2x2 Linear Panel | DM49: 140
CB50: T8 2 17 | CC50: IL | CJ50: 39 | CP50: Post Office | CQ50: 3748 | CX50: 3lp, 8' Fluorescent Strip, T12 to (2) LED, Linear Ambient Fixtures 50 watts | CY50: LR734 | CZ50: L734 | DA50: LR734 | DK50: FLED 2x2 24 | DL50: LED 2x2 Linear Panel | DM50: 140
CB51: T8 3 25 | CC51: IL | CJ51: 40 | CP51: Pump Stations | CQ51: 1949 | CX51: 4lp, 8' Fluorescent Strip, T12 to (2) LED, Linear Ambient Fixtures 50 watts | CY51: LR734 | CZ51: L734 | DA51: LR734 | DK51: FLED 2x2 25 | DL51: LED 2x2 Linear Panel | DM51: 140
CB52: T8 5 40 | CC52: IL | CJ52: 41 | CP52: Refrigerated Warehouse | CQ52: 2602 | CX52: 1lp, U-Bend Fluorescent, T12 to LED, 2x2 Panel, 21 watts | CY52: LR720 | CZ52: L720 | DA52: LR720 | DK52: FLED 2x2 26 | DL52: LED 2x2 Linear Panel | DM52: 140
CB53: T8 5 58 | CC53: L | CJ53: 42 | CP53: Religious Building | CQ53: 1955 | CX53: 2lp, U-Bend Fluorescent, T12 to LED, 2x2 Panel, 48 watts | CY53: LR720 | CZ53: L720 | DA53: LR720 | DK53: FLED 2x2 27 | DL53: LED 2x2 Linear Panel | DM53: 140
CB54: T8 8 59 | CC54: IL | CJ54: 43 | CP54: Restaurants | CQ54: 4182 | CX54: 3lp, U-Bend Fluorescent, T12 to LED, 2x2 Panel, 58 watts | CY54: LR720 | CZ54: L720 | DA54: LR720 | DK54: FLED 2x2 28 | DL54: LED 2x2 Linear Panel | DM54: 140
CB55: T8 8 86 | CC55: LH | CJ55: 44 | CP55: Retail | CQ55: 3463 | CX55: 2lp, 2 x 2 Fluorescent, T5 to LED, 2x2 Panel, 30 watts | CY55: LR720 | CZ55: L720 | DA55: LR720 | DK55: FLED 2x2 29 | DL55: LED 2x2 Linear Panel | DM55: 140
CB56: T8 U 32 | CC56: IL | CJ56: 45 | CP56: School / University | CQ56: 2187 | CX56: 2lp, 2 x 4 Fluorescent, T5 to LED, 2x4 Panel, 30 watts | CY56: LR710 | CZ56: L710 | DA56: LR710 | DK56: FLED 2x2 30 | DL56: LED 2x2 Linear Panel | DM56: 140
CB57: T12 2 20 | CC57: S | CJ57: 46 | CP57: Schools (Jr./Sr. High) | CQ57: 2187 | CX57: 3lp, 2 x 4 Fluorescent, T5 to LED, 2x4 Panel, 70 watts | CY57: LR710 | CZ57: L710 | DA57: LR710 | DK57: FLED 2x2 33 | DL57: LED 2x2 Linear Panel | DM57: 140
CB58: T12 2 35 | CC58: SH | CJ58: 47 | CP58: Schools (Preschool/Elementary) | CQ58: 2187 | CX58: 4lp, 2 x 4 Fluorescent, T5 to LED, 2x4 Panel, 100 watts | CY58: LR710 | CZ58: L710 | DA58: LR710 | DK58: FLED 2x2 34 | DL58: LED 2x2 Linear Panel | DM58: 140
CJ59: 48 | CP59: Schools (Technical/Vocational) | CQ59: 2187 | CX59: 6lp, Fluorescent High Bay, T5 to LED, High Bay Fixtures 175 watts | CY59: LR820 | CZ59: L820 | DA59: LR820 | DK59: FLED 2x2 36 | DL59: LED 2x2 Linear Panel | DM59: 140
CJ60: 49 | CP60: Small Services | CQ60: 3750 | CX60: 8lp, Fluorescent High Bay, T5 to LED, High Bay Fixtures 235 watts | CY60: LR820 | CZ60: L820 | DA60: LR820 | DK60: FLED 2x2 39 | DL60: LED 2x2 Linear Panel | DM60: 140
CJ61: 50 | CP61: Sports Arena | CQ61: 1954 | CX61: 1lp, 1 x4 Fluorescent, T8 to LED, 1x4 Panel, 10 watts | CY61: LR700 | CZ61: L700 | DA61: LR700 | DK61: FLED 2x2 40 | DL61: LED 2x2 Linear Panel | DM61: 140
CJ62: 51 | CP62: Town Hall | CQ62: 3748 | CX62: 2lp, 2 x 2 Fluorescent, T8 to LED, 2x2 Panel, 20 watts | CY62: LR720 | CZ62: L720 | DA62: LR720 | DK62: FLED 2x2 41 | DL62: LED 2x2 Linear Panel | DM62: 140
CJ63: 52 | CP63: Transportation | CQ63: 6456 | CX63: 3lp, 2 x 2 Fluorescent, T8 to LED, 2x2 Panel, 25 watts | CY63: LR720 | CZ63: L720 | DA63: LR720 | DK63: FLED 2x2 43 | DL63: LED 2x2 Linear Panel | DM63: 140
CJ64: 53 | CP64: Warehouse (Not Refrigerated) | CQ64: 2602 | CX64: 4lp, 2 x 2 Fluorescent, T8 to LED, 2x2 Panel, 30 watts | CY64: LR720 | CZ64: L720 | DA64: LR720 | DK64: FLED 2x2 45 | DL64: LED 2x2 Linear Panel | DM64: 140
CJ65: 54 | CP65: Waste Water Treatment Plant | CQ65: 6631 | CX65: 1lp, 1 x 4 Fluorescent, T8 to LED, 1x4 Panel, 18 watts | CY65: LR700 | CZ65: L700 | DA65: LR700 | DK65: FLED 2x2 48 | DL65: LED 2x2 Linear Panel | DM65: 140
CJ66: 55 | CP66: Workshop | CQ66: 3750 | CX66: 2lp, 1 x 4 Fluorescent, T8 to LED, 1x4 Panel, 30 watts | CY66: LR700 | CZ66: L700 | DA66: LR700 | DK66: FLED 2x2 49 | DL66: LED 2x2 Linear Panel | DM66: 140
CJ67: 56 | CP67: Other | CQ67: 0 | CX67: 2lp, 2 x 4 Fluorescent, T8 to LED, 2x4 Panel, 30 watts | CY67: LR710 | CZ67: L710 | DA67: LR710 | DK67: FLED 2x2 50 | DL67: LED 2x2 Linear Panel | DM67: 140
CJ68: 57 | CX68: 3lp, 2 x 4 Fluorescent, T8 to LED, 2x4 Panel, 45 watts | CY68: LR710 | CZ68: L710 | DA68: LR710 | DK68: FLED 2x2 52 | DL68: LED 2x2 Linear Panel | DM68: 140
CJ69: 58 | CX69: 4lp, 2 x 4 Fluorescent, T8 to LED, 2x4 Panel, 50 watts | CY69: LR710 | CZ69: L710 | DA69: LR710 | DK69: FLED 2x2 55 | DL69: LED 2x2 Linear Panel | DM69: 140
CJ70: 59 | CX70: 6lp, Fluorescent High Bay, T8 to LED, High Bay Fixtures 95 watts | CY70: LR820 | CZ70: L820 | DA70: LR820 | DK70: FLED 2x2 58 | DL70: LED 2x2 Linear Panel | DM70: 140
CJ71: 60 | CX71: 8lp, Fluorescent High Bay, T8 to LED, High Bay Fixtures 115 watts | CY71: LR820 | CZ71: L820 | DA71: =IF($DC$1=1,CY71,CZ71) -> LR820 | DK71: FLED 2x2 64 | DL71: LED 2x2 Linear Panel | DM71: 140
CJ72: 61 | CX72: 1lp, 8' Fluorescent Strip, T12 to (2) LED, Linear Ambient Fixtures 18 watts | CY72: LR734 | CZ72: L734 | DA72: LR734 | DK72: FLED 2x4 25 | DL72: LED 2x4 Linear Panel | DM72: 180
CJ73: 62 | CX73: 2lp, 8' Fluorescent Strip, T8 to (2) LED, Linear Ambient Fixtures 25 watts | CY73: LR734 | CZ73: L734 | DA73: LR734 | DK73: FLED 2x4 27 | DL73: LED 2x4 Linear Panel | DM73: 180
CJ74: 63 | CX74: 3lp, 8' Fluorescent Strip, T8 to (2) LED, Linear Ambient Fixtures 40 watts | CY74: LR734 | CZ74: L734 | DA74: LR734 | DK74: FLED 2x4 28 | DL74: LED 2x4 Linear Panel | DM74: 180
CJ75: 64 | CX75: 4lp, 8' Fluorescent Strip, T8 to (2) LED, Linear Ambient Fixtures 50 watts | CY75: LR734 | CZ75: L734 | DA75: LR734 | DK75: FLED 2x4 29 | DL75: LED 2x4 Linear Panel | DM75: 180
CJ76: 65 | CX76: 2lp, U-Bend Fluorescent, T8 to LED, 2x2 Panel, 30 watts | CY76: LR720 | CZ76: L720 | DA76: LR720 | DK76: FLED 2x4 30 | DL76: LED 2x4 Linear Panel | DM76: 180
CJ77: 66 | CX77: 3lp, U-Bend Fluorescent, T8 to LED, 2x2 Panel, 45 watts | CY77: LR720 | CZ77: L720 | DA77: LR720 | DK77: FLED 2x4 31 | DL77: LED 2x4 Linear Panel | DM77: 180
CJ78: 67 | CX78: 1lp, U-Bend Fluorescent, T12 to LED, Two Foot Linear Replacements 21 watts | CY78: LR742 | CZ78: L742 | DA78: LR742 | DK78: FLED 2x4 32 | DL78: LED 2x4 Linear Panel | DM78: 180
CJ79: 68 | CX79: 2lp, U-Bend Fluorescent, T12 to LED, Two Foot Linear Replacements 24 watts | CY79: LR742 | CZ79: L742 | DA79: LR742 | DK79: FLED 2x4 33 | DL79: LED 2x4 Linear Panel | DM79: 180
CJ80: 69 | CX80: 3lp, U-Bend Fluorescent, T12 to LED, Two Foot Linear Replacements 19 watts | CY80: LR742 | CZ80: L742 | DA80: LR742 | DK80: FLED 2x4 34 | DL80: LED 2x4 Linear Panel | DM80: 180
CJ81: 70 | CX81: 2lp, U-Bend Fluorescent, T8 to LED, Two Foot Linear Replacements 15 watts | CY81: LR742 | CZ81: L742 | DA81: LR742 | DK81: FLED 2x4 35 | DL81: LED 2x4 Linear Panel | DM81: 180
CJ82: 71 | CX82: 3lp, U-Bend Fluorescent, T8 to LED, Two Foot Linear Replacements 15 watts | CY82: LR742 | CZ82: L742 | DA82: LR742 | DK82: FLED 2x4 36 | DL82: LED 2x4 Linear Panel | DM82: 180
CJ83: 72 | CX83: 1lp, 100 watts, Halogen to LED, Replacement Lamps 20 watts | CY83: LR410 | CZ83: L410 | DA83: LR410 | DK83: FLED 2x4 37 | DL83: LED 2x4 Linear Panel | DM83: 180
CJ84: 73 | CX84: 1lp, 35 watts, Halogen to LED, Replacement Lamps 7 watts | CY84: LR410 | CZ84: L410 | DA84: LR410 | DK84: FLED 2x4 38 | DL84: LED 2x4 Linear Panel | DM84: 180
CJ85: 74 | CX85: 1lp, 40 watts, Halogen to LED, Replacement Lamps 8 watts | CY85: LR410 | CZ85: L410 | DA85: LR410 | DK85: FLED 2x4 39 | DL85: LED 2x4 Linear Panel | DM85: 180
CJ86: 75 | CX86: 1lp, 45 watts, Halogen to LED, Replacement Lamps 9 watts | CY86: LR410 | CZ86: L410 | DA86: LR410 | DK86: FLED 2x4 40 | DL86: LED 2x4 Linear Panel | DM86: 180
CJ87: 76 | CX87: 1lp, 50 watts, Halogen to LED, Replacement Lamps 10 watts | CY87: LR410 | CZ87: L410 | DA87: LR410 | DK87: FLED 2x4 41 | DL87: LED 2x4 Linear Panel | DM87: 180
CJ88: 77 | CX88: 1lp, 55 watts, Halogen to LED, Replacement Lamps 11 watts | CY88: LR410 | CZ88: L410 | DA88: LR410 | DK88: FLED 2x4 42 | DL88: LED 2x4 Linear Panel | DM88: 180
CJ89: 78 | CX89: 1lp, 60 watts, Halogen to LED, Replacement Lamps 12 watts | CY89: LR410 | CZ89: L410 | DA89: LR410 | DK89: FLED 2x4 45 | DL89: LED 2x4 Linear Panel | DM89: 180
CJ90: 79 | CX90: 1lp, 75 watts, Halogen to LED, Replacement Lamps 15 watts | CY90: LR410 | CZ90: L410 | DA90: LR410 | DK90: FLED 2x4 50 | DL90: LED 2x4 Linear Panel | DM90: 180
CJ91: 80 | CX91: 1lp, 90 watts, Halogen to LED, Replacement Lamps 18 watts | CY91: LR410 | CZ91: L410 | DA91: LR410 | DK91: FLED 2x4 70 | DL91: LED 2x4 Linear Panel | DM91: 180
CJ92: 81 | CX92: 100w High Pressure Sodium to LED, Replacement Lamps 30 watts | CY92: LR410 | CZ92: L410 | DA92: LR410 | DK92: FLED 2x4 100 | DL92: LED 2x4 Linear Panel | DM92: 180
CJ93: 82 | CX93: 1000w High Pressure Sodium to LED, High Bay Fixtures 465 watts | CY93: LR820 | CZ93: L820 | DA93: LR820 | DK93: FLED AMB 105 | DL93: Linear Ambient Luminaires | DM93: 120
CJ94: 83 | CX94: 150w High Pressure Sodium to LED, Replacement Lamps 32 watts | CY94: LR410 | CZ94: L410 | DA94: LR410 | DK94: FLED AMB 30 | DL94: Linear Ambient Luminaires | DM94: 120
CJ95: 84 | CX95: 200w High Pressure Sodium to LED, Low Bay Fixtures 104 watts | CY95: LR810 | CZ95: L810 | DA95: LR810 | DK95: FLED AMB 35 | DL95: Linear Ambient Luminaires | DM95: 120
CJ96: 85 | CX96: 250w High Pressure Sodium to LED, Low Bay Fixtures 124 watts | CY96: LR810 | CZ96: L810 | DA96: LR810 | DK96: FLED AMB 45 | DL96: Linear Ambient Luminaires | DM96: 120
CJ97: 86 | CX97: 400w High Pressure Sodium to LED, High Bay Fixtures 197 watts | CY97: LR820 | CZ97: L820 | DA97: LR820 | DK97: FLED AMB 50 | DL97: Linear Ambient Luminaires | DM97: 120
CJ98: 87 | CX98: 600w High Pressure Sodium to LED, High Bay Fixtures 284 watts | CY98: LR820 | CZ98: L820 | DA98: LR820 | DK98: FLED AMB 60 | DL98: Linear Ambient Luminaires | DM98: 120
CJ99: 88 | CX99: 750w High Pressure Sodium to LED, High Bay Fixtures 353 watts | CY99: LR820 | CZ99: L820 | DA99: LR820 | DK99: FLED AMB 80 | DL99: Linear Ambient Luminaires | DM99: 120
CJ100: 89 | CX100: 1lp, 100 watts, Incandescent to LED, Replacement Lamps 14 watts | CY100: LR410 | CZ100: L410 | DA100: LR410 | DK100: FLED AMB 90 | DL100: Linear Ambient Luminaires | DM100: 120
CJ101: 90 | CX101: 1lp, 120 watts, Incandescent to LED, Replacement Lamps 14 watts | CY101: LR410 | CZ101: L410 | DA101: LR410 | DK101: FLED HBY 108 | DL101: LED High Bay | DM101: 500
CJ102: 91 | CX102: 1lp, 125 watts, Incandescent to LED, Replacement Lamps 17 watts | CY102: LR410 | CZ102: L410 | DA102: LR410 | DK102: FLED HBY 115 | DL102: LED High Bay | DM102: 500
CJ103: 92 | CX103: 1lp, 15 watts, Incandescent to LED, Replacement Lamps 3 watts | CY103: LR410 | CZ103: L410 | DA103: LR410 | DK103: FLED HBY 124 | DL103: LED High Bay | DM103: 500
CJ104: 93 | CX104: 1lp, 150 watts, Incandescent to LED, Replacement Lamps 17 watts | CY104: LR410 | CZ104: L410 | DA104: LR410 | DK104: FLED HBY 126 | DL104: LED High Bay | DM104: 500
CJ105: 94 | CX105: 1lp, 20 watts, Incandescent to LED, Replacement Lamps 4 watts | CY105: LR410 | CZ105: L410 | DA105: LR410 | DK105: FLED HBY 136 | DL105: LED High Bay | DM105: 500
CJ106: 95 | CX106: 1lp, 200 watts, Incandescent to LED, Replacement Lamps 30 watts | CY106: LR410 | CZ106: L410 | DA106: LR410 | DK106: FLED HBY 140 | DL106: LED High Bay | DM106: 500
CJ107: 96 | CX107: 1lp, 250 watts, Incandescent to LED, Replacement Lamps 32 watts | CY107: LR410 | CZ107: L410 | DA107: LR410 | DK107: FLED HBY 145 | DL107: LED High Bay | DM107: 500
CJ108: 97 | CX108: 1lp, 300 watts, Incandescent to LED, Replacement Lamps 38 watts | CY108: LR410 | CZ108: L410 | DA108: LR410 | DK108: FLED HBY 154 | DL108: LED High Bay | DM108: 500
CJ109: 98 | CX109: 1lp, 40 watts, Incandescent to LED, Replacement Lamps 7 watts | CY109: LR410 | CZ109: L410 | DA109: LR410 | DK109: FLED HBY 160 | DL109: LED High Bay | DM109: 500
CJ110: 99 | CX110: 1lp, 50 watts, Incandescent to LED, Replacement Lamps 9 watts | CY110: LR410 | CZ110: L410 | DA110: LR410 | DK110: FLED HBY 175 | DL110: LED High Bay | DM110: 500
CJ111: 100 | CX111: 1lp, 55 watts, Incandescent to LED, Replacement Lamps 9 watts | CY111: LR410 | CZ111: L410 | DA111: LR410 | DK111: FLED HBY 197 | DL111: LED High Bay | DM111: 500
CJ112: 101 | CX112: 1lp, 60 watts, Incandescent to LED, Replacement Lamps 10 watts | CY112: LR410 | CZ112: L410 | DA112: LR410 | DK112: FLED HBY 235 | DL112: LED High Bay | DM112: 500
CJ113: 102 | CX113: 1lp, 65 watts, Incandescent to LED, Replacement Lamps 11 watts | CY113: LR410 | CZ113: L410 | DA113: LR410 | DK113: FLED HBY 269 | DL113: LED High Bay | DM113: 500
CJ114: 103 | CX114: 1lp, 75 watts, Incandescent to LED, Replacement Lamps 14 watts | CY114: LR410 | CZ114: L410 | DA114: LR410 | DK114: FLED HBY 284 | DL114: LED High Bay | DM114: 500
CJ115: 104 | CX115: 1lp, 80 watts, Incandescent to LED, Replacement Lamps 14 watts | CY115: LR410 | CZ115: L410 | DA115: LR410 | DK115: FLED HBY 345 | DL115: LED High Bay | DM115: 500
CJ116: 105 | CX116: 1lp, 90 watts, Incandescent to LED, Replacement Lamps 15 watts | CY116: LR410 | CZ116: L410 | DA116: LR410 | DK116: FLED HBY 353 | DL116: LED High Bay | DM116: 500
CJ117: 106 | CX117: 1lp, 95 watts, Incandescent to LED, Replacement Lamps 16 watts | CY117: LR410 | CZ117: L410 | DA117: LR410 | DK117: FLED HBY 465 | DL117: LED High Bay | DM117: 500
CJ118: 107 | CX118: 100w Metal Halide to LED, Replacement Lamps 30 watts | CY118: LR410 | CZ118: L410 | DA118: LR410 | DK118: FLED HBY 93 | DL118: LED High Bay | DM118: 500
CJ119: 108 | CX119: 1000w Metal Halide High Bay to LED, High Bay Fixtures 345 watts | CY119: LR820 | CZ119: L820 | DA119: LR820 | DK119: FLED HBY 95 | DL119: LED High Bay | DM119: 500
CJ120: 109 | CX120: 150w Metal Halide to LED, Replacement Lamps 32 watts | CY120: LR410 | CZ120: L410 | DA120: LR410 | DK120: FU1SILL | DL120: HPT8-RW | DM120: 50
CJ121: 110 | CX121: 175w Metal Halide to LED, Replacement Lamps 32 watts | CY121: LR410 | CZ121: L410 | DA121: LR410 | DK121: FU2ILL | DL121: T8 | DM121: 50
CJ122: 111 | CX122: 200w Metal Halide Low Bay to LED, Low Bay Fixtures 72 watts | CY122: LR810 | CZ122: L810 | DA122: LR810 | DK122: FU2LL | DL122: T8 | DM122: 50
CJ123: 112 | CX123: 250w Metal Halide Low Bay to LED, Low Bay Fixtures 60 watts | CY123: LR810 | CZ123: L810 | DA123: LR810 | DK123: FU2RILL | DL123: HPT8-RW | DM123: 50
CJ124: 113 | CX124: 300w Metal Halide Low Bay to LED, High Bay Fixtures 108 watts | CY124: LR820 | CZ124: L820 | DA124: LR820 | DK124: FU3ILL | DL124: T8 | DM124: 50
CJ125: 114 | CX125: 320w Metal Halide Low Bay to LED, High Bay Fixtures 115 watts | CY125: LR820 | CZ125: L820 | DA125: LR820 | DK125: ILED 10 | DL125: Generic LED | DM125: 30
CJ126: 115 | CX126: 350w Metal Halide Low Bay to LED, High Bay Fixtures 126 watts | CY126: LR820 | CZ126: L820 | DA126: LR820 | DK126: ILED 11 | DL126: Generic LED | DM126: 30
CJ127: 116 | CX127: 360w Metal Halide Low Bay to LED, High Bay Fixtures 136 watts | CY127: LR820 | CZ127: L820 | DA127: LR820 | DK127: ILED 12 | DL127: Generic LED | DM127: 30
CJ128: 117 | CX128: 400w Metal Halide High Bay to LED, High Bay Fixtures 145 watts | CY128: LR820 | CZ128: L820 | DA128: LR820 | DK128: ILED 14 | DL128: Generic LED | DM128: 30
CJ129: 118 | CX129: 450w Metal Halide High Bay to LED, High Bay Fixtures 160 watts | CY129: LR820 | CZ129: L820 | DA129: LR820 | DK129: ILED 15 | DL129: Generic LED | DM129: 30
CJ130: 119 | CX130: 50w Metal Halide to LED, Replacement Lamps 14 watts | CY130: LR410 | CZ130: L410 | DA130: LR410 | DK130: ILED 16 | DL130: Generic LED | DM130: 30
CJ131: 120 | CX131: 70w Metal Halide to LED, Replacement Lamps 18 watts | CY131: LR410 | CZ131: L410 | DA131: LR410 | DK131: ILED 17 | DL131: Generic LED | DM131: 30
CJ132: 121 | CX132: 750w Metal Halide High Bay to LED, High Bay Fixtures 269 watts | CY132: LR820 | CZ132: L820 | DA132: LR820 | DK132: ILED 18 | DL132: Generic LED | DM132: 30
CJ133: 122 | CX133: 2lp, 2 x 2 Fluorescent, T12 to LED, Two Foot Linear Replacements 15 watts | CY133: LR742 | CZ133: L742 | DA133: LR742 | DK133: ILED 2 | DL133: Generic LED | DM133: 30
CJ134: 123 | CX134: 3lp, 2 x 2 Fluorescent, T12 to LED, Two Foot Linear Replacements 13 watts | CY134: LR742 | CZ134: L742 | DA134: LR742 | DK134: ILED 20 | DL134: Generic LED | DM134: 30
CJ135: 124 | CX135: 4lp, 2 x 2 Fluorescent, T12 to LED, Two Foot Linear Replacements 14 watts | CY135: LR742 | CZ135: L742 | DA135: =IF($DC$1=1,CY135,CZ135) -> LR742 | DK135: ILED 25 | DL135: Generic LED | DM135: 30
CJ136: 125 | CX136: 2lp, 2 x 2 Fluorescent, T5 to LED, Two Foot Linear Replacements 15 watts | CY136: LR742 | CZ136: L742 | DA136: LR742 | DK136: ILED 3 | DL136: Generic LED | DM136: 30
CJ137: 126 | CX137: 1lp, 1 x4 Fluorescent, T8 to LED, Two Foot Linear Replacements 10 watts | CY137: LR742 | CZ137: L742 | DA137: LR742 | DK137: ILED 4 | DL137: Generic LED | DM137: 30
CJ138: 127 | CX138: 2lp, 2 x 2 Fluorescent, T8 to LED, Two Foot Linear Replacements 10 watts | CY138: LR742 | CZ138: L742 | DA138: LR742 | DK138: ILED 5 | DL138: Generic LED | DM138: 30
CJ139: 128 | CX139: 3lp, 2 x 2 Fluorescent, T8 to LED, Two Foot Linear Replacements 8 watts | CY139: LR742 | CZ139: L742 | DA139: LR742 | DK139: ILED 6 | DL139: Generic LED | DM139: 30
CJ140: 129 | CX140: 4lp, 2 x 2 Fluorescent, T8 to LED, Two Foot Linear Replacements 8 watts | CY140: LR742 | CZ140: L742 | DA140: LR742 | DK140: ILED 7 | DL140: Generic LED | DM140: 30
CJ141: 130 | CX141: 1lp, 1 x 4 Fluorescent, T8 to LED, Four Foot Linear Replacements 18 watts | CY141: LR744 | CZ141: L744 | DA141: LR744 | DK141: ILED 8 | DL141: Generic LED | DM141: 30
CJ142: 131 | CX142: 1lp, 1 x 4 Fluorescent, T12 to LED, Four Foot Linear Replacements 18 watts | CY142: LR744 | CZ142: L744 | DA142: LR744 | DK142: ILED 9 | DL142: Generic LED | DM142: 30
CJ143: 132 | CX143: 2lp, 1 x 4 Fluorescent, T12 to LED, Four Foot Linear Replacements 15 watts | CY143: LR744 | CZ143: L744 | DA143: LR744 | DK143: LBLED 104 | DL143: LED Low Bay | DM143: 350
CJ144: 133 | CX144: 2lp, 1 x 4 Fluorescent, T8 to LED, Four Foot Linear Replacements 15 watts | CY144: LR744 | CZ144: L744 | DA144: LR744 | DK144: LBLED 116 | DL144: LED Low Bay | DM144: 350
CJ145: 134 | CX145: 2lp, 2 x 4 Fluorescent, T12 to LED, Four Foot Linear Replacements 15 watts | CY145: LR744 | CZ145: L744 | DA145: LR744 | DK145: LBLED 57 | DL145: LED Low Bay | DM145: 350
CJ146: 135 | CX146: 2lp, 2 x 4 Fluorescent, T5 to LED, Four Foot Linear Replacements 15 watts | CY146: LR744 | CZ146: L744 | DA146: LR744 | DK146: LBLED 60 | DL146: LED Low Bay | DM146: 350
CJ147: 136 | CX147: 3lp, 2 x 4 Fluorescent, T12 to LED, Four Foot Linear Replacements 15 watts | CY147: LR744 | CZ147: L744 | DA147: LR744 | DK147: LBLED 67 | DL147: LED Low Bay | DM147: 350
CJ148: 137 | CX148: 3lp, 2 x 4 Fluorescent, T5 to LED, Four Foot Linear Replacements 23 watts | CY148: LR744 | CZ148: L744 | DA148: LR744 | DK148: LBLED 72 | DL148: LED Low Bay | DM148: 350
CJ149: 138 | CX149: 2lp, 2 x 4 Fluorescent, T8 to LED, Four Foot Linear Replacements 15 watts | CY149: LR744 | CZ149: L744 | DA149: LR744 | DK149: LBLED 78 | DL149: LED Low Bay | DM149: 350
CJ150: 139 | CX150: 3lp, 2 x 4 Fluorescent, T8 to LED, Four Foot Linear Replacements 15 watts | CY150: LR744 | CZ150: L744 | DA150: LR744
CJ151: 140 | CX151: 4lp, 2 x 4 Fluorescent, T12 to LED, Four Foot Linear Replacements 15 watts | CY151: LR744 | CZ151: L744 | DA151: LR744
CJ152: 141 | CX152: 4lp, 2 x 4 Fluorescent, T5 to LED, Four Foot Linear Replacements 25 watts | CY152: LR744 | CZ152: L744 | DA152: LR744
CJ153: 142 | CX153: 4lp, 2 x 4 Fluorescent, T8 to LED, Four Foot Linear Replacements 15 watts | CY153: LR744 | CZ153: L744 | DA153: LR744
CJ154: 143 | CP154: F84SVS | CX154: 6lp, Fluorescent High Bay, T12 to LED, Four Foot Linear Replacements 23 watts | CY154: LR744 | CZ154: L744 | DA154: LR744
CJ155: 144 | CX155: 6lp, Fluorescent High Bay, T5 to LED, Four Foot Linear Replacements 26 watts | CY155: LR744 | CZ155: L744 | DA155: LR744
CJ156: 145 | CX156: 6lp, Fluorescent High Bay, T8 to LED, Four Foot Linear Replacements 16 watts | CY156: LR744 | CZ156: L744 | DA156: LR744
CJ157: 146 | CX157: 8lp, Fluorescent High Bay, T5 to LED, Four Foot Linear Replacements 26 watts | CY157: LR744 | CZ157: L744 | DA157: LR744
CJ158: 147 | CX158: 8lp, Fluorescent High Bay, T8 to LED, Four Foot Linear Replacements 15 watts | CY158: LR744 | CZ158: L744 | DA158: LR744
CJ159: 148 | CX159: Custom to LED | CY159: TBD | CZ159: TBD | DA159: TBD
CJ160: 149 | CX160: Custom T12 to LED | CY160: TBD | CZ160: TBD | DA160: TBD
CJ161: 150 | CX161: Custom T8 to LED | CY161: TBD | CZ161: TBD | DA161: TBD
CJ162: 151 | CX162: Custom T5 to LED | CY162: TBD | CZ162: TBD | DA162: TBD
CJ163: 152 | CX163: Custom HPT8 to LED | CY163: TBD | CZ163: TBD | DA163: TBD
CJ164: 153 | CX164: Custom HPT8-RW to LED | CY164: TBD | CZ164: TBD | DA164: TBD
CJ165: 154 | CX165: Custom Incandescent to LED | CY165: TBD | CZ165: TBD | DA165: TBD
CJ166: 155 | CX166: Custom Halogen to LED | CY166: TBD | CZ166: TBD | DA166: TBD
CJ167: 156 | CX167: Custom Metal Halide to LED | CY167: TBD | CZ167: TBD | DA167: TBD
CJ168: 157 | CX168: Custom High Pressure Sodium to LED | CY168: TBD | CZ168: TBD | DA168: TBD
CJ169: 158 | CX169: Custom Compact Fluorescent, Quad Tube to LED | CY169: TBD | CZ169: TBD | DA169: TBD
CJ170: 159 | CX170: Custom Compact Fluorescent, Spiral to LED | CY170: TBD | CZ170: TBD | DA170: TBD
CJ171: 160 | CX171: Custom Compact Fluorescent, Twin Tube to LED | CY171: TBD | CZ171: TBD | DA171: TBD
CJ172: 161
CJ173: 162
CJ174: 163
CJ175: 164
CJ176: 165
CJ177: 166
CJ178: 167
CJ179: 168
CJ180: 169
CJ181: 170
CJ182: 171
CJ183: 172
CJ184: 173
CJ185: 174 | CM185: FU2SS
CJ186: 175
CJ187: 176
CJ188: 177
CJ189: 178
CJ190: 179
CJ191: 180
CJ192: 181
CJ193: 182
CJ194: 183
CJ195: 184
CJ196: 185
CJ197: 186
CJ198: 187
CJ199: 188 | CN199: FLED
CJ200: 189
CJ201: 190
CJ202: 191
CJ203: 192
... 73 more rows

Sheet Wattage Table (hidden)
A1: Lighting System Rated Wattage Table
A2: Device Category | B2: Secondary Device Category | C2: Device Code | D2: Lamp Code | E2: Description | F2: Ballast | G2: Lamp Length | H2: Lamp/Fixt | I2: lamp length ft | J2: Watt/Lamp | K2: Watt/ Fixture | M2: 465 | N2: 106
A3: Metal Halide | C3: CDM205 | E3: Metal Halide CDM (1) 205W lamp | H3: 1 | I3: =IF(G3="","",G3/12) ->  | J3: 205 | K3: 235 | L3: =A3 -> Metal Halide
A4: Metal Halide | C4: CDM330 | E4: Metal Halide CDM (1) 330W lamp | H4: 1 | I4: =IF(G4="","",G4/12) ->  | J4: 330 | K4: 360 | L4: Metal Halide
A5: No Recommendation | C5: None | K5: 0
A6: CFL | C6: CF10/2D | D6: CFD10W | E6: Compact Fluorescent, 2D, (1) 10W lamp | F6: Magnetic - Standard | H6: 1 | J6: 10 | K6: 16 | L6: CFL
A7: CFL | C7: CF10/2D-L | D7: CFD10W | E7: Compact Fluorescent, 2D, (1) 10W lamp | F7: Electronic | H7: 1 | J7: 10 | K7: 12 | L7: CFL
A8: CFL | C8: CF11/1 | D8: CF11W | E8: Compact Fluorescent, (1) 11W lamp | F8: Magnetic - Standard | H8: 1 | J8: 11 | K8: 13 | L8: CFL
A9: CFL | C9: CF11/2 | D9: CF11W | E9: Compact Fluorescent, (2) 11W lamp | F9: Magnetic - Standard | H9: 2 | J9: 11 | K9: 26 | L9: CFL
A10: CFL | C10: CF13/2 | D10: CF13W | E10: Compact Fluorescent, (2) 13W lamp | F10: Electronic | H10: 2 | J10: 13 | K10: 26 | L10: CFL
A11: CFL | C11: CF13/3 | D11: CF13W | E11: Compact Fluorescent, (3) 13W lamp | F11: Electronic | H11: 3 | J11: 13 | K11: 39 | L11: CFL
A12: CFL | C12: CF14/1 | D12: CF14W | E12: Compact Fluorescent, (1) 14W lamp | F12: Electronic | H12: 1 | J12: 14 | K12: 14 | L12: CFL
A13: CFL | C13: CF15/1 | D13: CF15W | E13: Compact Fluorescent, (1) 15W lamp | F13: Electronic | H13: 1 | J13: 15 | K13: 15 | L13: CFL
A14: CFL | C14: CF16/2D | D14: CFD16W | E14: Compact Fluorescent, 2D, (1) 16W lamp | F14: Magnetic - Standard | H14: 1 | J14: 16 | K14: 26 | L14: CFL
A15: CFL | C15: CF16/2D-L | D15: CFD16W | E15: Compact Fluorescent, 2D, (1) 16W lamp | F15: Electronic | H15: 1 | J15: 16 | K15: 18 | L15: CFL
A16: CFL | C16: CF18/3-L | D16: CF18W | E16: Compact Fluorescent, (3) 18W lamp | F16: Electronic | H16: 3 | J16: 18 | K16: 60 | L16: CFL
A17: CFL | C17: CF21/2D | D17: CFD21W | E17: Compact Fluorescent, 2D, (1) 21W lamp | F17: Magnetic - Standard | H17: 1 | J17: 21 | K17: 26 | L17: CFL
A18: CFL | C18: CF21/2D-L | D18: CFD21W | E18: Compact Fluorescent, 2D, (1) 21W lamp | F18: Electronic | H18: 1 | J18: 21 | K18: 22 | L18: CFL
A19: CFL | C19: CF23/1 | D19: CF23W | E19: Compact Fluorescent, (1) 23W lamp | F19: Magnetic - Standard | H19: 1 | J19: 23 | K19: 29 | L19: CFL
A20: CFL | C20: CF23/1-L | D20: CF23W | E20: Compact Fluorescent, (1) 23W lamp | F20: Electronic | H20: 1 | J20: 23 | K20: 25 | L20: CFL
A21: CFL | C21: CF26/3-L | D21: CF26W | E21: Compact Fluorescent, (3) 26W lamp | F21: Electronic | H21: 3 | J21: 26 | K21: 82 | L21: CFL
A22: CFL | C22: CF26/4-L | D22: CF26W | E22: Compact Fluorescent, (4) 26W lamp | F22: Electronic | H22: 4 | J22: 26 | K22: 108 | L22: CFL
A23: CFL | C23: CF26/6-L | D23: CF26W | E23: Compact Fluorescent, (6) 26W lamp | F23: Electronic | H23: 6 | J23: 26 | K23: 162 | L23: CFL
A24: CFL | C24: CF26/8-L | D24: CF26W | E24: Compact Fluorescent, (8) 26W lamp | F24: Electronic | H24: 8 | J24: 26 | K24: 216 | L24: CFL
A25: CFL | C25: CF28/2D | D25: CFD28W | E25: Compact Fluorescent, 2D, (1) 28W lamp | F25: Magnetic - Standard | H25: 1 | J25: 28 | K25: 35 | L25: CFL
A26: CFL | C26: CF28/2D-L | D26: CFD28W | E26: Compact Fluorescent, 2D, (1) 28W lamp | F26: Electronic | H26: 1 | J26: 28 | K26: 28 | L26: CFL
A27: CFL | C27: CF32/3-L | D27: CF32W | E27: Compact Fluorescent, (3) 32W lamp | F27: Electronic | H27: 3 | J27: 32 | K27: 114 | L27: CFL
A28: CFL | C28: CF32/4-L | D28: CF32W | E28: Compact Fluorescent, (4) 32W lamp | F28: Electronic | H28: 4 | J28: 32 | K28: 152 | L28: CFL
A29: CFL | C29: CF32/6-L | D29: CF32W | E29: Compact Fluorescent, (6) 32W lamp | F29: Electronic | H29: 6 | J29: 32 | K29: 228 | L29: CFL
A30: CFL | C30: CF32/8-L | D30: CF32W | E30: Compact Fluorescent, (8) 32W lamp | F30: Electronic | H30: 8 | J30: 32 | K30: 304 | L30: CFL
A31: CFL | C31: CF38/2D | D31: CFD38W | E31: Compact Fluorescent, 2D, (1) 38W lamp | F31: Magnetic - Standard | H31: 1 | J31: 38 | K31: 46 | L31: CFL
A32: CFL | C32: CF38/2D-L | D32: CFD38W | E32: Compact Fluorescent, 2D, (1) 38W lamp | F32: Electronic | H32: 1 | J32: 38 | K32: 36 | L32: CFL
A33: CFL | C33: CF4/1 | D33: CF4W | E33: Compact Fluorescent, (1) 4W lamp | F33: Electronic | H33: 1 | J33: 4 | K33: 4 | L33: CFL
A34: CFL | C34: CF42/1 | D34: CF42W | E34: Compact Fluorescent, (1) 4W lamp | F34: Electronic | H34: 1 | J34: 42 | K34: 42 | L34: CFL
A35: CFL | C35: CF42/1-L | D35: CF42W | E35: Compact Fluorescent, (1) 42W lamp | F35: Electronic | H35: 1 | J35: 42 | K35: 48 | L35: CFL
A36: CFL | C36: CF42/2-L | D36: CF42W | E36: Compact Fluorescent, (2) 42W lamp | F36: Electronic | H36: 2 | J36: 42 | K36: 100 | L36: CFL
A37: CFL | C37: CF42/3-L | D37: CF42W | E37: Compact Fluorescent, (3) 42W lamp | F37: Electronic | H37: 3 | J37: 42 | K37: 141 | L37: CFL
A38: CFL | C38: CF42/4-L | D38: CF42W | E38: Compact Fluorescent, (4) 42W lamp | F38: Electronic | H38: 4 | J38: 42 | K38: 188 | L38: CFL
A39: CFL | C39: CF42/6-L | D39: CF42W | E39: Compact Fluorescent, (6) 42W lamp | F39: Electronic | H39: 6 | J39: 42 | K39: 282 | L39: CFL
A40: CFL | C40: CF42/8-L | D40: CF42W | E40: Compact Fluorescent, (8) 42W lamp | F40: Electronic | H40: 8 | J40: 42 | K40: 376 | L40: CFL
A41: CFL | C41: CFQ10/1 | D41: CFQ10W | E41: Compact Fluorescent, quad, (1) 10W lamp | F41: Magnetic - Standard | H41: 1 | J41: 10 | K41: 15 | L41: CFL
A42: CFL | C42: CFQ13/1 | D42: CFQ13W | E42: Compact Fluorescent, quad, (1) 13W lamp | F42: Magnetic - Standard | H42: 1 | J42: 13 | K42: 17 | L42: CFL
A43: CFL | C43: CFQ13/1-L | D43: CFQ13W | E43: Compact Fluorescent, quad, (1) 13W lamp, BF=1.05 | F43: Electronic | H43: 1 | J43: 13 | K43: 15 | L43: CFL
A44: CFL | C44: CFQ13/2 | D44: CFQ13W | E44: Compact Fluorescent, quad, (2) 13W lamp | F44: Magnetic - Standard | H44: 2 | J44: 13 | K44: 31 | L44: CFL
A45: CFL | C45: CFQ13/2-L | D45: CFQ13W | E45: Compact Fluorescent, quad, (2) 13W lamp, BF=1.0 | F45: Electronic | H45: 2 | J45: 13 | K45: 28 | L45: CFL
A46: CFL | C46: CFQ13/3 | D46: CFQ13W | E46: Compact Fluorescent, quad, (3) 13W lamp | F46: Magnetic - Standard | H46: 3 | J46: 13 | K46: 48 | L46: CFL
A47: CFL | C47: CFQ15/1 | D47: CFQ15W | E47: Compact Fluorescent, quad, (1) 15W lamp | F47: Magnetic - Standard | H47: 1 | J47: 15 | K47: 20 | L47: CFL
A48: CFL | C48: CFQ17/1 | D48: CFQ17W | E48: Compact Fluorescent, quad, (1) 17W lamp | F48: Magnetic - Standard | H48: 1 | J48: 17 | K48: 24 | L48: CFL
A49: CFL | C49: CFQ17/2 | D49: CFQ17W | E49: Compact Fluorescent, quad, (2) 17W lamp | F49: Magnetic - Standard | H49: 2 | J49: 17 | K49: 48 | L49: CFL
A50: CFL | C50: CFQ18/1 | D50: CFQ18W | E50: Compact Fluorescent, quad, (1) 18W lamp | F50: Magnetic - Standard | H50: 1 | J50: 18 | K50: 26 | L50: CFL
A51: CFL | C51: CFQ18/1-L | D51: CFQ18W | E51: Compact Fluorescent, quad, (1) 18W lamp, BF=1.0 | F51: Electronic | H51: 1 | J51: 18 | K51: 20 | L51: CFL
A52: CFL | C52: CFQ18/2 | D52: CFQ18W | E52: Compact Fluorescent, quad, (2) 18W lamp | F52: Magnetic - Standard | H52: 2 | J52: 18 | K52: 45 | L52: CFL
A53: CFL | C53: CFQ18/2-L | D53: CFQ18W | E53: Compact Fluorescent, quad, (2) 18W lamp, BF=1.0 | F53: Electronic | H53: 2 | J53: 18 | K53: 38 | L53: CFL
A54: CFL | C54: CFQ18/4 | D54: CFQ18W | E54: Compact Fluorescent, quad, (4) 18W lamp | F54: Magnetic - Standard | H54: 2 | J54: 18 | K54: 90 | L54: CFL
A55: CFL | C55: CFQ20/1 | D55: CFQ20W | E55: Compact Fluorescent, quad, (1) 20W lamp | F55: Magnetic - Standard | H55: 1 | J55: 20 | K55: 23 | L55: CFL
A56: CFL | C56: CFQ20/2 | D56: CFQ20W | E56: Compact Fluorescent, quad, (2) 20W lamp | F56: Magnetic - Standard | H56: 2 | J56: 20 | K56: 46 | L56: CFL
A57: CFL | C57: CFQ22/1 | D57: CFQ22W | E57: Compact Fluorescent, quad, (1) 22W lamp | F57: Magnetic - Standard | H57: 1 | J57: 22 | K57: 24 | L57: CFL
A58: CFL | C58: CFQ22/2 | D58: CFQ22W | E58: Compact Fluorescent, quad, (2) 22W lamp | F58: Magnetic - Standard | H58: 2 | J58: 22 | K58: 48 | L58: CFL
A59: CFL | C59: CFQ22/3 | D59: CFQ22W | E59: Compact Fluorescent, quad, (3) 22W lamp | F59: Magnetic - Standard | H59: 3 | J59: 22 | K59: 72 | L59: CFL
A60: CFL | C60: CFQ25/1 | D60: CFQ25W | E60: Compact Fluorescent, quad, (1) 25W lamp | F60: Magnetic - Standard | H60: 1 | J60: 25 | K60: 33 | L60: CFL
A61: CFL | C61: CFQ25/2 | D61: CFQ25W | E61: Compact Fluorescent, quad, (2) 25W lamp | F61: Magnetic - Standard | H61: 2 | J61: 25 | K61: 66 | L61: CFL
A62: CFL | C62: CFQ26/1 | D62: CFQ26W | E62: Compact Fluorescent, quad, (1) 26W lamp | F62: Magnetic - Standard | H62: 1 | J62: 26 | K62: 33 | L62: CFL
A63: CFL | C63: CFQ26/1-L | D63: CFQ26W | E63: Compact Fluorescent, quad, (1) 26W lamp, BF=0.95 | F63: Electronic | H63: 1 | J63: 26 | K63: 27 | L63: CFL
A64: CFL | C64: CFQ26/2 | D64: CFQ26W | E64: Compact Fluorescent, quad, (2) 26W lamp | F64: Magnetic - Standard | H64: 2 | J64: 26 | K64: 66 | L64: CFL
A65: CFL | C65: CFQ26/2-L | D65: CFQ26W | E65: Compact Fluorescent, quad, (2) 26W lamp, BF=0.95 | F65: Electronic | H65: 2 | J65: 26 | K65: 50 | L65: CFL
A66: CFL | C66: CFQ26/3 | D66: CFQ26W | E66: Compact Fluorescent, quad, (3) 26W lamp | F66: Magnetic - Standard | H66: 3 | J66: 26 | K66: 99 | L66: CFL
A67: CFL | C67: CFQ26/6-L | D67: CFQ26W | E67: Compact Fluorescent, quad, (6) 26W lamp, BF=0.95 | F67: Electronic | H67: 6 | J67: 26 | K67: 150 | L67: CFL
A68: CFL | C68: CFQ28/1 | D68: CFQ28W | E68: Compact Fluorescent, quad, (1) 28W lamp | F68: Magnetic - Standard | H68: 1 | J68: 28 | K68: 33 | L68: =A68 -> CFL
A69: CFL | C69: CFQ9/1 | D69: CFQ9W | E69: Compact Fluorescent, quad, (1) 9W lamp | F69: Magnetic - Standard | H69: 1 | I69: =IF(G69="","",G69/12) ->  | J69: 9 | K69: 14 | L69: CFL
A70: CFL | C70: CFQ9/2 | D70: CFQ9W | E70: Compact Fluorescent, quad, (2) 9W lamp | F70: Magnetic - Standard | H70: 2 | J70: 9 | K70: 23 | L70: CFL
A71: CFL | C71: CFS11/1 | D71: CFS11W | E71: Compact Fluorescent, spiral, (1) 11W lamp | F71: Electronic | H71: 1 | J71: 11 | K71: 11 | L71: CFL
A72: CFL | C72: CFS13/1 | D72: CFS13W | E72: Compact Fluorescent, spiral, (1) 13W lamp | F72: Electronic | H72: 1 | J72: 13 | K72: 13 | L72: CFL
A73: CFL | C73: CFS15/1 | D73: CFS15W | E73: Compact Fluorescent, spiral, (1) 15W lamp | F73: Electronic | H73: 1 | J73: 15 | K73: 15 | L73: CFL
A74: CFL | C74: CFS20/1 | D74: CFS20W | E74: Compact Fluorescent, spiral, (1) 20W lamp | F74: Electronic | H74: 1 | J74: 20 | K74: 20 | L74: CFL
A75: CFL | C75: CFS23/1 | D75: CFS23W | E75: Compact Fluorescent, spiral, (1) 23W lamp | F75: Electronic | H75: 1 | J75: 23 | K75: 23 | L75: CFL
A76: CFL | C76: CFS27/1 | D76: CFS27W | E76: Compact Fluorescent, spiral, (1) 27W lamp | F76: Electronic | H76: 1 | J76: 27 | K76: 27 | L76: CFL
A77: CFL | C77: CFS30/1 | D77: CFS30W | E77: Compact Fluorescent, spiral, (1) 30W lamp | F77: Electronic | H77: 1 | J77: 30 | K77: 30 | L77: CFL
A78: CFL | C78: CFS7/1 | D78: CFS7W | E78: Compact Fluorescent, spiral, (1) 7W lamp | F78: Electronic | H78: 1 | J78: 7 | K78: 7 | L78: CFL
A79: CFL | C79: CFS9/1 | D79: CFS9W | E79: Compact Fluorescent, spiral, (1) 9W lamp | F79: Electronic | H79: 1 | J79: 9 | K79: 9 | L79: CFL
A80: CFL | C80: CFT13/1 | D80: CFT13W | E80: Compact Fluorescent, twin, (1) 13W lamp | F80: Magnetic - Standard | H80: 1 | J80: 13 | K80: 17 | L80: CFL
A81: CFL | C81: CFT13/2 | D81: CFT13W | E81: Compact Fluorescent, twin, (2) 13W lamp | F81: Magnetic - Standard | H81: 2 | J81: 13 | K81: 31 | L81: CFL
A82: CFL | C82: CFT13/3 | D82: CFT13W | E82: Compact Fluorescent, twin, (3) 13 W lamp | F82: Magnetic - Standard | H82: 3 | J82: 13 | K82: 48 | L82: CFL
A83: CFL | C83: CFT18/1 | D83: CFT18W | E83: Compact Fluorescent, long twin., (1) 18W lamp | F83: Magnetic - Standard | H83: 1 | J83: 18 | K83: 24 | L83: CFL
A84: CFL | C84: CFT22/1 | D84: CFT22W | E84: Compact Fluorescent, twin, (1) 22W lamp | F84: Magnetic - Standard | H84: 1 | J84: 22 | K84: 27 | L84: CFL
A85: CFL | C85: CFT22/2 | D85: CFT22W | E85: Compact Fluorescent, twin, (2) 22W lamp | F85: Magnetic - Standard | H85: 2 | J85: 22 | K85: 54 | L85: CFL
A86: CFL | C86: CFT22/4 | D86: CFT22W | E86: Compact Fluorescent, twin, (4) 22W lamp | F86: Magnetic - Standard | H86: 4 | J86: 22 | K86: 108 | L86: CFL
A87: CFL | C87: CFT24/1 | D87: CFT24W | E87: Compact Fluorescent, long twin, (1) 24W lamp | F87: Magnetic - Standard | H87: 1 | J87: 24 | K87: 32 | L87: CFL
A88: CFL Parking Garage Retrofit | C88: CFT26/2-BX | E88: CFL, Retrofit Kit, (2) 26W lamps | H88: 2 | J88: 26 | K88: 55 | L88: CFL Parking Garage Retrofit
A89: CFL | C89: CFT28/1 | D89: CFT28W | E89: Compact Fluorescent, twin, (1) 28W lamp | F89: Magnetic - Standard | H89: 1 | J89: 28 | K89: 33 | L89: CFL
A90: CFL | C90: CFT28/2 | D90: CFT28W | E90: Compact Fluorescent, twin, (2) 28W lamp | F90: Magnetic - Standard | H90: 2 | J90: 28 | K90: 66 | L90: CFL
A91: CFL | C91: CFT32/1 | D91: CFM32W | E91: Compact Fluorescent, twin or multi, (1) 32W lamp | F91: Electronic | H91: 1 | J91: 32 | K91: 34 | L91: CFL
A92: CFL Parking Garage Retrofit | C92: CFT32/2-BX | E92: CFL, Retrofit Kit, (2) 32W lamps | H92: 2 | J92: 32 | K92: 68 | L92: CFL Parking Garage Retrofit
A93: CFL | C93: CFT32/2-L | D93: CFM32W | E93: Compact Fluorescent, twin or multi, (2) 32W lamp | F93: Electronic | H93: 2 | J93: 32 | K93: 62 | L93: CFL
A94: CFL | C94: CFT32/6-L | D94: CFM32W | E94: Compact Fluorescent, twin or multi, (2) 32W lamp | F94: Electronic | H94: 6 | J94: 32 | K94: 186 | L94: CFL
A95: CFL | C95: CFT36/1 | D95: CFT36W | E95: Compact Fluorescent, long twin, (1) 36W lamp | F95: Magnetic - Standard | H95: 1 | J95: 36 | K95: 51 | L95: CFL
A96: CFL | B96: Biax | C96: CFT36/4-BX | D96: CFT36W | E96: Compact Fluorescent, Biax, (4) 36W lamp | F96: Electronic | H96: 4 | J96: 36 | K96: 148 | L96: CFL
A97: CFL | B97: Biax | C97: CFT36/6-BX | D97: CFT36W | E97: Compact Fluorescent, Biax, (6) 36W lamp | F97: Electronic | H97: 6 | J97: 36 | K97: 212 | L97: CFL
A98: CFL | C98: CFT36/6-L | D98: CFT36W | E98: Compact Fluorescent, long Twin, (6) 36W lamp | F98: Electronic | H98: 6 | J98: 36 | K98: 198 | L98: CFL
A99: CFL | C99: CFT36/6-L-H | D99: CFT36W | E99: Compact Fluorescent, long Twin, (6) 36W lamp/ High Ballast Factor | F99: Electronic | H99: 6 | J99: 36 | K99: 210 | L99: CFL
A100: CFL | B100: Biax | C100: CFT36/8-BX | D100: CFT36W | E100: Compact Fluorescent, Biax, (8) 36W lamp | F100: Electronic | H100: 8 | J100: 36 | K100: 296 | L100: CFL
A101: CFL | C101: CFT36/8-L | D101: CFT36W | E101: Compact Fluorescent, long Twin, (8) 36W lamp | F101: Electronic | H101: 8 | J101: 36 | K101: 270 | L101: CFL
A102: CFL | C102: CFT36/8-L-H | D102: CFT36W | E102: Compact Fluorescent, long Twin, (8) 36W lamp/ High Ballast Factor | F102: Electronic | H102: 8 | J102: 36 | K102: 286 | L102: CFL
A103: CFL | B103: Biax | C103: CFT36/9-BX | D103: CFT36W | E103: Compact Fluorescent, Biax, (9) 36W lamp | F103: Electronic | H103: 9 | J103: 36 | K103: 318 | L103: CFL
A104: CFL | C104: CFT40/1 | D104: CFT40W | E104: Compact Fluorescent, twin, (1) 40W lamp | F104: Magnetic - Standard | H104: 1 | J104: 40 | K104: 46 | L104: CFL
A105: CFL | B105: Biax | C105: CFT40/12-BX | D105: CFT40W | E105: Compact Fluorescent, Biax, (12) 40W lamp | F105: Electronic | H105: 12 | J105: 40 | K105: 408 | L105: CFL
A106: CFL | B106: Biax | C106: CFT40/1-BX | D106: CFT40W | E106: Compact Fluorescent, Biax, (1) 40W lamp | F106: Electronic | H106: 1 | J106: 40 | K106: 46 | L106: CFL
A107: CFL | C107: CFT40/1-L | D107: CFT40W | E107: Compact Fluorescent, long twin, (1) 40W lamp | F107: Electronic | H107: 1 | J107: 40 | K107: 43 | L107: CFL
A108: CFL | C108: CFT40/2 | D108: CFT40W | E108: Compact Fluorescent, twin, (2) 40W lamp | F108: Magnetic - Standard | H108: 2 | J108: 40 | K108: 85 | L108: CFL
A109: CFL | B109: Biax | C109: CFT40/2-BX | D109: CFT40W | E109: Compact Fluorescent, Biax, (2) 40W lamp | F109: Electronic | H109: 2 | J109: 40 | K109: 72 | L109: CFL
A110: CFL | C110: CFT40/2-L | D110: CFT40W | E110: Compact Fluorescent, long twin, (2) 40W lamp | F110: Electronic | H110: 2 | J110: 40 | K110: 72 | L110: CFL
A111: CFL | C111: CFT40/3 | D111: CFT40W | E111: Compact Fluorescent, twin, (3) 40 W lamp | F111: Magnetic - Standard | H111: 3 | J111: 40 | K111: 133 | L111: CFL
A112: CFL | B112: Biax | C112: CFT40/3-BX | D112: CFT40W | E112: Compact Fluorescent, Biax, (3) 40W lamp | F112: Electronic | H112: 3 | J112: 40 | K112: 102 | L112: CFL
A113: CFL | C113: CFT40/3-L | D113: CFT40W | E113: Compact Fluorescent, long twin, (3) 40W lamp | F113: Electronic | H113: 3 | J113: 40 | K113: 105 | L113: CFL
A114: CFL | B114: Biax | C114: CFT40/4-BX | D114: CFT40W | E114: Compact Fluorescent, Biax, (4) 40W lamp | F114: Electronic | H114: 4 | J114: 40 | K114: 144 | L114: CFL
A115: CFL | B115: Biax | C115: CFT40/5-BX | D115: CFT40W | E115: Compact Fluorescent, Biax, (5) 40W lamp | F115: Electronic | H115: 5 | J115: 40 | K115: 190 | L115: CFL
A116: CFL | B116: Biax | C116: CFT40/6-BX | D116: CFT40W | E116: Compact Fluorescent, Biax, (6) 40W lamp | F116: Electronic | H116: 6 | J116: 40 | K116: 204 | L116: CFL
A117: CFL | C117: CFT40/6-L | D117: CFT40W | E117: Compact Fluorescent, long Twin, (6) 40W lamp | F117: Electronic | H117: 6 | J117: 40 | K117: 220 | L117: CFL
A118: CFL | C118: CFT40/6-L-H | D118: CFT40W | E118: Compact Fluorescent, long Twin, (6) 40W lamp/ High Ballast Factor | F118: Electronic | H118: 6 | J118: 40 | K118: 233 | L118: CFL
A119: CFL | B119: Biax | C119: CFT40/8-BX | D119: CFT40W | E119: Compact Fluorescent, Biax, (8) 40W lamp | F119: Electronic | H119: 8 | J119: 40 | K119: 288 | L119: CFL
A120: CFL | C120: CFT40/8-L | D120: CFT40W | E120: Compact Fluorescent, long Twin, (8) 40W lamp | F120: Electronic | H120: 8 | J120: 40 | K120: 300 | L120: CFL
A121: CFL | C121: CFT40/8-L-H | D121: CFT40W | E121: Compact Fluorescent, long Twin, (8) 40W lamp/ High Ballast Factor | F121: Electronic | H121: 8 | J121: 40 | K121: 340 | L121: CFL
A122: CFL | B122: Biax | C122: CFT40/9-BX | D122: CFT40W | E122: Compact Fluorescent, Biax, (9) 40W lamp | F122: Electronic | H122: 9 | J122: 40 | K122: 306 | L122: CFL
A123: CFL Parking Garage Retrofit | C123: CFT42/2-BX | E123: CFL, Retrofit Kit, (2) 42W lamps | H123: 2 | J123: 42 | K123: 92 | L123: CFL Parking Garage Retrofit
A124: CFL | C124: CFT5/1 | D124: CFT5W | E124: Compact Fluorescent, twin, (1) 5W lamp | F124: Magnetic - Standard | H124: 1 | J124: 5 | K124: 9 | L124: CFL
A125: CFL | C125: CFT5/2 | D125: CFT5W | E125: Compact Fluorescent, twin, (2) 5W lamp | F125: Magnetic - Standard | H125: 2 | J125: 5 | K125: 18 | L125: CFL
A126: CFL | C126: CFT50/1 | D126: CFT50W | E126: Compact Fluorescent, twin, (2) 50W lamp | F126: Electronic | H126: 1 | J126: 50 | K126: 54 | L126: CFL
A127: CFL | B127: Biax | C127: CFT50/12-BX | D127: CFT50W | E127: Compact Fluorescent, Biax, (12) 50W lamp | F127: Electronic | H127: 12 | J127: 50 | K127: 648 | L127: CFL
A128: CFL | B128: Biax | C128: CFT50/1-BX | D128: CFT50W | E128: Compact Fluorescent, Biax, (1) 50W lamp | F128: Electronic | H128: 1 | J128: 50 | K128: 54 | L128: CFL
A129: CFL | B129: Biax | C129: CFT50/2-BX | D129: CFT50W | E129: Compact Fluorescent, Biax, (2) 50W lamp | F129: Electronic | H129: 2 | J129: 50 | K129: 108 | L129: CFL
A130: CFL | B130: Biax | C130: CFT50/3-BX | D130: CFT50W | E130: Compact Fluorescent, Biax, (3) 50W lamp | F130: Electronic | H130: 3 | J130: 50 | K130: 162 | L130: CFL
A131: CFL | B131: Biax | C131: CFT50/4-BX | D131: CFT50W | E131: Compact Fluorescent, Biax, (4) 50W lamp | F131: Electronic | H131: 4 | J131: 50 | K131: 216 | L131: CFL
A132: CFL | B132: Biax | C132: CFT50/5-BX | D132: CFT50W | E132: Compact Fluorescent, Biax, (5) 50W lamp | F132: Electronic | H132: 5 | J132: 50 | K132: 270 | L132: =A132 -> CFL
A133: CFL | B133: Biax | C133: CFT50/6-BX | D133: CFT50W | E133: Compact Fluorescent, Biax, (6) 50W lamp | F133: Electronic | H133: 6 | I133: =IF(G133="","",G133/12) ->  | J133: 50 | K133: 324 | L133: CFL
A134: CFL | B134: Biax | C134: CFT50/8-BX | D134: CFT50W | E134: Compact Fluorescent, Biax, (8) 50W lamp | F134: Electronic | H134: 8 | J134: 50 | K134: 432 | L134: CFL
A135: CFL | B135: Biax | C135: CFT50/9-BX | D135: CFT50W | E135: Compact Fluorescent, Biax, (9) 50W lamp | F135: Electronic | H135: 9 | J135: 50 | K135: 486 | L135: CFL
A136: CFL | C136: CFT55/1 | D136: CFT55W | E136: Compact Fluorescent, twin (1) 55W lamp | F136: Electronic | H136: 1 | J136: 55 | K136: 56 | L136: CFL
A137: CFL | B137: Biax | C137: CFT55/12-BX | D137: CFT55W | E137: Compact Fluorescent, Biax, (12) 55W lamp | F137: Electronic | H137: 12 | J137: 55 | K137: 672 | L137: CFL
A138: CFL | C138: CF55/1 | D138: CF55W | E138: Compact Fluorescent, (1) 55W lamp | F138: Electronic | H138: 1 | J138: 55 | K138: 55 | L138: CFL
A139: CFL | B139: Biax | C139: CFT55/1-BX | D139: CFT55W | E139: Compact Fluorescent, Biax, (1) 55W lamp | F139: Electronic | H139: 1 | J139: 55 | K139: 56 | L139: CFL
A140: CFL | B140: Biax | C140: CFT55/2-BX | D140: CFT55W | E140: Compact Fluorescent, Biax, (2) 55W lamp | F140: Electronic | H140: 2 | J140: 55 | K140: 112 | L140: CFL
A141: CFL | B141: Biax | C141: CFT55/3-BX | D141: CFT55W | E141: Compact Fluorescent, Biax, (3) 55W lamp | F141: Electronic | H141: 3 | J141: 55 | K141: 168 | L141: CFL
A142: CFL | B142: Biax | C142: CFT55/4-BX | D142: CFT55W | E142: Compact Fluorescent, Biax, (4) 55W lamp | F142: Electronic | H142: 4 | J142: 55 | K142: 224 | L142: CFL
A143: CFL | B143: Biax | C143: CFT55/5-BX | D143: CFT55W | E143: Compact Fluorescent, Biax, (5) 55W lamp | F143: Electronic | H143: 5 | J143: 55 | K143: 280 | L143: CFL
A144: CFL | B144: Biax | C144: CFT55/6-BX | D144: CFT55W | E144: Compact Fluorescent, Biax, (6) 55W lamp | F144: Electronic | H144: 6 | J144: 55 | K144: 336 | L144: CFL
A145: CFL | C145: CFT55/6-L | D145: CFT55W | E145: Compact Fluorescent, long Twin, (6) 55W lamp | F145: Electronic | H145: 6 | J145: 55 | K145: 352 | L145: CFL
A146: CFL | C146: CFT55/6-L-H | D146: CFT55W | E146: Compact Fluorescent, long Twin, (6) 55W lamp/ High Ballast Factor | F146: Electronic | H146: 6 | J146: 55 | K146: 373 | L146: CFL
A147: CFL | B147: Biax | C147: CFT55/8-BX | D147: CFT55W | E147: Compact Fluorescent, Biax, (8) 55W lamp | F147: Electronic | H147: 8 | J147: 55 | K147: 448 | L147: CFL
A148: CFL | C148: CFT55/8-L | D148: CFT55W | E148: Compact Fluorescent, long Twin, (8) 55W lamp | F148: Electronic | H148: 8 | J148: 55 | K148: 468 | L148: CFL
A149: CFL | C149: CFT55/8-L-H | D149: CFT55W | E149: Compact Fluorescent, long Twin, (8) 55W lamp/ High Ballast Factor | F149: Electronic | H149: 8 | J149: 55 | K149: 496 | L149: CFL
A150: CFL | B150: Biax | C150: CFT55/9-BX | D150: CFT55W | E150: Compact Fluorescent, Biax, (9) 55W lamp | F150: Electronic | H150: 9 | J150: 55 | K150: 504 | L150: CFL
A151: CFL Parking Garage Retrofit | C151: CFT57/2-BX | E151: CFL, Retrofit Kit, (2) 57W lamps | H151: 2 | J151: 57 | K151: 127 | L151: CFL Parking Garage Retrofit
A152: CFL | C152: CFT7/1 | D152: CFT7W | E152: Compact Fluorescent, twin, (1) 7W lamp | F152: Magnetic - Standard | H152: 1 | J152: 7 | K152: 10 | L152: CFL
A153: CFL | C153: CFT7/2 | D153: CFT7W | E153: Compact Fluorescent, twin, (2) 7W lamp | F153: Magnetic - Standard | H153: 2 | J153: 7 | K153: 21 | L153: CFL
A154: CFL Parking Garage Retrofit | C154: CFT70/2-BX | E154: CFL, Retrofit Kit, (2) 70W lamps | H154: 2 | J154: 70 | K154: 156 | L154: CFL Parking Garage Retrofit
A155: CFL | C155: CFT9/1 | D155: CFT9W | E155: Compact Fluorescent, twin, (1) 9W lamp | F155: Magnetic - Standard | H155: 1 | J155: 9 | K155: 11 | L155: CFL
A156: CFL | C156: CFT9/2 | D156: CFT9W | E156: Compact Fluorescent, twin, (2) 9W lamp | F156: Magnetic - Standard | H156: 2 | J156: 9 | K156: 23 | L156: CFL
A157: CFL | C157: CFT9/3 | D157: CFT9W | E157: Compact Fluorescent, twin, (3) 9W lamp | F157: Magnetic - Standard | H157: 3 | J157: 9 | K157: 34 | L157: CFL
A158: Ceramic MH - Integrated | C158: CMHI24/1 | D158: CMHI24W | E158: Ceramic Metal Halide, Integrated Ballast PAR 30 Bulb, 24 W | H158: 1 | J158: 24 | K158: 24 | L158: Ceramic MH - Integrated
A159: Ceramic MH - Integrated | C159: CMHI25/1 | D159: CMHI25W | E159: Ceramic Metal Halide, Integrated Ballast PAR 38 Bulb, 25 W | H159: 1 | J159: 25 | K159: 25 | L159: Ceramic MH - Integrated
A160: Ceramic MH - Remote | C160: CMHR100/1 | D160: CMH100W | E160: Ceramic Metal Halide, Remote Ballast, 100 W | F160: Remote | H160: 1 | J160: 130 | K160: 130 | L160: Ceramic MH - Remote
A161: Ceramic MH - Remote | C161: CMHR20/1 | D161: CMH20W | E161: Ceramic Metal Halide, Remote Ballast, 20 W | F161: Remote | H161: 1 | J161: 22.5 | K161: 22.5 | L161: Ceramic MH - Remote
A162: Ceramic MH - Remote | C162: CMHR35/1 | D162: CMH35-39W | E162: Ceramic Metal Halide, Remote Ballast, 35 - 39 W | F162: Remote | H162: 1 | J162: 55 | K162: 55 | L162: Ceramic MH - Remote
A163: Ceramic MH - Remote | C163: CMHR50/1 | D163: CMH50W | E163: Ceramic Metal Halide, Remote Ballast, 50 W | F163: Remote | H163: 1 | J163: 72 | K163: 72 | L163: Ceramic MH - Remote
A164: Ceramic MH - Remote | C164: CMHR70/1 | D164: CMH70W | E164: Ceramic Metal Halide, Remote Ballast, 70 W | F164: Remote | H164: 1 | J164: 94 | K164: 94 | L164: Ceramic MH - Remote
A165: CFL Exit | C165: ECF5/1 | D165: CFT5W | E165: EXIT Compact Fluorescent, (1) 5W lamp | F165: Magnetic - Standard | H165: 1 | J165: 5 | K165: 9 | L165: CFL Exit
A166: CFL Exit | C166: ECF5/2 | D166: CFT5W | E166: EXIT Compact Fluorescent, (2) 5W lamp | F166: Magnetic - Standard | H166: 2 | J166: 5 | K166: 20 | L166: CFL Exit
A167: CFL Exit | C167: ECF7/1 | D167: CFT7W | E167: EXIT Compact Fluorescent, (1) 7W lamp | F167: Magnetic - Standard | H167: 1 | J167: 7 | K167: 10 | L167: CFL Exit
A168: CFL Exit | C168: ECF7/2 | D168: CFT7W | E168: EXIT Compact Fluorescent, (2) 7W lamp | F168: Magnetic - Standard | H168: 2 | J168: 7 | K168: 21 | L168: CFL Exit
A169: CFL Exit | C169: ECF8/1 | D169: F8T5 | E169: EXIT T5 Fluorescent, (1) 8W lamp | F169: Magnetic - Standard | H169: 1 | J169: 8 | K169: 12 | L169: CFL Exit
A170: CFL Exit | C170: ECF8/2 | D170: F8T5 | E170: EXIT T5 Fluorescent, (2) 8W lamp | F170: Magnetic - Standard | H170: 2 | J170: 8 | K170: 24 | L170: CFL Exit
A171: CFL Exit | C171: ECF9/1 | D171: CFT9W | E171: EXIT Compact Fluorescent, (1) 9W lamp | F171: Magnetic - Standard | H171: 1 | J171: 9 | K171: 12 | L171: CFL Exit
A172: CFL Exit | C172: ECF9/2 | D172: CFT9W | E172: EXIT Compact Fluorescent, (2) 9W lamp | F172: Magnetic - Standard | H172: 2 | J172: 9 | K172: 20 | L172: CFL Exit
A173: Incandescent Exit | C173: EI10/2 | D173: I10 | E173: EXIT Incandescent, (2) 10W lamp | H173: 2 | J173: 10 | K173: 20 | L173: Incandescent Exit
A174: Incandescent Exit | C174: EI15/1 | D174: I15 | E174: EXIT Incandescent, (1) 15W lamp | H174: 1 | J174: 15 | K174: 15 | L174: Incandescent Exit
A175: Incandescent Exit | C175: EI15/2 | D175: I15 | E175: EXIT Incandescent, (2) 15W lamp | H175: 2 | J175: 15 | K175: 30 | L175: Incandescent Exit
A176: Incandescent Exit | C176: EI20/1 | D176: I20 | E176: EXIT Incandescent, (1) 20W lamp | H176: 1 | J176: 20 | K176: 20 | L176: Incandescent Exit
A177: Incandescent Exit | C177: EI20/2 | D177: I20 | E177: EXIT Incandescent, (2) 20W lamp | H177: 2 | J177: 20 | K177: 40 | L177: Incandescent Exit
A178: Incandescent Exit | C178: EI25/1 | D178: I25 | E178: EXIT Incandescent, (1) 25W lamp | H178: 1 | J178: 25 | K178: 25 | L178: Incandescent Exit
A179: Incandescent Exit | C179: EI25/2 | D179: I25 | E179: EXIT Incandescent, (2) 25W lamp | H179: 2 | J179: 25 | K179: 50 | L179: Incandescent Exit
A180: Incandescent Exit | C180: EI34/1 | D180: I34 | E180: EXIT Incandescent, (1) 34W lamp | H180: 1 | J180: 34 | K180: 34 | L180: Incandescent Exit
A181: Incandescent Exit | C181: EI34/2 | D181: I34 | E181: EXIT Incandescent, (2) 34W lamp | H181: 2 | J181: 34 | K181: 68 | L181: Incandescent Exit
A182: Incandescent Exit | C182: EI40/1 | D182: I40 | E182: EXIT Incandescent, (1) 40W lamp | H182: 1 | J182: 40 | K182: 40 | L182: Incandescent Exit
A183: Incandescent Exit | C183: EI40/2 | D183: I40 | E183: EXIT Incandescent, (2) 40W lamp | H183: 2 | J183: 40 | K183: 80 | L183: Incandescent Exit
A184: Incandescent Exit | C184: EI5/1 | D184: I5 | E184: EXIT Incandescent, (1) 5W lamp | H184: 1 | J184: 5 | K184: 5 | L184: Incandescent Exit
A185: Incandescent Exit | C185: EI5/2 | D185: I5 | E185: EXIT Incandescent, (2) 5W lamp | H185: 2 | J185: 5 | K185: 10 | L185: Incandescent Exit
A186: Incandescent Exit | C186: EI50/2 | D186: I50 | E186: EXIT Incandescent, (2) 50W lamp | H186: 2 | J186: 50 | K186: 100 | L186: Incandescent Exit
A187: Incandescent Exit | C187: EI7.5/1 | D187: I7.5 | E187: EXIT Tungsten, (1) 7.5 W lamp | H187: 1 | J187: 7.5 | K187: 8 | L187: Incandescent Exit
A188: Incandescent Exit | C188: EI7.5/2 | D188: I7.5 | E188: EXIT Tungsten, (2) 7.5 W lamp | H188: 2 | J188: 7.5 | K188: 15 | L188: Incandescent Exit
A189: LED Exit | C189: ELED0.5/1 | D189: LED0.5W | E189: EXIT Light Emitting Diode, (1) 0.5W lamp, Single Sided | H189: 1 | J189: 0.5 | K189: 0.5 | L189: LED Exit
A190: LED Exit | C190: ELED0.5/2 | D190: LED0.5W | E190: EXIT Light Emitting Diode, (2) 0.5W lamp, Dual Sided | H190: 2 | J190: 0.5 | K190: 1 | L190: LED Exit
A191: LED Exit | C191: ELED1.5/1 | D191: LED1.5W | E191: EXIT Light Emitting Diode, (1) 1.5W lamp, Single Sided | H191: 1 | J191: 1.5 | K191: 1.5 | L191: LED Exit
A192: LED Exit | C192: ELED1.5/2 | D192: LED1.5W | E192: EXIT Light Emitting Diode, (2) 1.5W lamp, Dual Sided | H192: 2 | J192: 1.5 | K192: 3 | L192: LED Exit
A193: LED Exit | C193: ELED10.5/1 | D193: LED10.5W | E193: EXIT Light Emitting Diode, (1) 10.5W lamp, Single Sided | H193: 1 | J193: 10.5 | K193: 10.5 | L193: LED Exit
A194: LED Exit | C194: ELED10.5/2 | D194: LED10.5W | E194: EXIT Light Emitting Diode, (2) 10.5W lamp, Dual Sided | H194: 2 | J194: 10.5 | K194: 21 | L194: LED Exit
A195: LED Exit | C195: ELED2/1 | D195: LED2W | E195: EXIT Light Emitting Diode, (1) 2W lamp, Single Sided | H195: 1 | J195: 2 | K195: 2 | L195: LED Exit
A196: LED Exit | C196: ELED2/2 | D196: LED2W | E196: EXIT Light Emitting Diode, (2) 2W lamp, Dual Sided | H196: 2 | J196: 2 | K196: 4 | L196: =A196 -> LED Exit
A197: LED Exit | C197: ELED3/1 | D197: LED3W | E197: EXIT Light Emitting Diode, (1) 3W lamp, Single Sided | H197: 1 | I197: =IF(G197="","",G197/12) ->  | J197: 3 | K197: 3 | L197: LED Exit
A198: LED Exit | C198: ELED3/2 | D198: LED3W | E198: EXIT Light Emitting Diode, (2) 3W lamp, Dual Sided | H198: 2 | J198: 3 | K198: 6 | L198: LED Exit
A199: LED Exit | C199: ELED5/1 | D199: LED5W | E199: EXIT Light Emitting Diode, (1) 5W lamp, Single Sided | H199: 1 | J199: 5 | K199: 5 | L199: LED Exit
A200: LED Exit | C200: ELED5/2 | D200: LED5W | E200: EXIT Light Emitting Diode, (2) 5W lamp, Dual Sided | H200: 2 | J200: 5 | K200: 10 | L200: LED Exit
... 1928 more rows

Sheet AC_Calculations (hidden)
A1: 1 | B1: Total Number of Locations | AB1: =SUM(AB5:AB19) -> 0 | AC1: =SUM(AC5:AC19) ->  | BG1: =SUM(BG5:BG9) ->  | BK1: =SUM(BK5:BK9) ->  | BQ1: =SUM(BQ5:BQ9) ->  | BT1: =BG1*0.2 -> 
AB2: Usage | AD2: =SUM(AD5:AD9) ->  | AY2: Proposed
A3: Line | B3: Location | C3: Unit Type | F3: Total | G3: Existing Unit | K3: Equip | L3: Working Condition? | M3: Manufacturer | N3: Model | O3: Heating | P3: Age | Q3: Recommendation | S3: Baseline | Y3: Cooling kW | Z3: Cooling kWh | AA3: Heating kWh | AB3: Combined kW | AC3: Combined kWh | AF3: Recommendation 1 | AL3: Recommendation 2 | AR3: Installation Type | AS3: Measure | AU3: Existing/Baseline | AY3: SEER | AZ3: EER | BA3: HSPF | BB3: COP | BC3: Cooling kW | BD3: Cooling kWh | BE3: Heating kWh | BF3: Combined kW | BG3: Combined kWh | BI3: Rebate* | BJ3: Cooling | BK3: Cooling | BL3: Cooling | BM3: Heating | BN3: Total Combined | BO3: Cooling | BP3: Heating | BQ3: Combined | BR3: Measure | BS3: Estimated | BV3: Rebate per Unit | BW3: Total Rebate
D4: Tons | E4: Qty | F4: Tons | G4: SEER | H4: EER | I4: HSPF | J4: COP | K4: Type | N4: Number | O4: btu | S4: Retro SEER | T4: Retro EER | U4: SEER | V4: EER | W4: HSPF | X4: COP | AF4: SEER | AG4: EER | AH4: HSPF | AI4: COP | AJ4: Rebate* | AL4: SEER | AM4: EER | AN4: HSPF | AO4: COP | AP4: Rebate* | AU4: SEER | AV4: EER | AW4: HSPF | AX4: COP | BJ4: kW per Unit | BK4: Total kW | BL4: kWh per Unit | BM4: kWh per Unit | BN4: kWh per Unit | BO4: Total kWh | BP4: Total kWh | BQ4: Total kWh | BR4: Code | BS4: Cost
